Workbook

Sheet Dati Generali CER 1 Sem. 2021
A1: Scheda n. 1 - Produzione di Rifiuti Urbani e Raccolta Differenziata 1° Semestre 2021.
A2: =COUNTA(E3:E110) -> 108 | B2: ID COMUNE | C2: COMUNE | D2: ABITANTI al 30/06/2021 | E2: R.S.U. + R.S.A. (Kg/1°Sem.) 200301 | F2: R.S.U. COVID (A+A1) 200301* | G2: Altri oli per motori, ingranaggi e lubrificazione 130208* | H2: Legno da demolizione 170201 | I2: Miscele bituminose (diverse da quelle 170301*) 170302 | J2: Alluminio 170402 | K2: Ferro e acciaio 170405 | L2: Materiali da costruzione contenenti amianto 170605* | M2: Percolato di discarica,(diverso dalla voce 190702) 190703 | N2: Residui di vagliatura 190801 | O2: FANGHI DI DEPURAZIONE (Kg/anno) prodotti dal trattamento delle acque reflue urbane 190805 | P2: altri rifiuti (compresi materiali misti) prodotti dal trattamento meccanico dei rifiuti,(diversi dalla voce 191211) 191212 | Q2: Rifiuti della pulizia delle fognature 200306 | R2: Residui della pulizia stradale 200303 Smaltimento | S2: Ingombranti - 200307 Smaltimento | T2: Rifiuti urbani non specificati altrimenti 200399 | U2: RACCOL. DIFFEREN. (Kg/1°Sem.) | V2: R.S.U. + R.S.A. + RACC. DIFF. (Kg/1°Sem.) | W2: % RACC. DIFF. (1°Sem.) | X2: Compostaggio Domestico | Y2: Toner per stampa esauriti,(diversi dalla voce 080317) 080318 | Z2: Imballaggi Carta e Cartone (Raccolta Selettiva) 150101 | AA2: Imballaggi in Plastica 150102 | AB2: Imballaggi in Legno 150103 | AC2: Imballaaggi in metallo 150104 | AD2: Imball. in materiali misti 150106 | AE2: Imballaggi in Vetro 150107 | AF2: Imballaggi contenenti residui di sostanze pericolose o contaminati da tali sostanze 150110* | AG2: Imballaggi metallici contenenti matrici solide porose pericolose (ad esempio amianto) 150111* | AH2: Pneumatici usati 160103 | AI2: Filtri dell'olio 160107* | AJ2: Apparecchiature fuori uso, contenenti clorofluorocarburi, HCFC, HFC 160211* | AK2: Componenti rimossi da apparecchiature fuori uso,(diversi dalla voce 160215) 160216 | AL2: Miscugli o frazioni separate di cemento, mattoni, mattonelle e ceramiche(diverse dalla voce 170106) 170107 | AM2: Rifiuti misti dell'attività di costruzione e demolizione, (diversi dalle voci 170901, 170902 e 170903) 170904 | AN2: Carta e Cartone (Raccolta Congiunta) 200101 | AO2: Vetro 200102 | AP2: Rifiuti biodegradabili di cucine e mense 200108 | AQ2: Abbigliamento 200110 | AR2: Prodotti tessili 200111 | AS2: Tubi fluorescenti ed altri rifiuti contenenti Mercurio 200121* | AT2: Apparec. Fuori uso conten. CFC e mat. peric. 200123* | AU2: Oli e Grassi commestibili 200125 | AV2: Oli e grassi (diversi dalla voce 200125) 200126* | AW2: Medicinali citotossici e citostatici 200131* | AX2: Medicinali (diversi dlla voce 200131*) 200132 | AY2: Batterie ed Accumulatori (diversi dalle voci 160601, 160602 e 160603) 200133* | AZ2: Batterie ed accumulatori (diversi dlla voce 200133*) 200134 | BA2: Apparecc. elettr. ed elettroniche fuori uso contenenti Mat. Peric. 200135* | BB2: Apparecc. eletr. ed elettroniche fuori uso(diverse da 200121, 200123 e 200135 200136 | BC2: Legno 200138 | BD2: Plastica 200139 | BE2: Metallo 200140 | BF2: Rifiuti biodegradabili 200201 | BG2: Residui della pulizia stradale - 200303 Recupero | BH2: Ingombranti - 200307 Recupero | BI2: TOTALE RD (Kg/1°Sem.) | BJ2: R.S.U. + R.S.A.+ R.D. - (R.T. Kg. pro capite/g) | BK2: R.S.U. + R.S.A. 200301 - (R.I. Kg. pro capite/g) | BL2: R.D. - (Kg. pro capite/g)
A3: 1 | B3: M211 | C3: ACQUEDOLCI | D3: 5584 | E3: 252250 | U3: =IF(BI3=0,"",BI3) -> 623910 | V3: =IF(E3=0,"",SUM(U3,E3,R3,S3,T3)) -> 876160 | W3: =IFERROR(IF(E3<>0,IF(U3=0,0,(U3/V3*100)/100),IF(U3=0,"","")),0) -> 0.7120959642 | Z3: 24890 | AA3: 97540 | AB3: 170 | AE3: 105030 | AN3: 92740 | AP3: 280240 | AT3: 2500 | AU3: 930 | BA3: 1200 | BB3: 900 | BH3: 17770 | BI3: =IF(SUM(X3:BH3)=0,"",SUM(X3:BH3)) -> 623910 | BJ3: =IF(SUM(E3)=0,"",V3/D3/181) -> 0.8668809068 | BK3: =IF(E3=0,"",E3/D3/181) -> 0.2495785116 | BL3: =IF(SUM(Y3:BH3)=0,"",BI3/D3/181) -> 0.6173023952
A4: 2 | B4: A177 | C4: ALCARA LI FUSI | D4: 1774 | E4: 35481 | U4: =IF(BI4=0,"",BI4) -> 158662 | V4: 194143 | W4: 0.8172429601 | Y4: 20 | Z4: 5160 | AA4: 20920 | AE4: 32470 | AN4: 18010 | AP4: 70600 | AQ4: 2912 | AT4: 1440 | BA4: 1720 | BB4: 890 | BH4: 4520 | BI4: =IF(SUM(X4:BH4)=0,"",SUM(X4:BH4)) -> 158662 | BJ4: 0.6046297969 | BK4: =IF(E4=0,"",E4/D4/181) -> 0.1105003519 | BL4: 0.494129445
A5: 3 | B5: A194 | C5: ALI' | D5: 676 | E5: 17740 | U5: 56570 | V5: 74310 | W5: 0.7612703539 | AD5: 7760 | AE5: 7280 | AN5: 7370 | AO5: 29440 | AX5: 20 | BH5: 4700 | BI5: 56570 | BJ5: 0.607326163 | BK5: 0.1449867599 | BL5: 0.4623394031
A6: 4 | B6: A201 | C6: ALI' TERME | D6: 2385 | E6: 144870 | S6: 2480 | U6: 296430 | V6: 443780 | W6: 0.6679661093 | Y6: 20 | Z6: 10250 | AD6: 41830 | AE6: 35770 | AN6: 41350 | AP6: 147380 | AX6: 100 | BF6: 7270 | BH6: 12460 | BI6: 296430 | BJ6: 1.028018115 | BK6: 0.3355919247 | BL6: 0.6866812606
A7: 5 | B7: A313 | C7: ANTILLO | D7: 845 | E7: 25710 | U7: 63027 | V7: 88737 | W7: 0.7102674195 | X7: 3170 | AD7: 9210 | AE7: 5490 | AN7: 8970 | AP7: 27980 | AR7: 3967 | BB7: 450 | BH7: 3790 | BI7: 63027 | BJ7: 0.5801889568 | BK7: 0.1680996437 | BL7: 0.4120893132
A8: 6 | B8: A638 | C8: BARCELLONA P.G. | D8: 40119 | E8: 5776700 | U8: 3127691 | V8: 8904391 | W8: 0.3512526573 | X8: 137031 | Z8: 351770 | AA8: 324680 | AC8: 9800 | AE8: 297240 | AG8: 660 | AH8: 8980 | AK8: 940 | AN8: 398060 | AP8: 780530 | AQ8: 10810 | AS8: 540 | AT8: 22960 | AU8: 1460 | AX8: 1540 | AY8: 4780 | AZ8: 920 | BA8: 40900 | BB8: 33460 | BC8: 94180 | BD8: 6810 | BE8: 45580 | BF8: 209140 | BG8: 263860 | BH8: 81060 | BI8: 3127691 | BJ8: 1.226240195 | BK8: 0.7955200681 | BL8: 0.430720127
A9: 7 | B9: A698 | C9: BASICO' | D9: 535 | E9: 62600 | U9: 45050 | V9: 107650 | W9: 0.4184858337 | X9: 12090 | Z9: 10280 | AA9: 11120 | AE9: 10440 | AN9: 1120 | BI9: 45050 | BJ9: 1.111684825 | BK9: 0.646460474 | BL9: 0.4652243507
A10: 8 | B10: B198 | C10: BROLO | D10: 5771 | E10: 673040 | F10: 71 | R10: 9400 | U10: 690160 | V10: 1372600 | W10: 0.5028121813 | X10: 45570 | Z10: 100860 | AA10: 98560 | AE10: 84720 | AK10: 430 | AN10: 61010 | AP10: 126260 | AQ10: 950 | AT10: 6420 | AU10: 1780 | BA10: 12480 | BB10: 20100 | BC10: 26850 | BE10: 11310 | BF10: 71980 | BH10: 20880 | BI10: 690160 | BJ10: 1.314057428 | BK10: 0.6443342642 | BL10: 0.6607240814
A11: 9 | B11: B660 | C11: CAPIZZI | D11: 2807 | E11: 119410 | U11: 210424 | V11: 329834 | W11: 0.6379694028 | AA11: 26020 | AE11: 29940 | AN11: 35504 | AP11: 115120 | AU11: 2620 | BD11: 1220 | BI11: 210424 | BJ11: 0.6491939055 | BK11: 0.2350280573 | BL11: 0.4141658482
A12: 10 | B12: B666 | C12: CAPO D'ORLANDO | D12: 13162 | E12: 1025740 | F12: 4089 | H12: 1960 | K12: 3710 | Q12: 5670 | U12: 1987056 | V12: 3012796 | W12: 0.659538847 | Z12: 164680 | AA12: 214940 | AB12: 24760 | AD12: 1980 | AE12: 261600 | AN12: 383800 | AP12: 736900 | AQ12: 7606 | AS12: 130 | AT12: 15940 | AU12: 1460 | BA12: 24360 | BB12: 24200 | BF12: 57850 | BH12: 66850 | BI12: 1987056 | BJ12: 1.264646845 | BK12: 0.4305631229 | BL12: 0.8340837217
A13: 11 | B13: B695 | C13: CAPRILEONE | D13: 4367 | E13: 127990 | U13: 304590 | V13: 432580 | W13: 0.7041240927 | Z13: 21820 | AA13: 58330 | AE13: 77960 | AN13: 66400 | AP13: 60470 | BH13: 19610 | BI13: 304590 | BJ13: 0.5472738153 | BK13: 0.1619251367 | BL13: 0.3853486786
A14: 12 | B14: B804 | C14: CARONIA | D14: 3097 | E14: 205460 | U14: 390770 | V14: 596230 | W14: 0.655401439 | Z14: 31920 | AA14: 16500 | AD14: 80180 | AE14: 29280 | AP14: 208000 | AQ14: 1150 | BH14: 23740 | BI14: 390770 | BJ14: 1.063638488 | BK14: 0.3665282924 | BL14: 0.6971101958
A15: 13 | B15: B918 | C15: CASALVECCHIO SICULO | D15: 733 | E15: 45485 | K15: 5740 | U15: 37206 | V15: 82691 | W15: 0.4499401386 | AD15: 8510 | AE15: 6230 | AN15: 5740 | AP15: 11360 | AQ15: 3846 | BH15: 1520 | BI15: 37206 | BJ15: 0.6232692409 | BK15: 0.3428353923 | BL15: 0.2804338486
A16: 14 | B16: C094 | C16: CASTEL DI LUCIO | D16: 1173 | E16: 9700 | K16: 4240 | U16: 99980 | V16: 109680 | W16: 0.9115609044 | Z16: 6220 | AD16: 15770 | AE16: 12950 | AN16: 5750 | AP16: 51560 | AQ16: 3960 | BD16: 1820 | BH16: 1950 | BI16: 99980 | BJ16: 0.5165957808 | BK16: 0.04568726362 | BL16: 0.4709085171
A17: 15 | B17: C051 | C17: CASTELL'UMBERTO | D17: 2908 | E17: 182820 | U17: 150660 | V17: 333480 | W17: 0.4517812163 | AA17: 20230 | AE17: 30440 | AN17: 29110 | AP17: 65370 | AU17: 30 | BC17: 5480 | BI17: 150660 | BJ17: 0.6335732253 | BK17: 0.347336743 | BL17: 0.2862364823
A18: 16 | B18: C210 | C18: CASTELMOLA | D18: 1086 | E18: 98480 | S18: 1298 | U18: 67972 | V18: 167750 | W18: 0.4051982116 | AD18: 15500 | AE18: 10960 | AN18: 5760 | AP18: 29610 | AT18: 260 | BA18: 320 | BB18: 410 | BD18: 50 | BH18: 5102 | BI18: 67972 | BJ18: 0.8534029283 | BK18: 0.5010022079 | BL18: 0.3457973403
A19: 17 | B19: C347 | C19: CASTROREALE | D19: 2228 | E19: 132366 | U19: 127450 | V19: 259816 | W19: 0.4905394587 | Z19: 7150 | AA19: 23440 | AE19: 19650 | AN19: 14360 | AP19: 56200 | AT19: 1260 | BA19: 460 | BB19: 730 | BH19: 4200 | BI19: 127450 | BJ19: 0.6442762629 | BK19: 0.3282333337 | BL19: 0.3160429293
A20: 18 | B20: C568 | C20: CESARO' | D20: 2153 | E20: 151300 | U20: 134730 | V20: 286030 | W20: 0.4710345069 | AA20: 16080 | AE20: 19340 | AN20: 19730 | AP20: 74620 | AT20: 2040 | AU20: 260 | BH20: 2660 | BI20: 134730 | BJ20: 0.7339880367 | BK20: 0.3882543438 | BL20: 0.3457336929
A21: 19 | B21: C956 | C21: CONDRO' | D21: 435 | E21: 77700 | U21: 43680 | V21: 121380 | W21: 0.3598615917 | AA21: 4160 | AE21: 4120 | AN21: 5280 | AP21: 16790 | AT21: 260 | BA21: 440 | BB21: 640 | BG21: 9760 | BH21: 2230 | BI21: 43680 | BJ21: 1.541626977 | BK21: 0.986854639 | BL21: 0.5547723376
A22: 20 | B22: D474 | C22: FALCONE | D22: 2748 | E22: 427080 | F22: 867 | U22: 152420 | V22: 579500 | W22: 0.2630198447 | Z22: 880 | AA22: 29500 | AE22: 39640 | AN22: 53600 | BH22: 28800 | BI22: 152420 | BJ22: 1.165086411 | BK22: 0.8586455644 | BL22: 0.306440847
A23: 21 | B23: D569 | C23: FICARRA | D23: 1340 | E23: 113820 | F23: 350 | K23: 3500 | U23: 82130 | V23: 195950 | W23: 0.4191375351 | X23: 13200 | Z23: 950 | AA23: 11990 | AE23: 20430 | AN23: 13280 | AP23: 13620 | AT23: 630 | BA23: 420 | BH23: 7610 | BI23: 82130 | BJ23: 0.8079079739 | BK23: 0.4692834172 | BL23: 0.3386245568
A24: 22 | B24: D622 | C24: FIUMEDINISI | D24: 1303 | E24: 37880 | U24: 145430 | V24: 183310 | W24: 0.793355518 | AD24: 16940 | AE24: 13680 | AM24: 38060 | AN24: 16360 | AP24: 55990 | AX24: 20 | BH24: 4380 | BI24: 145430 | BJ24: 0.7772543599 | BK24: 0.1606153246 | BL24: 0.6166390353
A25: 23 | B25: D635 | C25: FLORESTA | D25: 467 | E25: 82560 | U25: 18380 | V25: 100940 | W25: 0.1820883693 | AA25: 5580 | AE25: 6720 | AN25: 3760 | BC25: 500 | BH25: 1820 | BI25: 18380 | BJ25: 1.194174642 | BK25: 0.9767293291 | BL25: 0.2174453133
A26: 24 | B26: D661 | C26: FONDACHELLI FANTINA | D26: 999 | E26: 72220 | U26: 42130 | V26: 114350 | W26: 0.368430258 | AA26: 5980 | AE26: 9020 | AN26: 4530 | AP26: 22600 | BI26: 42130 | BJ26: 0.6324003562 | BK26: 0.3994049298 | BL26: 0.2329954264
A27: 25 | B27: D733 | C27: FORZA D'AGRO' Apr.-Giu. | D27: 859 | E27: 27420 | U27: 62690 | V27: 90110 | W27: 0.6957052491 | AD27: 7700 | AE27: 7970 | AN27: 9740 | AP27: 35500 | BH27: 1780 | BI27: 62690 | BJ27: 0.5795637996 | BK27: 0.176358222 | BL27: 0.4032055776
A28: 26 | B28: D765 | C28: FRANCAVILLA DI SICILIA | D28: 3596 | E28: 408180 | K28: 15330 | U28: 233900 | V28: 642080 | W28: 0.3642848243 | X28: 37000 | AD28: 84760 | AE28: 47820 | AN28: 41780 | AT28: 4620 | AU28: 280 | BA28: 2000 | BC28: 5000 | BH28: 10640 | BI28: 233900 | BJ28: 0.9864859051 | BK28: 0.6271240605 | BL28: 0.3593618447
A29: 27 | B29: D793 | C29: FRAZZANO' | D29: 590 | E29: 30829 | U29: 38520 | V29: 69349 | W29: 0.5554514124 | AA29: 3170 | AE29: 12080 | AN29: 4170 | AP29: 17170 | BH29: 1930 | BI29: 38520 | BJ29: 0.6493960109 | BK29: 0.2886880794 | BL29: 0.3607079315
A30: 28 | B30: D824 | C30: FURCI SICULO | D30: 3203 | E30: 173300 | U30: 430998 | V30: 604298 | W30: 0.7132209605 | Z30: 6628 | AD30: 56680 | AE30: 40220 | AN30: 59820 | AP30: 178270 | AX30: 100 | BF30: 23820 | BH30: 65460 | BI30: 430998 | BJ30: 1.042354975 | BK30: 0.2989255584 | BL30: 0.7434294161
A31: 29 | B31: D825 | C31: FURNARI | D31: 3887 | E31: 196603 | U31: 773490 | V31: 970093 | W31: 0.7973359255 | Z31: 21140 | AD31: 62350 | AE31: 55560 | AN31: 48700 | AP31: 349860 | AU31: 220 | BC31: 16010 | BF31: 114330 | BH31: 105320 | BI31: 773490 | BJ31: 1.378860261 | BK31: 0.2794454386 | BL31: 1.099414822
A32: 30 | B32: D844 | C32: GAGGI | D32: 3132 | E32: 228690 | U32: 272220 | V32: 500910 | W32: 0.5434509193 | AD32: 32170 | AE32: 34290 | AN32: 40960 | AP32: 153640 | AT32: 270 | BA32: 240 | BB32: 180 | BG32: 790 | BH32: 9680 | BI32: 272220 | BJ32: 0.8836074596 | BK32: 0.4034101734 | BL32: 0.4801972863
A33: 31 | B33: D861 | C33: GALATI MAMERTINO | D33: 2360 | E33: 121741 | U33: 198440 | V33: 320181 | W33: 0.6197744401 | Z33: 560 | AA33: 27280 | AE33: 38160 | AH33: 860 | AN33: 24220 | AP33: 97910 | BB33: 3510 | BH33: 5940 | BI33: 198440 | BJ33: 0.7495575428 | BK33: 0.2850009364 | BL33: 0.4645566064
A34: 32 | B34: D885 | C34: GALLODORO | D34: 339 | E34: 22520 | S34: 145 | U34: 26925 | V34: 49590 | W34: 0.5429522081 | Z34: 380 | AD34: 3400 | AE34: 3680 | AH34: 860 | AN34: 4210 | AP34: 13210 | BA34: 230 | BB34: 70 | BH34: 885 | BI34: 26925 | BJ34: 0.8081943969 | BK34: 0.367020323 | BL34: 0.4388109324
A35: 33 | B35: E014 | C35: GIARDINI NAXOS | D35: 9176 | E35: 1409880 | R35: 22000 | U35: 808150 | V35: =IF(E35=0,"",SUM(U35,E35,R35,S35,T35)) -> 2240030 | W35: =IFERROR(IF(E35<>0,IF(U35=0,0,(U35/V35*100)/100),IF(U35=0,"","")),0) -> 0.3607764182 | Z35: 50150 | AA35: 58760 | AD35: 49850 | AE35: 133520 | AN35: 106040 | AP35: 320540 | AT35: 1970 | BA35: 550 | BB35: 1670 | BD35: 490 | BF35: 6500 | BH35: 78110 | BI35: 808150 | BJ35: =IF(SUM(E35)=0,"",V35/D35/181) -> 1.348720178 | BK35: =IF(E35=0,"",E35/D35/181) -> 0.8488875616 | BL35: =IF(SUM(Y35:BH35)=0,"",BI35/D35/181) -> 0.4865864349
A36: 34 | B36: E043 | C36: GIOIOSA MAREA | D36: 6815 | E36: 679000 | U36: 387260 | V36: 1066260 | W36: 0.363194718 | Z36: 56960 | AD36: 62460 | AE36: 35540 | AN36: 59900 | AP36: 120220 | AQ36: 3580 | AU36: 400 | BF36: 39100 | BH36: 9100 | BI36: 387260 | BJ36: 0.8644078102 | BK36: 0.5504594593 | BL36: 0.3139483509
A37: 35 | B37: E142 | C37: GRANITI | D37: 1447 | E37: 183040 | U37: 48600 | V37: 231640 | W37: 0.2098083233 | AA37: 1280 | AD37: 11580 | AE37: 14080 | AN37: 14000 | AT37: 840 | BA37: 800 | BB37: 260 | BH37: 5760 | BI37: 48600 | BJ37: 0.8844360785 | BK37: 0.6988740278 | BL37: 0.1855620507
A38: 36 | B38: E233 | C38: GUALTIERI SICAMINO | D38: 1619 | E38: 60260 | F38: 198 | U38: 157808 | V38: 218068 | W38: 0.7236641781 | X38: 11202 | AD38: 17740 | AE38: 25720 | AN38: 20380 | AP38: 76546 | AT38: 1800 | BA38: 2000 | BB38: 880 | BC38: 1540 | BI38: 157808 | BJ38: 0.7441603336 | BK38: 0.2056381574 | BL38: 0.5385221762
A39: 37 | B39: E374 | C39: ITALA | D39: 1500 | E39: 89250 | S39: 1267 | U39: 96158 | V39: 186675 | W39: 0.5151091469 | Z39: 3630 | AD39: 15420 | AE39: 13240 | AN39: 15520 | AP39: 44955 | AT39: 400 | AY39: 40 | BA39: 140 | BB39: 430 | BH39: 2383 | BI39: 96158 | BJ39: 0.6875690608 | BK39: 0.3287292818 | BL39: 0.3541731123
A40: 38 | B40: E523 | C40: LENI | D40: 678 | E40: 71920 | U40: 22440 | V40: 94360 | W40: 0.2378126325 | Z40: 11840 | AA40: 2620 | AE40: 4760 | AT40: 2220 | BA40: 600 | BB40: 400 | BI40: 22440 | BJ40: 0.7689173552 | BK40: 0.5860590948 | BL40: 0.1828582604
A41: 39 | B41: E555 | C41: LETOJANNI | D41: 2750 | E41: 277060 | S41: 2767 | U41: 336563 | V41: 616390 | W41: 0.5460228102 | AD41: 41840 | AE41: 53500 | AN41: 50440 | AP41: 178620 | AT41: 530 | BA41: 260 | BB41: 280 | BD41: 60 | BH41: 11033 | BI41: 336563 | BJ41: 1.238352587 | BK41: 0.5566248117 | BL41: 0.6761687594
A42: 40 | B42: E571 | C42: LIBRIZZI | D42: 1585 | E42: 176820 | U42: 103980 | V42: 280800 | W42: 0.3702991453 | X42: 51200 | AA42: 16080 | AE42: 18040 | AN42: 12980 | BB42: 700 | BH42: 4980 | BI42: 103980 | BJ42: 0.9787894104 | BK42: 0.6163445283 | BL42: 0.3624448821
A43: 41 | B43: E594 | C43: LIMINA | D43: 723 | E43: 72200 | U43: 27750 | V43: 99950 | W43: 0.2776388194 | AA43: 10610 | AN43: 8720 | AO43: 5360 | AQ43: 540 | BH43: 2520 | BI43: 27750 | BJ43: 0.7637758572 | BK43: 0.5517220299 | BL43: 0.2120538273
A44: 42 | B44: E606 | C44: LIPARI | D44: 12433 | E44: 2379200 | U44: 1071320 | V44: 3450520 | W44: 0.3104807391 | Z44: 248730 | AA44: 114260 | AE44: 146500 | AH44: 9830 | AN44: 34920 | AP44: 152560 | AT44: 26320 | BA44: 24240 | BB44: 46540 | BC44: 91920 | BD44: 21980 | BE44: 76980 | BF44: 54840 | BH44: 21700 | BI44: 1071320 | BJ44: 1.533310256 | BK44: 1.057246954 | BL44: 0.4760633015
A45: 43 | B45: E674 | C45: LONGI | D45: 1367 | E45: 23160 | U45: 162939 | V45: 186099 | W45: 0.8755501104 | AA45: 21420 | AE45: 30170 | AN45: 23070 | AP45: 69900 | AQ45: 4709 | BB45: 2360 | BE45: 5670 | BH45: 5640 | BI45: 162939 | BJ45: 0.7521369939 | BK45: 0.09360336584 | BL45: 0.6585336281
A46: 44 | B46: E855 | C46: MALFA | D46: 975 | E46: 78060 | U46: 116360 | V46: 194420 | W46: 0.5984980969 | Z46: 27580 | AA46: 17880 | AC46: 2320 | AE46: 23120 | AN46: 3800 | AP46: 14440 | AT46: 4000 | BB46: 8720 | BC46: 2940 | BD46: 3800 | BE46: 5280 | BH46: 2480 | BI46: 116360 | BJ46: 1.101685791 | BK46: 0.4423289418 | BL46: 0.6593568494
A47: 45 | B47: E869 | C47: MALVAGNA | D47: 650 | E47: 75400 | U47: 18760 | V47: 94160 | W47: 0.1992353441 | AA47: 6840 | AE47: 4500 | AN47: 4520 | BH47: 2900 | BI47: 18760 | BJ47: 0.8003399915 | BK47: 0.6408839779 | BL47: 0.1594560136
A48: 46 | B48: E876 | C48: MANDANICI | D48: 544 | E48: 27950 | U48: 56005 | V48: 83955 | W48: 0.6670835567 | AD48: 7215 | AE48: 7220 | AN48: 7110 | AP48: 30280 | AT48: 320 | BA48: 2800 | BH48: 1060 | BI48: 56005 | BJ48: 0.8526466526 | BK48: 0.283860091 | BL48: 0.5687865616
A49: 47 | B49: F066 | C49: MAZZARRA' S. ANDREA | D49: 1405 | E49: 49120 | U49: 175446 | V49: 224566 | W49: 0.7812669772 | X49: 20766 | AA49: 19460 | AE49: 20140 | AN49: 19540 | AP49: 83140 | BH49: 12400 | BI49: 175446 | BJ49: 0.8830577456 | BK49: 0.19315389 | BL49: 0.6899038556
A50: 48 | B50: F147 | C50: MERI' | D50: 2358 | E50: 184490 | U50: 173770 | V50: 358260 | W50: 0.4850387986 | Z50: 600 | AA50: 23310 | AE50: 23420 | AN50: 24540 | AP50: 97550 | AT50: 600 | BA50: 360 | BB50: 760 | BH50: 2630 | BI50: 173770 | BJ50: 0.839413493 | BK50: 0.4322653808 | BL50: 0.4071481122
A51: 49 | B51: F158 | C51: MESSINA | D51: 224445 | E51: 32804580 | U51: 14932571 | V51: 47737151 | W51: 0.3128081732 | X51: 275936 | Y51: 1650 | Z51: 2444880 | AA51: 190880 | AC51: 10350 | AD51: 2587440 | AE51: 2398139 | AF51: 200 | AH51: 9270 | AM51: 188740 | AN51: 2923560 | AO51: 15840 | AP51: 880970 | AQ51: 136250 | AS51: 1160 | AT51: 82180 | AU51: 11333 | AV51: 1950 | AX51: 13490 | AZ51: 3200 | BA51: 95340 | BB51: 167700 | BC51: 896517 | BE51: 107060 | BF51: 760025 | BH51: 728511 | BI51: 14932571 | BJ51: 1.175081493 | BK51: 0.8075063979 | BL51: 0.3675750953
A52: 50 | B52: F206 | C52: MILAZZO | D52: 29831 | E52: 5035180 | F52: 23283 | R52: 37960 | U52: 2421130 | V52: 7494270 | W52: 0.3230641543 | Z52: 269740 | AA52: 277380 | AE52: 313820 | AG52: 4500 | AN52: 263620 | AP52: 1055610 | AT52: 3820 | AU52: 2490 | AX52: 240 | BA52: 2820 | BB52: 2820 | BD52: 360 | BF52: 128390 | BG52: 25280 | BH52: 70240 | BI52: 2421130 | BJ52: 1.38797917 | BK52: 0.9325424569 | BL52: 0.4484063169
A53: 51 | B53: F210 | C53: MILITELLO ROSMARINO | D53: 1203 | E53: 39500 | F53: 341 | U53: 99822 | V53: 139322 | W53: 0.7164841159 | AA53: 16900 | AE53: 20380 | AN53: 11060 | AP53: 41610 | AQ53: 3902 | AT53: 1350 | BA53: 940 | BB53: 520 | BH53: 3160 | BI53: 99822 | BJ53: 0.639846057 | BK53: 0.1814065205 | BL53: 0.4584395365
A54: 52 | B54: F242 | C54: MIRTO | D54: 915 | E54: 14780 | U54: 137737 | V54: 152517 | W54: 0.90309277 | Z54: 1500 | AA54: 18310 | AE54: 24030 | AN54: 24840 | AP54: 56330 | AQ54: 3367 | AT54: 800 | BA54: 1650 | BB54: 870 | BH54: 6040 | BI54: 137737 | BJ54: 0.9209129608 | BK54: 0.08924312411 | BL54: 0.8316698367
A55: 53 | B55: F251 | C55: MISTRETTA | D55: 4486 | E55: 278600 | U55: 476330 | V55: 754930 | W55: 0.6309591618 | Z55: 18820 | AA55: 40880 | AE55: 74290 | AN55: 52580 | AP55: 253340 | AT55: 1800 | AU55: 150 | BA55: 4240 | BB55: 2580 | BH55: 27650 | BI55: 476330 | BJ55: 0.9297556794 | BK55: 0.3431178153 | BL55: 0.5866378641
A56: 54 | B56: F277 | C56: MOJO ALCANTARA | D56: 677 | E56: 91820 | U56: 11620 | V56: 103440 | W56: 0.1123356535 | AA56: 2920 | AE56: 5140 | AN56: 3560 | BI56: 11620 | BJ56: 0.8441531945 | BK56: 0.7493246938 | BL56: 0.09482850078
A57: 55 | B57: F359 | C57: MONFORTE S. GIORGIO | D57: 2587 | E57: 337860 | R57: 11540 | U57: 174020 | V57: 523420 | W57: 0.3324672347 | AA57: 24540 | AE57: 24540 | AN57: 28760 | AP57: 90210 | AT57: 1230 | BA57: 660 | BB57: 840 | BH57: 3240 | BI57: 174020 | BJ57: 1.117828838 | BK57: 0.721542263 | BL57: 0.3716414627
A58: 56 | B58: F368 | C58: MONGIUFFI MELIA | D58: 538 | E58: 28152 | U58: 37220 | V58: 65372 | W58: 0.5693569112 | AD58: 6310 | AE58: 3390 | AN58: 6170 | AP58: 20050 | AT58: 30 | BA58: 140 | BB58: 20 | BH58: 1110 | BI58: 37220 | BJ58: 0.6713220645 | BK58: 0.2891002074 | BL58: 0.3822218571
A59: 57 | B59: F395 | C59: MONTAGNAREALE | D59: 1441 | E59: 201680 | U59: 87880 | V59: 289560 | W59: 0.3034949579 | AA59: 20300 | AE59: 24740 | AN59: 22360 | BH59: 20480 | BI59: 87880 | BJ59: 1.11018668 | BK59: 0.7732506202 | BL59: 0.3369360596
A60: 58 | B60: F400 | C60: MONTALBANO ELICONA | D60: 2058 | E60: 68640 | U60: 210084 | V60: 278724 | W60: 0.7537348775 | X60: 27114 | Z60: 6240 | AA60: 27170 | AC60: 1240 | AE60: 29990 | AN60: 20260 | AP60: 84250 | AQ60: 6060 | AT60: 540 | BA60: 1790 | BB60: 1110 | BH60: 4320 | BI60: 210084 | BJ60: 0.7482563665 | BK60: 0.1842694457 | BL60: 0.5639869207
A61: 59 | B61: F772 | C61: MOTTA CAMASTRA | D61: 792 | E61: 111320 | U61: 22760 | V61: 134080 | W61: 0.1697494033 | AA61: 480 | AD61: 6120 | AE61: 8380 | AN61: 4500 | AT61: 440 | BA61: 100 | BH61: 2740 | BI61: 22760 | BJ61: 0.9353200513 | BK61: 0.7765500307 | BL61: 0.1587700206
A62: 60 | B62: F773 | C62: MOTTA D'AFFERMO | D62: 661 | E62: 26760 | U62: 61950 | V62: 88710 | W62: 0.6983429151 | Z62: 950 | AD62: 9890 | AE62: 5320 | AN62: 7350 | AP62: 35440 | BD62: 750 | BH62: 2250 | BI62: 61950 | BJ62: 0.7414682258 | BK62: 0.2236691435 | BL62: 0.5177990823
A63: 61 | B63: F848 | C63: NASO | D63: 3530 | E63: 141620 | F63: 894 | U63: 390504 | V63: 532124 | W63: 0.7338590253 | X63: 32004 | AA63: 59610 | AE63: 58090 | AM63: 5780 | AN63: 63190 | AP63: 144630 | BC63: 650 | BE63: 13870 | BH63: 12680 | BI63: 390504 | BJ63: 0.8328361479 | BK63: 0.2216518241 | BL63: 0.6111843238
A64: 62 | B64: F901 | C64: NIZZA DI SICILIA | D64: 3538 | E64: 168790 | U64: 367600 | V64: 536390 | W64: 0.6853222469 | Y64: 100 | Z64: 2390 | AD64: 47230 | AE64: 56480 | AN64: 68840 | AP64: 171430 | AX64: 260 | BF64: 5690 | BH64: 15180 | BI64: 367600 | BJ64: 0.8376146588 | BK64: 0.2635786988 | BL64: 0.57403596
A65: 63 | B65: F951 | C65: NOVARA DI SICILIA | D65: 1186 | E65: 109820 | U65: 58520 | V65: 168340 | W65: 0.3476297968 | Z65: 15840 | AD65: 17000 | AE65: 17400 | AN65: 4120 | BH65: 4160 | BI65: 58520 | BJ65: 0.784194982 | BK65: 0.5115854397 | BL65: 0.2726095423
A66: 64 | B66: G036 | C66: OLIVERI | D66: 2057 | E66: 218800 | K66: 400 | U66: 336680 | V66: 555480 | W66: 0.6061064305 | X66: 12090 | Z66: 25900 | AA66: 34700 | AE66: 44180 | AM66: 15000 | AN66: 18880 | AP66: 144530 | AU66: 420 | BC66: 2140 | BH66: 38840 | BI66: 336680 | BJ66: 1.491954437 | BK66: 0.5876712586 | BL66: 0.904283178
A67: 65 | B67: G209 | C67: PACE DEL MELA | D67: 6110 | E67: 407800 | U67: 750640 | V67: =IF(E67=0,"",SUM(U67,E67,R67,S67,T67)) -> 1158440 | W67: =IFERROR(IF(E67<>0,IF(U67=0,0,(U67/V67*100)/100),IF(U67=0,"","")),0) -> 0.6479748627 | AD67: 114180 | AE67: 71980 | AN67: 165380 | AP67: 327460 | AQ67: 2160 | AT67: 5000 | AX67: 160 | BA67: 5830 | BB67: 10530 | BC67: 15140 | BD67: 4040 | BE67: 3680 | BF67: 10300 | BH67: 14800 | BI67: 750640 | BJ67: =IF(SUM(E67)=0,"",V67/D67/181) -> 1.047499344 | BK67: 0.3687461005 | BL67: =IF(SUM(Y67:BH67)=0,"",BI67/D67/181) -> 0.6787532439
A68: 66 | B68: G234 | C68: PAGLIARA | D68: 1124 | E68: 36590 | U68: =IF(BI68=0,"",BI68) -> 90850 | V68: 127440 | W68: 0.7128844947 | AA68: 1400 | AD68: 10160 | AE68: 10980 | AN68: 11700 | AP68: 53480 | AT68: 220 | BA68: 60 | BB68: 230 | BH68: 2620 | BI68: =IF(SUM(X68:BH68)=0,"",SUM(X68:BH68)) -> 90850 | BJ68: 0.6264131653 | BK68: =IF(E68=0,"",E68/D68/181) -> 0.1798529325 | BL68: 0.4465602328
A69: 67 | B69: G377 | C69: PATTI | D69: 12797 | E69: 1366170 | U69: 1335000 | V69: 2701170 | W69: 0.494230278 | Z69: 140300 | AB69: 3240 | AD69: 279440 | AE69: 210500 | AN69: 201280 | AP69: 419420 | AX69: 140 | BC69: 3780 | BF69: 14900 | BH69: 62000 | BI69: 1335000 | BJ69: 1.166178883 | BK69: 0.5898179692 | BL69: 0.5763609133
A70: 68 | B70: G522 | C70: PETTINEO | D70: 1245 | E70: 25740 | K70: 13010 | U70: 114830 | V70: 140570 | W70: 0.816888383 | Z70: 3260 | AD70: 16290 | AE70: 15280 | AN70: 8380 | AP70: 67620 | BD70: 790 | BH70: 3210 | BI70: 114830 | BJ70: 0.6237990637 | BK70: 0.1142248552 | BL70: 0.5095742084
A71: 69 | B71: G699 | C71: PIRAINO | D71: 3849 | E71: 389780 | U71: 269620 | V71: 659400 | W71: 0.4088868668 | X71: 24050 | Z71: 11590 | AA71: 50340 | AE71: 56350 | AN71: 62250 | AP71: 43200 | AT71: 1790 | AX71: 110 | AZ71: 20 | BA71: 2010 | BB71: 3610 | BH71: 14300 | BI71: 269620 | BJ71: 0.9465040069 | BK71: 0.5594909491 | BL71: 0.3870130579
A72: 70 | B72: H151 | C72: RACCUJA | D72: 886 | E72: 48140 | F72: 747 | K72: 500 | U72: 80785 | V72: 128925 | W72: 0.6266046151 | Z72: 12260 | AA72: 7820 | AE72: 20060 | AP72: 34670 | AU72: 155 | BB72: 800 | BC72: 2440 | BH72: 2580 | BI72: 80785 | BJ72: 0.8039422321 | BK72: 0.3001883192 | BL72: 0.5037539129
A73: 71 | B73: H228 | C73: REITANO | D73: 709 | E73: 62760 | U73: 158020 | V73: 220780 | W73: 0.7157351209 | Z73: 13130 | AA73: 7030 | AD73: 43920 | AE73: 15580 | AP73: 65140 | BH73: 13220 | BI73: 158020 | BJ73: 1.720421729 | BK73: 0.4890554746 | BL73: 1.231366254
A74: 72 | B74: H405 | C74: ROCCAFIORITA | D74: 180 | E74: 4450 | U74: 16580 | V74: 21030 | W74: 0.7883975273 | AA74: 1830 | AE74: 1020 | AF74: 1900 | AN74: 1280 | AP74: 7500 | AQ74: 800 | BF74: 2250 | BI74: 16580 | BJ74: 0.6454880295 | BK74: 0.1365868631 | BL74: 0.5089011664
A75: 73 | B75: H418 | C75: ROCCALUMERA | D75: 3904 | E75: 267480 | U75: 634890 | V75: 902370 | W75: 0.7035805712 | Z75: 16270 | AD75: 68840 | AE75: 68350 | AH75: 240 | AN75: 88840 | AP75: 285290 | AQ75: 4350 | AU75: 100 | AX75: 190 | AZ75: 20 | BA75: 5900 | BB75: 8360 | BF75: 1800 | BH75: 86340 | BI75: 634890 | BJ75: 1.277015782 | BK75: 0.3785322887 | BL75: 0.8984834933
A76: 74 | B76: H380 | C76: ROCCAVALDINA | D76: 1004 | E76: 119160 | U76: 42916 | V76: 162076 | W76: 0.2647893581 | AA76: 10820 | AE76: 5420 | AN76: 9800 | AP76: 12516 | AT76: 120 | BA76: 400 | BB76: 900 | BH76: 2940 | BI76: 42916 | BJ76: 0.8918799938 | BK76: 0.6557196628 | BL76: 0.2361603311
A77: 75 | B77: H455 | C77: ROCCELLA VALDEMONE | D77: 572 | E77: 79980 | U77: 16700 | V77: 96680 | W77: 0.1727347952 | AA77: 5620 | AE77: 6720 | AN77: 4360 | BI77: 16700 | BJ77: 0.9338175637 | BK77: 0.772514778 | BL77: 0.1613027856
A78: 76 | B78: H479 | C78: RODI' MILICI | D78: 1950 | E78: 130800 | U78: 170000 | V78: 300800 | W78: 0.5651595745 | X78: 28020 | Z78: 8040 | AA78: 24340 | AE78: 23430 | AN78: 15550 | AP78: 59820 | BA78: 2160 | BB78: 2900 | BC78: 2510 | BH78: 3230 | BI78: 170000 | BJ78: 0.8522453605 | BK78: 0.3705907352 | BL78: 0.4816546253
A79: 77 | B79: H519 | C79: ROMETTA | D79: 6480 | E79: 95760 | U79: 924010 | V79: 1019770 | W79: 0.9060964727 | X79: 79620 | Z79: 24230 | AA79: 97800 | AE79: 91190 | AN79: 106220 | AP79: 365080 | AQ79: 4770 | AT79: 5480 | AU79: 100 | AZ79: 120 | BA79: 3400 | BB79: 1480 | BC79: 20400 | BF79: 69200 | BH79: 54920 | BI79: 924010 | BJ79: 0.8694580861 | BK79: 0.08164518109 | BL79: 0.787812905
A80: 78 | B80: I184 | C80: S. DOMENICA VITTORIA | D80: 870 | E80: 107460 | U80: 29500 | V80: 136960 | W80: 0.2153913551 | Z80: 7040 | AA80: 10740 | AE80: 9760 | BH80: 1960 | BI80: 29500 | BJ80: 0.8697529688 | BK80: 0.6824156982 | BL80: 0.1873372706
A81: 79 | B81: I370 | C81: S. STEF. DI CAMASTRA | D81: 4445 | E81: 414960 | U81: 600297 | V81: 1015257 | W81: 0.5912759035 | Z81: 98260 | AA81: 32090 | AM81: 21160 | AN81: 8790 | AO81: 84600 | AP81: 274520 | AQ81: 7150 | AT81: 3850 | AU81: 280 | AX81: 340 | AZ81: 127 | BA81: 3810 | BE81: 2940 | BF81: 25100 | BH81: 37280 | BI81: 600297 | BJ81: 1.261902069 | BK81: 0.5157697829 | BL81: 0.746132286
A82: 80 | B82: I199 | C82: S. AGATA DI MILITELLO | D82: 12139 | E82: 1495790 | F82: 5260 | U82: 1012540 | V82: 2508330 | W82: 0.4036709683 | Z82: 94420 | AA82: 142120 | AB82: 1180 | AD82: 55140 | AE82: 186710 | AN82: 175210 | AP82: 106540 | AS82: 130 | AT82: 21020 | AU82: 250 | BA82: 20580 | BB82: 10660 | BF82: 46020 | BH82: 152560 | BI82: 1012540 | BJ82: 1.141624252 | BK82: 0.6807836847 | BL82: 0.4608405673
A83: 81 | B83: I220 | C83: SANTA LUCIA DEL MELA | D83: 4475 | E83: 306596 | U83: 429948 | V83: 736544 | W83: 0.5837370205 | X83: 66078 | Z83: 8860 | AA83: 57870 | AE83: 48380 | AN83: 49160 | AP83: 177540 | AQ83: 800 | AT83: 1350 | AX83: 10 | AZ83: 40 | BA83: 1540 | BB83: 1110 | BG83: 11600 | BH83: 5610 | BI83: 429948 | BJ83: 0.9093416463 | BK83: 0.3785252631 | BL83: 0.5308163832
A84: 82 | B84: I311 | C84: S. TERESA DI RIVA | D84: 9450 | E84: 426880 | U84: 1263205 | V84: 1690085 | W84: 0.7474209877 | X84: 38755 | Y84: 540 | Z84: 118030 | AD84: 184200 | AE84: 92800 | AN84: 131470 | AP84: 606520 | AQ84: 1120 | AT84: 4160 | AU84: 130 | AX84: 280 | BA84: 1540 | BB84: 3320 | BC84: 22100 | BD84: 4180 | BE84: 4840 | BF84: 19800 | BH84: 29420 | BI84: 1263205 | BJ84: 0.9880937765 | BK84: 0.2495717501 | BL84: 0.7385220264
A85: 83 | B85: H842 | C85: S. FILIPPO DEL MELA | D85: 6756 | E85: 449220 | F85: 6978 | U85: 773947 | V85: 1223167 | W85: 0.6327402554 | X85: 8000 | Z85: 35970 | AA85: 90610 | AE85: 77000 | AN85: 115190 | AP85: 307800 | AT85: 1720 | AX85: 80 | AZ85: 50 | BA85: 1550 | BB85: 1860 | BE85: 1620 | BF85: 104960 | BG85: 12280 | BH85: 15257 | BI85: 773947 | BJ85: 1.000270682 | BK85: 0.3673591553 | BL85: 0.632911527
A86: 84 | B86: H850 | C86: SAN FRATELLO | D86: 3351 | E86: 144380 | U86: 261190 | V86: 405570 | W86: 0.6440071997 | AB86: 820 | AD86: 40380 | AE86: 39580 | AN86: 41940 | AP86: 131270 | BH86: 7200 | BI86: 261190 | BJ86: 0.6686715106 | BK86: 0.2380422435 | BL86: 0.4306292671
A87: 85 | B87: H982 | C87: SAN MARCO D'ALUNZIO | D87: 1817 | E87: 55905 | U87: 201170 | V87: 257075 | W87: 0.7825342799 | Z87: 8890 | AA87: 25010 | AE87: 31860 | AH87: 1780 | AN87: 25150 | AP87: 79350 | BE87: 21300 | BH87: 7830 | BI87: 201170 | BJ87: 0.781675216 | BK87: 0.1699875637 | BL87: 0.6116876522
A88: 86 | B88: I084 | C88: SAN PIER NICETO | D88: 2632 | E88: 253560 | F88: 852 | R88: 7000 | U88: 288750 | V88: 549310 | W88: 0.5256594637 | X88: 129600 | AA88: 26160 | AE88: 26820 | AN88: 25900 | AP88: 49860 | AT88: 990 | BA88: 910 | BB88: 740 | BF88: 23780 | BH88: 3990 | BI88: 288750 | BJ88: 1.153063024 | BK88: 0.5322507515 | BL88: 0.6061184907
A89: 87 | B89: I086 | C89: SAN PIERO PATTI | D89: 2616 | E89: 332560 | U89: 254461 | V89: 587021 | W89: 0.4334785297 | X89: 123131 | Z89: 21820 | AD89: 36840 | AE89: 37680 | AH89: 240 | AN89: 18280 | AU89: 210 | BB89: 4400 | BC89: 5640 | BH89: 6220 | BI89: 254461 | BJ89: 1.239759153 | BK89: 0.7023501782 | BL89: 0.5374089749
A90: 88 | B90: I147 | C90: S. SALVAT. DI FITALIA | D90: 1159 | E90: 103540 | F90: 617 | U90: 49170 | V90: 152710 | W90: 0.3219828433 | AA90: 10520 | AE90: 13520 | AN90: 10010 | AP90: 11520 | BF90: 3600 | BI90: 49170 | BJ90: 0.7279565638 | BK90: 0.4935670396 | BL90: 0.2343895242
A91: 89 | B91: I328 | C91: SAN TEODORO | D91: 1248 | E91: 55320 | U91: 143760 | V91: 199080 | W91: 0.7221217601 | AA91: 16140 | AC91: 31840 | AE91: 23220 | AN91: 24600 | AP91: 47960 | BI91: 143760 | BJ91: 0.881321717 | BK91: 0.2449001275 | BL91: 0.6364215895
A92: 90 | B92: I283 | C92: S. ANGELO DI BROLO | D92: 2847 | E92: 483800 | U92: 106920 | V92: 590720 | W92: 0.1809994583 | Z92: 19240 | AA92: 15800 | AE92: 19300 | AN92: 18680 | AP92: 9380 | BC92: 2220 | BH92: 22300 | BI92: 106920 | BJ92: 1.146345771 | BK92: 0.9388578071 | BL92: 0.2074879635
A93: 91 | B93: I215 | C93: S. ALESSIO SICULO | D93: 1469 | E93: 184510 | R93: 4150 | S93: 1068 | U93: 154842 | V93: 344570 | W93: 0.449377485 | Z93: 40 | AD93: 24020 | AE93: 24450 | AN93: 25240 | AP93: 75350 | BA93: 70 | BB93: 120 | BH93: 5552 | BI93: 154842 | BJ93: 1.295916717 | BK93: 0.6939361914 | BL93: 0.5823557951
A94: 92 | B94: I254 | C94: SANTA MARINA SALINA | D94: 845 | E94: 123360 | H94: 1880 | U94: 64080 | V94: 187440 | W94: 0.3418693982 | Z94: 13360 | AA94: 8740 | AE94: 28880 | AH94: 2700 | AM94: 1460 | BA94: 300 | BB94: 1200 | BC94: 3180 | BD94: 1240 | BH94: 3020 | BI94: 64080 | BJ94: 1.225538592 | BK94: 0.8065644513 | BL94: 0.418974141
A95: 93 | B95: I420 | C95: SAPONARA | D95: 3705 | E95: 97966 | U95: 485810 | V95: 583776 | W95: 0.8321856328 | AA95: 65000 | AC95: 7810 | AE95: 49220 | AN95: 83830 | AP95: 209710 | AQ95: 870 | AT95: 2580 | AU95: 110 | AZ95: 180 | BA95: 3340 | BC95: 18900 | BF95: 35820 | BH95: 8440 | BI95: 485810 | BJ95: 0.8705213949 | BK95: 0.146085997 | BL95: 0.7244353979
A96: 94 | B96: I477 | C96: SAVOCA | D96: 1731 | E96: 108920 | U96: 135710 | V96: 244630 | W96: 0.5547561624 | AD96: 24610 | AE96: 18830 | AN96: 21220 | AP96: 66140 | AT96: 180 | BB96: 140 | BH96: 4590 | BI96: 135710 | BJ96: 0.7807896946 | BK96: 0.3476418 | BL96: 0.4331478946
A97: 95 | B97: I492 | C97: SCALETTA ZANCLEA | D97: 1896 | E97: 117990 | S97: 1261 | U97: 227739 | V97: 346990 | W97: 0.6563272717 | Z97: 2830 | AD97: 35550 | AE97: 33590 | AN97: 46080 | AP97: 104960 | AT97: 600 | BA97: 170 | BB97: 420 | BD97: 70 | BH97: 3469 | BI97: 227739 | BJ97: 1.011113831 | BK97: 0.3438177495 | BL97: 0.6636215819
A98: 96 | B98: I747 | C98: SINAGRA | D98: 2541 | E98: 95460 | U98: 331965 | V98: 427425 | W98: 0.7766625724 | AA98: 30340 | AB98: 8580 | AE98: 49460 | AN98: 38280 | AP98: 154850 | AQ98: 4300 | AU98: 195 | BH98: 45960 | BI98: 331965 | BJ98: 0.9293443874 | BK98: 0.2075573849 | BL98: 0.7217870026
A99: 97 | B99: I881 | C99: SPADAFORA | D99: 4758 | E99: 548130 | S99: 2230 | U99: 288700 | V99: =IF(E99=0,"",SUM(U99,E99,R99,S99,T99)) -> 839060 | W99: =IFERROR(IF(E99<>0,IF(U99=0,0,(U99/V99*100)/100),IF(U99=0,"","")),0) -> 0.3440755131 | AA99: 75240 | AE99: 63010 | AN99: 80250 | AP99: 34390 | AT99: 1760 | AU99: 100 | BA99: 300 | BC99: 20200 | BF99: 1740 | BH99: 11710 | BI99: 288700 | BJ99: =IF(SUM(E99)=0,"",V99/D99/181) -> 0.9742939487 | BK99: 0.6364738423 | BL99: =IF(SUM(Y99:BH99)=0,"",BI99/D99/181) -> 0.3352306903
A100: 98 | B100: L042 | C100: TAORMINA | D100: 10509 | E100: 1048180 | U100: 1733162 | V100: 2781342 | W100: 0.6231387582 | Z100: 107640 | AD100: 211740 | AE100: 222910 | AH100: 520 | AN100: 182660 | AP100: 711700 | AS100: 60 | AT100: 3500 | AU100: 320 | AX100: 280 | AZ100: 92 | BA100: 4600 | BB100: 1480 | BC100: 240 | BD100: 6920 | BE100: 157260 | BF100: 52180 | BH100: 69060 | BI100: 1733162 | BJ100: 1.462225748 | BK100: 0.5510562112 | BL100: 0.9111695369
A101: 99 | B101: M210 | C101: TERME VIGLIATORE | D101: 7203 | E101: 476520 | R101: 31700 | U101: 827820 | V101: 1336040 | W101: 0.6196071974 | X101: 25800 | Z101: 92970 | AA101: 133690 | AE101: 87320 | AN101: 80520 | AP101: 334840 | AT101: 2120 | AU101: 1000 | AX101: 100 | BA101: 1500 | BB101: 5290 | BC101: 9460 | BE101: 4220 | BF101: 39160 | BH101: 9830 | BI101: 827820 | BJ101: 1.02477252 | BK101: 0.365501483 | BL101: 0.6349564293
A102: 100 | B102: L271 | C102: TORREGROTTA | D102: 7196 | E102: 1079820 | F102: 2072 | R102: 9780 | S102: 2102 | U102: 425148 | V102: 1516850 | W102: 0.2802834822 | X102: 25220 | Z102: 39660 | AA102: 84740 | AE102: 78020 | AN102: 112740 | AQ102: 12450 | AT102: 980 | BA102: 1500 | BF102: 58800 | BH102: 11038 | BI102: 425148 | BJ102: 1.164589597 | BK102: 0.8290517445 | BL102: 0.3264152276
A103: 101 | B103: M286 | C103: TORRENOVA | D103: 4507 | E103: 238380 | U103: 813590 | V103: 1051970 | W103: 0.7733965798 | Z103: 76270 | AA103: 112750 | AE103: 112750 | AH103: 79510 | AN103: 82920 | AP103: 322420 | BH103: 26970 | BI103: 813590 | BJ103: 1.289547138 | BK103: 0.292215792 | BL103: 0.9973313458
A104: 102 | B104: L308 | C104: TORTORICI | D104: 5890 | E104: 362860 | U104: 264855 | V104: 627715 | W104: 0.4219351139 | AA104: 41240 | AE104: 70170 | AN104: 49440 | AP104: 89030 | AU104: 300 | AX104: 220 | AZ104: 75 | BA104: 3740 | BB104: 3280 | BH104: 7360 | BI104: 264855 | BJ104: 0.5888011331 | BK104: 0.34036526 | BL104: 0.2484358731
A105: 103 | B105: L431 | C105: TRIPI | D105: 764 | E105: 79682 | U105: 46319 | V105: 126001 | W105: 0.3676081936 | Z105: 2240 | AD105: 7240 | AE105: 7520 | AN105: 3380 | AP105: 25519 | BH105: 420 | BI105: 46319 | BJ105: 0.9111755518 | BK105: 0.5762199531 | BL105: 0.3349555986
A106: 104 | B106: L478 | C106: TUSA | D106: 2691 | E106: 142040 | F106: 1601 | U106: 304610 | V106: 446650 | W106: 0.6819881339 | AA106: 24810 | AE106: 48000 | AN106: 38020 | AP106: 163080 | BH106: 30700 | BI106: 304610 | BJ106: 0.9170120989 | BK106: 0.2916207288 | BL106: 0.62539137
A107: 105 | B107: L482 | C107: UCRIA | D107: 931 | E107: 43360 | U107: 95130 | V107: 138490 | W107: 0.6869088021 | X107: 13000 | AA107: 10400 | AE107: 17340 | AN107: 13720 | AP107: 32680 | AU107: 130 | BB107: 1460 | BC107: 2120 | BE107: 220 | BH107: 4060 | BI107: 95130 | BJ107: 0.8218454582 | BK107: 0.257312579 | BL107: 0.5645328792
A108: 106 | B108: L561 | C108: VALDINA | D108: 1297 | E108: 157670 | U108: 80843 | V108: 238513 | W108: 0.3389458855 | AA108: 12100 | AE108: 12360 | AN108: 18120 | AX108: 20 | BG108: 34403 | BH108: 3840 | BI108: 80843 | BJ108: 1.015999523 | BK108: 0.6716306649 | BL108: 0.344368858
A109: 107 | B109: L735 | C109: VENETICO | D109: 3950 | E109: 742300 | R109: 13760 | U109: 197198 | V109: 953258 | W109: 0.2068673958 | Z109: 6300 | AA109: 60960 | AE109: 23160 | AN109: 78100 | AP109: 7398 | AX109: 140 | AZ109: 80 | BA109: 1460 | BH109: 19600 | BI109: 197198 | BJ109: 1.333321211 | BK109: 1.038254423 | BL109: 0.2758206868
A110: 108 | B110: L950 | C110: VILLAFRANCA TIRRENA | D110: 8234 | E110: 404760 | F110: 120 | U110: 1235046 | V110: 1639806 | W110: 0.7531659233 | X110: 8626 | Z110: 120710 | AA110: 132790 | AE110: 128750 | AN110: 125290 | AP110: 506240 | AQ110: 26690 | AT110: 2320 | AU110: 590 | AX110: 60 | BA110: 4800 | BB110: 1900 | BC110: 49120 | BF110: 76760 | BG110: 11400 | BH110: 39000 | BI110: 1235046 | BJ110: 1.100279531 | BK110: 0.2715864821 | BL110: 0.8286930488
C111: T O T A L I | D111: =SUM(D3:D110) -> 607363 | E111: =SUM(E3:E110) -> 70338886 | F111: 48340 | G111: 0 | H111: 3840 | I111: 0 | J111: 0 | K111: 46430 | L111: 0 | M111: =SUM(M3:M110) -> 0 | N111: 0 | O111: 0 | P111: =SUM(P3:P110) -> 0 | Q111: =SUM(Q3:Q110) -> 5670 | R111: =SUM(R3:R110) -> 147290 | S111: =SUM(S3:S110) -> 14618 | T111: =SUM(T3:T110) -> 0 | U111: 52415694 | V111: =SUM(U111,E111) -> 122754580 | W111: =IF(BI111=0,"",(U111/V111*100)/100) -> 0.4269958318 | X111: =SUM(X3:X110) -> 1248273 | Y111: =SUM(Y3:Y110) -> 2330 | Z111: 5054918 | AA111: 3449470 | AB111: 38750 | AC111: 63360 | AD111: 4477385 | AE111: 7351189 | AF111: 2100 | AG111: 5160 | AH111: =SUM(AH3:AH110) -> 114790 | AI111: 0 | AJ111: 0 | AK111: 1370 | AL111: =SUM(AL3:AL110) -> 0 | AM111: =SUM(AM3:AM110) -> 270200 | AN111: 7853554 | AO111: 135240 | AP111: 14345674 | AQ111: 255102 | AR111: 3967 | AS111: 2020 | AT111: 249530 | AU111: 27803 | AV111: 1950 | AW111: 0 | AX111: 17900 | AY111: 4820 | AZ111: 4924 | BA111: 295670 | BB111: 391190 | BC111: 1321177 | BD111: 54580 | BE111: 461830 | BF111: =SUM(BF3:BF110) -> 2065105 | BG111: =SUM(BG3:BG110) -> 369373 | BH111: 2474990 | BI111: =SUM(BI3:BI110) -> 52415694

Sheet Riep. Dati RSU e RD 1 Sem. 2021
B3: CITTA' METROPOLITANA DI MESSINA
B4: DATI RIFIUTI SOLIDI URBANI E RACCOLTA DIFFERENZIATA
B5: PRIMO SEMESTRE ANNO 2021
A6: ='Dati Generali CER 1 Sem. 2021'!A2 -> 108 | B6: COMUNE | C6: QUANTITA' (KG) | D6: QUANTITA' (KG) | E6: PERCENTUALE | F6: RSU+RSA+RD | G6: RSU+RSA | H6: R.D. | I6: ='Dati Generali CER 1 Sem. 2021'!D2 -> ABITANTI al 30/06/2021
C7: R.S.U. (Cod.200301) | D7: RACCOLTA | E7: RACCOLTA | F7: R.T. (Kg.) | G7: 200301 (kg.) | H7: (Kg.)
C8: PRODOTTI | D8: DIFFERENZIATA | E8: DIFFERENZIATA | F8: Pro Capite/g | G8: RI Pro Capite/g | H8: Pro Capite/g
B9: CTRL + "x" per ordinare in % | D9: CTRL + "h" per Alfabetico
A10: 1 | B10: ='Dati Generali CER 1 Sem. 2021'!C3 -> ACQUEDOLCI | C10: =IF('Dati Generali CER 1 Sem. 2021'!E3="","",'Dati Generali CER 1 Sem. 2021'!E3) -> 252250 | D10: =IF(C10="","",'Dati Generali CER 1 Sem. 2021'!BI3) -> 623910 | E10: ='Dati Generali CER 1 Sem. 2021'!W3 -> 0.7120959642 | F10: =IF('Dati Generali CER 1 Sem. 2021'!BJ3="","",'Dati Generali CER 1 Sem. 2021'!BJ3) -> 0.8668809068 | G10: =IF('Dati Generali CER 1 Sem. 2021'!BK3="","",'Dati Generali CER 1 Sem. 2021'!BK3) -> 0.2495785116 | H10: =IF('Dati Generali CER 1 Sem. 2021'!BL3="","",'Dati Generali CER 1 Sem. 2021'!BL3) -> 0.6173023952 | I10: ='Dati Generali CER 1 Sem. 2021'!D3 -> 5584 | J10: =IF('Dati Generali CER 1 Sem. 2021'!BN3="","",'Dati Generali CER 1 Sem. 2021'!BN3) -> 
A11: 2 | B11: ='Dati Generali CER 1 Sem. 2021'!C4 -> ALCARA LI FUSI | C11: =IF('Dati Generali CER 1 Sem. 2021'!E4="","",'Dati Generali CER 1 Sem. 2021'!E4) -> 35481 | D11: =IF(C11="","",'Dati Generali CER 1 Sem. 2021'!BI4) -> 158662 | E11: ='Dati Generali CER 1 Sem. 2021'!W4 -> 0.8172429601 | F11: =IF('Dati Generali CER 1 Sem. 2021'!BJ4="","",'Dati Generali CER 1 Sem. 2021'!BJ4) -> 0.6046297969 | G11: =IF('Dati Generali CER 1 Sem. 2021'!BK4="","",'Dati Generali CER 1 Sem. 2021'!BK4) -> 0.1105003519 | H11: =IF('Dati Generali CER 1 Sem. 2021'!BL4="","",'Dati Generali CER 1 Sem. 2021'!BL4) -> 0.494129445 | I11: ='Dati Generali CER 1 Sem. 2021'!D4 -> 1774 | J11: =IF('Dati Generali CER 1 Sem. 2021'!BN4="","",'Dati Generali CER 1 Sem. 2021'!BN4) -> 
A12: 3 | B12: ='Dati Generali CER 1 Sem. 2021'!C5 -> ALI' | C12: =IF('Dati Generali CER 1 Sem. 2021'!E5="","",'Dati Generali CER 1 Sem. 2021'!E5) -> 17740 | D12: =IF(C12="","",'Dati Generali CER 1 Sem. 2021'!BI5) -> 56570 | E12: ='Dati Generali CER 1 Sem. 2021'!W5 -> 0.7612703539 | F12: =IF('Dati Generali CER 1 Sem. 2021'!BJ5="","",'Dati Generali CER 1 Sem. 2021'!BJ5) -> 0.607326163 | G12: =IF('Dati Generali CER 1 Sem. 2021'!BK5="","",'Dati Generali CER 1 Sem. 2021'!BK5) -> 0.1449867599 | H12: =IF('Dati Generali CER 1 Sem. 2021'!BL5="","",'Dati Generali CER 1 Sem. 2021'!BL5) -> 0.4623394031 | I12: ='Dati Generali CER 1 Sem. 2021'!D5 -> 676 | J12: =IF('Dati Generali CER 1 Sem. 2021'!BN5="","",'Dati Generali CER 1 Sem. 2021'!BN5) -> 
A13: 4 | B13: ='Dati Generali CER 1 Sem. 2021'!C6 -> ALI' TERME | C13: =IF('Dati Generali CER 1 Sem. 2021'!E6="","",'Dati Generali CER 1 Sem. 2021'!E6) -> 144870 | D13: =IF(C13="","",'Dati Generali CER 1 Sem. 2021'!BI6) -> 296430 | E13: ='Dati Generali CER 1 Sem. 2021'!W6 -> 0.6679661093 | F13: =IF('Dati Generali CER 1 Sem. 2021'!BJ6="","",'Dati Generali CER 1 Sem. 2021'!BJ6) -> 1.028018115 | G13: =IF('Dati Generali CER 1 Sem. 2021'!BK6="","",'Dati Generali CER 1 Sem. 2021'!BK6) -> 0.3355919247 | H13: =IF('Dati Generali CER 1 Sem. 2021'!BL6="","",'Dati Generali CER 1 Sem. 2021'!BL6) -> 0.6866812606 | I13: ='Dati Generali CER 1 Sem. 2021'!D6 -> 2385 | J13: =IF('Dati Generali CER 1 Sem. 2021'!BN6="","",'Dati Generali CER 1 Sem. 2021'!BN6) -> 
A14: 5 | B14: ='Dati Generali CER 1 Sem. 2021'!C7 -> ANTILLO | C14: =IF('Dati Generali CER 1 Sem. 2021'!E7="","",'Dati Generali CER 1 Sem. 2021'!E7) -> 25710 | D14: =IF(C14="","",'Dati Generali CER 1 Sem. 2021'!BI7) -> 63027 | E14: ='Dati Generali CER 1 Sem. 2021'!W7 -> 0.7102674195 | F14: =IF('Dati Generali CER 1 Sem. 2021'!BJ7="","",'Dati Generali CER 1 Sem. 2021'!BJ7) -> 0.5801889568 | G14: =IF('Dati Generali CER 1 Sem. 2021'!BK7="","",'Dati Generali CER 1 Sem. 2021'!BK7) -> 0.1680996437 | H14: =IF('Dati Generali CER 1 Sem. 2021'!BL7="","",'Dati Generali CER 1 Sem. 2021'!BL7) -> 0.4120893132 | I14: ='Dati Generali CER 1 Sem. 2021'!D7 -> 845 | J14: =IF('Dati Generali CER 1 Sem. 2021'!BN7="","",'Dati Generali CER 1 Sem. 2021'!BN7) -> 
A15: 6 | B15: ='Dati Generali CER 1 Sem. 2021'!C8 -> BARCELLONA P.G. | C15: =IF('Dati Generali CER 1 Sem. 2021'!E8="","",'Dati Generali CER 1 Sem. 2021'!E8) -> 5776700 | D15: =IF(C15="","",'Dati Generali CER 1 Sem. 2021'!BI8) -> 3127691 | E15: ='Dati Generali CER 1 Sem. 2021'!W8 -> 0.3512526573 | F15: =IF('Dati Generali CER 1 Sem. 2021'!BJ8="","",'Dati Generali CER 1 Sem. 2021'!BJ8) -> 1.226240195 | G15: =IF('Dati Generali CER 1 Sem. 2021'!BK8="","",'Dati Generali CER 1 Sem. 2021'!BK8) -> 0.7955200681 | H15: =IF('Dati Generali CER 1 Sem. 2021'!BL8="","",'Dati Generali CER 1 Sem. 2021'!BL8) -> 0.430720127 | I15: ='Dati Generali CER 1 Sem. 2021'!D8 -> 40119 | J15: =IF('Dati Generali CER 1 Sem. 2021'!BN8="","",'Dati Generali CER 1 Sem. 2021'!BN8) -> 
A16: 7 | B16: ='Dati Generali CER 1 Sem. 2021'!C9 -> BASICO' | C16: =IF('Dati Generali CER 1 Sem. 2021'!E9="","",'Dati Generali CER 1 Sem. 2021'!E9) -> 62600 | D16: =IF(C16="","",'Dati Generali CER 1 Sem. 2021'!BI9) -> 45050 | E16: ='Dati Generali CER 1 Sem. 2021'!W9 -> 0.4184858337 | F16: =IF('Dati Generali CER 1 Sem. 2021'!BJ9="","",'Dati Generali CER 1 Sem. 2021'!BJ9) -> 1.111684825 | G16: =IF('Dati Generali CER 1 Sem. 2021'!BK9="","",'Dati Generali CER 1 Sem. 2021'!BK9) -> 0.646460474 | H16: =IF('Dati Generali CER 1 Sem. 2021'!BL9="","",'Dati Generali CER 1 Sem. 2021'!BL9) -> 0.4652243507 | I16: ='Dati Generali CER 1 Sem. 2021'!D9 -> 535 | J16: =IF('Dati Generali CER 1 Sem. 2021'!BN9="","",'Dati Generali CER 1 Sem. 2021'!BN9) -> 
A17: 8 | B17: ='Dati Generali CER 1 Sem. 2021'!C10 -> BROLO | C17: =IF('Dati Generali CER 1 Sem. 2021'!E10="","",'Dati Generali CER 1 Sem. 2021'!E10) -> 673040 | D17: =IF(C17="","",'Dati Generali CER 1 Sem. 2021'!BI10) -> 690160 | E17: ='Dati Generali CER 1 Sem. 2021'!W10 -> 0.5028121813 | F17: =IF('Dati Generali CER 1 Sem. 2021'!BJ10="","",'Dati Generali CER 1 Sem. 2021'!BJ10) -> 1.314057428 | G17: =IF('Dati Generali CER 1 Sem. 2021'!BK10="","",'Dati Generali CER 1 Sem. 2021'!BK10) -> 0.6443342642 | H17: =IF('Dati Generali CER 1 Sem. 2021'!BL10="","",'Dati Generali CER 1 Sem. 2021'!BL10) -> 0.6607240814 | I17: ='Dati Generali CER 1 Sem. 2021'!D10 -> 5771 | J17: =IF('Dati Generali CER 1 Sem. 2021'!BN10="","",'Dati Generali CER 1 Sem. 2021'!BN10) -> 
A18: 9 | B18: ='Dati Generali CER 1 Sem. 2021'!C11 -> CAPIZZI | C18: =IF('Dati Generali CER 1 Sem. 2021'!E11="","",'Dati Generali CER 1 Sem. 2021'!E11) -> 119410 | D18: =IF(C18="","",'Dati Generali CER 1 Sem. 2021'!BI11) -> 210424 | E18: ='Dati Generali CER 1 Sem. 2021'!W11 -> 0.6379694028 | F18: =IF('Dati Generali CER 1 Sem. 2021'!BJ11="","",'Dati Generali CER 1 Sem. 2021'!BJ11) -> 0.6491939055 | G18: =IF('Dati Generali CER 1 Sem. 2021'!BK11="","",'Dati Generali CER 1 Sem. 2021'!BK11) -> 0.2350280573 | H18: =IF('Dati Generali CER 1 Sem. 2021'!BL11="","",'Dati Generali CER 1 Sem. 2021'!BL11) -> 0.4141658482 | I18: ='Dati Generali CER 1 Sem. 2021'!D11 -> 2807 | J18: =IF('Dati Generali CER 1 Sem. 2021'!BN11="","",'Dati Generali CER 1 Sem. 2021'!BN11) -> 
A19: 10 | B19: ='Dati Generali CER 1 Sem. 2021'!C12 -> CAPO D'ORLANDO | C19: =IF('Dati Generali CER 1 Sem. 2021'!E12="","",'Dati Generali CER 1 Sem. 2021'!E12) -> 1025740 | D19: =IF(C19="","",'Dati Generali CER 1 Sem. 2021'!BI12) -> 1987056 | E19: ='Dati Generali CER 1 Sem. 2021'!W12 -> 0.659538847 | F19: =IF('Dati Generali CER 1 Sem. 2021'!BJ12="","",'Dati Generali CER 1 Sem. 2021'!BJ12) -> 1.264646845 | G19: =IF('Dati Generali CER 1 Sem. 2021'!BK12="","",'Dati Generali CER 1 Sem. 2021'!BK12) -> 0.4305631229 | H19: =IF('Dati Generali CER 1 Sem. 2021'!BL12="","",'Dati Generali CER 1 Sem. 2021'!BL12) -> 0.8340837217 | I19: ='Dati Generali CER 1 Sem. 2021'!D12 -> 13162 | J19: =IF('Dati Generali CER 1 Sem. 2021'!BN12="","",'Dati Generali CER 1 Sem. 2021'!BN12) -> 
A20: 11 | B20: ='Dati Generali CER 1 Sem. 2021'!C13 -> CAPRILEONE | C20: =IF('Dati Generali CER 1 Sem. 2021'!E13="","",'Dati Generali CER 1 Sem. 2021'!E13) -> 127990 | D20: =IF(C20="","",'Dati Generali CER 1 Sem. 2021'!BI13) -> 304590 | E20: ='Dati Generali CER 1 Sem. 2021'!W13 -> 0.7041240927 | F20: =IF('Dati Generali CER 1 Sem. 2021'!BJ13="","",'Dati Generali CER 1 Sem. 2021'!BJ13) -> 0.5472738153 | G20: =IF('Dati Generali CER 1 Sem. 2021'!BK13="","",'Dati Generali CER 1 Sem. 2021'!BK13) -> 0.1619251367 | H20: =IF('Dati Generali CER 1 Sem. 2021'!BL13="","",'Dati Generali CER 1 Sem. 2021'!BL13) -> 0.3853486786 | I20: ='Dati Generali CER 1 Sem. 2021'!D13 -> 4367 | J20: =IF('Dati Generali CER 1 Sem. 2021'!BN13="","",'Dati Generali CER 1 Sem. 2021'!BN13) -> 
A21: 12 | B21: ='Dati Generali CER 1 Sem. 2021'!C14 -> CARONIA | C21: =IF('Dati Generali CER 1 Sem. 2021'!E14="","",'Dati Generali CER 1 Sem. 2021'!E14) -> 205460 | D21: =IF(C21="","",'Dati Generali CER 1 Sem. 2021'!BI14) -> 390770 | E21: ='Dati Generali CER 1 Sem. 2021'!W14 -> 0.655401439 | F21: =IF('Dati Generali CER 1 Sem. 2021'!BJ14="","",'Dati Generali CER 1 Sem. 2021'!BJ14) -> 1.063638488 | G21: =IF('Dati Generali CER 1 Sem. 2021'!BK14="","",'Dati Generali CER 1 Sem. 2021'!BK14) -> 0.3665282924 | H21: =IF('Dati Generali CER 1 Sem. 2021'!BL14="","",'Dati Generali CER 1 Sem. 2021'!BL14) -> 0.6971101958 | I21: ='Dati Generali CER 1 Sem. 2021'!D14 -> 3097 | J21: =IF('Dati Generali CER 1 Sem. 2021'!BN14="","",'Dati Generali CER 1 Sem. 2021'!BN14) -> 
A22: 13 | B22: ='Dati Generali CER 1 Sem. 2021'!C15 -> CASALVECCHIO SICULO | C22: =IF('Dati Generali CER 1 Sem. 2021'!E15="","",'Dati Generali CER 1 Sem. 2021'!E15) -> 45485 | D22: =IF(C22="","",'Dati Generali CER 1 Sem. 2021'!BI15) -> 37206 | E22: ='Dati Generali CER 1 Sem. 2021'!W15 -> 0.4499401386 | F22: =IF('Dati Generali CER 1 Sem. 2021'!BJ15="","",'Dati Generali CER 1 Sem. 2021'!BJ15) -> 0.6232692409 | G22: =IF('Dati Generali CER 1 Sem. 2021'!BK15="","",'Dati Generali CER 1 Sem. 2021'!BK15) -> 0.3428353923 | H22: =IF('Dati Generali CER 1 Sem. 2021'!BL15="","",'Dati Generali CER 1 Sem. 2021'!BL15) -> 0.2804338486 | I22: ='Dati Generali CER 1 Sem. 2021'!D15 -> 733 | J22: =IF('Dati Generali CER 1 Sem. 2021'!BN15="","",'Dati Generali CER 1 Sem. 2021'!BN15) -> 
A23: 14 | B23: ='Dati Generali CER 1 Sem. 2021'!C16 -> CASTEL DI LUCIO | C23: =IF('Dati Generali CER 1 Sem. 2021'!E16="","",'Dati Generali CER 1 Sem. 2021'!E16) -> 9700 | D23: =IF(C23="","",'Dati Generali CER 1 Sem. 2021'!BI16) -> 99980 | E23: ='Dati Generali CER 1 Sem. 2021'!W16 -> 0.9115609044 | F23: =IF('Dati Generali CER 1 Sem. 2021'!BJ16="","",'Dati Generali CER 1 Sem. 2021'!BJ16) -> 0.5165957808 | G23: =IF('Dati Generali CER 1 Sem. 2021'!BK16="","",'Dati Generali CER 1 Sem. 2021'!BK16) -> 0.04568726362 | H23: =IF('Dati Generali CER 1 Sem. 2021'!BL16="","",'Dati Generali CER 1 Sem. 2021'!BL16) -> 0.4709085171 | I23: ='Dati Generali CER 1 Sem. 2021'!D16 -> 1173 | J23: =IF('Dati Generali CER 1 Sem. 2021'!BN16="","",'Dati Generali CER 1 Sem. 2021'!BN16) -> 
A24: 15 | B24: ='Dati Generali CER 1 Sem. 2021'!C17 -> CASTELL'UMBERTO | C24: =IF('Dati Generali CER 1 Sem. 2021'!E17="","",'Dati Generali CER 1 Sem. 2021'!E17) -> 182820 | D24: =IF(C24="","",'Dati Generali CER 1 Sem. 2021'!BI17) -> 150660 | E24: ='Dati Generali CER 1 Sem. 2021'!W17 -> 0.4517812163 | F24: =IF('Dati Generali CER 1 Sem. 2021'!BJ17="","",'Dati Generali CER 1 Sem. 2021'!BJ17) -> 0.6335732253 | G24: =IF('Dati Generali CER 1 Sem. 2021'!BK17="","",'Dati Generali CER 1 Sem. 2021'!BK17) -> 0.347336743 | H24: =IF('Dati Generali CER 1 Sem. 2021'!BL17="","",'Dati Generali CER 1 Sem. 2021'!BL17) -> 0.2862364823 | I24: ='Dati Generali CER 1 Sem. 2021'!D17 -> 2908 | J24: =IF('Dati Generali CER 1 Sem. 2021'!BN17="","",'Dati Generali CER 1 Sem. 2021'!BN17) -> 
A25: 16 | B25: ='Dati Generali CER 1 Sem. 2021'!C18 -> CASTELMOLA | C25: =IF('Dati Generali CER 1 Sem. 2021'!E18="","",'Dati Generali CER 1 Sem. 2021'!E18) -> 98480 | D25: =IF(C25="","",'Dati Generali CER 1 Sem. 2021'!BI18) -> 67972 | E25: ='Dati Generali CER 1 Sem. 2021'!W18 -> 0.4051982116 | F25: =IF('Dati Generali CER 1 Sem. 2021'!BJ18="","",'Dati Generali CER 1 Sem. 2021'!BJ18) -> 0.8534029283 | G25: =IF('Dati Generali CER 1 Sem. 2021'!BK18="","",'Dati Generali CER 1 Sem. 2021'!BK18) -> 0.5010022079 | H25: =IF('Dati Generali CER 1 Sem. 2021'!BL18="","",'Dati Generali CER 1 Sem. 2021'!BL18) -> 0.3457973403 | I25: ='Dati Generali CER 1 Sem. 2021'!D18 -> 1086 | J25: =IF('Dati Generali CER 1 Sem. 2021'!BN18="","",'Dati Generali CER 1 Sem. 2021'!BN18) -> 
A26: 17 | B26: ='Dati Generali CER 1 Sem. 2021'!C19 -> CASTROREALE | C26: =IF('Dati Generali CER 1 Sem. 2021'!E19="","",'Dati Generali CER 1 Sem. 2021'!E19) -> 132366 | D26: =IF(C26="","",'Dati Generali CER 1 Sem. 2021'!BI19) -> 127450 | E26: ='Dati Generali CER 1 Sem. 2021'!W19 -> 0.4905394587 | F26: =IF('Dati Generali CER 1 Sem. 2021'!BJ19="","",'Dati Generali CER 1 Sem. 2021'!BJ19) -> 0.6442762629 | G26: =IF('Dati Generali CER 1 Sem. 2021'!BK19="","",'Dati Generali CER 1 Sem. 2021'!BK19) -> 0.3282333337 | H26: =IF('Dati Generali CER 1 Sem. 2021'!BL19="","",'Dati Generali CER 1 Sem. 2021'!BL19) -> 0.3160429293 | I26: ='Dati Generali CER 1 Sem. 2021'!D19 -> 2228 | J26: =IF('Dati Generali CER 1 Sem. 2021'!BN19="","",'Dati Generali CER 1 Sem. 2021'!BN19) -> 
A27: 18 | B27: ='Dati Generali CER 1 Sem. 2021'!C20 -> CESARO' | C27: =IF('Dati Generali CER 1 Sem. 2021'!E20="","",'Dati Generali CER 1 Sem. 2021'!E20) -> 151300 | D27: =IF(C27="","",'Dati Generali CER 1 Sem. 2021'!BI20) -> 134730 | E27: ='Dati Generali CER 1 Sem. 2021'!W20 -> 0.4710345069 | F27: =IF('Dati Generali CER 1 Sem. 2021'!BJ20="","",'Dati Generali CER 1 Sem. 2021'!BJ20) -> 0.7339880367 | G27: =IF('Dati Generali CER 1 Sem. 2021'!BK20="","",'Dati Generali CER 1 Sem. 2021'!BK20) -> 0.3882543438 | H27: =IF('Dati Generali CER 1 Sem. 2021'!BL20="","",'Dati Generali CER 1 Sem. 2021'!BL20) -> 0.3457336929 | I27: ='Dati Generali CER 1 Sem. 2021'!D20 -> 2153 | J27: =IF('Dati Generali CER 1 Sem. 2021'!BN20="","",'Dati Generali CER 1 Sem. 2021'!BN20) -> 
A28: 19 | B28: ='Dati Generali CER 1 Sem. 2021'!C21 -> CONDRO' | C28: =IF('Dati Generali CER 1 Sem. 2021'!E21="","",'Dati Generali CER 1 Sem. 2021'!E21) -> 77700 | D28: =IF(C28="","",'Dati Generali CER 1 Sem. 2021'!BI21) -> 43680 | E28: ='Dati Generali CER 1 Sem. 2021'!W21 -> 0.3598615917 | F28: =IF('Dati Generali CER 1 Sem. 2021'!BJ21="","",'Dati Generali CER 1 Sem. 2021'!BJ21) -> 1.541626977 | G28: =IF('Dati Generali CER 1 Sem. 2021'!BK21="","",'Dati Generali CER 1 Sem. 2021'!BK21) -> 0.986854639 | H28: =IF('Dati Generali CER 1 Sem. 2021'!BL21="","",'Dati Generali CER 1 Sem. 2021'!BL21) -> 0.5547723376 | I28: ='Dati Generali CER 1 Sem. 2021'!D21 -> 435 | J28: =IF('Dati Generali CER 1 Sem. 2021'!BN21="","",'Dati Generali CER 1 Sem. 2021'!BN21) -> 
A29: 20 | B29: ='Dati Generali CER 1 Sem. 2021'!C22 -> FALCONE | C29: =IF('Dati Generali CER 1 Sem. 2021'!E22="","",'Dati Generali CER 1 Sem. 2021'!E22) -> 427080 | D29: =IF(C29="","",'Dati Generali CER 1 Sem. 2021'!BI22) -> 152420 | E29: ='Dati Generali CER 1 Sem. 2021'!W22 -> 0.2630198447 | F29: =IF('Dati Generali CER 1 Sem. 2021'!BJ22="","",'Dati Generali CER 1 Sem. 2021'!BJ22) -> 1.165086411 | G29: =IF('Dati Generali CER 1 Sem. 2021'!BK22="","",'Dati Generali CER 1 Sem. 2021'!BK22) -> 0.8586455644 | H29: =IF('Dati Generali CER 1 Sem. 2021'!BL22="","",'Dati Generali CER 1 Sem. 2021'!BL22) -> 0.306440847 | I29: ='Dati Generali CER 1 Sem. 2021'!D22 -> 2748 | J29: =IF('Dati Generali CER 1 Sem. 2021'!BN22="","",'Dati Generali CER 1 Sem. 2021'!BN22) -> 
A30: 21 | B30: ='Dati Generali CER 1 Sem. 2021'!C23 -> FICARRA | C30: =IF('Dati Generali CER 1 Sem. 2021'!E23="","",'Dati Generali CER 1 Sem. 2021'!E23) -> 113820 | D30: =IF(C30="","",'Dati Generali CER 1 Sem. 2021'!BI23) -> 82130 | E30: ='Dati Generali CER 1 Sem. 2021'!W23 -> 0.4191375351 | F30: =IF('Dati Generali CER 1 Sem. 2021'!BJ23="","",'Dati Generali CER 1 Sem. 2021'!BJ23) -> 0.8079079739 | G30: =IF('Dati Generali CER 1 Sem. 2021'!BK23="","",'Dati Generali CER 1 Sem. 2021'!BK23) -> 0.4692834172 | H30: =IF('Dati Generali CER 1 Sem. 2021'!BL23="","",'Dati Generali CER 1 Sem. 2021'!BL23) -> 0.3386245568 | I30: ='Dati Generali CER 1 Sem. 2021'!D23 -> 1340 | J30: =IF('Dati Generali CER 1 Sem. 2021'!BN23="","",'Dati Generali CER 1 Sem. 2021'!BN23) -> 
A31: 22 | B31: ='Dati Generali CER 1 Sem. 2021'!C24 -> FIUMEDINISI | C31: =IF('Dati Generali CER 1 Sem. 2021'!E24="","",'Dati Generali CER 1 Sem. 2021'!E24) -> 37880 | D31: =IF(C31="","",'Dati Generali CER 1 Sem. 2021'!BI24) -> 145430 | E31: ='Dati Generali CER 1 Sem. 2021'!W24 -> 0.793355518 | F31: =IF('Dati Generali CER 1 Sem. 2021'!BJ24="","",'Dati Generali CER 1 Sem. 2021'!BJ24) -> 0.7772543599 | G31: =IF('Dati Generali CER 1 Sem. 2021'!BK24="","",'Dati Generali CER 1 Sem. 2021'!BK24) -> 0.1606153246 | H31: =IF('Dati Generali CER 1 Sem. 2021'!BL24="","",'Dati Generali CER 1 Sem. 2021'!BL24) -> 0.6166390353 | I31: ='Dati Generali CER 1 Sem. 2021'!D24 -> 1303 | J31: =IF('Dati Generali CER 1 Sem. 2021'!BN24="","",'Dati Generali CER 1 Sem. 2021'!BN24) -> 
A32: 23 | B32: ='Dati Generali CER 1 Sem. 2021'!C25 -> FLORESTA | C32: =IF('Dati Generali CER 1 Sem. 2021'!E25="","",'Dati Generali CER 1 Sem. 2021'!E25) -> 82560 | D32: =IF(C32="","",'Dati Generali CER 1 Sem. 2021'!BI25) -> 18380 | E32: ='Dati Generali CER 1 Sem. 2021'!W25 -> 0.1820883693 | F32: =IF('Dati Generali CER 1 Sem. 2021'!BJ25="","",'Dati Generali CER 1 Sem. 2021'!BJ25) -> 1.194174642 | G32: =IF('Dati Generali CER 1 Sem. 2021'!BK25="","",'Dati Generali CER 1 Sem. 2021'!BK25) -> 0.9767293291 | H32: =IF('Dati Generali CER 1 Sem. 2021'!BL25="","",'Dati Generali CER 1 Sem. 2021'!BL25) -> 0.2174453133 | I32: ='Dati Generali CER 1 Sem. 2021'!D25 -> 467 | J32: =IF('Dati Generali CER 1 Sem. 2021'!BN25="","",'Dati Generali CER 1 Sem. 2021'!BN25) -> 
A33: 24 | B33: ='Dati Generali CER 1 Sem. 2021'!C26 -> FONDACHELLI FANTINA | C33: =IF('Dati Generali CER 1 Sem. 2021'!E26="","",'Dati Generali CER 1 Sem. 2021'!E26) -> 72220 | D33: =IF(C33="","",'Dati Generali CER 1 Sem. 2021'!BI26) -> 42130 | E33: ='Dati Generali CER 1 Sem. 2021'!W26 -> 0.368430258 | F33: =IF('Dati Generali CER 1 Sem. 2021'!BJ26="","",'Dati Generali CER 1 Sem. 2021'!BJ26) -> 0.6324003562 | G33: =IF('Dati Generali CER 1 Sem. 2021'!BK26="","",'Dati Generali CER 1 Sem. 2021'!BK26) -> 0.3994049298 | H33: =IF('Dati Generali CER 1 Sem. 2021'!BL26="","",'Dati Generali CER 1 Sem. 2021'!BL26) -> 0.2329954264 | I33: ='Dati Generali CER 1 Sem. 2021'!D26 -> 999 | J33: =IF('Dati Generali CER 1 Sem. 2021'!BN26="","",'Dati Generali CER 1 Sem. 2021'!BN26) -> 
A34: 25 | B34: ='Dati Generali CER 1 Sem. 2021'!C27 -> FORZA D'AGRO' Apr.-Giu. | C34: =IF('Dati Generali CER 1 Sem. 2021'!E27="","",'Dati Generali CER 1 Sem. 2021'!E27) -> 27420 | D34: =IF(C34="","",'Dati Generali CER 1 Sem. 2021'!BI27) -> 62690 | E34: ='Dati Generali CER 1 Sem. 2021'!W27 -> 0.6957052491 | F34: =IF('Dati Generali CER 1 Sem. 2021'!BJ27="","",'Dati Generali CER 1 Sem. 2021'!BJ27) -> 0.5795637996 | G34: =IF('Dati Generali CER 1 Sem. 2021'!BK27="","",'Dati Generali CER 1 Sem. 2021'!BK27) -> 0.176358222 | H34: =IF('Dati Generali CER 1 Sem. 2021'!BL27="","",'Dati Generali CER 1 Sem. 2021'!BL27) -> 0.4032055776 | I34: ='Dati Generali CER 1 Sem. 2021'!D27 -> 859 | J34: =IF('Dati Generali CER 1 Sem. 2021'!BN27="","",'Dati Generali CER 1 Sem. 2021'!BN27) -> 
A35: 26 | B35: ='Dati Generali CER 1 Sem. 2021'!C28 -> FRANCAVILLA DI SICILIA | C35: =IF('Dati Generali CER 1 Sem. 2021'!E28="","",'Dati Generali CER 1 Sem. 2021'!E28) -> 408180 | D35: =IF(C35="","",'Dati Generali CER 1 Sem. 2021'!BI28) -> 233900 | E35: ='Dati Generali CER 1 Sem. 2021'!W28 -> 0.3642848243 | F35: =IF('Dati Generali CER 1 Sem. 2021'!BJ28="","",'Dati Generali CER 1 Sem. 2021'!BJ28) -> 0.9864859051 | G35: =IF('Dati Generali CER 1 Sem. 2021'!BK28="","",'Dati Generali CER 1 Sem. 2021'!BK28) -> 0.6271240605 | H35: =IF('Dati Generali CER 1 Sem. 2021'!BL28="","",'Dati Generali CER 1 Sem. 2021'!BL28) -> 0.3593618447 | I35: ='Dati Generali CER 1 Sem. 2021'!D28 -> 3596 | J35: =IF('Dati Generali CER 1 Sem. 2021'!BN28="","",'Dati Generali CER 1 Sem. 2021'!BN28) -> 
A36: 27 | B36: ='Dati Generali CER 1 Sem. 2021'!C29 -> FRAZZANO' | C36: =IF('Dati Generali CER 1 Sem. 2021'!E29="","",'Dati Generali CER 1 Sem. 2021'!E29) -> 30829 | D36: =IF(C36="","",'Dati Generali CER 1 Sem. 2021'!BI29) -> 38520 | E36: ='Dati Generali CER 1 Sem. 2021'!W29 -> 0.5554514124 | F36: =IF('Dati Generali CER 1 Sem. 2021'!BJ29="","",'Dati Generali CER 1 Sem. 2021'!BJ29) -> 0.6493960109 | G36: =IF('Dati Generali CER 1 Sem. 2021'!BK29="","",'Dati Generali CER 1 Sem. 2021'!BK29) -> 0.2886880794 | H36: =IF('Dati Generali CER 1 Sem. 2021'!BL29="","",'Dati Generali CER 1 Sem. 2021'!BL29) -> 0.3607079315 | I36: ='Dati Generali CER 1 Sem. 2021'!D29 -> 590 | J36: =IF('Dati Generali CER 1 Sem. 2021'!BN29="","",'Dati Generali CER 1 Sem. 2021'!BN29) -> 
A37: 28 | B37: ='Dati Generali CER 1 Sem. 2021'!C30 -> FURCI SICULO | C37: =IF('Dati Generali CER 1 Sem. 2021'!E30="","",'Dati Generali CER 1 Sem. 2021'!E30) -> 173300 | D37: =IF(C37="","",'Dati Generali CER 1 Sem. 2021'!BI30) -> 430998 | E37: ='Dati Generali CER 1 Sem. 2021'!W30 -> 0.7132209605 | F37: =IF('Dati Generali CER 1 Sem. 2021'!BJ30="","",'Dati Generali CER 1 Sem. 2021'!BJ30) -> 1.042354975 | G37: =IF('Dati Generali CER 1 Sem. 2021'!BK30="","",'Dati Generali CER 1 Sem. 2021'!BK30) -> 0.2989255584 | H37: =IF('Dati Generali CER 1 Sem. 2021'!BL30="","",'Dati Generali CER 1 Sem. 2021'!BL30) -> 0.7434294161 | I37: ='Dati Generali CER 1 Sem. 2021'!D30 -> 3203 | J37: =IF('Dati Generali CER 1 Sem. 2021'!BN30="","",'Dati Generali CER 1 Sem. 2021'!BN30) -> 
A38: 29 | B38: ='Dati Generali CER 1 Sem. 2021'!C31 -> FURNARI | C38: =IF('Dati Generali CER 1 Sem. 2021'!E31="","",'Dati Generali CER 1 Sem. 2021'!E31) -> 196603 | D38: =IF(C38="","",'Dati Generali CER 1 Sem. 2021'!BI31) -> 773490 | E38: ='Dati Generali CER 1 Sem. 2021'!W31 -> 0.7973359255 | F38: =IF('Dati Generali CER 1 Sem. 2021'!BJ31="","",'Dati Generali CER 1 Sem. 2021'!BJ31) -> 1.378860261 | G38: =IF('Dati Generali CER 1 Sem. 2021'!BK31="","",'Dati Generali CER 1 Sem. 2021'!BK31) -> 0.2794454386 | H38: =IF('Dati Generali CER 1 Sem. 2021'!BL31="","",'Dati Generali CER 1 Sem. 2021'!BL31) -> 1.099414822 | I38: ='Dati Generali CER 1 Sem. 2021'!D31 -> 3887 | J38: =IF('Dati Generali CER 1 Sem. 2021'!BN31="","",'Dati Generali CER 1 Sem. 2021'!BN31) -> 
A39: 30 | B39: ='Dati Generali CER 1 Sem. 2021'!C32 -> GAGGI | C39: =IF('Dati Generali CER 1 Sem. 2021'!E32="","",'Dati Generali CER 1 Sem. 2021'!E32) -> 228690 | D39: =IF(C39="","",'Dati Generali CER 1 Sem. 2021'!BI32) -> 272220 | E39: ='Dati Generali CER 1 Sem. 2021'!W32 -> 0.5434509193 | F39: =IF('Dati Generali CER 1 Sem. 2021'!BJ32="","",'Dati Generali CER 1 Sem. 2021'!BJ32) -> 0.8836074596 | G39: =IF('Dati Generali CER 1 Sem. 2021'!BK32="","",'Dati Generali CER 1 Sem. 2021'!BK32) -> 0.4034101734 | H39: =IF('Dati Generali CER 1 Sem. 2021'!BL32="","",'Dati Generali CER 1 Sem. 2021'!BL32) -> 0.4801972863 | I39: ='Dati Generali CER 1 Sem. 2021'!D32 -> 3132 | J39: =IF('Dati Generali CER 1 Sem. 2021'!BN32="","",'Dati Generali CER 1 Sem. 2021'!BN32) -> 
A40: 31 | B40: ='Dati Generali CER 1 Sem. 2021'!C33 -> GALATI MAMERTINO | C40: =IF('Dati Generali CER 1 Sem. 2021'!E33="","",'Dati Generali CER 1 Sem. 2021'!E33) -> 121741 | D40: =IF(C40="","",'Dati Generali CER 1 Sem. 2021'!BI33) -> 198440 | E40: ='Dati Generali CER 1 Sem. 2021'!W33 -> 0.6197744401 | F40: =IF('Dati Generali CER 1 Sem. 2021'!BJ33="","",'Dati Generali CER 1 Sem. 2021'!BJ33) -> 0.7495575428 | G40: =IF('Dati Generali CER 1 Sem. 2021'!BK33="","",'Dati Generali CER 1 Sem. 2021'!BK33) -> 0.2850009364 | H40: =IF('Dati Generali CER 1 Sem. 2021'!BL33="","",'Dati Generali CER 1 Sem. 2021'!BL33) -> 0.4645566064 | I40: ='Dati Generali CER 1 Sem. 2021'!D33 -> 2360 | J40: =IF('Dati Generali CER 1 Sem. 2021'!BN33="","",'Dati Generali CER 1 Sem. 2021'!BN33) -> 
A41: 32 | B41: ='Dati Generali CER 1 Sem. 2021'!C34 -> GALLODORO | C41: =IF('Dati Generali CER 1 Sem. 2021'!E34="","",'Dati Generali CER 1 Sem. 2021'!E34) -> 22520 | D41: =IF(C41="","",'Dati Generali CER 1 Sem. 2021'!BI34) -> 26925 | E41: ='Dati Generali CER 1 Sem. 2021'!W34 -> 0.5429522081 | F41: =IF('Dati Generali CER 1 Sem. 2021'!BJ34="","",'Dati Generali CER 1 Sem. 2021'!BJ34) -> 0.8081943969 | G41: =IF('Dati Generali CER 1 Sem. 2021'!BK34="","",'Dati Generali CER 1 Sem. 2021'!BK34) -> 0.367020323 | H41: =IF('Dati Generali CER 1 Sem. 2021'!BL34="","",'Dati Generali CER 1 Sem. 2021'!BL34) -> 0.4388109324 | I41: ='Dati Generali CER 1 Sem. 2021'!D34 -> 339 | J41: =IF('Dati Generali CER 1 Sem. 2021'!BN34="","",'Dati Generali CER 1 Sem. 2021'!BN34) -> 
A42: 33 | B42: ='Dati Generali CER 1 Sem. 2021'!C35 -> GIARDINI NAXOS | C42: =IF('Dati Generali CER 1 Sem. 2021'!E35="","",'Dati Generali CER 1 Sem. 2021'!E35) -> 1409880 | D42: =IF(C42="","",'Dati Generali CER 1 Sem. 2021'!BI35) -> 808150 | E42: ='Dati Generali CER 1 Sem. 2021'!W35 -> 0.3607764182 | F42: =IF('Dati Generali CER 1 Sem. 2021'!BJ35="","",'Dati Generali CER 1 Sem. 2021'!BJ35) -> 1.348720178 | G42: =IF('Dati Generali CER 1 Sem. 2021'!BK35="","",'Dati Generali CER 1 Sem. 2021'!BK35) -> 0.8488875616 | H42: =IF('Dati Generali CER 1 Sem. 2021'!BL35="","",'Dati Generali CER 1 Sem. 2021'!BL35) -> 0.4865864349 | I42: ='Dati Generali CER 1 Sem. 2021'!D35 -> 9176 | J42: =IF('Dati Generali CER 1 Sem. 2021'!BN35="","",'Dati Generali CER 1 Sem. 2021'!BN35) -> 
A43: 34 | B43: ='Dati Generali CER 1 Sem. 2021'!C36 -> GIOIOSA MAREA | C43: =IF('Dati Generali CER 1 Sem. 2021'!E36="","",'Dati Generali CER 1 Sem. 2021'!E36) -> 679000 | D43: =IF(C43="","",'Dati Generali CER 1 Sem. 2021'!BI36) -> 387260 | E43: ='Dati Generali CER 1 Sem. 2021'!W36 -> 0.363194718 | F43: =IF('Dati Generali CER 1 Sem. 2021'!BJ36="","",'Dati Generali CER 1 Sem. 2021'!BJ36) -> 0.8644078102 | G43: =IF('Dati Generali CER 1 Sem. 2021'!BK36="","",'Dati Generali CER 1 Sem. 2021'!BK36) -> 0.5504594593 | H43: =IF('Dati Generali CER 1 Sem. 2021'!BL36="","",'Dati Generali CER 1 Sem. 2021'!BL36) -> 0.3139483509 | I43: ='Dati Generali CER 1 Sem. 2021'!D36 -> 6815 | J43: =IF('Dati Generali CER 1 Sem. 2021'!BN36="","",'Dati Generali CER 1 Sem. 2021'!BN36) -> 
A44: 35 | B44: ='Dati Generali CER 1 Sem. 2021'!C37 -> GRANITI | C44: =IF('Dati Generali CER 1 Sem. 2021'!E37="","",'Dati Generali CER 1 Sem. 2021'!E37) -> 183040 | D44: =IF(C44="","",'Dati Generali CER 1 Sem. 2021'!BI37) -> 48600 | E44: ='Dati Generali CER 1 Sem. 2021'!W37 -> 0.2098083233 | F44: =IF('Dati Generali CER 1 Sem. 2021'!BJ37="","",'Dati Generali CER 1 Sem. 2021'!BJ37) -> 0.8844360785 | G44: =IF('Dati Generali CER 1 Sem. 2021'!BK37="","",'Dati Generali CER 1 Sem. 2021'!BK37) -> 0.6988740278 | H44: =IF('Dati Generali CER 1 Sem. 2021'!BL37="","",'Dati Generali CER 1 Sem. 2021'!BL37) -> 0.1855620507 | I44: ='Dati Generali CER 1 Sem. 2021'!D37 -> 1447 | J44: =IF('Dati Generali CER 1 Sem. 2021'!BN37="","",'Dati Generali CER 1 Sem. 2021'!BN37) -> 
A45: 36 | B45: ='Dati Generali CER 1 Sem. 2021'!C38 -> GUALTIERI SICAMINO | C45: =IF('Dati Generali CER 1 Sem. 2021'!E38="","",'Dati Generali CER 1 Sem. 2021'!E38) -> 60260 | D45: =IF(C45="","",'Dati Generali CER 1 Sem. 2021'!BI38) -> 157808 | E45: ='Dati Generali CER 1 Sem. 2021'!W38 -> 0.7236641781 | F45: =IF('Dati Generali CER 1 Sem. 2021'!BJ38="","",'Dati Generali CER 1 Sem. 2021'!BJ38) -> 0.7441603336 | G45: =IF('Dati Generali CER 1 Sem. 2021'!BK38="","",'Dati Generali CER 1 Sem. 2021'!BK38) -> 0.2056381574 | H45: =IF('Dati Generali CER 1 Sem. 2021'!BL38="","",'Dati Generali CER 1 Sem. 2021'!BL38) -> 0.5385221762 | I45: ='Dati Generali CER 1 Sem. 2021'!D38 -> 1619 | J45: =IF('Dati Generali CER 1 Sem. 2021'!BN38="","",'Dati Generali CER 1 Sem. 2021'!BN38) -> 
A46: 37 | B46: ='Dati Generali CER 1 Sem. 2021'!C39 -> ITALA | C46: =IF('Dati Generali CER 1 Sem. 2021'!E39="","",'Dati Generali CER 1 Sem. 2021'!E39) -> 89250 | D46: =IF(C46="","",'Dati Generali CER 1 Sem. 2021'!BI39) -> 96158 | E46: ='Dati Generali CER 1 Sem. 2021'!W39 -> 0.5151091469 | F46: =IF('Dati Generali CER 1 Sem. 2021'!BJ39="","",'Dati Generali CER 1 Sem. 2021'!BJ39) -> 0.6875690608 | G46: =IF('Dati Generali CER 1 Sem. 2021'!BK39="","",'Dati Generali CER 1 Sem. 2021'!BK39) -> 0.3287292818 | H46: =IF('Dati Generali CER 1 Sem. 2021'!BL39="","",'Dati Generali CER 1 Sem. 2021'!BL39) -> 0.3541731123 | I46: ='Dati Generali CER 1 Sem. 2021'!D39 -> 1500 | J46: =IF('Dati Generali CER 1 Sem. 2021'!BN39="","",'Dati Generali CER 1 Sem. 2021'!BN39) -> 
A47: 38 | B47: ='Dati Generali CER 1 Sem. 2021'!C40 -> LENI | C47: =IF('Dati Generali CER 1 Sem. 2021'!E40="","",'Dati Generali CER 1 Sem. 2021'!E40) -> 71920 | D47: =IF(C47="","",'Dati Generali CER 1 Sem. 2021'!BI40) -> 22440 | E47: ='Dati Generali CER 1 Sem. 2021'!W40 -> 0.2378126325 | F47: =IF('Dati Generali CER 1 Sem. 2021'!BJ40="","",'Dati Generali CER 1 Sem. 2021'!BJ40) -> 0.7689173552 | G47: =IF('Dati Generali CER 1 Sem. 2021'!BK40="","",'Dati Generali CER 1 Sem. 2021'!BK40) -> 0.5860590948 | H47: =IF('Dati Generali CER 1 Sem. 2021'!BL40="","",'Dati Generali CER 1 Sem. 2021'!BL40) -> 0.1828582604 | I47: ='Dati Generali CER 1 Sem. 2021'!D40 -> 678 | J47: =IF('Dati Generali CER 1 Sem. 2021'!BN40="","",'Dati Generali CER 1 Sem. 2021'!BN40) -> 
A48: 39 | B48: ='Dati Generali CER 1 Sem. 2021'!C41 -> LETOJANNI | C48: =IF('Dati Generali CER 1 Sem. 2021'!E41="","",'Dati Generali CER 1 Sem. 2021'!E41) -> 277060 | D48: =IF(C48="","",'Dati Generali CER 1 Sem. 2021'!BI41) -> 336563 | E48: ='Dati Generali CER 1 Sem. 2021'!W41 -> 0.5460228102 | F48: =IF('Dati Generali CER 1 Sem. 2021'!BJ41="","",'Dati Generali CER 1 Sem. 2021'!BJ41) -> 1.238352587 | G48: =IF('Dati Generali CER 1 Sem. 2021'!BK41="","",'Dati Generali CER 1 Sem. 2021'!BK41) -> 0.5566248117 | H48: =IF('Dati Generali CER 1 Sem. 2021'!BL41="","",'Dati Generali CER 1 Sem. 2021'!BL41) -> 0.6761687594 | I48: ='Dati Generali CER 1 Sem. 2021'!D41 -> 2750 | J48: =IF('Dati Generali CER 1 Sem. 2021'!BN41="","",'Dati Generali CER 1 Sem. 2021'!BN41) -> 
A49: 40 | B49: ='Dati Generali CER 1 Sem. 2021'!C42 -> LIBRIZZI | C49: =IF('Dati Generali CER 1 Sem. 2021'!E42="","",'Dati Generali CER 1 Sem. 2021'!E42) -> 176820 | D49: =IF(C49="","",'Dati Generali CER 1 Sem. 2021'!BI42) -> 103980 | E49: ='Dati Generali CER 1 Sem. 2021'!W42 -> 0.3702991453 | F49: =IF('Dati Generali CER 1 Sem. 2021'!BJ42="","",'Dati Generali CER 1 Sem. 2021'!BJ42) -> 0.9787894104 | G49: =IF('Dati Generali CER 1 Sem. 2021'!BK42="","",'Dati Generali CER 1 Sem. 2021'!BK42) -> 0.6163445283 | H49: =IF('Dati Generali CER 1 Sem. 2021'!BL42="","",'Dati Generali CER 1 Sem. 2021'!BL42) -> 0.3624448821 | I49: ='Dati Generali CER 1 Sem. 2021'!D42 -> 1585 | J49: =IF('Dati Generali CER 1 Sem. 2021'!BN42="","",'Dati Generali CER 1 Sem. 2021'!BN42) -> 
A50: 41 | B50: ='Dati Generali CER 1 Sem. 2021'!C43 -> LIMINA | C50: =IF('Dati Generali CER 1 Sem. 2021'!E43="","",'Dati Generali CER 1 Sem. 2021'!E43) -> 72200 | D50: =IF(C50="","",'Dati Generali CER 1 Sem. 2021'!BI43) -> 27750 | E50: ='Dati Generali CER 1 Sem. 2021'!W43 -> 0.2776388194 | F50: =IF('Dati Generali CER 1 Sem. 2021'!BJ43="","",'Dati Generali CER 1 Sem. 2021'!BJ43) -> 0.7637758572 | G50: =IF('Dati Generali CER 1 Sem. 2021'!BK43="","",'Dati Generali CER 1 Sem. 2021'!BK43) -> 0.5517220299 | H50: =IF('Dati Generali CER 1 Sem. 2021'!BL43="","",'Dati Generali CER 1 Sem. 2021'!BL43) -> 0.2120538273 | I50: ='Dati Generali CER 1 Sem. 2021'!D43 -> 723 | J50: =IF('Dati Generali CER 1 Sem. 2021'!BN43="","",'Dati Generali CER 1 Sem. 2021'!BN43) -> 
A51: 42 | B51: ='Dati Generali CER 1 Sem. 2021'!C44 -> LIPARI | C51: =IF('Dati Generali CER 1 Sem. 2021'!E44="","",'Dati Generali CER 1 Sem. 2021'!E44) -> 2379200 | D51: =IF(C51="","",'Dati Generali CER 1 Sem. 2021'!BI44) -> 1071320 | E51: ='Dati Generali CER 1 Sem. 2021'!W44 -> 0.3104807391 | F51: =IF('Dati Generali CER 1 Sem. 2021'!BJ44="","",'Dati Generali CER 1 Sem. 2021'!BJ44) -> 1.533310256 | G51: =IF('Dati Generali CER 1 Sem. 2021'!BK44="","",'Dati Generali CER 1 Sem. 2021'!BK44) -> 1.057246954 | H51: =IF('Dati Generali CER 1 Sem. 2021'!BL44="","",'Dati Generali CER 1 Sem. 2021'!BL44) -> 0.4760633015 | I51: ='Dati Generali CER 1 Sem. 2021'!D44 -> 12433 | J51: =IF('Dati Generali CER 1 Sem. 2021'!BN44="","",'Dati Generali CER 1 Sem. 2021'!BN44) -> 
A52: 43 | B52: ='Dati Generali CER 1 Sem. 2021'!C45 -> LONGI | C52: =IF('Dati Generali CER 1 Sem. 2021'!E45="","",'Dati Generali CER 1 Sem. 2021'!E45) -> 23160 | D52: =IF(C52="","",'Dati Generali CER 1 Sem. 2021'!BI45) -> 162939 | E52: ='Dati Generali CER 1 Sem. 2021'!W45 -> 0.8755501104 | F52: =IF('Dati Generali CER 1 Sem. 2021'!BJ45="","",'Dati Generali CER 1 Sem. 2021'!BJ45) -> 0.7521369939 | G52: =IF('Dati Generali CER 1 Sem. 2021'!BK45="","",'Dati Generali CER 1 Sem. 2021'!BK45) -> 0.09360336584 | H52: =IF('Dati Generali CER 1 Sem. 2021'!BL45="","",'Dati Generali CER 1 Sem. 2021'!BL45) -> 0.6585336281 | I52: ='Dati Generali CER 1 Sem. 2021'!D45 -> 1367 | J52: =IF('Dati Generali CER 1 Sem. 2021'!BN45="","",'Dati Generali CER 1 Sem. 2021'!BN45) -> 
A53: 44 | B53: ='Dati Generali CER 1 Sem. 2021'!C46 -> MALFA | C53: =IF('Dati Generali CER 1 Sem. 2021'!E46="","",'Dati Generali CER 1 Sem. 2021'!E46) -> 78060 | D53: =IF(C53="","",'Dati Generali CER 1 Sem. 2021'!BI46) -> 116360 | E53: ='Dati Generali CER 1 Sem. 2021'!W46 -> 0.5984980969 | F53: =IF('Dati Generali CER 1 Sem. 2021'!BJ46="","",'Dati Generali CER 1 Sem. 2021'!BJ46) -> 1.101685791 | G53: =IF('Dati Generali CER 1 Sem. 2021'!BK46="","",'Dati Generali CER 1 Sem. 2021'!BK46) -> 0.4423289418 | H53: =IF('Dati Generali CER 1 Sem. 2021'!BL46="","",'Dati Generali CER 1 Sem. 2021'!BL46) -> 0.6593568494 | I53: ='Dati Generali CER 1 Sem. 2021'!D46 -> 975 | J53: =IF('Dati Generali CER 1 Sem. 2021'!BN46="","",'Dati Generali CER 1 Sem. 2021'!BN46) -> 
A54: 45 | B54: ='Dati Generali CER 1 Sem. 2021'!C47 -> MALVAGNA | C54: =IF('Dati Generali CER 1 Sem. 2021'!E47="","",'Dati Generali CER 1 Sem. 2021'!E47) -> 75400 | D54: =IF(C54="","",'Dati Generali CER 1 Sem. 2021'!BI47) -> 18760 | E54: ='Dati Generali CER 1 Sem. 2021'!W47 -> 0.1992353441 | F54: =IF('Dati Generali CER 1 Sem. 2021'!BJ47="","",'Dati Generali CER 1 Sem. 2021'!BJ47) -> 0.8003399915 | G54: =IF('Dati Generali CER 1 Sem. 2021'!BK47="","",'Dati Generali CER 1 Sem. 2021'!BK47) -> 0.6408839779 | H54: =IF('Dati Generali CER 1 Sem. 2021'!BL47="","",'Dati Generali CER 1 Sem. 2021'!BL47) -> 0.1594560136 | I54: ='Dati Generali CER 1 Sem. 2021'!D47 -> 650 | J54: =IF('Dati Generali CER 1 Sem. 2021'!BN47="","",'Dati Generali CER 1 Sem. 2021'!BN47) -> 
A55: 46 | B55: ='Dati Generali CER 1 Sem. 2021'!C48 -> MANDANICI | C55: =IF('Dati Generali CER 1 Sem. 2021'!E48="","",'Dati Generali CER 1 Sem. 2021'!E48) -> 27950 | D55: =IF(C55="","",'Dati Generali CER 1 Sem. 2021'!BI48) -> 56005 | E55: ='Dati Generali CER 1 Sem. 2021'!W48 -> 0.6670835567 | F55: =IF('Dati Generali CER 1 Sem. 2021'!BJ48="","",'Dati Generali CER 1 Sem. 2021'!BJ48) -> 0.8526466526 | G55: =IF('Dati Generali CER 1 Sem. 2021'!BK48="","",'Dati Generali CER 1 Sem. 2021'!BK48) -> 0.283860091 | H55: =IF('Dati Generali CER 1 Sem. 2021'!BL48="","",'Dati Generali CER 1 Sem. 2021'!BL48) -> 0.5687865616 | I55: ='Dati Generali CER 1 Sem. 2021'!D48 -> 544 | J55: =IF('Dati Generali CER 1 Sem. 2021'!BN48="","",'Dati Generali CER 1 Sem. 2021'!BN48) -> 
A56: 47 | B56: ='Dati Generali CER 1 Sem. 2021'!C49 -> MAZZARRA' S. ANDREA | C56: =IF('Dati Generali CER 1 Sem. 2021'!E49="","",'Dati Generali CER 1 Sem. 2021'!E49) -> 49120 | D56: =IF(C56="","",'Dati Generali CER 1 Sem. 2021'!BI49) -> 175446 | E56: ='Dati Generali CER 1 Sem. 2021'!W49 -> 0.7812669772 | F56: =IF('Dati Generali CER 1 Sem. 2021'!BJ49="","",'Dati Generali CER 1 Sem. 2021'!BJ49) -> 0.8830577456 | G56: =IF('Dati Generali CER 1 Sem. 2021'!BK49="","",'Dati Generali CER 1 Sem. 2021'!BK49) -> 0.19315389 | H56: =IF('Dati Generali CER 1 Sem. 2021'!BL49="","",'Dati Generali CER 1 Sem. 2021'!BL49) -> 0.6899038556 | I56: ='Dati Generali CER 1 Sem. 2021'!D49 -> 1405 | J56: =IF('Dati Generali CER 1 Sem. 2021'!BN49="","",'Dati Generali CER 1 Sem. 2021'!BN49) -> 
A57: 48 | B57: ='Dati Generali CER 1 Sem. 2021'!C50 -> MERI' | C57: =IF('Dati Generali CER 1 Sem. 2021'!E50="","",'Dati Generali CER 1 Sem. 2021'!E50) -> 184490 | D57: =IF(C57="","",'Dati Generali CER 1 Sem. 2021'!BI50) -> 173770 | E57: ='Dati Generali CER 1 Sem. 2021'!W50 -> 0.4850387986 | F57: =IF('Dati Generali CER 1 Sem. 2021'!BJ50="","",'Dati Generali CER 1 Sem. 2021'!BJ50) -> 0.839413493 | G57: =IF('Dati Generali CER 1 Sem. 2021'!BK50="","",'Dati Generali CER 1 Sem. 2021'!BK50) -> 0.4322653808 | H57: =IF('Dati Generali CER 1 Sem. 2021'!BL50="","",'Dati Generali CER 1 Sem. 2021'!BL50) -> 0.4071481122 | I57: ='Dati Generali CER 1 Sem. 2021'!D50 -> 2358 | J57: =IF('Dati Generali CER 1 Sem. 2021'!BN50="","",'Dati Generali CER 1 Sem. 2021'!BN50) -> 
A58: 49 | B58: ='Dati Generali CER 1 Sem. 2021'!C51 -> MESSINA | C58: =IF('Dati Generali CER 1 Sem. 2021'!E51="","",'Dati Generali CER 1 Sem. 2021'!E51) -> 32804580 | D58: =IF(C58="","",'Dati Generali CER 1 Sem. 2021'!BI51) -> 14932571 | E58: ='Dati Generali CER 1 Sem. 2021'!W51 -> 0.3128081732 | F58: =IF('Dati Generali CER 1 Sem. 2021'!BJ51="","",'Dati Generali CER 1 Sem. 2021'!BJ51) -> 1.175081493 | G58: =IF('Dati Generali CER 1 Sem. 2021'!BK51="","",'Dati Generali CER 1 Sem. 2021'!BK51) -> 0.8075063979 | H58: =IF('Dati Generali CER 1 Sem. 2021'!BL51="","",'Dati Generali CER 1 Sem. 2021'!BL51) -> 0.3675750953 | I58: ='Dati Generali CER 1 Sem. 2021'!D51 -> 224445 | J58: =IF('Dati Generali CER 1 Sem. 2021'!BN51="","",'Dati Generali CER 1 Sem. 2021'!BN51) -> 
A59: 50 | B59: ='Dati Generali CER 1 Sem. 2021'!C52 -> MILAZZO | C59: =IF('Dati Generali CER 1 Sem. 2021'!E52="","",'Dati Generali CER 1 Sem. 2021'!E52) -> 5035180 | D59: =IF(C59="","",'Dati Generali CER 1 Sem. 2021'!BI52) -> 2421130 | E59: ='Dati Generali CER 1 Sem. 2021'!W52 -> 0.3230641543 | F59: =IF('Dati Generali CER 1 Sem. 2021'!BJ52="","",'Dati Generali CER 1 Sem. 2021'!BJ52) -> 1.38797917 | G59: =IF('Dati Generali CER 1 Sem. 2021'!BK52="","",'Dati Generali CER 1 Sem. 2021'!BK52) -> 0.9325424569 | H59: =IF('Dati Generali CER 1 Sem. 2021'!BL52="","",'Dati Generali CER 1 Sem. 2021'!BL52) -> 0.4484063169 | I59: ='Dati Generali CER 1 Sem. 2021'!D52 -> 29831 | J59: =IF('Dati Generali CER 1 Sem. 2021'!BN52="","",'Dati Generali CER 1 Sem. 2021'!BN52) -> 
A60: 51 | B60: ='Dati Generali CER 1 Sem. 2021'!C53 -> MILITELLO ROSMARINO | C60: =IF('Dati Generali CER 1 Sem. 2021'!E53="","",'Dati Generali CER 1 Sem. 2021'!E53) -> 39500 | D60: =IF(C60="","",'Dati Generali CER 1 Sem. 2021'!BI53) -> 99822 | E60: ='Dati Generali CER 1 Sem. 2021'!W53 -> 0.7164841159 | F60: =IF('Dati Generali CER 1 Sem. 2021'!BJ53="","",'Dati Generali CER 1 Sem. 2021'!BJ53) -> 0.639846057 | G60: =IF('Dati Generali CER 1 Sem. 2021'!BK53="","",'Dati Generali CER 1 Sem. 2021'!BK53) -> 0.1814065205 | H60: =IF('Dati Generali CER 1 Sem. 2021'!BL53="","",'Dati Generali CER 1 Sem. 2021'!BL53) -> 0.4584395365 | I60: ='Dati Generali CER 1 Sem. 2021'!D53 -> 1203 | J60: =IF('Dati Generali CER 1 Sem. 2021'!BN53="","",'Dati Generali CER 1 Sem. 2021'!BN53) -> 
A61: 52 | B61: ='Dati Generali CER 1 Sem. 2021'!C54 -> MIRTO | C61: =IF('Dati Generali CER 1 Sem. 2021'!E54="","",'Dati Generali CER 1 Sem. 2021'!E54) -> 14780 | D61: =IF(C61="","",'Dati Generali CER 1 Sem. 2021'!BI54) -> 137737 | E61: ='Dati Generali CER 1 Sem. 2021'!W54 -> 0.90309277 | F61: =IF('Dati Generali CER 1 Sem. 2021'!BJ54="","",'Dati Generali CER 1 Sem. 2021'!BJ54) -> 0.9209129608 | G61: =IF('Dati Generali CER 1 Sem. 2021'!BK54="","",'Dati Generali CER 1 Sem. 2021'!BK54) -> 0.08924312411 | H61: =IF('Dati Generali CER 1 Sem. 2021'!BL54="","",'Dati Generali CER 1 Sem. 2021'!BL54) -> 0.8316698367 | I61: ='Dati Generali CER 1 Sem. 2021'!D54 -> 915 | J61: =IF('Dati Generali CER 1 Sem. 2021'!BN54="","",'Dati Generali CER 1 Sem. 2021'!BN54) -> 
A62: 53 | B62: ='Dati Generali CER 1 Sem. 2021'!C55 -> MISTRETTA | C62: =IF('Dati Generali CER 1 Sem. 2021'!E55="","",'Dati Generali CER 1 Sem. 2021'!E55) -> 278600 | D62: =IF(C62="","",'Dati Generali CER 1 Sem. 2021'!BI55) -> 476330 | E62: ='Dati Generali CER 1 Sem. 2021'!W55 -> 0.6309591618 | F62: =IF('Dati Generali CER 1 Sem. 2021'!BJ55="","",'Dati Generali CER 1 Sem. 2021'!BJ55) -> 0.9297556794 | G62: =IF('Dati Generali CER 1 Sem. 2021'!BK55="","",'Dati Generali CER 1 Sem. 2021'!BK55) -> 0.3431178153 | H62: =IF('Dati Generali CER 1 Sem. 2021'!BL55="","",'Dati Generali CER 1 Sem. 2021'!BL55) -> 0.5866378641 | I62: ='Dati Generali CER 1 Sem. 2021'!D55 -> 4486 | J62: =IF('Dati Generali CER 1 Sem. 2021'!BN55="","",'Dati Generali CER 1 Sem. 2021'!BN55) -> 
A63: 54 | B63: ='Dati Generali CER 1 Sem. 2021'!C56 -> MOJO ALCANTARA | C63: =IF('Dati Generali CER 1 Sem. 2021'!E56="","",'Dati Generali CER 1 Sem. 2021'!E56) -> 91820 | D63: =IF(C63="","",'Dati Generali CER 1 Sem. 2021'!BI56) -> 11620 | E63: ='Dati Generali CER 1 Sem. 2021'!W56 -> 0.1123356535 | F63: =IF('Dati Generali CER 1 Sem. 2021'!BJ56="","",'Dati Generali CER 1 Sem. 2021'!BJ56) -> 0.8441531945 | G63: =IF('Dati Generali CER 1 Sem. 2021'!BK56="","",'Dati Generali CER 1 Sem. 2021'!BK56) -> 0.7493246938 | H63: =IF('Dati Generali CER 1 Sem. 2021'!BL56="","",'Dati Generali CER 1 Sem. 2021'!BL56) -> 0.09482850078 | I63: ='Dati Generali CER 1 Sem. 2021'!D56 -> 677 | J63: =IF('Dati Generali CER 1 Sem. 2021'!BN56="","",'Dati Generali CER 1 Sem. 2021'!BN56) -> 
A64: 55 | B64: ='Dati Generali CER 1 Sem. 2021'!C57 -> MONFORTE S. GIORGIO | C64: =IF('Dati Generali CER 1 Sem. 2021'!E57="","",'Dati Generali CER 1 Sem. 2021'!E57) -> 337860 | D64: =IF(C64="","",'Dati Generali CER 1 Sem. 2021'!BI57) -> 174020 | E64: ='Dati Generali CER 1 Sem. 2021'!W57 -> 0.3324672347 | F64: =IF('Dati Generali CER 1 Sem. 2021'!BJ57="","",'Dati Generali CER 1 Sem. 2021'!BJ57) -> 1.117828838 | G64: =IF('Dati Generali CER 1 Sem. 2021'!BK57="","",'Dati Generali CER 1 Sem. 2021'!BK57) -> 0.721542263 | H64: =IF('Dati Generali CER 1 Sem. 2021'!BL57="","",'Dati Generali CER 1 Sem. 2021'!BL57) -> 0.3716414627 | I64: ='Dati Generali CER 1 Sem. 2021'!D57 -> 2587 | J64: =IF('Dati Generali CER 1 Sem. 2021'!BN57="","",'Dati Generali CER 1 Sem. 2021'!BN57) -> 
A65: 56 | B65: ='Dati Generali CER 1 Sem. 2021'!C58 -> MONGIUFFI MELIA | C65: =IF('Dati Generali CER 1 Sem. 2021'!E58="","",'Dati Generali CER 1 Sem. 2021'!E58) -> 28152 | D65: =IF(C65="","",'Dati Generali CER 1 Sem. 2021'!BI58) -> 37220 | E65: ='Dati Generali CER 1 Sem. 2021'!W58 -> 0.5693569112 | F65: =IF('Dati Generali CER 1 Sem. 2021'!BJ58="","",'Dati Generali CER 1 Sem. 2021'!BJ58) -> 0.6713220645 | G65: =IF('Dati Generali CER 1 Sem. 2021'!BK58="","",'Dati Generali CER 1 Sem. 2021'!BK58) -> 0.2891002074 | H65: =IF('Dati Generali CER 1 Sem. 2021'!BL58="","",'Dati Generali CER 1 Sem. 2021'!BL58) -> 0.3822218571 | I65: ='Dati Generali CER 1 Sem. 2021'!D58 -> 538 | J65: =IF('Dati Generali CER 1 Sem. 2021'!BN58="","",'Dati Generali CER 1 Sem. 2021'!BN58) -> 
A66: 57 | B66: ='Dati Generali CER 1 Sem. 2021'!C59 -> MONTAGNAREALE | C66: =IF('Dati Generali CER 1 Sem. 2021'!E59="","",'Dati Generali CER 1 Sem. 2021'!E59) -> 201680 | D66: =IF(C66="","",'Dati Generali CER 1 Sem. 2021'!BI59) -> 87880 | E66: ='Dati Generali CER 1 Sem. 2021'!W59 -> 0.3034949579 | F66: =IF('Dati Generali CER 1 Sem. 2021'!BJ59="","",'Dati Generali CER 1 Sem. 2021'!BJ59) -> 1.11018668 | G66: =IF('Dati Generali CER 1 Sem. 2021'!BK59="","",'Dati Generali CER 1 Sem. 2021'!BK59) -> 0.7732506202 | H66: =IF('Dati Generali CER 1 Sem. 2021'!BL59="","",'Dati Generali CER 1 Sem. 2021'!BL59) -> 0.3369360596 | I66: ='Dati Generali CER 1 Sem. 2021'!D59 -> 1441 | J66: =IF('Dati Generali CER 1 Sem. 2021'!BN59="","",'Dati Generali CER 1 Sem. 2021'!BN59) -> 
A67: 58 | B67: ='Dati Generali CER 1 Sem. 2021'!C60 -> MONTALBANO ELICONA | C67: =IF('Dati Generali CER 1 Sem. 2021'!E60="","",'Dati Generali CER 1 Sem. 2021'!E60) -> 68640 | D67: =IF(C67="","",'Dati Generali CER 1 Sem. 2021'!BI60) -> 210084 | E67: ='Dati Generali CER 1 Sem. 2021'!W60 -> 0.7537348775 | F67: =IF('Dati Generali CER 1 Sem. 2021'!BJ60="","",'Dati Generali CER 1 Sem. 2021'!BJ60) -> 0.7482563665 | G67: =IF('Dati Generali CER 1 Sem. 2021'!BK60="","",'Dati Generali CER 1 Sem. 2021'!BK60) -> 0.1842694457 | H67: =IF('Dati Generali CER 1 Sem. 2021'!BL60="","",'Dati Generali CER 1 Sem. 2021'!BL60) -> 0.5639869207 | I67: ='Dati Generali CER 1 Sem. 2021'!D60 -> 2058 | J67: =IF('Dati Generali CER 1 Sem. 2021'!BN60="","",'Dati Generali CER 1 Sem. 2021'!BN60) -> 
A68: 59 | B68: ='Dati Generali CER 1 Sem. 2021'!C61 -> MOTTA CAMASTRA | C68: =IF('Dati Generali CER 1 Sem. 2021'!E61="","",'Dati Generali CER 1 Sem. 2021'!E61) -> 111320 | D68: =IF(C68="","",'Dati Generali CER 1 Sem. 2021'!BI61) -> 22760 | E68: ='Dati Generali CER 1 Sem. 2021'!W61 -> 0.1697494033 | F68: =IF('Dati Generali CER 1 Sem. 2021'!BJ61="","",'Dati Generali CER 1 Sem. 2021'!BJ61) -> 0.9353200513 | G68: =IF('Dati Generali CER 1 Sem. 2021'!BK61="","",'Dati Generali CER 1 Sem. 2021'!BK61) -> 0.7765500307 | H68: =IF('Dati Generali CER 1 Sem. 2021'!BL61="","",'Dati Generali CER 1 Sem. 2021'!BL61) -> 0.1587700206 | I68: ='Dati Generali CER 1 Sem. 2021'!D61 -> 792 | J68: =IF('Dati Generali CER 1 Sem. 2021'!BN61="","",'Dati Generali CER 1 Sem. 2021'!BN61) -> 
A69: 60 | B69: ='Dati Generali CER 1 Sem. 2021'!C62 -> MOTTA D'AFFERMO | C69: =IF('Dati Generali CER 1 Sem. 2021'!E62="","",'Dati Generali CER 1 Sem. 2021'!E62) -> 26760 | D69: =IF(C69="","",'Dati Generali CER 1 Sem. 2021'!BI62) -> 61950 | E69: ='Dati Generali CER 1 Sem. 2021'!W62 -> 0.6983429151 | F69: =IF('Dati Generali CER 1 Sem. 2021'!BJ62="","",'Dati Generali CER 1 Sem. 2021'!BJ62) -> 0.7414682258 | G69: =IF('Dati Generali CER 1 Sem. 2021'!BK62="","",'Dati Generali CER 1 Sem. 2021'!BK62) -> 0.2236691435 | H69: =IF('Dati Generali CER 1 Sem. 2021'!BL62="","",'Dati Generali CER 1 Sem. 2021'!BL62) -> 0.5177990823 | I69: ='Dati Generali CER 1 Sem. 2021'!D62 -> 661 | J69: =IF('Dati Generali CER 1 Sem. 2021'!BN62="","",'Dati Generali CER 1 Sem. 2021'!BN62) -> 
A70: 61 | B70: ='Dati Generali CER 1 Sem. 2021'!C63 -> NASO | C70: =IF('Dati Generali CER 1 Sem. 2021'!E63="","",'Dati Generali CER 1 Sem. 2021'!E63) -> 141620 | D70: =IF(C70="","",'Dati Generali CER 1 Sem. 2021'!BI63) -> 390504 | E70: ='Dati Generali CER 1 Sem. 2021'!W63 -> 0.7338590253 | F70: =IF('Dati Generali CER 1 Sem. 2021'!BJ63="","",'Dati Generali CER 1 Sem. 2021'!BJ63) -> 0.8328361479 | G70: =IF('Dati Generali CER 1 Sem. 2021'!BK63="","",'Dati Generali CER 1 Sem. 2021'!BK63) -> 0.2216518241 | H70: =IF('Dati Generali CER 1 Sem. 2021'!BL63="","",'Dati Generali CER 1 Sem. 2021'!BL63) -> 0.6111843238 | I70: ='Dati Generali CER 1 Sem. 2021'!D63 -> 3530 | J70: =IF('Dati Generali CER 1 Sem. 2021'!BN63="","",'Dati Generali CER 1 Sem. 2021'!BN63) -> 
A71: 62 | B71: ='Dati Generali CER 1 Sem. 2021'!C64 -> NIZZA DI SICILIA | C71: =IF('Dati Generali CER 1 Sem. 2021'!E64="","",'Dati Generali CER 1 Sem. 2021'!E64) -> 168790 | D71: =IF(C71="","",'Dati Generali CER 1 Sem. 2021'!BI64) -> 367600 | E71: ='Dati Generali CER 1 Sem. 2021'!W64 -> 0.6853222469 | F71: =IF('Dati Generali CER 1 Sem. 2021'!BJ64="","",'Dati Generali CER 1 Sem. 2021'!BJ64) -> 0.8376146588 | G71: =IF('Dati Generali CER 1 Sem. 2021'!BK64="","",'Dati Generali CER 1 Sem. 2021'!BK64) -> 0.2635786988 | H71: =IF('Dati Generali CER 1 Sem. 2021'!BL64="","",'Dati Generali CER 1 Sem. 2021'!BL64) -> 0.57403596 | I71: ='Dati Generali CER 1 Sem. 2021'!D64 -> 3538 | J71: =IF('Dati Generali CER 1 Sem. 2021'!BN64="","",'Dati Generali CER 1 Sem. 2021'!BN64) -> 
A72: 63 | B72: ='Dati Generali CER 1 Sem. 2021'!C65 -> NOVARA DI SICILIA | C72: =IF('Dati Generali CER 1 Sem. 2021'!E65="","",'Dati Generali CER 1 Sem. 2021'!E65) -> 109820 | D72: =IF(C72="","",'Dati Generali CER 1 Sem. 2021'!BI65) -> 58520 | E72: ='Dati Generali CER 1 Sem. 2021'!W65 -> 0.3476297968 | F72: =IF('Dati Generali CER 1 Sem. 2021'!BJ65="","",'Dati Generali CER 1 Sem. 2021'!BJ65) -> 0.784194982 | G72: =IF('Dati Generali CER 1 Sem. 2021'!BK65="","",'Dati Generali CER 1 Sem. 2021'!BK65) -> 0.5115854397 | H72: =IF('Dati Generali CER 1 Sem. 2021'!BL65="","",'Dati Generali CER 1 Sem. 2021'!BL65) -> 0.2726095423 | I72: ='Dati Generali CER 1 Sem. 2021'!D65 -> 1186 | J72: =IF('Dati Generali CER 1 Sem. 2021'!BN65="","",'Dati Generali CER 1 Sem. 2021'!BN65) -> 
A73: 64 | B73: ='Dati Generali CER 1 Sem. 2021'!C66 -> OLIVERI | C73: =IF('Dati Generali CER 1 Sem. 2021'!E66="","",'Dati Generali CER 1 Sem. 2021'!E66) -> 218800 | D73: =IF(C73="","",'Dati Generali CER 1 Sem. 2021'!BI66) -> 336680 | E73: ='Dati Generali CER 1 Sem. 2021'!W66 -> 0.6061064305 | F73: =IF('Dati Generali CER 1 Sem. 2021'!BJ66="","",'Dati Generali CER 1 Sem. 2021'!BJ66) -> 1.491954437 | G73: =IF('Dati Generali CER 1 Sem. 2021'!BK66="","",'Dati Generali CER 1 Sem. 2021'!BK66) -> 0.5876712586 | H73: =IF('Dati Generali CER 1 Sem. 2021'!BL66="","",'Dati Generali CER 1 Sem. 2021'!BL66) -> 0.904283178 | I73: ='Dati Generali CER 1 Sem. 2021'!D66 -> 2057 | J73: =IF('Dati Generali CER 1 Sem. 2021'!BN66="","",'Dati Generali CER 1 Sem. 2021'!BN66) -> 
A74: 65 | B74: ='Dati Generali CER 1 Sem. 2021'!C67 -> PACE DEL MELA | C74: =IF('Dati Generali CER 1 Sem. 2021'!E67="","",'Dati Generali CER 1 Sem. 2021'!E67) -> 407800 | D74: =IF(C74="","",'Dati Generali CER 1 Sem. 2021'!BI67) -> 750640 | E74: ='Dati Generali CER 1 Sem. 2021'!W67 -> 0.6479748627 | F74: =IF('Dati Generali CER 1 Sem. 2021'!BJ67="","",'Dati Generali CER 1 Sem. 2021'!BJ67) -> 1.047499344 | G74: =IF('Dati Generali CER 1 Sem. 2021'!BK67="","",'Dati Generali CER 1 Sem. 2021'!BK67) -> 0.3687461005 | H74: =IF('Dati Generali CER 1 Sem. 2021'!BL67="","",'Dati Generali CER 1 Sem. 2021'!BL67) -> 0.6787532439 | I74: ='Dati Generali CER 1 Sem. 2021'!D67 -> 6110 | J74: =IF('Dati Generali CER 1 Sem. 2021'!BN67="","",'Dati Generali CER 1 Sem. 2021'!BN67) -> 
A75: 66 | B75: ='Dati Generali CER 1 Sem. 2021'!C68 -> PAGLIARA | C75: =IF('Dati Generali CER 1 Sem. 2021'!E68="","",'Dati Generali CER 1 Sem. 2021'!E68) -> 36590 | D75: =IF(C75="","",'Dati Generali CER 1 Sem. 2021'!BI68) -> 90850 | E75: ='Dati Generali CER 1 Sem. 2021'!W68 -> 0.7128844947 | F75: =IF('Dati Generali CER 1 Sem. 2021'!BJ68="","",'Dati Generali CER 1 Sem. 2021'!BJ68) -> 0.6264131653 | G75: =IF('Dati Generali CER 1 Sem. 2021'!BK68="","",'Dati Generali CER 1 Sem. 2021'!BK68) -> 0.1798529325 | H75: =IF('Dati Generali CER 1 Sem. 2021'!BL68="","",'Dati Generali CER 1 Sem. 2021'!BL68) -> 0.4465602328 | I75: ='Dati Generali CER 1 Sem. 2021'!D68 -> 1124 | J75: =IF('Dati Generali CER 1 Sem. 2021'!BN68="","",'Dati Generali CER 1 Sem. 2021'!BN68) -> 
A76: 67 | B76: ='Dati Generali CER 1 Sem. 2021'!C69 -> PATTI | C76: =IF('Dati Generali CER 1 Sem. 2021'!E69="","",'Dati Generali CER 1 Sem. 2021'!E69) -> 1366170 | D76: =IF(C76="","",'Dati Generali CER 1 Sem. 2021'!BI69) -> 1335000 | E76: ='Dati Generali CER 1 Sem. 2021'!W69 -> 0.494230278 | F76: =IF('Dati Generali CER 1 Sem. 2021'!BJ69="","",'Dati Generali CER 1 Sem. 2021'!BJ69) -> 1.166178883 | G76: =IF('Dati Generali CER 1 Sem. 2021'!BK69="","",'Dati Generali CER 1 Sem. 2021'!BK69) -> 0.5898179692 | H76: =IF('Dati Generali CER 1 Sem. 2021'!BL69="","",'Dati Generali CER 1 Sem. 2021'!BL69) -> 0.5763609133 | I76: ='Dati Generali CER 1 Sem. 2021'!D69 -> 12797 | J76: =IF('Dati Generali CER 1 Sem. 2021'!BN69="","",'Dati Generali CER 1 Sem. 2021'!BN69) -> 
A77: 68 | B77: ='Dati Generali CER 1 Sem. 2021'!C70 -> PETTINEO | C77: =IF('Dati Generali CER 1 Sem. 2021'!E70="","",'Dati Generali CER 1 Sem. 2021'!E70) -> 25740 | D77: =IF(C77="","",'Dati Generali CER 1 Sem. 2021'!BI70) -> 114830 | E77: ='Dati Generali CER 1 Sem. 2021'!W70 -> 0.816888383 | F77: =IF('Dati Generali CER 1 Sem. 2021'!BJ70="","",'Dati Generali CER 1 Sem. 2021'!BJ70) -> 0.6237990637 | G77: =IF('Dati Generali CER 1 Sem. 2021'!BK70="","",'Dati Generali CER 1 Sem. 2021'!BK70) -> 0.1142248552 | H77: =IF('Dati Generali CER 1 Sem. 2021'!BL70="","",'Dati Generali CER 1 Sem. 2021'!BL70) -> 0.5095742084 | I77: ='Dati Generali CER 1 Sem. 2021'!D70 -> 1245 | J77: =IF('Dati Generali CER 1 Sem. 2021'!BN70="","",'Dati Generali CER 1 Sem. 2021'!BN70) -> 
A78: 69 | B78: ='Dati Generali CER 1 Sem. 2021'!C71 -> PIRAINO | C78: =IF('Dati Generali CER 1 Sem. 2021'!E71="","",'Dati Generali CER 1 Sem. 2021'!E71) -> 389780 | D78: =IF(C78="","",'Dati Generali CER 1 Sem. 2021'!BI71) -> 269620 | E78: ='Dati Generali CER 1 Sem. 2021'!W71 -> 0.4088868668 | F78: =IF('Dati Generali CER 1 Sem. 2021'!BJ71="","",'Dati Generali CER 1 Sem. 2021'!BJ71) -> 0.9465040069 | G78: =IF('Dati Generali CER 1 Sem. 2021'!BK71="","",'Dati Generali CER 1 Sem. 2021'!BK71) -> 0.5594909491 | H78: =IF('Dati Generali CER 1 Sem. 2021'!BL71="","",'Dati Generali CER 1 Sem. 2021'!BL71) -> 0.3870130579 | I78: ='Dati Generali CER 1 Sem. 2021'!D71 -> 3849 | J78: =IF('Dati Generali CER 1 Sem. 2021'!BN71="","",'Dati Generali CER 1 Sem. 2021'!BN71) -> 
A79: 70 | B79: ='Dati Generali CER 1 Sem. 2021'!C72 -> RACCUJA | C79: =IF('Dati Generali CER 1 Sem. 2021'!E72="","",'Dati Generali CER 1 Sem. 2021'!E72) -> 48140 | D79: =IF(C79="","",'Dati Generali CER 1 Sem. 2021'!BI72) -> 80785 | E79: ='Dati Generali CER 1 Sem. 2021'!W72 -> 0.6266046151 | F79: =IF('Dati Generali CER 1 Sem. 2021'!BJ72="","",'Dati Generali CER 1 Sem. 2021'!BJ72) -> 0.8039422321 | G79: =IF('Dati Generali CER 1 Sem. 2021'!BK72="","",'Dati Generali CER 1 Sem. 2021'!BK72) -> 0.3001883192 | H79: =IF('Dati Generali CER 1 Sem. 2021'!BL72="","",'Dati Generali CER 1 Sem. 2021'!BL72) -> 0.5037539129 | I79: ='Dati Generali CER 1 Sem. 2021'!D72 -> 886 | J79: =IF('Dati Generali CER 1 Sem. 2021'!BN72="","",'Dati Generali CER 1 Sem. 2021'!BN72) -> 
A80: 71 | B80: ='Dati Generali CER 1 Sem. 2021'!C73 -> REITANO | C80: =IF('Dati Generali CER 1 Sem. 2021'!E73="","",'Dati Generali CER 1 Sem. 2021'!E73) -> 62760 | D80: =IF(C80="","",'Dati Generali CER 1 Sem. 2021'!BI73) -> 158020 | E80: ='Dati Generali CER 1 Sem. 2021'!W73 -> 0.7157351209 | F80: =IF('Dati Generali CER 1 Sem. 2021'!BJ73="","",'Dati Generali CER 1 Sem. 2021'!BJ73) -> 1.720421729 | G80: =IF('Dati Generali CER 1 Sem. 2021'!BK73="","",'Dati Generali CER 1 Sem. 2021'!BK73) -> 0.4890554746 | H80: =IF('Dati Generali CER 1 Sem. 2021'!BL73="","",'Dati Generali CER 1 Sem. 2021'!BL73) -> 1.231366254 | I80: ='Dati Generali CER 1 Sem. 2021'!D73 -> 709 | J80: =IF('Dati Generali CER 1 Sem. 2021'!BN73="","",'Dati Generali CER 1 Sem. 2021'!BN73) -> 
A81: 72 | B81: ='Dati Generali CER 1 Sem. 2021'!C74 -> ROCCAFIORITA | C81: =IF('Dati Generali CER 1 Sem. 2021'!E74="","",'Dati Generali CER 1 Sem. 2021'!E74) -> 4450 | D81: =IF(C81="","",'Dati Generali CER 1 Sem. 2021'!BI74) -> 16580 | E81: ='Dati Generali CER 1 Sem. 2021'!W74 -> 0.7883975273 | F81: =IF('Dati Generali CER 1 Sem. 2021'!BJ74="","",'Dati Generali CER 1 Sem. 2021'!BJ74) -> 0.6454880295 | G81: =IF('Dati Generali CER 1 Sem. 2021'!BK74="","",'Dati Generali CER 1 Sem. 2021'!BK74) -> 0.1365868631 | H81: =IF('Dati Generali CER 1 Sem. 2021'!BL74="","",'Dati Generali CER 1 Sem. 2021'!BL74) -> 0.5089011664 | I81: ='Dati Generali CER 1 Sem. 2021'!D74 -> 180 | J81: =IF('Dati Generali CER 1 Sem. 2021'!BN74="","",'Dati Generali CER 1 Sem. 2021'!BN74) -> 
A82: 73 | B82: ='Dati Generali CER 1 Sem. 2021'!C75 -> ROCCALUMERA | C82: =IF('Dati Generali CER 1 Sem. 2021'!E75="","",'Dati Generali CER 1 Sem. 2021'!E75) -> 267480 | D82: =IF(C82="","",'Dati Generali CER 1 Sem. 2021'!BI75) -> 634890 | E82: ='Dati Generali CER 1 Sem. 2021'!W75 -> 0.7035805712 | F82: =IF('Dati Generali CER 1 Sem. 2021'!BJ75="","",'Dati Generali CER 1 Sem. 2021'!BJ75) -> 1.277015782 | G82: =IF('Dati Generali CER 1 Sem. 2021'!BK75="","",'Dati Generali CER 1 Sem. 2021'!BK75) -> 0.3785322887 | H82: =IF('Dati Generali CER 1 Sem. 2021'!BL75="","",'Dati Generali CER 1 Sem. 2021'!BL75) -> 0.8984834933 | I82: ='Dati Generali CER 1 Sem. 2021'!D75 -> 3904 | J82: =IF('Dati Generali CER 1 Sem. 2021'!BN75="","",'Dati Generali CER 1 Sem. 2021'!BN75) -> 
A83: 74 | B83: ='Dati Generali CER 1 Sem. 2021'!C76 -> ROCCAVALDINA | C83: =IF('Dati Generali CER 1 Sem. 2021'!E76="","",'Dati Generali CER 1 Sem. 2021'!E76) -> 119160 | D83: =IF(C83="","",'Dati Generali CER 1 Sem. 2021'!BI76) -> 42916 | E83: ='Dati Generali CER 1 Sem. 2021'!W76 -> 0.2647893581 | F83: =IF('Dati Generali CER 1 Sem. 2021'!BJ76="","",'Dati Generali CER 1 Sem. 2021'!BJ76) -> 0.8918799938 | G83: =IF('Dati Generali CER 1 Sem. 2021'!BK76="","",'Dati Generali CER 1 Sem. 2021'!BK76) -> 0.6557196628 | H83: =IF('Dati Generali CER 1 Sem. 2021'!BL76="","",'Dati Generali CER 1 Sem. 2021'!BL76) -> 0.2361603311 | I83: ='Dati Generali CER 1 Sem. 2021'!D76 -> 1004 | J83: =IF('Dati Generali CER 1 Sem. 2021'!BN76="","",'Dati Generali CER 1 Sem. 2021'!BN76) -> 
A84: 75 | B84: ='Dati Generali CER 1 Sem. 2021'!C77 -> ROCCELLA VALDEMONE | C84: =IF('Dati Generali CER 1 Sem. 2021'!E77="","",'Dati Generali CER 1 Sem. 2021'!E77) -> 79980 | D84: =IF(C84="","",'Dati Generali CER 1 Sem. 2021'!BI77) -> 16700 | E84: ='Dati Generali CER 1 Sem. 2021'!W77 -> 0.1727347952 | F84: =IF('Dati Generali CER 1 Sem. 2021'!BJ77="","",'Dati Generali CER 1 Sem. 2021'!BJ77) -> 0.9338175637 | G84: =IF('Dati Generali CER 1 Sem. 2021'!BK77="","",'Dati Generali CER 1 Sem. 2021'!BK77) -> 0.772514778 | H84: =IF('Dati Generali CER 1 Sem. 2021'!BL77="","",'Dati Generali CER 1 Sem. 2021'!BL77) -> 0.1613027856 | I84: ='Dati Generali CER 1 Sem. 2021'!D77 -> 572 | J84: =IF('Dati Generali CER 1 Sem. 2021'!BN77="","",'Dati Generali CER 1 Sem. 2021'!BN77) -> 
A85: 76 | B85: ='Dati Generali CER 1 Sem. 2021'!C78 -> RODI' MILICI | C85: =IF('Dati Generali CER 1 Sem. 2021'!E78="","",'Dati Generali CER 1 Sem. 2021'!E78) -> 130800 | D85: =IF(C85="","",'Dati Generali CER 1 Sem. 2021'!BI78) -> 170000 | E85: ='Dati Generali CER 1 Sem. 2021'!W78 -> 0.5651595745 | F85: =IF('Dati Generali CER 1 Sem. 2021'!BJ78="","",'Dati Generali CER 1 Sem. 2021'!BJ78) -> 0.8522453605 | G85: =IF('Dati Generali CER 1 Sem. 2021'!BK78="","",'Dati Generali CER 1 Sem. 2021'!BK78) -> 0.3705907352 | H85: =IF('Dati Generali CER 1 Sem. 2021'!BL78="","",'Dati Generali CER 1 Sem. 2021'!BL78) -> 0.4816546253 | I85: ='Dati Generali CER 1 Sem. 2021'!D78 -> 1950 | J85: =IF('Dati Generali CER 1 Sem. 2021'!BN78="","",'Dati Generali CER 1 Sem. 2021'!BN78) -> 
A86: 77 | B86: ='Dati Generali CER 1 Sem. 2021'!C79 -> ROMETTA | C86: =IF('Dati Generali CER 1 Sem. 2021'!E79="","",'Dati Generali CER 1 Sem. 2021'!E79) -> 95760 | D86: =IF(C86="","",'Dati Generali CER 1 Sem. 2021'!BI79) -> 924010 | E86: ='Dati Generali CER 1 Sem. 2021'!W79 -> 0.9060964727 | F86: =IF('Dati Generali CER 1 Sem. 2021'!BJ79="","",'Dati Generali CER 1 Sem. 2021'!BJ79) -> 0.8694580861 | G86: =IF('Dati Generali CER 1 Sem. 2021'!BK79="","",'Dati Generali CER 1 Sem. 2021'!BK79) -> 0.08164518109 | H86: =IF('Dati Generali CER 1 Sem. 2021'!BL79="","",'Dati Generali CER 1 Sem. 2021'!BL79) -> 0.787812905 | I86: ='Dati Generali CER 1 Sem. 2021'!D79 -> 6480 | J86: =IF('Dati Generali CER 1 Sem. 2021'!BN79="","",'Dati Generali CER 1 Sem. 2021'!BN79) -> 
A87: 78 | B87: ='Dati Generali CER 1 Sem. 2021'!C82 -> S. AGATA DI MILITELLO | C87: =IF('Dati Generali CER 1 Sem. 2021'!E82="","",'Dati Generali CER 1 Sem. 2021'!E82) -> 1495790 | D87: =IF(C87="","",'Dati Generali CER 1 Sem. 2021'!BI82) -> 1012540 | E87: ='Dati Generali CER 1 Sem. 2021'!W82 -> 0.4036709683 | F87: =IF('Dati Generali CER 1 Sem. 2021'!BJ82="","",'Dati Generali CER 1 Sem. 2021'!BJ82) -> 1.141624252 | G87: =IF('Dati Generali CER 1 Sem. 2021'!BK82="","",'Dati Generali CER 1 Sem. 2021'!BK82) -> 0.6807836847 | H87: =IF('Dati Generali CER 1 Sem. 2021'!BL82="","",'Dati Generali CER 1 Sem. 2021'!BL82) -> 0.4608405673 | I87: ='Dati Generali CER 1 Sem. 2021'!D82 -> 12139 | J87: =IF('Dati Generali CER 1 Sem. 2021'!BN82="","",'Dati Generali CER 1 Sem. 2021'!BN82) -> 
A88: 79 | B88: ='Dati Generali CER 1 Sem. 2021'!C93 -> S. ALESSIO SICULO | C88: =IF('Dati Generali CER 1 Sem. 2021'!E93="","",'Dati Generali CER 1 Sem. 2021'!E93) -> 184510 | D88: =IF(C88="","",'Dati Generali CER 1 Sem. 2021'!BI93) -> 154842 | E88: ='Dati Generali CER 1 Sem. 2021'!W93 -> 0.449377485 | F88: =IF('Dati Generali CER 1 Sem. 2021'!BJ93="","",'Dati Generali CER 1 Sem. 2021'!BJ93) -> 1.295916717 | G88: =IF('Dati Generali CER 1 Sem. 2021'!BK93="","",'Dati Generali CER 1 Sem. 2021'!BK93) -> 0.6939361914 | H88: =IF('Dati Generali CER 1 Sem. 2021'!BL93="","",'Dati Generali CER 1 Sem. 2021'!BL93) -> 0.5823557951 | I88: ='Dati Generali CER 1 Sem. 2021'!D93 -> 1469 | J88: =IF('Dati Generali CER 1 Sem. 2021'!BN93="","",'Dati Generali CER 1 Sem. 2021'!BN93) -> 
A89: 80 | B89: ='Dati Generali CER 1 Sem. 2021'!C92 -> S. ANGELO DI BROLO | C89: =IF('Dati Generali CER 1 Sem. 2021'!E92="","",'Dati Generali CER 1 Sem. 2021'!E92) -> 483800 | D89: =IF(C89="","",'Dati Generali CER 1 Sem. 2021'!BI92) -> 106920 | E89: ='Dati Generali CER 1 Sem. 2021'!W92 -> 0.1809994583 | F89: =IF('Dati Generali CER 1 Sem. 2021'!BJ92="","",'Dati Generali CER 1 Sem. 2021'!BJ92) -> 1.146345771 | G89: =IF('Dati Generali CER 1 Sem. 2021'!BK92="","",'Dati Generali CER 1 Sem. 2021'!BK92) -> 0.9388578071 | H89: =IF('Dati Generali CER 1 Sem. 2021'!BL92="","",'Dati Generali CER 1 Sem. 2021'!BL92) -> 0.2074879635 | I89: ='Dati Generali CER 1 Sem. 2021'!D92 -> 2847 | J89: =IF('Dati Generali CER 1 Sem. 2021'!BN92="","",'Dati Generali CER 1 Sem. 2021'!BN92) -> 
A90: 81 | B90: ='Dati Generali CER 1 Sem. 2021'!C80 -> S. DOMENICA VITTORIA | C90: =IF('Dati Generali CER 1 Sem. 2021'!E80="","",'Dati Generali CER 1 Sem. 2021'!E80) -> 107460 | D90: =IF(C90="","",'Dati Generali CER 1 Sem. 2021'!BI80) -> 29500 | E90: ='Dati Generali CER 1 Sem. 2021'!W80 -> 0.2153913551 | F90: =IF('Dati Generali CER 1 Sem. 2021'!BJ80="","",'Dati Generali CER 1 Sem. 2021'!BJ80) -> 0.8697529688 | G90: =IF('Dati Generali CER 1 Sem. 2021'!BK80="","",'Dati Generali CER 1 Sem. 2021'!BK80) -> 0.6824156982 | H90: =IF('Dati Generali CER 1 Sem. 2021'!BL80="","",'Dati Generali CER 1 Sem. 2021'!BL80) -> 0.1873372706 | I90: ='Dati Generali CER 1 Sem. 2021'!D80 -> 870 | J90: =IF('Dati Generali CER 1 Sem. 2021'!BN80="","",'Dati Generali CER 1 Sem. 2021'!BN80) -> 
A91: 82 | B91: ='Dati Generali CER 1 Sem. 2021'!C85 -> S. FILIPPO DEL MELA | C91: =IF('Dati Generali CER 1 Sem. 2021'!E85="","",'Dati Generali CER 1 Sem. 2021'!E85) -> 449220 | D91: =IF(C91="","",'Dati Generali CER 1 Sem. 2021'!BI85) -> 773947 | E91: ='Dati Generali CER 1 Sem. 2021'!W85 -> 0.6327402554 | F91: =IF('Dati Generali CER 1 Sem. 2021'!BJ85="","",'Dati Generali CER 1 Sem. 2021'!BJ85) -> 1.000270682 | G91: =IF('Dati Generali CER 1 Sem. 2021'!BK85="","",'Dati Generali CER 1 Sem. 2021'!BK85) -> 0.3673591553 | H91: =IF('Dati Generali CER 1 Sem. 2021'!BL85="","",'Dati Generali CER 1 Sem. 2021'!BL85) -> 0.632911527 | I91: ='Dati Generali CER 1 Sem. 2021'!D85 -> 6756 | J91: =IF('Dati Generali CER 1 Sem. 2021'!BN85="","",'Dati Generali CER 1 Sem. 2021'!BN85) -> 
A92: 83 | B92: ='Dati Generali CER 1 Sem. 2021'!C90 -> S. SALVAT. DI FITALIA | C92: =IF('Dati Generali CER 1 Sem. 2021'!E90="","",'Dati Generali CER 1 Sem. 2021'!E90) -> 103540 | D92: =IF(C92="","",'Dati Generali CER 1 Sem. 2021'!BI90) -> 49170 | E92: ='Dati Generali CER 1 Sem. 2021'!W90 -> 0.3219828433 | F92: =IF('Dati Generali CER 1 Sem. 2021'!BJ90="","",'Dati Generali CER 1 Sem. 2021'!BJ90) -> 0.7279565638 | G92: =IF('Dati Generali CER 1 Sem. 2021'!BK90="","",'Dati Generali CER 1 Sem. 2021'!BK90) -> 0.4935670396 | H92: =IF('Dati Generali CER 1 Sem. 2021'!BL90="","",'Dati Generali CER 1 Sem. 2021'!BL90) -> 0.2343895242 | I92: ='Dati Generali CER 1 Sem. 2021'!D90 -> 1159 | J92: =IF('Dati Generali CER 1 Sem. 2021'!BN90="","",'Dati Generali CER 1 Sem. 2021'!BN90) -> 
A93: 84 | B93: ='Dati Generali CER 1 Sem. 2021'!C81 -> S. STEF. DI CAMASTRA | C93: =IF('Dati Generali CER 1 Sem. 2021'!E81="","",'Dati Generali CER 1 Sem. 2021'!E81) -> 414960 | D93: =IF(C93="","",'Dati Generali CER 1 Sem. 2021'!BI81) -> 600297 | E93: ='Dati Generali CER 1 Sem. 2021'!W81 -> 0.5912759035 | F93: =IF('Dati Generali CER 1 Sem. 2021'!BJ81="","",'Dati Generali CER 1 Sem. 2021'!BJ81) -> 1.261902069 | G93: =IF('Dati Generali CER 1 Sem. 2021'!BK81="","",'Dati Generali CER 1 Sem. 2021'!BK81) -> 0.5157697829 | H93: =IF('Dati Generali CER 1 Sem. 2021'!BL81="","",'Dati Generali CER 1 Sem. 2021'!BL81) -> 0.746132286 | I93: ='Dati Generali CER 1 Sem. 2021'!D81 -> 4445 | J93: =IF('Dati Generali CER 1 Sem. 2021'!BN81="","",'Dati Generali CER 1 Sem. 2021'!BN81) -> 
A94: 85 | B94: ='Dati Generali CER 1 Sem. 2021'!C84 -> S. TERESA DI RIVA | C94: =IF('Dati Generali CER 1 Sem. 2021'!E84="","",'Dati Generali CER 1 Sem. 2021'!E84) -> 426880 | D94: =IF(C94="","",'Dati Generali CER 1 Sem. 2021'!BI84) -> 1263205 | E94: ='Dati Generali CER 1 Sem. 2021'!W84 -> 0.7474209877 | F94: =IF('Dati Generali CER 1 Sem. 2021'!BJ84="","",'Dati Generali CER 1 Sem. 2021'!BJ84) -> 0.9880937765 | G94: =IF('Dati Generali CER 1 Sem. 2021'!BK84="","",'Dati Generali CER 1 Sem. 2021'!BK84) -> 0.2495717501 | H94: =IF('Dati Generali CER 1 Sem. 2021'!BL84="","",'Dati Generali CER 1 Sem. 2021'!BL84) -> 0.7385220264 | I94: ='Dati Generali CER 1 Sem. 2021'!D84 -> 9450 | J94: =IF('Dati Generali CER 1 Sem. 2021'!BN84="","",'Dati Generali CER 1 Sem. 2021'!BN84) -> 
A95: 86 | B95: ='Dati Generali CER 1 Sem. 2021'!C86 -> SAN FRATELLO | C95: =IF('Dati Generali CER 1 Sem. 2021'!E86="","",'Dati Generali CER 1 Sem. 2021'!E86) -> 144380 | D95: =IF(C95="","",'Dati Generali CER 1 Sem. 2021'!BI86) -> 261190 | E95: ='Dati Generali CER 1 Sem. 2021'!W86 -> 0.6440071997 | F95: =IF('Dati Generali CER 1 Sem. 2021'!BJ86="","",'Dati Generali CER 1 Sem. 2021'!BJ86) -> 0.6686715106 | G95: =IF('Dati Generali CER 1 Sem. 2021'!BK86="","",'Dati Generali CER 1 Sem. 2021'!BK86) -> 0.2380422435 | H95: =IF('Dati Generali CER 1 Sem. 2021'!BL86="","",'Dati Generali CER 1 Sem. 2021'!BL86) -> 0.4306292671 | I95: ='Dati Generali CER 1 Sem. 2021'!D86 -> 3351 | J95: =IF('Dati Generali CER 1 Sem. 2021'!BN86="","",'Dati Generali CER 1 Sem. 2021'!BN86) -> 
A96: 87 | B96: ='Dati Generali CER 1 Sem. 2021'!C87 -> SAN MARCO D'ALUNZIO | C96: =IF('Dati Generali CER 1 Sem. 2021'!E87="","",'Dati Generali CER 1 Sem. 2021'!E87) -> 55905 | D96: =IF(C96="","",'Dati Generali CER 1 Sem. 2021'!BI87) -> 201170 | E96: ='Dati Generali CER 1 Sem. 2021'!W87 -> 0.7825342799 | F96: =IF('Dati Generali CER 1 Sem. 2021'!BJ87="","",'Dati Generali CER 1 Sem. 2021'!BJ87) -> 0.781675216 | G96: =IF('Dati Generali CER 1 Sem. 2021'!BK87="","",'Dati Generali CER 1 Sem. 2021'!BK87) -> 0.1699875637 | H96: =IF('Dati Generali CER 1 Sem. 2021'!BL87="","",'Dati Generali CER 1 Sem. 2021'!BL87) -> 0.6116876522 | I96: ='Dati Generali CER 1 Sem. 2021'!D87 -> 1817 | J96: =IF('Dati Generali CER 1 Sem. 2021'!BN87="","",'Dati Generali CER 1 Sem. 2021'!BN87) -> 
A97: 88 | B97: ='Dati Generali CER 1 Sem. 2021'!C88 -> SAN PIER NICETO | C97: =IF('Dati Generali CER 1 Sem. 2021'!E88="","",'Dati Generali CER 1 Sem. 2021'!E88) -> 253560 | D97: =IF(C97="","",'Dati Generali CER 1 Sem. 2021'!BI88) -> 288750 | E97: ='Dati Generali CER 1 Sem. 2021'!W88 -> 0.5256594637 | F97: =IF('Dati Generali CER 1 Sem. 2021'!BJ88="","",'Dati Generali CER 1 Sem. 2021'!BJ88) -> 1.153063024 | G97: =IF('Dati Generali CER 1 Sem. 2021'!BK88="","",'Dati Generali CER 1 Sem. 2021'!BK88) -> 0.5322507515 | H97: =IF('Dati Generali CER 1 Sem. 2021'!BL88="","",'Dati Generali CER 1 Sem. 2021'!BL88) -> 0.6061184907 | I97: ='Dati Generali CER 1 Sem. 2021'!D88 -> 2632 | J97: =IF('Dati Generali CER 1 Sem. 2021'!BN88="","",'Dati Generali CER 1 Sem. 2021'!BN88) -> 
A98: 89 | B98: ='Dati Generali CER 1 Sem. 2021'!C89 -> SAN PIERO PATTI | C98: =IF('Dati Generali CER 1 Sem. 2021'!E89="","",'Dati Generali CER 1 Sem. 2021'!E89) -> 332560 | D98: =IF(C98="","",'Dati Generali CER 1 Sem. 2021'!BI89) -> 254461 | E98: ='Dati Generali CER 1 Sem. 2021'!W89 -> 0.4334785297 | F98: =IF('Dati Generali CER 1 Sem. 2021'!BJ89="","",'Dati Generali CER 1 Sem. 2021'!BJ89) -> 1.239759153 | G98: =IF('Dati Generali CER 1 Sem. 2021'!BK89="","",'Dati Generali CER 1 Sem. 2021'!BK89) -> 0.7023501782 | H98: =IF('Dati Generali CER 1 Sem. 2021'!BL89="","",'Dati Generali CER 1 Sem. 2021'!BL89) -> 0.5374089749 | I98: ='Dati Generali CER 1 Sem. 2021'!D89 -> 2616 | J98: =IF('Dati Generali CER 1 Sem. 2021'!BN89="","",'Dati Generali CER 1 Sem. 2021'!BN89) -> 
A99: 90 | B99: ='Dati Generali CER 1 Sem. 2021'!C91 -> SAN TEODORO | C99: =IF('Dati Generali CER 1 Sem. 2021'!E91="","",'Dati Generali CER 1 Sem. 2021'!E91) -> 55320 | D99: =IF(C99="","",'Dati Generali CER 1 Sem. 2021'!BI91) -> 143760 | E99: ='Dati Generali CER 1 Sem. 2021'!W91 -> 0.7221217601 | F99: =IF('Dati Generali CER 1 Sem. 2021'!BJ91="","",'Dati Generali CER 1 Sem. 2021'!BJ91) -> 0.881321717 | G99: =IF('Dati Generali CER 1 Sem. 2021'!BK91="","",'Dati Generali CER 1 Sem. 2021'!BK91) -> 0.2449001275 | H99: =IF('Dati Generali CER 1 Sem. 2021'!BL91="","",'Dati Generali CER 1 Sem. 2021'!BL91) -> 0.6364215895 | I99: ='Dati Generali CER 1 Sem. 2021'!D91 -> 1248 | J99: =IF('Dati Generali CER 1 Sem. 2021'!BN91="","",'Dati Generali CER 1 Sem. 2021'!BN91) -> 
A100: 91 | B100: ='Dati Generali CER 1 Sem. 2021'!C83 -> SANTA LUCIA DEL MELA | C100: =IF('Dati Generali CER 1 Sem. 2021'!E83="","",'Dati Generali CER 1 Sem. 2021'!E83) -> 306596 | D100: =IF(C100="","",'Dati Generali CER 1 Sem. 2021'!BI83) -> 429948 | E100: ='Dati Generali CER 1 Sem. 2021'!W83 -> 0.5837370205 | F100: =IF('Dati Generali CER 1 Sem. 2021'!BJ83="","",'Dati Generali CER 1 Sem. 2021'!BJ83) -> 0.9093416463 | G100: =IF('Dati Generali CER 1 Sem. 2021'!BK83="","",'Dati Generali CER 1 Sem. 2021'!BK83) -> 0.3785252631 | H100: =IF('Dati Generali CER 1 Sem. 2021'!BL83="","",'Dati Generali CER 1 Sem. 2021'!BL83) -> 0.5308163832 | I100: ='Dati Generali CER 1 Sem. 2021'!D83 -> 4475 | J100: =IF('Dati Generali CER 1 Sem. 2021'!BN83="","",'Dati Generali CER 1 Sem. 2021'!BN83) -> 
A101: 92 | B101: ='Dati Generali CER 1 Sem. 2021'!C94 -> SANTA MARINA SALINA | C101: =IF('Dati Generali CER 1 Sem. 2021'!E94="","",'Dati Generali CER 1 Sem. 2021'!E94) -> 123360 | D101: =IF(C101="","",'Dati Generali CER 1 Sem. 2021'!BI94) -> 64080 | E101: ='Dati Generali CER 1 Sem. 2021'!W94 -> 0.3418693982 | F101: =IF('Dati Generali CER 1 Sem. 2021'!BJ94="","",'Dati Generali CER 1 Sem. 2021'!BJ94) -> 1.225538592 | G101: =IF('Dati Generali CER 1 Sem. 2021'!BK94="","",'Dati Generali CER 1 Sem. 2021'!BK94) -> 0.8065644513 | H101: =IF('Dati Generali CER 1 Sem. 2021'!BL94="","",'Dati Generali CER 1 Sem. 2021'!BL94) -> 0.418974141 | I101: ='Dati Generali CER 1 Sem. 2021'!D94 -> 845 | J101: =IF('Dati Generali CER 1 Sem. 2021'!BN94="","",'Dati Generali CER 1 Sem. 2021'!BN94) -> 
A102: 93 | B102: ='Dati Generali CER 1 Sem. 2021'!C95 -> SAPONARA | C102: =IF('Dati Generali CER 1 Sem. 2021'!E95="","",'Dati Generali CER 1 Sem. 2021'!E95) -> 97966 | D102: =IF(C102="","",'Dati Generali CER 1 Sem. 2021'!BI95) -> 485810 | E102: ='Dati Generali CER 1 Sem. 2021'!W95 -> 0.8321856328 | F102: =IF('Dati Generali CER 1 Sem. 2021'!BJ95="","",'Dati Generali CER 1 Sem. 2021'!BJ95) -> 0.8705213949 | G102: =IF('Dati Generali CER 1 Sem. 2021'!BK95="","",'Dati Generali CER 1 Sem. 2021'!BK95) -> 0.146085997 | H102: =IF('Dati Generali CER 1 Sem. 2021'!BL95="","",'Dati Generali CER 1 Sem. 2021'!BL95) -> 0.7244353979 | I102: ='Dati Generali CER 1 Sem. 2021'!D95 -> 3705 | J102: =IF('Dati Generali CER 1 Sem. 2021'!BN95="","",'Dati Generali CER 1 Sem. 2021'!BN95) -> 
A103: 94 | B103: ='Dati Generali CER 1 Sem. 2021'!C96 -> SAVOCA | C103: =IF('Dati Generali CER 1 Sem. 2021'!E96="","",'Dati Generali CER 1 Sem. 2021'!E96) -> 108920 | D103: =IF(C103="","",'Dati Generali CER 1 Sem. 2021'!BI96) -> 135710 | E103: ='Dati Generali CER 1 Sem. 2021'!W96 -> 0.5547561624 | F103: =IF('Dati Generali CER 1 Sem. 2021'!BJ96="","",'Dati Generali CER 1 Sem. 2021'!BJ96) -> 0.7807896946 | G103: =IF('Dati Generali CER 1 Sem. 2021'!BK96="","",'Dati Generali CER 1 Sem. 2021'!BK96) -> 0.3476418 | H103: =IF('Dati Generali CER 1 Sem. 2021'!BL96="","",'Dati Generali CER 1 Sem. 2021'!BL96) -> 0.4331478946 | I103: ='Dati Generali CER 1 Sem. 2021'!D96 -> 1731 | J103: =IF('Dati Generali CER 1 Sem. 2021'!BN96="","",'Dati Generali CER 1 Sem. 2021'!BN96) -> 
A104: 95 | B104: ='Dati Generali CER 1 Sem. 2021'!C97 -> SCALETTA ZANCLEA | C104: =IF('Dati Generali CER 1 Sem. 2021'!E97="","",'Dati Generali CER 1 Sem. 2021'!E97) -> 117990 | D104: =IF(C104="","",'Dati Generali CER 1 Sem. 2021'!BI97) -> 227739 | E104: ='Dati Generali CER 1 Sem. 2021'!W97 -> 0.6563272717 | F104: =IF('Dati Generali CER 1 Sem. 2021'!BJ97="","",'Dati Generali CER 1 Sem. 2021'!BJ97) -> 1.011113831 | G104: =IF('Dati Generali CER 1 Sem. 2021'!BK97="","",'Dati Generali CER 1 Sem. 2021'!BK97) -> 0.3438177495 | H104: =IF('Dati Generali CER 1 Sem. 2021'!BL97="","",'Dati Generali CER 1 Sem. 2021'!BL97) -> 0.6636215819 | I104: ='Dati Generali CER 1 Sem. 2021'!D97 -> 1896 | J104: =IF('Dati Generali CER 1 Sem. 2021'!BN97="","",'Dati Generali CER 1 Sem. 2021'!BN97) -> 
A105: 96 | B105: ='Dati Generali CER 1 Sem. 2021'!C98 -> SINAGRA | C105: =IF('Dati Generali CER 1 Sem. 2021'!E98="","",'Dati Generali CER 1 Sem. 2021'!E98) -> 95460 | D105: =IF(C105="","",'Dati Generali CER 1 Sem. 2021'!BI98) -> 331965 | E105: ='Dati Generali CER 1 Sem. 2021'!W98 -> 0.7766625724 | F105: =IF('Dati Generali CER 1 Sem. 2021'!BJ98="","",'Dati Generali CER 1 Sem. 2021'!BJ98) -> 0.9293443874 | G105: =IF('Dati Generali CER 1 Sem. 2021'!BK98="","",'Dati Generali CER 1 Sem. 2021'!BK98) -> 0.2075573849 | H105: =IF('Dati Generali CER 1 Sem. 2021'!BL98="","",'Dati Generali CER 1 Sem. 2021'!BL98) -> 0.7217870026 | I105: ='Dati Generali CER 1 Sem. 2021'!D98 -> 2541 | J105: =IF('Dati Generali CER 1 Sem. 2021'!BN98="","",'Dati Generali CER 1 Sem. 2021'!BN98) -> 
A106: 97 | B106: ='Dati Generali CER 1 Sem. 2021'!C99 -> SPADAFORA | C106: =IF('Dati Generali CER 1 Sem. 2021'!E99="","",'Dati Generali CER 1 Sem. 2021'!E99) -> 548130 | D106: =IF(C106="","",'Dati Generali CER 1 Sem. 2021'!BI99) -> 288700 | E106: ='Dati Generali CER 1 Sem. 2021'!W99 -> 0.3440755131 | F106: =IF('Dati Generali CER 1 Sem. 2021'!BJ99="","",'Dati Generali CER 1 Sem. 2021'!BJ99) -> 0.9742939487 | G106: =IF('Dati Generali CER 1 Sem. 2021'!BK99="","",'Dati Generali CER 1 Sem. 2021'!BK99) -> 0.6364738423 | H106: =IF('Dati Generali CER 1 Sem. 2021'!BL99="","",'Dati Generali CER 1 Sem. 2021'!BL99) -> 0.3352306903 | I106: ='Dati Generali CER 1 Sem. 2021'!D99 -> 4758 | J106: =IF('Dati Generali CER 1 Sem. 2021'!BN99="","",'Dati Generali CER 1 Sem. 2021'!BN99) -> 
A107: 98 | B107: ='Dati Generali CER 1 Sem. 2021'!C100 -> TAORMINA | C107: =IF('Dati Generali CER 1 Sem. 2021'!E100="","",'Dati Generali CER 1 Sem. 2021'!E100) -> 1048180 | D107: =IF(C107="","",'Dati Generali CER 1 Sem. 2021'!BI100) -> 1733162 | E107: ='Dati Generali CER 1 Sem. 2021'!W100 -> 0.6231387582 | F107: =IF('Dati Generali CER 1 Sem. 2021'!BJ100="","",'Dati Generali CER 1 Sem. 2021'!BJ100) -> 1.462225748 | G107: =IF('Dati Generali CER 1 Sem. 2021'!BK100="","",'Dati Generali CER 1 Sem. 2021'!BK100) -> 0.5510562112 | H107: =IF('Dati Generali CER 1 Sem. 2021'!BL100="","",'Dati Generali CER 1 Sem. 2021'!BL100) -> 0.9111695369 | I107: ='Dati Generali CER 1 Sem. 2021'!D100 -> 10509 | J107: =IF('Dati Generali CER 1 Sem. 2021'!BN100="","",'Dati Generali CER 1 Sem. 2021'!BN100) -> 
A108: 99 | B108: ='Dati Generali CER 1 Sem. 2021'!C101 -> TERME VIGLIATORE | C108: =IF('Dati Generali CER 1 Sem. 2021'!E101="","",'Dati Generali CER 1 Sem. 2021'!E101) -> 476520 | D108: =IF(C108="","",'Dati Generali CER 1 Sem. 2021'!BI101) -> 827820 | E108: ='Dati Generali CER 1 Sem. 2021'!W101 -> 0.6196071974 | F108: =IF('Dati Generali CER 1 Sem. 2021'!BJ101="","",'Dati Generali CER 1 Sem. 2021'!BJ101) -> 1.02477252 | G108: =IF('Dati Generali CER 1 Sem. 2021'!BK101="","",'Dati Generali CER 1 Sem. 2021'!BK101) -> 0.365501483 | H108: =IF('Dati Generali CER 1 Sem. 2021'!BL101="","",'Dati Generali CER 1 Sem. 2021'!BL101) -> 0.6349564293 | I108: ='Dati Generali CER 1 Sem. 2021'!D101 -> 7203 | J108: =IF('Dati Generali CER 1 Sem. 2021'!BN101="","",'Dati Generali CER 1 Sem. 2021'!BN101) -> 
A109: 100 | B109: ='Dati Generali CER 1 Sem. 2021'!C102 -> TORREGROTTA | C109: =IF('Dati Generali CER 1 Sem. 2021'!E102="","",'Dati Generali CER 1 Sem. 2021'!E102) -> 1079820 | D109: =IF(C109="","",'Dati Generali CER 1 Sem. 2021'!BI102) -> 425148 | E109: ='Dati Generali CER 1 Sem. 2021'!W102 -> 0.2802834822 | F109: =IF('Dati Generali CER 1 Sem. 2021'!BJ102="","",'Dati Generali CER 1 Sem. 2021'!BJ102) -> 1.164589597 | G109: =IF('Dati Generali CER 1 Sem. 2021'!BK102="","",'Dati Generali CER 1 Sem. 2021'!BK102) -> 0.8290517445 | H109: =IF('Dati Generali CER 1 Sem. 2021'!BL102="","",'Dati Generali CER 1 Sem. 2021'!BL102) -> 0.3264152276 | I109: ='Dati Generali CER 1 Sem. 2021'!D102 -> 7196 | J109: =IF('Dati Generali CER 1 Sem. 2021'!BN102="","",'Dati Generali CER 1 Sem. 2021'!BN102) -> 
A110: 101 | B110: ='Dati Generali CER 1 Sem. 2021'!C103 -> TORRENOVA | C110: =IF('Dati Generali CER 1 Sem. 2021'!E103="","",'Dati Generali CER 1 Sem. 2021'!E103) -> 238380 | D110: =IF(C110="","",'Dati Generali CER 1 Sem. 2021'!BI103) -> 813590 | E110: ='Dati Generali CER 1 Sem. 2021'!W103 -> 0.7733965798 | F110: =IF('Dati Generali CER 1 Sem. 2021'!BJ103="","",'Dati Generali CER 1 Sem. 2021'!BJ103) -> 1.289547138 | G110: =IF('Dati Generali CER 1 Sem. 2021'!BK103="","",'Dati Generali CER 1 Sem. 2021'!BK103) -> 0.292215792 | H110: =IF('Dati Generali CER 1 Sem. 2021'!BL103="","",'Dati Generali CER 1 Sem. 2021'!BL103) -> 0.9973313458 | I110: ='Dati Generali CER 1 Sem. 2021'!D103 -> 4507 | J110: =IF('Dati Generali CER 1 Sem. 2021'!BN103="","",'Dati Generali CER 1 Sem. 2021'!BN103) -> 
A111: 102 | B111: ='Dati Generali CER 1 Sem. 2021'!C104 -> TORTORICI | C111: =IF('Dati Generali CER 1 Sem. 2021'!E104="","",'Dati Generali CER 1 Sem. 2021'!E104) -> 362860 | D111: =IF(C111="","",'Dati Generali CER 1 Sem. 2021'!BI104) -> 264855 | E111: ='Dati Generali CER 1 Sem. 2021'!W104 -> 0.4219351139 | F111: =IF('Dati Generali CER 1 Sem. 2021'!BJ104="","",'Dati Generali CER 1 Sem. 2021'!BJ104) -> 0.5888011331 | G111: =IF('Dati Generali CER 1 Sem. 2021'!BK104="","",'Dati Generali CER 1 Sem. 2021'!BK104) -> 0.34036526 | H111: =IF('Dati Generali CER 1 Sem. 2021'!BL104="","",'Dati Generali CER 1 Sem. 2021'!BL104) -> 0.2484358731 | I111: ='Dati Generali CER 1 Sem. 2021'!D104 -> 5890 | J111: =IF('Dati Generali CER 1 Sem. 2021'!BN104="","",'Dati Generali CER 1 Sem. 2021'!BN104) -> 
A112: 103 | B112: ='Dati Generali CER 1 Sem. 2021'!C105 -> TRIPI | C112: =IF('Dati Generali CER 1 Sem. 2021'!E105="","",'Dati Generali CER 1 Sem. 2021'!E105) -> 79682 | D112: =IF(C112="","",'Dati Generali CER 1 Sem. 2021'!BI105) -> 46319 | E112: ='Dati Generali CER 1 Sem. 2021'!W105 -> 0.3676081936 | F112: =IF('Dati Generali CER 1 Sem. 2021'!BJ105="","",'Dati Generali CER 1 Sem. 2021'!BJ105) -> 0.9111755518 | G112: =IF('Dati Generali CER 1 Sem. 2021'!BK105="","",'Dati Generali CER 1 Sem. 2021'!BK105) -> 0.5762199531 | H112: =IF('Dati Generali CER 1 Sem. 2021'!BL105="","",'Dati Generali CER 1 Sem. 2021'!BL105) -> 0.3349555986 | I112: ='Dati Generali CER 1 Sem. 2021'!D105 -> 764 | J112: =IF('Dati Generali CER 1 Sem. 2021'!BN105="","",'Dati Generali CER 1 Sem. 2021'!BN105) -> 
A113: 104 | B113: ='Dati Generali CER 1 Sem. 2021'!C106 -> TUSA | C113: =IF('Dati Generali CER 1 Sem. 2021'!E106="","",'Dati Generali CER 1 Sem. 2021'!E106) -> 142040 | D113: =IF(C113="","",'Dati Generali CER 1 Sem. 2021'!BI106) -> 304610 | E113: ='Dati Generali CER 1 Sem. 2021'!W106 -> 0.6819881339 | F113: =IF('Dati Generali CER 1 Sem. 2021'!BJ106="","",'Dati Generali CER 1 Sem. 2021'!BJ106) -> 0.9170120989 | G113: =IF('Dati Generali CER 1 Sem. 2021'!BK106="","",'Dati Generali CER 1 Sem. 2021'!BK106) -> 0.2916207288 | H113: =IF('Dati Generali CER 1 Sem. 2021'!BL106="","",'Dati Generali CER 1 Sem. 2021'!BL106) -> 0.62539137 | I113: ='Dati Generali CER 1 Sem. 2021'!D106 -> 2691 | J113: =IF('Dati Generali CER 1 Sem. 2021'!BN106="","",'Dati Generali CER 1 Sem. 2021'!BN106) -> 
A114: 105 | B114: ='Dati Generali CER 1 Sem. 2021'!C107 -> UCRIA | C114: =IF('Dati Generali CER 1 Sem. 2021'!E107="","",'Dati Generali CER 1 Sem. 2021'!E107) -> 43360 | D114: =IF(C114="","",'Dati Generali CER 1 Sem. 2021'!BI107) -> 95130 | E114: ='Dati Generali CER 1 Sem. 2021'!W107 -> 0.6869088021 | F114: =IF('Dati Generali CER 1 Sem. 2021'!BJ107="","",'Dati Generali CER 1 Sem. 2021'!BJ107) -> 0.8218454582 | G114: =IF('Dati Generali CER 1 Sem. 2021'!BK107="","",'Dati Generali CER 1 Sem. 2021'!BK107) -> 0.257312579 | H114: =IF('Dati Generali CER 1 Sem. 2021'!BL107="","",'Dati Generali CER 1 Sem. 2021'!BL107) -> 0.5645328792 | I114: ='Dati Generali CER 1 Sem. 2021'!D107 -> 931 | J114: =IF('Dati Generali CER 1 Sem. 2021'!BN107="","",'Dati Generali CER 1 Sem. 2021'!BN107) -> 
A115: 106 | B115: ='Dati Generali CER 1 Sem. 2021'!C108 -> VALDINA | C115: =IF('Dati Generali CER 1 Sem. 2021'!E108="","",'Dati Generali CER 1 Sem. 2021'!E108) -> 157670 | D115: =IF(C115="","",'Dati Generali CER 1 Sem. 2021'!BI108) -> 80843 | E115: ='Dati Generali CER 1 Sem. 2021'!W108 -> 0.3389458855 | F115: =IF('Dati Generali CER 1 Sem. 2021'!BJ108="","",'Dati Generali CER 1 Sem. 2021'!BJ108) -> 1.015999523 | G115: =IF('Dati Generali CER 1 Sem. 2021'!BK108="","",'Dati Generali CER 1 Sem. 2021'!BK108) -> 0.6716306649 | H115: =IF('Dati Generali CER 1 Sem. 2021'!BL108="","",'Dati Generali CER 1 Sem. 2021'!BL108) -> 0.344368858 | I115: ='Dati Generali CER 1 Sem. 2021'!D108 -> 1297 | J115: =IF('Dati Generali CER 1 Sem. 2021'!BN108="","",'Dati Generali CER 1 Sem. 2021'!BN108) -> 
A116: 107 | B116: ='Dati Generali CER 1 Sem. 2021'!C109 -> VENETICO | C116: =IF('Dati Generali CER 1 Sem. 2021'!E109="","",'Dati Generali CER 1 Sem. 2021'!E109) -> 742300 | D116: =IF(C116="","",'Dati Generali CER 1 Sem. 2021'!BI109) -> 197198 | E116: ='Dati Generali CER 1 Sem. 2021'!W109 -> 0.2068673958 | F116: =IF('Dati Generali CER 1 Sem. 2021'!BJ109="","",'Dati Generali CER 1 Sem. 2021'!BJ109) -> 1.333321211 | G116: =IF('Dati Generali CER 1 Sem. 2021'!BK109="","",'Dati Generali CER 1 Sem. 2021'!BK109) -> 1.038254423 | H116: =IF('Dati Generali CER 1 Sem. 2021'!BL109="","",'Dati Generali CER 1 Sem. 2021'!BL109) -> 0.2758206868 | I116: ='Dati Generali CER 1 Sem. 2021'!D109 -> 3950 | J116: =IF('Dati Generali CER 1 Sem. 2021'!BN109="","",'Dati Generali CER 1 Sem. 2021'!BN109) -> 
A117: 108 | B117: ='Dati Generali CER 1 Sem. 2021'!C110 -> VILLAFRANCA TIRRENA | C117: =IF('Dati Generali CER 1 Sem. 2021'!E110="","",'Dati Generali CER 1 Sem. 2021'!E110) -> 404760 | D117: =IF(C117="","",'Dati Generali CER 1 Sem. 2021'!BI110) -> 1235046 | E117: ='Dati Generali CER 1 Sem. 2021'!W110 -> 0.7531659233 | F117: =IF('Dati Generali CER 1 Sem. 2021'!BJ110="","",'Dati Generali CER 1 Sem. 2021'!BJ110) -> 1.100279531 | G117: =IF('Dati Generali CER 1 Sem. 2021'!BK110="","",'Dati Generali CER 1 Sem. 2021'!BK110) -> 0.2715864821 | H117: =IF('Dati Generali CER 1 Sem. 2021'!BL110="","",'Dati Generali CER 1 Sem. 2021'!BL110) -> 0.8286930488 | I117: ='Dati Generali CER 1 Sem. 2021'!D110 -> 8234 | J117: =IF('Dati Generali CER 1 Sem. 2021'!BN110="","",'Dati Generali CER 1 Sem. 2021'!BN110) -> 
B118: Percentuale media dei 108 Comuni: | F118: ='Dati Generali CER 1 Sem. 2021'!W111 -> 0.4269958318

Sheet Grafico 1 Semestre 2021

Sheet Dati Generali CER 2 Sem. 2021
A1: Produzione di Rifiuti Urbani e Raccolta Differenziata 2° Semestre 2021.
A2: =COUNTA(E3:E110) -> 0 | B2: ID COMUNE | C2: COMUNE | D2: ABITANTI AL 30/06/2021 | E2: R.S.U. + R.S.A. (Kg/2°Sem.) 200301 | F2: R.S.U. COVID (A+A1) 200301* | G2: Altri oli per motori, ingranaggi e lubrificazione 130208* | H2: Legno da demolizione 170201 | I2: Miscele bituminose (diverse da quelle 170301*) 170302 | J2: Alluminio 170402 | K2: Ferro e acciaio 170405 | L2: Materiali da costruzione contenenti amianto 170605* | M2: percolato di discarica,(diverso dalla voce 190702) 190703 | N2: Residui di vagliatura 190801 | O2: FANGHI DI DEPURAZIONE (Kg/anno) prodotti dal trattamento delle acque reflue urbane 190805 | P2: Altri rifiuti (compresi materiali misti) prodotti dal trattamento meccanico dei rifiuti,(diversi dalla voce 191211) 191212 | Q2: Rifiuti della pulizia delle fognature 200306 | R2: Residui della pulizia stradale 200303 Smaltimento | S2: Ingombranti - 200307 Smaltimento | T2: Rifiuti urbani non specificati altrimenti 200399 | U2: RACCOL. DIFFEREN. (Kg/2°Sem.) | V2: R.S.U. + R.S.A. + RACC. DIFF. (Kg/2°Sem.) | W2: % RACC. DIFF. (2°Sem.) | X2: Compostaggio Domestico | Y2: Toner per stampa esauriti,(diversi dalla voce 080317) 080318 | Z2: Imballaggi Carta e Cartone (Raccolta Selettiva) 150101 | AA2: Imballaggi in Plastica 150102 | AB2: Imballaggi in Legno 150103 | AC2: Imballaaggi in metallo 150104 | AD2: Imball. in materiali misti 150106 | AE2: Imballaggi in Vetro 150107 | AF2: Imballaggi contenenti residui di sostanze pericolose o contaminati da tali sostanze 150110* | AG2: Imballaggi metallici contenenti matrici solide porose pericolose (ad esempio amianto) 150111* | AH2: Pneumatici usati 160103 | AI2: Filtri dell'olio 160107* | AJ2: Apparecchiature fuori uso, contenenti clorofluorocarburi, HCFC, HFC 160211* | AK2: Componenti rimossi da apparecchiature fuori uso,(diversi dalla voce 160215) 160216 | AL2: Miscugli o frazioni separate di cemento, mattoni, mattonelle e ceramiche(diverse dalla voce 170106) 170107 | AM2: Rifiuti misti dell'attività di costruzione e demolizione, (diversi dalle voci 170901, 170902 e 170903) 170904 | AN2: Carta e Cartone (Raccolta Congiunta) 200101 | AO2: Vetro 200102 | AP2: Rifiuti biodegradabili di cucine e mense 200108 | AQ2: Abbigliamento 200110 | AR2: Prodotti tessili 200111 | AS2: Tubi fluorescenti ed altri rifiuti contenenti Mercurio 200121* | AT2: Apparec. Fuori uso conten. CFC e mat. peric. 200123* | AU2: Oli e Grassi commestibili 200125 | AV2: Oli e grassi (diversi dalla voce 200125) 200126* | AW2: Medicinali citotossici e citostatici 200131* | AX2: Medicinali (diversi dlla voce 200131*) 200132 | AY2: Batterie ed Accumulatori (diversi dalle voci 160601, 160602 e 160603) 200133* | AZ2: Batterie ed accumulatori (diversi dlla voce 200133*) 200134 | BA2: Apparecc. elettr. ed elettroniche fuori uso contenenti Mat. Peric. 200135* | BB2: Apparecc. eletr. ed elettroniche fuori uso(diverse da 200121, 200123 e 200135) 200136 | BC2: Legno 200138 | BD2: Plastica 200139 | BE2: Metallo 200140 | BF2: Rifiuti biodegradabili 200201 | BG2: Residui della pulizia stradale - 200303 Recupero | BH2: Ingombranti - 200307 Recupero | BI2: TOTALE RD (Kg/2°Sem.) | BJ2: R.S.U. + R.S.A.+ R.D. - (R.T. Kg. pro capite/g) | BK2: R.S.U. + R.S.A. 200301 - (R.I. Kg. pro capite/g) | BL2: R.D. - (Kg. pro capite/g)
A3: 1 | B3: M211 | C3: ='Dati Generali CER 1 Sem. 2021'!C3 -> ACQUEDOLCI | D3: 5584 | U3: =IF(BI3=0,"",BI3) ->  | V3: =IF(E3=0,"",SUM(U3,E3,R3,S3,T3)) ->  | W3: =IFERROR(IF(E3<>0,IF(U3=0,0,(U3/V3*100)/100),IF(U3=0,"","")),0) ->  | BI3: =IF(SUM(X3:BH3)=0,"",SUM(X3:BH3)) ->  | BJ3: =IF(SUM(E3)=0,"",V3/D3/184) ->  | BK3: =IF(E3=0,"",E3/D3/184) ->  | BL3: =IF(SUM(Y3:BH3)=0,"",BI3/D3/184) -> 
A4: 2 | B4: A177 | C4: ='Dati Generali CER 1 Sem. 2021'!C4 -> ALCARA LI FUSI | D4: 1774 | U4: =IF(BI4=0,"",BI4) ->  | BK4: =IF(E4=0,"",E4/D4/184) -> 
A5: 3 | B5: A194 | C5: ='Dati Generali CER 1 Sem. 2021'!C5 -> ALI' | D5: 676 | U5: =IF(BI5=0,"",BI5) -> 
A6: 4 | B6: A201 | C6: ='Dati Generali CER 1 Sem. 2021'!C6 -> ALI' TERME | D6: 2385 | U6: =IF(BI6=0,"",BI6) -> 
A7: 5 | B7: A313 | C7: ='Dati Generali CER 1 Sem. 2021'!C7 -> ANTILLO | D7: 845
A8: 6 | B8: A638 | C8: ='Dati Generali CER 1 Sem. 2021'!C8 -> BARCELLONA P.G. | D8: 40119
A9: 7 | B9: A698 | C9: ='Dati Generali CER 1 Sem. 2021'!C9 -> BASICO' | D9: 535
A10: 8 | B10: B198 | C10: ='Dati Generali CER 1 Sem. 2021'!C10 -> BROLO | D10: 5771
A11: 9 | B11: B660 | C11: ='Dati Generali CER 1 Sem. 2021'!C11 -> CAPIZZI | D11: 2807
A12: 10 | B12: B666 | C12: ='Dati Generali CER 1 Sem. 2021'!C12 -> CAPO D'ORLANDO | D12: 13162
A13: 11 | B13: B695 | C13: ='Dati Generali CER 1 Sem. 2021'!C13 -> CAPRILEONE | D13: 4367
A14: 12 | B14: B804 | C14: ='Dati Generali CER 1 Sem. 2021'!C14 -> CARONIA | D14: 3097
A15: 13 | B15: B918 | C15: ='Dati Generali CER 1 Sem. 2021'!C15 -> CASALVECCHIO SICULO | D15: 733
A16: 14 | B16: C094 | C16: ='Dati Generali CER 1 Sem. 2021'!C16 -> CASTEL DI LUCIO | D16: 1173
A17: 15 | B17: C051 | C17: ='Dati Generali CER 1 Sem. 2021'!C17 -> CASTELL'UMBERTO | D17: 2908
A18: 16 | B18: C210 | C18: ='Dati Generali CER 1 Sem. 2021'!C18 -> CASTELMOLA | D18: 1086
A19: 17 | B19: C347 | C19: ='Dati Generali CER 1 Sem. 2021'!C19 -> CASTROREALE | D19: 2228
A20: 18 | B20: C568 | C20: ='Dati Generali CER 1 Sem. 2021'!C20 -> CESARO' | D20: 2153
A21: 19 | B21: C956 | C21: ='Dati Generali CER 1 Sem. 2021'!C21 -> CONDRO' | D21: 435
A22: 20 | B22: D474 | C22: ='Dati Generali CER 1 Sem. 2021'!C22 -> FALCONE | D22: 2748
A23: 21 | B23: D569 | C23: ='Dati Generali CER 1 Sem. 2021'!C23 -> FICARRA | D23: 1340
A24: 22 | B24: D622 | C24: ='Dati Generali CER 1 Sem. 2021'!C24 -> FIUMEDINISI | D24: 1303
A25: 23 | B25: D635 | C25: ='Dati Generali CER 1 Sem. 2021'!C25 -> FLORESTA | D25: 467
A26: 24 | B26: D661 | C26: ='Dati Generali CER 1 Sem. 2021'!C26 -> FONDACHELLI FANTINA | D26: 999
A27: 25 | B27: D733 | C27: ='Dati Generali CER 1 Sem. 2021'!C27 -> FORZA D'AGRO' Apr.-Giu. | D27: 859
A28: 26 | B28: D765 | C28: ='Dati Generali CER 1 Sem. 2021'!C28 -> FRANCAVILLA DI SICILIA | D28: 3596
A29: 27 | B29: D793 | C29: ='Dati Generali CER 1 Sem. 2021'!C29 -> FRAZZANO' | D29: 590
A30: 28 | B30: D824 | C30: ='Dati Generali CER 1 Sem. 2021'!C30 -> FURCI SICULO | D30: 3203
A31: 29 | B31: D825 | C31: ='Dati Generali CER 1 Sem. 2021'!C31 -> FURNARI | D31: 3887
A32: 30 | B32: D844 | C32: ='Dati Generali CER 1 Sem. 2021'!C32 -> GAGGI | D32: 3132
A33: 31 | B33: D861 | C33: ='Dati Generali CER 1 Sem. 2021'!C33 -> GALATI MAMERTINO | D33: 2360
A34: 32 | B34: D885 | C34: ='Dati Generali CER 1 Sem. 2021'!C34 -> GALLODORO | D34: 339
A35: 33 | B35: E014 | C35: ='Dati Generali CER 1 Sem. 2021'!C35 -> GIARDINI NAXOS | D35: 9176 | V35: =IF(E35=0,"",SUM(U35,E35,R35,S35,T35)) ->  | W35: =IFERROR(IF(E35<>0,IF(U35=0,0,(U35/V35*100)/100),IF(U35=0,"","")),0) ->  | BI35: =IF(SUM(X35:BH35)=0,"",SUM(X35:BH35)) ->  | BL35: =IF(SUM(Y35:BH35)=0,"",BI35/D35/184) -> 
A36: 34 | B36: E043 | C36: ='Dati Generali CER 1 Sem. 2021'!C36 -> GIOIOSA MAREA | D36: 6815
A37: 35 | B37: E142 | C37: ='Dati Generali CER 1 Sem. 2021'!C37 -> GRANITI | D37: 1447 | BJ37: =IF(E37=0,"",V37/D37/184) -> 
A38: 36 | B38: E233 | C38: ='Dati Generali CER 1 Sem. 2021'!C38 -> GUALTIERI SICAMINO | D38: 1619 | BJ38: =IF(SUM(E38)=0,"",V38/D38/184) -> 
A39: 37 | B39: E374 | C39: ='Dati Generali CER 1 Sem. 2021'!C39 -> ITALA | D39: 1500
A40: 38 | B40: E523 | C40: ='Dati Generali CER 1 Sem. 2021'!C40 -> LENI | D40: 678
A41: 39 | B41: E555 | C41: ='Dati Generali CER 1 Sem. 2021'!C41 -> LETOJANNI | D41: 2750
A42: 40 | B42: E571 | C42: ='Dati Generali CER 1 Sem. 2021'!C42 -> LIBRIZZI | D42: 1585
A43: 41 | B43: E594 | C43: ='Dati Generali CER 1 Sem. 2021'!C43 -> LIMINA | D43: 723
A44: 42 | B44: E606 | C44: ='Dati Generali CER 1 Sem. 2021'!C44 -> LIPARI | D44: 12433
A45: 43 | B45: E674 | C45: ='Dati Generali CER 1 Sem. 2021'!C45 -> LONGI | D45: 1367
A46: 44 | B46: E855 | C46: ='Dati Generali CER 1 Sem. 2021'!C46 -> MALFA | D46: 975
A47: 45 | B47: E869 | C47: ='Dati Generali CER 1 Sem. 2021'!C47 -> MALVAGNA | D47: 650
A48: 46 | B48: E876 | C48: ='Dati Generali CER 1 Sem. 2021'!C48 -> MANDANICI | D48: 544
A49: 47 | B49: F066 | C49: ='Dati Generali CER 1 Sem. 2021'!C49 -> MAZZARRA' S. ANDREA | D49: 1405
A50: 48 | B50: F147 | C50: ='Dati Generali CER 1 Sem. 2021'!C50 -> MERI' | D50: 2358
A51: 49 | B51: F158 | C51: ='Dati Generali CER 1 Sem. 2021'!C51 -> MESSINA | D51: 224445
A52: 50 | B52: F206 | C52: ='Dati Generali CER 1 Sem. 2021'!C52 -> MILAZZO | D52: 29831
A53: 51 | B53: F210 | C53: ='Dati Generali CER 1 Sem. 2021'!C53 -> MILITELLO ROSMARINO | D53: 1203
A54: 52 | B54: F242 | C54: ='Dati Generali CER 1 Sem. 2021'!C54 -> MIRTO | D54: 915
A55: 53 | B55: F251 | C55: ='Dati Generali CER 1 Sem. 2021'!C55 -> MISTRETTA | D55: 4486
A56: 54 | B56: F277 | C56: ='Dati Generali CER 1 Sem. 2021'!C56 -> MOJO ALCANTARA | D56: 677
A57: 55 | B57: F359 | C57: ='Dati Generali CER 1 Sem. 2021'!C57 -> MONFORTE S. GIORGIO | D57: 2587
A58: 56 | B58: F368 | C58: ='Dati Generali CER 1 Sem. 2021'!C58 -> MONGIUFFI MELIA | D58: 538
A59: 57 | B59: F395 | C59: ='Dati Generali CER 1 Sem. 2021'!C59 -> MONTAGNAREALE | D59: 1441
A60: 58 | B60: F400 | C60: ='Dati Generali CER 1 Sem. 2021'!C60 -> MONTALBANO ELICONA | D60: 2058
A61: 59 | B61: F772 | C61: ='Dati Generali CER 1 Sem. 2021'!C61 -> MOTTA CAMASTRA | D61: 792
A62: 60 | B62: F773 | C62: ='Dati Generali CER 1 Sem. 2021'!C62 -> MOTTA D'AFFERMO | D62: 661
A63: 61 | B63: F848 | C63: ='Dati Generali CER 1 Sem. 2021'!C63 -> NASO | D63: 3530
A64: 62 | B64: F901 | C64: ='Dati Generali CER 1 Sem. 2021'!C64 -> NIZZA DI SICILIA | D64: 3538
A65: 63 | B65: F951 | C65: ='Dati Generali CER 1 Sem. 2021'!C65 -> NOVARA DI SICILIA | D65: 1186
A66: 64 | B66: G036 | C66: ='Dati Generali CER 1 Sem. 2021'!C66 -> OLIVERI | D66: 2057
A67: 65 | B67: G209 | C67: ='Dati Generali CER 1 Sem. 2021'!C67 -> PACE DEL MELA | D67: 6110 | V67: =IF(E67=0,"",SUM(U67,E67,R67,S67,T67)) ->  | W67: =IFERROR(IF(E67<>0,IF(U67=0,0,(U67/V67*100)/100),IF(U67=0,"","")),0) ->  | BI67: =IF(SUM(X67:BH67)=0,"",SUM(X67:BH67)) ->  | BL67: =IF(SUM(Y67:BH67)=0,"",BI67/D67/184) -> 
A68: 66 | B68: G234 | C68: ='Dati Generali CER 1 Sem. 2021'!C68 -> PAGLIARA | D68: 1124 | U68: =IF(BI68=0,"",BI68) ->  | BK68: =IF(E68=0,"",E68/D68/184) -> 
A69: 67 | B69: G377 | C69: ='Dati Generali CER 1 Sem. 2021'!C69 -> PATTI | D69: 12797
A70: 68 | B70: G522 | C70: ='Dati Generali CER 1 Sem. 2021'!C70 -> PETTINEO | D70: 1245 | BJ70: =IF(SUM(E70)=0,"",V70/D70/184) -> 
A71: 69 | B71: G699 | C71: ='Dati Generali CER 1 Sem. 2021'!C71 -> PIRAINO | D71: 3849
A72: 70 | B72: H151 | C72: ='Dati Generali CER 1 Sem. 2021'!C72 -> RACCUJA | D72: 886
A73: 71 | B73: H228 | C73: ='Dati Generali CER 1 Sem. 2021'!C73 -> REITANO | D73: 709
A74: 72 | B74: H405 | C74: ='Dati Generali CER 1 Sem. 2021'!C74 -> ROCCAFIORITA | D74: 180
A75: 73 | B75: H418 | C75: ='Dati Generali CER 1 Sem. 2021'!C75 -> ROCCALUMERA | D75: 3904
A76: 74 | B76: H380 | C76: ='Dati Generali CER 1 Sem. 2021'!C76 -> ROCCAVALDINA | D76: 1004
A77: 75 | B77: H455 | C77: ='Dati Generali CER 1 Sem. 2021'!C77 -> ROCCELLA VALDEMONE | D77: 572
A78: 76 | B78: H479 | C78: ='Dati Generali CER 1 Sem. 2021'!C78 -> RODI' MILICI | D78: 1950
A79: 77 | B79: H519 | C79: ='Dati Generali CER 1 Sem. 2021'!C79 -> ROMETTA | D79: 6480
A80: 78 | B80: I184 | C80: ='Dati Generali CER 1 Sem. 2021'!C80 -> S. DOMENICA VITTORIA | D80: 870
A81: 79 | B81: I370 | C81: ='Dati Generali CER 1 Sem. 2021'!C81 -> S. STEF. DI CAMASTRA | D81: 4445
A82: 80 | B82: I199 | C82: ='Dati Generali CER 1 Sem. 2021'!C82 -> S. AGATA DI MILITELLO | D82: 12139
A83: 81 | B83: I220 | C83: ='Dati Generali CER 1 Sem. 2021'!C83 -> SANTA LUCIA DEL MELA | D83: 4475
A84: 82 | B84: I311 | C84: ='Dati Generali CER 1 Sem. 2021'!C84 -> S. TERESA DI RIVA | D84: 9450
A85: 83 | B85: H842 | C85: ='Dati Generali CER 1 Sem. 2021'!C85 -> S. FILIPPO DEL MELA | D85: 6756
A86: 84 | B86: H8450 | C86: ='Dati Generali CER 1 Sem. 2021'!C86 -> SAN FRATELLO | D86: 3351
A87: 85 | B87: H982 | C87: ='Dati Generali CER 1 Sem. 2021'!C87 -> SAN MARCO D'ALUNZIO | D87: 1817
A88: 86 | B88: I084 | C88: ='Dati Generali CER 1 Sem. 2021'!C88 -> SAN PIER NICETO | D88: 2632
A89: 87 | B89: I086 | C89: ='Dati Generali CER 1 Sem. 2021'!C89 -> SAN PIERO PATTI | D89: 2616
A90: 88 | B90: I147 | C90: ='Dati Generali CER 1 Sem. 2021'!C90 -> S. SALVAT. DI FITALIA | D90: 1159
A91: 89 | B91: I328 | C91: ='Dati Generali CER 1 Sem. 2021'!C91 -> SAN TEODORO | D91: 1248
A92: 90 | B92: I283 | C92: ='Dati Generali CER 1 Sem. 2021'!C92 -> S. ANGELO DI BROLO | D92: 2847
A93: 91 | B93: I215 | C93: ='Dati Generali CER 1 Sem. 2021'!C93 -> S. ALESSIO SICULO | D93: 1469
A94: 92 | B94: I254 | C94: ='Dati Generali CER 1 Sem. 2021'!C94 -> SANTA MARINA SALINA | D94: 845
A95: 93 | B95: I420 | C95: ='Dati Generali CER 1 Sem. 2021'!C95 -> SAPONARA | D95: 3705
A96: 94 | B96: I477 | C96: ='Dati Generali CER 1 Sem. 2021'!C96 -> SAVOCA | D96: 1731
A97: 95 | B97: I492 | C97: ='Dati Generali CER 1 Sem. 2021'!C97 -> SCALETTA ZANCLEA | D97: 1896
A98: 96 | B98: I747 | C98: ='Dati Generali CER 1 Sem. 2021'!C98 -> SINAGRA | D98: 2541
A99: 97 | B99: I881 | C99: ='Dati Generali CER 1 Sem. 2021'!C99 -> SPADAFORA | D99: 4758 | V99: =IF(E99=0,"",SUM(U99,E99,R99,S99,T99)) ->  | W99: =IFERROR(IF(E99<>0,IF(U99=0,0,(U99/V99*100)/100),IF(U99=0,"","")),0) ->  | BI99: =IF(SUM(X99:BH99)=0,"",SUM(X99:BH99)) ->  | BL99: =IF(SUM(Y99:BH99)=0,"",BI99/D99/184) -> 
A100: 98 | B100: L042 | C100: ='Dati Generali CER 1 Sem. 2021'!C100 -> TAORMINA | D100: 10509
A101: 99 | B101: M210 | C101: ='Dati Generali CER 1 Sem. 2021'!C101 -> TERME VIGLIATORE | D101: 7203
A102: 100 | B102: L271 | C102: ='Dati Generali CER 1 Sem. 2021'!C102 -> TORREGROTTA | D102: 7196 | BJ102: =IF(SUM(E102)=0,"",V102/D102/184) -> 
A103: 101 | B103: M286 | C103: ='Dati Generali CER 1 Sem. 2021'!C103 -> TORRENOVA | D103: 4507
A104: 102 | B104: L308 | C104: ='Dati Generali CER 1 Sem. 2021'!C104 -> TORTORICI | D104: 5890
A105: 103 | B105: L431 | C105: ='Dati Generali CER 1 Sem. 2021'!C105 -> TRIPI | D105: 764
A106: 104 | B106: L478 | C106: ='Dati Generali CER 1 Sem. 2021'!C106 -> TUSA | D106: 2691
A107: 105 | B107: L482 | C107: ='Dati Generali CER 1 Sem. 2021'!C107 -> UCRIA | D107: 931
A108: 106 | B108: L561 | C108: ='Dati Generali CER 1 Sem. 2021'!C108 -> VALDINA | D108: 1297
A109: 107 | B109: L735 | C109: ='Dati Generali CER 1 Sem. 2021'!C109 -> VENETICO | D109: 3950
A110: 108 | B110: L950 | C110: ='Dati Generali CER 1 Sem. 2021'!C110 -> VILLAFRANCA TIRRENA | D110: 8234
C111: T O T A L I | D111: =SUM(D3:D110) -> 607363 | E111: =SUM(E3:E110) -> 0 | F111: 0 | G111: 0 | H111: 0 | I111: 0 | J111: 0 | K111: 0 | L111: 0 | M111: 0 | N111: 0 | O111: 0 | P111: 0 | Q111: 0 | R111: 0 | S111: 0 | T111: 0 | U111: 0 | V111: =SUM(U111,E111) -> 0 | W111: =IF(BI111=0,"",(U111/V111*100)/100) ->  | X111: =SUM(X3:X110) -> 0 | Y111: =SUM(Y3:Y110) -> 0 | Z111: =SUM(Z3:Z110) -> 0 | AA111: 0 | AB111: 0 | AC111: 0 | AD111: 0 | AE111: 0 | AF111: 0 | AH111: =SUM(AH3:AH110) -> 0 | AI111: 0 | AJ111: 0 | AK111: 0 | AL111: =SUM(AL3:AL110) -> 0 | AM111: =SUM(AM3:AM110) -> 0 | AN111: 0 | AO111: 0 | AP111: 0 | AQ111: 0 | AR111: 0 | AS111: 0 | AT111: 0 | AU111: 0 | AV111: 0 | AW111: 0 | AX111: 0 | AY111: 0 | AZ111: 0 | BA111: 0 | BB111: 0 | BC111: 0 | BD111: 0 | BE111: 0 | BF111: =SUM(BF3:BF110) -> 0 | BG111: =SUM(BG3:BG110) -> 0 | BH111: 0 | BI111: =SUM(BI3:BI110) -> 0

Sheet Riep. Dati RSU e RD 2 Sem. 2021
B3: CITTA' METROPOLITANA DI MESSINA
B4: DATI RIFIUTI SOLIDI URBANI E RACCOLTA DIFFERENZIATA
B5: SECONDO SEMESTRE ANNO 2021
A6: ='Dati Generali CER 2 Sem. 2021'!A2 -> 0 | B6: COMUNE | C6: QUANTITA' (KG) | D6: QUANTITA' (KG) | E6: PERCENTUALE | F6: RSU+RSA+RD | G6: RSU+RSA | H6: R.D. | I6: ='Dati Generali CER 2 Sem. 2021'!D2 -> ABITANTI AL 30/06/2021
C7: R.S.U. (Cod.200301) | D7: RACCOLTA | E7: RACCOLTA | F7: R.T. (Kg.) | G7: 200301 (kg.) | H7: (Kg.)
C8: PRODOTTI | D8: DIFFERENZIATA | E8: DIFFERENZIATA | F8: Pro Capite/g | G8: RI Pro Capite/g | H8: Pro Capite/g
B9: CTRL + "q" per ordinare in % | D9: CTRL + "w" per Alfabetico
A10: 1 | B10: ='Dati Generali CER 1 Sem. 2021'!C3 -> ACQUEDOLCI | C10: =IF('Dati Generali CER 2 Sem. 2021'!E3="","",'Dati Generali CER 2 Sem. 2021'!E3) ->  | D10: =IF(C10="","",'Dati Generali CER 2 Sem. 2021'!BI3) ->  | E10: ='Dati Generali CER 2 Sem. 2021'!W3 ->  | F10: =IF('Dati Generali CER 2 Sem. 2021'!BJ3="","",'Dati Generali CER 2 Sem. 2021'!BJ3) ->  | G10: =IF('Dati Generali CER 2 Sem. 2021'!BK3="","",'Dati Generali CER 2 Sem. 2021'!BK3) ->  | H10: =IF('Dati Generali CER 2 Sem. 2021'!BL3="","",'Dati Generali CER 2 Sem. 2021'!BL3) ->  | I10: ='Dati Generali CER 2 Sem. 2021'!D3 -> 5584 | J10: =IF('Dati Generali CER 2 Sem. 2021'!BN3="","",'Dati Generali CER 2 Sem. 2021'!BN3) -> 
A11: 2 | B11: ='Dati Generali CER 1 Sem. 2021'!C4 -> ALCARA LI FUSI | C11: =IF('Dati Generali CER 2 Sem. 2021'!E4="","",'Dati Generali CER 2 Sem. 2021'!E4) ->  | D11: =IF(C11="","",'Dati Generali CER 2 Sem. 2021'!BI4) ->  | E11: ='Dati Generali CER 2 Sem. 2021'!W4 ->  | F11: =IF('Dati Generali CER 2 Sem. 2021'!BJ4="","",'Dati Generali CER 2 Sem. 2021'!BJ4) ->  | G11: =IF('Dati Generali CER 2 Sem. 2021'!BK4="","",'Dati Generali CER 2 Sem. 2021'!BK4) ->  | H11: =IF('Dati Generali CER 2 Sem. 2021'!BL4="","",'Dati Generali CER 2 Sem. 2021'!BL4) ->  | I11: ='Dati Generali CER 2 Sem. 2021'!D4 -> 1774 | J11: =IF('Dati Generali CER 2 Sem. 2021'!BN4="","",'Dati Generali CER 2 Sem. 2021'!BN4) -> 
A12: 3 | B12: ='Dati Generali CER 1 Sem. 2021'!C5 -> ALI' | C12: =IF('Dati Generali CER 2 Sem. 2021'!E5="","",'Dati Generali CER 2 Sem. 2021'!E5) ->  | D12: =IF(C12="","",'Dati Generali CER 2 Sem. 2021'!BI5) ->  | E12: ='Dati Generali CER 2 Sem. 2021'!W5 ->  | F12: =IF('Dati Generali CER 2 Sem. 2021'!BJ5="","",'Dati Generali CER 2 Sem. 2021'!BJ5) ->  | G12: =IF('Dati Generali CER 2 Sem. 2021'!BK5="","",'Dati Generali CER 2 Sem. 2021'!BK5) ->  | H12: =IF('Dati Generali CER 2 Sem. 2021'!BL5="","",'Dati Generali CER 2 Sem. 2021'!BL5) ->  | I12: ='Dati Generali CER 2 Sem. 2021'!D5 -> 676 | J12: =IF('Dati Generali CER 2 Sem. 2021'!BN5="","",'Dati Generali CER 2 Sem. 2021'!BN5) -> 
A13: 4 | B13: ='Dati Generali CER 1 Sem. 2021'!C6 -> ALI' TERME | C13: =IF('Dati Generali CER 2 Sem. 2021'!E6="","",'Dati Generali CER 2 Sem. 2021'!E6) ->  | D13: =IF(C13="","",'Dati Generali CER 2 Sem. 2021'!BI6) ->  | E13: ='Dati Generali CER 2 Sem. 2021'!W6 ->  | F13: =IF('Dati Generali CER 2 Sem. 2021'!BJ6="","",'Dati Generali CER 2 Sem. 2021'!BJ6) ->  | G13: =IF('Dati Generali CER 2 Sem. 2021'!BK6="","",'Dati Generali CER 2 Sem. 2021'!BK6) ->  | H13: =IF('Dati Generali CER 2 Sem. 2021'!BL6="","",'Dati Generali CER 2 Sem. 2021'!BL6) ->  | I13: ='Dati Generali CER 2 Sem. 2021'!D6 -> 2385 | J13: =IF('Dati Generali CER 2 Sem. 2021'!BN6="","",'Dati Generali CER 2 Sem. 2021'!BN6) -> 
A14: 5 | B14: ='Dati Generali CER 1 Sem. 2021'!C7 -> ANTILLO | C14: =IF('Dati Generali CER 2 Sem. 2021'!E7="","",'Dati Generali CER 2 Sem. 2021'!E7) ->  | D14: =IF(C14="","",'Dati Generali CER 2 Sem. 2021'!BI7) ->  | E14: ='Dati Generali CER 2 Sem. 2021'!W7 ->  | F14: =IF('Dati Generali CER 2 Sem. 2021'!BJ7="","",'Dati Generali CER 2 Sem. 2021'!BJ7) ->  | G14: =IF('Dati Generali CER 2 Sem. 2021'!BK7="","",'Dati Generali CER 2 Sem. 2021'!BK7) ->  | H14: =IF('Dati Generali CER 2 Sem. 2021'!BL7="","",'Dati Generali CER 2 Sem. 2021'!BL7) ->  | I14: ='Dati Generali CER 2 Sem. 2021'!D7 -> 845 | J14: =IF('Dati Generali CER 2 Sem. 2021'!BN7="","",'Dati Generali CER 2 Sem. 2021'!BN7) -> 
A15: 6 | B15: ='Dati Generali CER 1 Sem. 2021'!C8 -> BARCELLONA P.G. | C15: =IF('Dati Generali CER 2 Sem. 2021'!E8="","",'Dati Generali CER 2 Sem. 2021'!E8) ->  | D15: =IF(C15="","",'Dati Generali CER 2 Sem. 2021'!BI8) ->  | E15: ='Dati Generali CER 2 Sem. 2021'!W8 ->  | F15: =IF('Dati Generali CER 2 Sem. 2021'!BJ8="","",'Dati Generali CER 2 Sem. 2021'!BJ8) ->  | G15: =IF('Dati Generali CER 2 Sem. 2021'!BK8="","",'Dati Generali CER 2 Sem. 2021'!BK8) ->  | H15: =IF('Dati Generali CER 2 Sem. 2021'!BL8="","",'Dati Generali CER 2 Sem. 2021'!BL8) ->  | I15: ='Dati Generali CER 2 Sem. 2021'!D8 -> 40119 | J15: =IF('Dati Generali CER 2 Sem. 2021'!BN8="","",'Dati Generali CER 2 Sem. 2021'!BN8) -> 
A16: 7 | B16: ='Dati Generali CER 1 Sem. 2021'!C9 -> BASICO' | C16: =IF('Dati Generali CER 2 Sem. 2021'!E9="","",'Dati Generali CER 2 Sem. 2021'!E9) ->  | D16: =IF(C16="","",'Dati Generali CER 2 Sem. 2021'!BI9) ->  | E16: ='Dati Generali CER 2 Sem. 2021'!W9 ->  | F16: =IF('Dati Generali CER 2 Sem. 2021'!BJ9="","",'Dati Generali CER 2 Sem. 2021'!BJ9) ->  | G16: =IF('Dati Generali CER 2 Sem. 2021'!BK9="","",'Dati Generali CER 2 Sem. 2021'!BK9) ->  | H16: =IF('Dati Generali CER 2 Sem. 2021'!BL9="","",'Dati Generali CER 2 Sem. 2021'!BL9) ->  | I16: ='Dati Generali CER 2 Sem. 2021'!D9 -> 535 | J16: =IF('Dati Generali CER 2 Sem. 2021'!BN9="","",'Dati Generali CER 2 Sem. 2021'!BN9) -> 
A17: 8 | B17: ='Dati Generali CER 1 Sem. 2021'!C10 -> BROLO | C17: =IF('Dati Generali CER 2 Sem. 2021'!E10="","",'Dati Generali CER 2 Sem. 2021'!E10) ->  | D17: =IF(C17="","",'Dati Generali CER 2 Sem. 2021'!BI10) ->  | E17: ='Dati Generali CER 2 Sem. 2021'!W10 ->  | F17: =IF('Dati Generali CER 2 Sem. 2021'!BJ10="","",'Dati Generali CER 2 Sem. 2021'!BJ10) ->  | G17: =IF('Dati Generali CER 2 Sem. 2021'!BK10="","",'Dati Generali CER 2 Sem. 2021'!BK10) ->  | H17: =IF('Dati Generali CER 2 Sem. 2021'!BL10="","",'Dati Generali CER 2 Sem. 2021'!BL10) ->  | I17: ='Dati Generali CER 2 Sem. 2021'!D10 -> 5771 | J17: =IF('Dati Generali CER 2 Sem. 2021'!BN10="","",'Dati Generali CER 2 Sem. 2021'!BN10) -> 
A18: 9 | B18: ='Dati Generali CER 1 Sem. 2021'!C11 -> CAPIZZI | C18: =IF('Dati Generali CER 2 Sem. 2021'!E11="","",'Dati Generali CER 2 Sem. 2021'!E11) ->  | D18: =IF(C18="","",'Dati Generali CER 2 Sem. 2021'!BI11) ->  | E18: ='Dati Generali CER 2 Sem. 2021'!W11 ->  | F18: =IF('Dati Generali CER 2 Sem. 2021'!BJ11="","",'Dati Generali CER 2 Sem. 2021'!BJ11) ->  | G18: =IF('Dati Generali CER 2 Sem. 2021'!BK11="","",'Dati Generali CER 2 Sem. 2021'!BK11) ->  | H18: =IF('Dati Generali CER 2 Sem. 2021'!BL11="","",'Dati Generali CER 2 Sem. 2021'!BL11) ->  | I18: ='Dati Generali CER 2 Sem. 2021'!D11 -> 2807 | J18: =IF('Dati Generali CER 2 Sem. 2021'!BN11="","",'Dati Generali CER 2 Sem. 2021'!BN11) -> 
A19: 10 | B19: ='Dati Generali CER 1 Sem. 2021'!C12 -> CAPO D'ORLANDO | C19: =IF('Dati Generali CER 2 Sem. 2021'!E12="","",'Dati Generali CER 2 Sem. 2021'!E12) ->  | D19: =IF(C19="","",'Dati Generali CER 2 Sem. 2021'!BI12) ->  | E19: ='Dati Generali CER 2 Sem. 2021'!W12 ->  | F19: =IF('Dati Generali CER 2 Sem. 2021'!BJ12="","",'Dati Generali CER 2 Sem. 2021'!BJ12) ->  | G19: =IF('Dati Generali CER 2 Sem. 2021'!BK12="","",'Dati Generali CER 2 Sem. 2021'!BK12) ->  | H19: =IF('Dati Generali CER 2 Sem. 2021'!BL12="","",'Dati Generali CER 2 Sem. 2021'!BL12) ->  | I19: ='Dati Generali CER 2 Sem. 2021'!D12 -> 13162 | J19: =IF('Dati Generali CER 2 Sem. 2021'!BN12="","",'Dati Generali CER 2 Sem. 2021'!BN12) -> 
A20: 11 | B20: ='Dati Generali CER 1 Sem. 2021'!C13 -> CAPRILEONE | C20: =IF('Dati Generali CER 2 Sem. 2021'!E13="","",'Dati Generali CER 2 Sem. 2021'!E13) ->  | D20: =IF(C20="","",'Dati Generali CER 2 Sem. 2021'!BI13) ->  | E20: ='Dati Generali CER 2 Sem. 2021'!W13 ->  | F20: =IF('Dati Generali CER 2 Sem. 2021'!BJ13="","",'Dati Generali CER 2 Sem. 2021'!BJ13) ->  | G20: =IF('Dati Generali CER 2 Sem. 2021'!BK13="","",'Dati Generali CER 2 Sem. 2021'!BK13) ->  | H20: =IF('Dati Generali CER 2 Sem. 2021'!BL13="","",'Dati Generali CER 2 Sem. 2021'!BL13) ->  | I20: ='Dati Generali CER 2 Sem. 2021'!D13 -> 4367 | J20: =IF('Dati Generali CER 2 Sem. 2021'!BN13="","",'Dati Generali CER 2 Sem. 2021'!BN13) -> 
A21: 12 | B21: ='Dati Generali CER 1 Sem. 2021'!C14 -> CARONIA | C21: =IF('Dati Generali CER 2 Sem. 2021'!E14="","",'Dati Generali CER 2 Sem. 2021'!E14) ->  | D21: =IF(C21="","",'Dati Generali CER 2 Sem. 2021'!BI14) ->  | E21: ='Dati Generali CER 2 Sem. 2021'!W14 ->  | F21: =IF('Dati Generali CER 2 Sem. 2021'!BJ14="","",'Dati Generali CER 2 Sem. 2021'!BJ14) ->  | G21: =IF('Dati Generali CER 2 Sem. 2021'!BK14="","",'Dati Generali CER 2 Sem. 2021'!BK14) ->  | H21: =IF('Dati Generali CER 2 Sem. 2021'!BL14="","",'Dati Generali CER 2 Sem. 2021'!BL14) ->  | I21: ='Dati Generali CER 2 Sem. 2021'!D14 -> 3097 | J21: =IF('Dati Generali CER 2 Sem. 2021'!BN14="","",'Dati Generali CER 2 Sem. 2021'!BN14) -> 
A22: 13 | B22: ='Dati Generali CER 1 Sem. 2021'!C15 -> CASALVECCHIO SICULO | C22: =IF('Dati Generali CER 2 Sem. 2021'!E15="","",'Dati Generali CER 2 Sem. 2021'!E15) ->  | D22: =IF(C22="","",'Dati Generali CER 2 Sem. 2021'!BI15) ->  | E22: ='Dati Generali CER 2 Sem. 2021'!W15 ->  | F22: =IF('Dati Generali CER 2 Sem. 2021'!BJ15="","",'Dati Generali CER 2 Sem. 2021'!BJ15) ->  | G22: =IF('Dati Generali CER 2 Sem. 2021'!BK15="","",'Dati Generali CER 2 Sem. 2021'!BK15) ->  | H22: =IF('Dati Generali CER 2 Sem. 2021'!BL15="","",'Dati Generali CER 2 Sem. 2021'!BL15) ->  | I22: ='Dati Generali CER 2 Sem. 2021'!D15 -> 733 | J22: =IF('Dati Generali CER 2 Sem. 2021'!BN15="","",'Dati Generali CER 2 Sem. 2021'!BN15) -> 
A23: 14 | B23: ='Dati Generali CER 1 Sem. 2021'!C16 -> CASTEL DI LUCIO | C23: =IF('Dati Generali CER 2 Sem. 2021'!E16="","",'Dati Generali CER 2 Sem. 2021'!E16) ->  | D23: =IF(C23="","",'Dati Generali CER 2 Sem. 2021'!BI16) ->  | E23: ='Dati Generali CER 2 Sem. 2021'!W16 ->  | F23: =IF('Dati Generali CER 2 Sem. 2021'!BJ16="","",'Dati Generali CER 2 Sem. 2021'!BJ16) ->  | G23: =IF('Dati Generali CER 2 Sem. 2021'!BK16="","",'Dati Generali CER 2 Sem. 2021'!BK16) ->  | H23: =IF('Dati Generali CER 2 Sem. 2021'!BL16="","",'Dati Generali CER 2 Sem. 2021'!BL16) ->  | I23: ='Dati Generali CER 2 Sem. 2021'!D16 -> 1173 | J23: =IF('Dati Generali CER 2 Sem. 2021'!BN16="","",'Dati Generali CER 2 Sem. 2021'!BN16) -> 
A24: 15 | B24: ='Dati Generali CER 1 Sem. 2021'!C17 -> CASTELL'UMBERTO | C24: =IF('Dati Generali CER 2 Sem. 2021'!E17="","",'Dati Generali CER 2 Sem. 2021'!E17) ->  | D24: =IF(C24="","",'Dati Generali CER 2 Sem. 2021'!BI17) ->  | E24: ='Dati Generali CER 2 Sem. 2021'!W17 ->  | F24: =IF('Dati Generali CER 2 Sem. 2021'!BJ17="","",'Dati Generali CER 2 Sem. 2021'!BJ17) ->  | G24: =IF('Dati Generali CER 2 Sem. 2021'!BK17="","",'Dati Generali CER 2 Sem. 2021'!BK17) ->  | H24: =IF('Dati Generali CER 2 Sem. 2021'!BL17="","",'Dati Generali CER 2 Sem. 2021'!BL17) ->  | I24: ='Dati Generali CER 2 Sem. 2021'!D17 -> 2908 | J24: =IF('Dati Generali CER 2 Sem. 2021'!BN17="","",'Dati Generali CER 2 Sem. 2021'!BN17) -> 
A25: 16 | B25: ='Dati Generali CER 1 Sem. 2021'!C18 -> CASTELMOLA | C25: =IF('Dati Generali CER 2 Sem. 2021'!E18="","",'Dati Generali CER 2 Sem. 2021'!E18) ->  | D25: =IF(C25="","",'Dati Generali CER 2 Sem. 2021'!BI18) ->  | E25: ='Dati Generali CER 2 Sem. 2021'!W18 ->  | F25: =IF('Dati Generali CER 2 Sem. 2021'!BJ18="","",'Dati Generali CER 2 Sem. 2021'!BJ18) ->  | G25: =IF('Dati Generali CER 2 Sem. 2021'!BK18="","",'Dati Generali CER 2 Sem. 2021'!BK18) ->  | H25: =IF('Dati Generali CER 2 Sem. 2021'!BL18="","",'Dati Generali CER 2 Sem. 2021'!BL18) ->  | I25: ='Dati Generali CER 2 Sem. 2021'!D18 -> 1086 | J25: =IF('Dati Generali CER 2 Sem. 2021'!BN18="","",'Dati Generali CER 2 Sem. 2021'!BN18) -> 
A26: 17 | B26: ='Dati Generali CER 1 Sem. 2021'!C19 -> CASTROREALE | C26: =IF('Dati Generali CER 2 Sem. 2021'!E19="","",'Dati Generali CER 2 Sem. 2021'!E19) ->  | D26: =IF(C26="","",'Dati Generali CER 2 Sem. 2021'!BI19) ->  | E26: ='Dati Generali CER 2 Sem. 2021'!W19 ->  | F26: =IF('Dati Generali CER 2 Sem. 2021'!BJ19="","",'Dati Generali CER 2 Sem. 2021'!BJ19) ->  | G26: =IF('Dati Generali CER 2 Sem. 2021'!BK19="","",'Dati Generali CER 2 Sem. 2021'!BK19) ->  | H26: =IF('Dati Generali CER 2 Sem. 2021'!BL19="","",'Dati Generali CER 2 Sem. 2021'!BL19) ->  | I26: ='Dati Generali CER 2 Sem. 2021'!D19 -> 2228 | J26: =IF('Dati Generali CER 2 Sem. 2021'!BN19="","",'Dati Generali CER 2 Sem. 2021'!BN19) -> 
A27: 18 | B27: ='Dati Generali CER 1 Sem. 2021'!C20 -> CESARO' | C27: =IF('Dati Generali CER 2 Sem. 2021'!E20="","",'Dati Generali CER 2 Sem. 2021'!E20) ->  | D27: =IF(C27="","",'Dati Generali CER 2 Sem. 2021'!BI20) ->  | E27: ='Dati Generali CER 2 Sem. 2021'!W20 ->  | F27: =IF('Dati Generali CER 2 Sem. 2021'!BJ20="","",'Dati Generali CER 2 Sem. 2021'!BJ20) ->  | G27: =IF('Dati Generali CER 2 Sem. 2021'!BK20="","",'Dati Generali CER 2 Sem. 2021'!BK20) ->  | H27: =IF('Dati Generali CER 2 Sem. 2021'!BL20="","",'Dati Generali CER 2 Sem. 2021'!BL20) ->  | I27: ='Dati Generali CER 2 Sem. 2021'!D20 -> 2153 | J27: =IF('Dati Generali CER 2 Sem. 2021'!BN20="","",'Dati Generali CER 2 Sem. 2021'!BN20) -> 
A28: 19 | B28: ='Dati Generali CER 1 Sem. 2021'!C21 -> CONDRO' | C28: =IF('Dati Generali CER 2 Sem. 2021'!E21="","",'Dati Generali CER 2 Sem. 2021'!E21) ->  | D28: =IF(C28="","",'Dati Generali CER 2 Sem. 2021'!BI21) ->  | E28: ='Dati Generali CER 2 Sem. 2021'!W21 ->  | F28: =IF('Dati Generali CER 2 Sem. 2021'!BJ21="","",'Dati Generali CER 2 Sem. 2021'!BJ21) ->  | G28: =IF('Dati Generali CER 2 Sem. 2021'!BK21="","",'Dati Generali CER 2 Sem. 2021'!BK21) ->  | H28: =IF('Dati Generali CER 2 Sem. 2021'!BL21="","",'Dati Generali CER 2 Sem. 2021'!BL21) ->  | I28: ='Dati Generali CER 2 Sem. 2021'!D21 -> 435 | J28: =IF('Dati Generali CER 2 Sem. 2021'!BN21="","",'Dati Generali CER 2 Sem. 2021'!BN21) -> 
A29: 20 | B29: ='Dati Generali CER 1 Sem. 2021'!C22 -> FALCONE | C29: =IF('Dati Generali CER 2 Sem. 2021'!E22="","",'Dati Generali CER 2 Sem. 2021'!E22) ->  | D29: =IF(C29="","",'Dati Generali CER 2 Sem. 2021'!BI22) ->  | E29: ='Dati Generali CER 2 Sem. 2021'!W22 ->  | F29: =IF('Dati Generali CER 2 Sem. 2021'!BJ22="","",'Dati Generali CER 2 Sem. 2021'!BJ22) ->  | G29: =IF('Dati Generali CER 2 Sem. 2021'!BK22="","",'Dati Generali CER 2 Sem. 2021'!BK22) ->  | H29: =IF('Dati Generali CER 2 Sem. 2021'!BL22="","",'Dati Generali CER 2 Sem. 2021'!BL22) ->  | I29: ='Dati Generali CER 2 Sem. 2021'!D22 -> 2748 | J29: =IF('Dati Generali CER 2 Sem. 2021'!BN22="","",'Dati Generali CER 2 Sem. 2021'!BN22) -> 
A30: 21 | B30: ='Dati Generali CER 1 Sem. 2021'!C23 -> FICARRA | C30: =IF('Dati Generali CER 2 Sem. 2021'!E23="","",'Dati Generali CER 2 Sem. 2021'!E23) ->  | D30: =IF(C30="","",'Dati Generali CER 2 Sem. 2021'!BI23) ->  | E30: ='Dati Generali CER 2 Sem. 2021'!W23 ->  | F30: =IF('Dati Generali CER 2 Sem. 2021'!BJ23="","",'Dati Generali CER 2 Sem. 2021'!BJ23) ->  | G30: =IF('Dati Generali CER 2 Sem. 2021'!BK23="","",'Dati Generali CER 2 Sem. 2021'!BK23) ->  | H30: =IF('Dati Generali CER 2 Sem. 2021'!BL23="","",'Dati Generali CER 2 Sem. 2021'!BL23) ->  | I30: ='Dati Generali CER 2 Sem. 2021'!D23 -> 1340 | J30: =IF('Dati Generali CER 2 Sem. 2021'!BN23="","",'Dati Generali CER 2 Sem. 2021'!BN23) -> 
A31: 22 | B31: ='Dati Generali CER 1 Sem. 2021'!C24 -> FIUMEDINISI | C31: =IF('Dati Generali CER 2 Sem. 2021'!E24="","",'Dati Generali CER 2 Sem. 2021'!E24) ->  | D31: =IF(C31="","",'Dati Generali CER 2 Sem. 2021'!BI24) ->  | E31: ='Dati Generali CER 2 Sem. 2021'!W24 ->  | F31: =IF('Dati Generali CER 2 Sem. 2021'!BJ24="","",'Dati Generali CER 2 Sem. 2021'!BJ24) ->  | G31: =IF('Dati Generali CER 2 Sem. 2021'!BK24="","",'Dati Generali CER 2 Sem. 2021'!BK24) ->  | H31: =IF('Dati Generali CER 2 Sem. 2021'!BL24="","",'Dati Generali CER 2 Sem. 2021'!BL24) ->  | I31: ='Dati Generali CER 2 Sem. 2021'!D24 -> 1303 | J31: =IF('Dati Generali CER 2 Sem. 2021'!BN24="","",'Dati Generali CER 2 Sem. 2021'!BN24) -> 
A32: 23 | B32: ='Dati Generali CER 1 Sem. 2021'!C25 -> FLORESTA | C32: =IF('Dati Generali CER 2 Sem. 2021'!E25="","",'Dati Generali CER 2 Sem. 2021'!E25) ->  | D32: =IF(C32="","",'Dati Generali CER 2 Sem. 2021'!BI25) ->  | E32: ='Dati Generali CER 2 Sem. 2021'!W25 ->  | F32: =IF('Dati Generali CER 2 Sem. 2021'!BJ25="","",'Dati Generali CER 2 Sem. 2021'!BJ25) ->  | G32: =IF('Dati Generali CER 2 Sem. 2021'!BK25="","",'Dati Generali CER 2 Sem. 2021'!BK25) ->  | H32: =IF('Dati Generali CER 2 Sem. 2021'!BL25="","",'Dati Generali CER 2 Sem. 2021'!BL25) ->  | I32: ='Dati Generali CER 2 Sem. 2021'!D25 -> 467 | J32: =IF('Dati Generali CER 2 Sem. 2021'!BN25="","",'Dati Generali CER 2 Sem. 2021'!BN25) -> 
A33: 24 | B33: ='Dati Generali CER 1 Sem. 2021'!C26 -> FONDACHELLI FANTINA | C33: =IF('Dati Generali CER 2 Sem. 2021'!E26="","",'Dati Generali CER 2 Sem. 2021'!E26) ->  | D33: =IF(C33="","",'Dati Generali CER 2 Sem. 2021'!BI26) ->  | E33: ='Dati Generali CER 2 Sem. 2021'!W26 ->  | F33: =IF('Dati Generali CER 2 Sem. 2021'!BJ26="","",'Dati Generali CER 2 Sem. 2021'!BJ26) ->  | G33: =IF('Dati Generali CER 2 Sem. 2021'!BK26="","",'Dati Generali CER 2 Sem. 2021'!BK26) ->  | H33: =IF('Dati Generali CER 2 Sem. 2021'!BL26="","",'Dati Generali CER 2 Sem. 2021'!BL26) ->  | I33: ='Dati Generali CER 2 Sem. 2021'!D26 -> 999 | J33: =IF('Dati Generali CER 2 Sem. 2021'!BN26="","",'Dati Generali CER 2 Sem. 2021'!BN26) -> 
A34: 25 | B34: ='Dati Generali CER 1 Sem. 2021'!C27 -> FORZA D'AGRO' Apr.-Giu. | C34: =IF('Dati Generali CER 2 Sem. 2021'!E27="","",'Dati Generali CER 2 Sem. 2021'!E27) ->  | D34: =IF(C34="","",'Dati Generali CER 2 Sem. 2021'!BI27) ->  | E34: ='Dati Generali CER 2 Sem. 2021'!W27 ->  | F34: =IF('Dati Generali CER 2 Sem. 2021'!BJ27="","",'Dati Generali CER 2 Sem. 2021'!BJ27) ->  | G34: =IF('Dati Generali CER 2 Sem. 2021'!BK27="","",'Dati Generali CER 2 Sem. 2021'!BK27) ->  | H34: =IF('Dati Generali CER 2 Sem. 2021'!BL27="","",'Dati Generali CER 2 Sem. 2021'!BL27) ->  | I34: ='Dati Generali CER 2 Sem. 2021'!D27 -> 859 | J34: =IF('Dati Generali CER 2 Sem. 2021'!BN27="","",'Dati Generali CER 2 Sem. 2021'!BN27) -> 
A35: 26 | B35: ='Dati Generali CER 1 Sem. 2021'!C28 -> FRANCAVILLA DI SICILIA | C35: =IF('Dati Generali CER 2 Sem. 2021'!E28="","",'Dati Generali CER 2 Sem. 2021'!E28) ->  | D35: =IF(C35="","",'Dati Generali CER 2 Sem. 2021'!BI28) ->  | E35: ='Dati Generali CER 2 Sem. 2021'!W28 ->  | F35: =IF('Dati Generali CER 2 Sem. 2021'!BJ28="","",'Dati Generali CER 2 Sem. 2021'!BJ28) ->  | G35: =IF('Dati Generali CER 2 Sem. 2021'!BK28="","",'Dati Generali CER 2 Sem. 2021'!BK28) ->  | H35: =IF('Dati Generali CER 2 Sem. 2021'!BL28="","",'Dati Generali CER 2 Sem. 2021'!BL28) ->  | I35: ='Dati Generali CER 2 Sem. 2021'!D28 -> 3596 | J35: =IF('Dati Generali CER 2 Sem. 2021'!BN28="","",'Dati Generali CER 2 Sem. 2021'!BN28) -> 
A36: 27 | B36: ='Dati Generali CER 1 Sem. 2021'!C29 -> FRAZZANO' | C36: =IF('Dati Generali CER 2 Sem. 2021'!E29="","",'Dati Generali CER 2 Sem. 2021'!E29) ->  | D36: =IF(C36="","",'Dati Generali CER 2 Sem. 2021'!BI29) ->  | E36: ='Dati Generali CER 2 Sem. 2021'!W29 ->  | F36: =IF('Dati Generali CER 2 Sem. 2021'!BJ29="","",'Dati Generali CER 2 Sem. 2021'!BJ29) ->  | G36: =IF('Dati Generali CER 2 Sem. 2021'!BK29="","",'Dati Generali CER 2 Sem. 2021'!BK29) ->  | H36: =IF('Dati Generali CER 2 Sem. 2021'!BL29="","",'Dati Generali CER 2 Sem. 2021'!BL29) ->  | I36: ='Dati Generali CER 2 Sem. 2021'!D29 -> 590 | J36: =IF('Dati Generali CER 2 Sem. 2021'!BN29="","",'Dati Generali CER 2 Sem. 2021'!BN29) -> 
A37: 28 | B37: ='Dati Generali CER 1 Sem. 2021'!C30 -> FURCI SICULO | C37: =IF('Dati Generali CER 2 Sem. 2021'!E30="","",'Dati Generali CER 2 Sem. 2021'!E30) ->  | D37: =IF(C37="","",'Dati Generali CER 2 Sem. 2021'!BI30) ->  | E37: ='Dati Generali CER 2 Sem. 2021'!W30 ->  | F37: =IF('Dati Generali CER 2 Sem. 2021'!BJ30="","",'Dati Generali CER 2 Sem. 2021'!BJ30) ->  | G37: =IF('Dati Generali CER 2 Sem. 2021'!BK30="","",'Dati Generali CER 2 Sem. 2021'!BK30) ->  | H37: =IF('Dati Generali CER 2 Sem. 2021'!BL30="","",'Dati Generali CER 2 Sem. 2021'!BL30) ->  | I37: ='Dati Generali CER 2 Sem. 2021'!D30 -> 3203 | J37: =IF('Dati Generali CER 2 Sem. 2021'!BN30="","",'Dati Generali CER 2 Sem. 2021'!BN30) -> 
A38: 29 | B38: ='Dati Generali CER 1 Sem. 2021'!C31 -> FURNARI | C38: =IF('Dati Generali CER 2 Sem. 2021'!E31="","",'Dati Generali CER 2 Sem. 2021'!E31) ->  | D38: =IF(C38="","",'Dati Generali CER 2 Sem. 2021'!BI31) ->  | E38: ='Dati Generali CER 2 Sem. 2021'!W31 ->  | F38: =IF('Dati Generali CER 2 Sem. 2021'!BJ31="","",'Dati Generali CER 2 Sem. 2021'!BJ31) ->  | G38: =IF('Dati Generali CER 2 Sem. 2021'!BK31="","",'Dati Generali CER 2 Sem. 2021'!BK31) ->  | H38: =IF('Dati Generali CER 2 Sem. 2021'!BL31="","",'Dati Generali CER 2 Sem. 2021'!BL31) ->  | I38: ='Dati Generali CER 2 Sem. 2021'!D31 -> 3887 | J38: =IF('Dati Generali CER 2 Sem. 2021'!BN31="","",'Dati Generali CER 2 Sem. 2021'!BN31) -> 
A39: 30 | B39: ='Dati Generali CER 1 Sem. 2021'!C32 -> GAGGI | C39: =IF('Dati Generali CER 2 Sem. 2021'!E32="","",'Dati Generali CER 2 Sem. 2021'!E32) ->  | D39: =IF(C39="","",'Dati Generali CER 2 Sem. 2021'!BI32) ->  | E39: ='Dati Generali CER 2 Sem. 2021'!W32 ->  | F39: =IF('Dati Generali CER 2 Sem. 2021'!BJ32="","",'Dati Generali CER 2 Sem. 2021'!BJ32) ->  | G39: =IF('Dati Generali CER 2 Sem. 2021'!BK32="","",'Dati Generali CER 2 Sem. 2021'!BK32) ->  | H39: =IF('Dati Generali CER 2 Sem. 2021'!BL32="","",'Dati Generali CER 2 Sem. 2021'!BL32) ->  | I39: ='Dati Generali CER 2 Sem. 2021'!D32 -> 3132 | J39: =IF('Dati Generali CER 2 Sem. 2021'!BN32="","",'Dati Generali CER 2 Sem. 2021'!BN32) -> 
A40: 31 | B40: ='Dati Generali CER 1 Sem. 2021'!C33 -> GALATI MAMERTINO | C40: =IF('Dati Generali CER 2 Sem. 2021'!E33="","",'Dati Generali CER 2 Sem. 2021'!E33) ->  | D40: =IF(C40="","",'Dati Generali CER 2 Sem. 2021'!BI33) ->  | E40: ='Dati Generali CER 2 Sem. 2021'!W33 ->  | F40: =IF('Dati Generali CER 2 Sem. 2021'!BJ33="","",'Dati Generali CER 2 Sem. 2021'!BJ33) ->  | G40: =IF('Dati Generali CER 2 Sem. 2021'!BK33="","",'Dati Generali CER 2 Sem. 2021'!BK33) ->  | H40: =IF('Dati Generali CER 2 Sem. 2021'!BL33="","",'Dati Generali CER 2 Sem. 2021'!BL33) ->  | I40: ='Dati Generali CER 2 Sem. 2021'!D33 -> 2360 | J40: =IF('Dati Generali CER 2 Sem. 2021'!BN33="","",'Dati Generali CER 2 Sem. 2021'!BN33) -> 
A41: 32 | B41: ='Dati Generali CER 1 Sem. 2021'!C34 -> GALLODORO | C41: =IF('Dati Generali CER 2 Sem. 2021'!E34="","",'Dati Generali CER 2 Sem. 2021'!E34) ->  | D41: =IF(C41="","",'Dati Generali CER 2 Sem. 2021'!BI34) ->  | E41: ='Dati Generali CER 2 Sem. 2021'!W34 ->  | F41: =IF('Dati Generali CER 2 Sem. 2021'!BJ34="","",'Dati Generali CER 2 Sem. 2021'!BJ34) ->  | G41: =IF('Dati Generali CER 2 Sem. 2021'!BK34="","",'Dati Generali CER 2 Sem. 2021'!BK34) ->  | H41: =IF('Dati Generali CER 2 Sem. 2021'!BL34="","",'Dati Generali CER 2 Sem. 2021'!BL34) ->  | I41: ='Dati Generali CER 2 Sem. 2021'!D34 -> 339 | J41: =IF('Dati Generali CER 2 Sem. 2021'!BN34="","",'Dati Generali CER 2 Sem. 2021'!BN34) -> 
A42: 33 | B42: ='Dati Generali CER 1 Sem. 2021'!C35 -> GIARDINI NAXOS | C42: =IF('Dati Generali CER 2 Sem. 2021'!E35="","",'Dati Generali CER 2 Sem. 2021'!E35) ->  | D42: =IF(C42="","",'Dati Generali CER 2 Sem. 2021'!BI35) ->  | E42: ='Dati Generali CER 2 Sem. 2021'!W35 ->  | F42: =IF('Dati Generali CER 2 Sem. 2021'!BJ35="","",'Dati Generali CER 2 Sem. 2021'!BJ35) ->  | G42: =IF('Dati Generali CER 2 Sem. 2021'!BK35="","",'Dati Generali CER 2 Sem. 2021'!BK35) ->  | H42: =IF('Dati Generali CER 2 Sem. 2021'!BL35="","",'Dati Generali CER 2 Sem. 2021'!BL35) ->  | I42: ='Dati Generali CER 2 Sem. 2021'!D35 -> 9176 | J42: =IF('Dati Generali CER 2 Sem. 2021'!BN35="","",'Dati Generali CER 2 Sem. 2021'!BN35) -> 
A43: 34 | B43: ='Dati Generali CER 1 Sem. 2021'!C36 -> GIOIOSA MAREA | C43: =IF('Dati Generali CER 2 Sem. 2021'!E36="","",'Dati Generali CER 2 Sem. 2021'!E36) ->  | D43: =IF(C43="","",'Dati Generali CER 2 Sem. 2021'!BI36) ->  | E43: ='Dati Generali CER 2 Sem. 2021'!W36 ->  | F43: =IF('Dati Generali CER 2 Sem. 2021'!BJ36="","",'Dati Generali CER 2 Sem. 2021'!BJ36) ->  | G43: =IF('Dati Generali CER 2 Sem. 2021'!BK36="","",'Dati Generali CER 2 Sem. 2021'!BK36) ->  | H43: =IF('Dati Generali CER 2 Sem. 2021'!BL36="","",'Dati Generali CER 2 Sem. 2021'!BL36) ->  | I43: ='Dati Generali CER 2 Sem. 2021'!D36 -> 6815 | J43: =IF('Dati Generali CER 2 Sem. 2021'!BN36="","",'Dati Generali CER 2 Sem. 2021'!BN36) -> 
A44: 35 | B44: ='Dati Generali CER 1 Sem. 2021'!C37 -> GRANITI | C44: =IF('Dati Generali CER 2 Sem. 2021'!E37="","",'Dati Generali CER 2 Sem. 2021'!E37) ->  | D44: =IF(C44="","",'Dati Generali CER 2 Sem. 2021'!BI37) ->  | E44: ='Dati Generali CER 2 Sem. 2021'!W37 ->  | F44: =IF('Dati Generali CER 2 Sem. 2021'!BJ37="","",'Dati Generali CER 2 Sem. 2021'!BJ37) ->  | G44: =IF('Dati Generali CER 2 Sem. 2021'!BK37="","",'Dati Generali CER 2 Sem. 2021'!BK37) ->  | H44: =IF('Dati Generali CER 2 Sem. 2021'!BL37="","",'Dati Generali CER 2 Sem. 2021'!BL37) ->  | I44: ='Dati Generali CER 2 Sem. 2021'!D37 -> 1447 | J44: =IF('Dati Generali CER 2 Sem. 2021'!BN37="","",'Dati Generali CER 2 Sem. 2021'!BN37) -> 
A45: 36 | B45: ='Dati Generali CER 1 Sem. 2021'!C38 -> GUALTIERI SICAMINO | C45: =IF('Dati Generali CER 2 Sem. 2021'!E38="","",'Dati Generali CER 2 Sem. 2021'!E38) ->  | D45: =IF(C45="","",'Dati Generali CER 2 Sem. 2021'!BI38) ->  | E45: ='Dati Generali CER 2 Sem. 2021'!W38 ->  | F45: =IF('Dati Generali CER 2 Sem. 2021'!BJ38="","",'Dati Generali CER 2 Sem. 2021'!BJ38) ->  | G45: =IF('Dati Generali CER 2 Sem. 2021'!BK38="","",'Dati Generali CER 2 Sem. 2021'!BK38) ->  | H45: =IF('Dati Generali CER 2 Sem. 2021'!BL38="","",'Dati Generali CER 2 Sem. 2021'!BL38) ->  | I45: ='Dati Generali CER 2 Sem. 2021'!D38 -> 1619 | J45: =IF('Dati Generali CER 2 Sem. 2021'!BN38="","",'Dati Generali CER 2 Sem. 2021'!BN38) -> 
A46: 37 | B46: ='Dati Generali CER 1 Sem. 2021'!C39 -> ITALA | C46: =IF('Dati Generali CER 2 Sem. 2021'!E39="","",'Dati Generali CER 2 Sem. 2021'!E39) ->  | D46: =IF(C46="","",'Dati Generali CER 2 Sem. 2021'!BI39) ->  | E46: ='Dati Generali CER 2 Sem. 2021'!W39 ->  | F46: =IF('Dati Generali CER 2 Sem. 2021'!BJ39="","",'Dati Generali CER 2 Sem. 2021'!BJ39) ->  | G46: =IF('Dati Generali CER 2 Sem. 2021'!BK39="","",'Dati Generali CER 2 Sem. 2021'!BK39) ->  | H46: =IF('Dati Generali CER 2 Sem. 2021'!BL39="","",'Dati Generali CER 2 Sem. 2021'!BL39) ->  | I46: ='Dati Generali CER 2 Sem. 2021'!D39 -> 1500 | J46: =IF('Dati Generali CER 2 Sem. 2021'!BN39="","",'Dati Generali CER 2 Sem. 2021'!BN39) -> 
A47: 38 | B47: ='Dati Generali CER 1 Sem. 2021'!C40 -> LENI | C47: =IF('Dati Generali CER 2 Sem. 2021'!E40="","",'Dati Generali CER 2 Sem. 2021'!E40) ->  | D47: =IF(C47="","",'Dati Generali CER 2 Sem. 2021'!BI40) ->  | E47: ='Dati Generali CER 2 Sem. 2021'!W40 ->  | F47: =IF('Dati Generali CER 2 Sem. 2021'!BJ40="","",'Dati Generali CER 2 Sem. 2021'!BJ40) ->  | G47: =IF('Dati Generali CER 2 Sem. 2021'!BK40="","",'Dati Generali CER 2 Sem. 2021'!BK40) ->  | H47: =IF('Dati Generali CER 2 Sem. 2021'!BL40="","",'Dati Generali CER 2 Sem. 2021'!BL40) ->  | I47: ='Dati Generali CER 2 Sem. 2021'!D40 -> 678 | J47: =IF('Dati Generali CER 2 Sem. 2021'!BN40="","",'Dati Generali CER 2 Sem. 2021'!BN40) -> 
A48: 39 | B48: ='Dati Generali CER 1 Sem. 2021'!C41 -> LETOJANNI | C48: =IF('Dati Generali CER 2 Sem. 2021'!E41="","",'Dati Generali CER 2 Sem. 2021'!E41) ->  | D48: =IF(C48="","",'Dati Generali CER 2 Sem. 2021'!BI41) ->  | E48: ='Dati Generali CER 2 Sem. 2021'!W41 ->  | F48: =IF('Dati Generali CER 2 Sem. 2021'!BJ41="","",'Dati Generali CER 2 Sem. 2021'!BJ41) ->  | G48: =IF('Dati Generali CER 2 Sem. 2021'!BK41="","",'Dati Generali CER 2 Sem. 2021'!BK41) ->  | H48: =IF('Dati Generali CER 2 Sem. 2021'!BL41="","",'Dati Generali CER 2 Sem. 2021'!BL41) ->  | I48: ='Dati Generali CER 2 Sem. 2021'!D41 -> 2750 | J48: =IF('Dati Generali CER 2 Sem. 2021'!BN41="","",'Dati Generali CER 2 Sem. 2021'!BN41) -> 
A49: 40 | B49: ='Dati Generali CER 1 Sem. 2021'!C42 -> LIBRIZZI | C49: =IF('Dati Generali CER 2 Sem. 2021'!E42="","",'Dati Generali CER 2 Sem. 2021'!E42) ->  | D49: =IF(C49="","",'Dati Generali CER 2 Sem. 2021'!BI42) ->  | E49: ='Dati Generali CER 2 Sem. 2021'!W42 ->  | F49: =IF('Dati Generali CER 2 Sem. 2021'!BJ42="","",'Dati Generali CER 2 Sem. 2021'!BJ42) ->  | G49: =IF('Dati Generali CER 2 Sem. 2021'!BK42="","",'Dati Generali CER 2 Sem. 2021'!BK42) ->  | H49: =IF('Dati Generali CER 2 Sem. 2021'!BL42="","",'Dati Generali CER 2 Sem. 2021'!BL42) ->  | I49: ='Dati Generali CER 2 Sem. 2021'!D42 -> 1585 | J49: =IF('Dati Generali CER 2 Sem. 2021'!BN42="","",'Dati Generali CER 2 Sem. 2021'!BN42) -> 
A50: 41 | B50: ='Dati Generali CER 1 Sem. 2021'!C43 -> LIMINA | C50: =IF('Dati Generali CER 2 Sem. 2021'!E43="","",'Dati Generali CER 2 Sem. 2021'!E43) ->  | D50: =IF(C50="","",'Dati Generali CER 2 Sem. 2021'!BI43) ->  | E50: ='Dati Generali CER 2 Sem. 2021'!W43 ->  | F50: =IF('Dati Generali CER 2 Sem. 2021'!BJ43="","",'Dati Generali CER 2 Sem. 2021'!BJ43) ->  | G50: =IF('Dati Generali CER 2 Sem. 2021'!BK43="","",'Dati Generali CER 2 Sem. 2021'!BK43) ->  | H50: =IF('Dati Generali CER 2 Sem. 2021'!BL43="","",'Dati Generali CER 2 Sem. 2021'!BL43) ->  | I50: ='Dati Generali CER 2 Sem. 2021'!D43 -> 723 | J50: =IF('Dati Generali CER 2 Sem. 2021'!BN43="","",'Dati Generali CER 2 Sem. 2021'!BN43) -> 
A51: 42 | B51: ='Dati Generali CER 1 Sem. 2021'!C44 -> LIPARI | C51: =IF('Dati Generali CER 2 Sem. 2021'!E44="","",'Dati Generali CER 2 Sem. 2021'!E44) ->  | D51: =IF(C51="","",'Dati Generali CER 2 Sem. 2021'!BI44) ->  | E51: ='Dati Generali CER 2 Sem. 2021'!W44 ->  | F51: =IF('Dati Generali CER 2 Sem. 2021'!BJ44="","",'Dati Generali CER 2 Sem. 2021'!BJ44) ->  | G51: =IF('Dati Generali CER 2 Sem. 2021'!BK44="","",'Dati Generali CER 2 Sem. 2021'!BK44) ->  | H51: =IF('Dati Generali CER 2 Sem. 2021'!BL44="","",'Dati Generali CER 2 Sem. 2021'!BL44) ->  | I51: ='Dati Generali CER 2 Sem. 2021'!D44 -> 12433 | J51: =IF('Dati Generali CER 2 Sem. 2021'!BN44="","",'Dati Generali CER 2 Sem. 2021'!BN44) -> 
A52: 43 | B52: ='Dati Generali CER 1 Sem. 2021'!C45 -> LONGI | C52: =IF('Dati Generali CER 2 Sem. 2021'!E45="","",'Dati Generali CER 2 Sem. 2021'!E45) ->  | D52: =IF(C52="","",'Dati Generali CER 2 Sem. 2021'!BI45) ->  | E52: ='Dati Generali CER 2 Sem. 2021'!W45 ->  | F52: =IF('Dati Generali CER 2 Sem. 2021'!BJ45="","",'Dati Generali CER 2 Sem. 2021'!BJ45) ->  | G52: =IF('Dati Generali CER 2 Sem. 2021'!BK45="","",'Dati Generali CER 2 Sem. 2021'!BK45) ->  | H52: =IF('Dati Generali CER 2 Sem. 2021'!BL45="","",'Dati Generali CER 2 Sem. 2021'!BL45) ->  | I52: ='Dati Generali CER 2 Sem. 2021'!D45 -> 1367 | J52: =IF('Dati Generali CER 2 Sem. 2021'!BN45="","",'Dati Generali CER 2 Sem. 2021'!BN45) -> 
A53: 44 | B53: ='Dati Generali CER 1 Sem. 2021'!C46 -> MALFA | C53: =IF('Dati Generali CER 2 Sem. 2021'!E46="","",'Dati Generali CER 2 Sem. 2021'!E46) ->  | D53: =IF(C53="","",'Dati Generali CER 2 Sem. 2021'!BI46) ->  | E53: ='Dati Generali CER 2 Sem. 2021'!W46 ->  | F53: =IF('Dati Generali CER 2 Sem. 2021'!BJ46="","",'Dati Generali CER 2 Sem. 2021'!BJ46) ->  | G53: =IF('Dati Generali CER 2 Sem. 2021'!BK46="","",'Dati Generali CER 2 Sem. 2021'!BK46) ->  | H53: =IF('Dati Generali CER 2 Sem. 2021'!BL46="","",'Dati Generali CER 2 Sem. 2021'!BL46) ->  | I53: ='Dati Generali CER 2 Sem. 2021'!D46 -> 975 | J53: =IF('Dati Generali CER 2 Sem. 2021'!BN46="","",'Dati Generali CER 2 Sem. 2021'!BN46) -> 
A54: 45 | B54: ='Dati Generali CER 1 Sem. 2021'!C47 -> MALVAGNA | C54: =IF('Dati Generali CER 2 Sem. 2021'!E47="","",'Dati Generali CER 2 Sem. 2021'!E47) ->  | D54: =IF(C54="","",'Dati Generali CER 2 Sem. 2021'!BI47) ->  | E54: ='Dati Generali CER 2 Sem. 2021'!W47 ->  | F54: =IF('Dati Generali CER 2 Sem. 2021'!BJ47="","",'Dati Generali CER 2 Sem. 2021'!BJ47) ->  | G54: =IF('Dati Generali CER 2 Sem. 2021'!BK47="","",'Dati Generali CER 2 Sem. 2021'!BK47) ->  | H54: =IF('Dati Generali CER 2 Sem. 2021'!BL47="","",'Dati Generali CER 2 Sem. 2021'!BL47) ->  | I54: ='Dati Generali CER 2 Sem. 2021'!D47 -> 650 | J54: =IF('Dati Generali CER 2 Sem. 2021'!BN47="","",'Dati Generali CER 2 Sem. 2021'!BN47) -> 
A55: 46 | B55: ='Dati Generali CER 1 Sem. 2021'!C48 -> MANDANICI | C55: =IF('Dati Generali CER 2 Sem. 2021'!E48="","",'Dati Generali CER 2 Sem. 2021'!E48) ->  | D55: =IF(C55="","",'Dati Generali CER 2 Sem. 2021'!BI48) ->  | E55: ='Dati Generali CER 2 Sem. 2021'!W48 ->  | F55: =IF('Dati Generali CER 2 Sem. 2021'!BJ48="","",'Dati Generali CER 2 Sem. 2021'!BJ48) ->  | G55: =IF('Dati Generali CER 2 Sem. 2021'!BK48="","",'Dati Generali CER 2 Sem. 2021'!BK48) ->  | H55: =IF('Dati Generali CER 2 Sem. 2021'!BL48="","",'Dati Generali CER 2 Sem. 2021'!BL48) ->  | I55: ='Dati Generali CER 2 Sem. 2021'!D48 -> 544 | J55: =IF('Dati Generali CER 2 Sem. 2021'!BN48="","",'Dati Generali CER 2 Sem. 2021'!BN48) -> 
A56: 47 | B56: ='Dati Generali CER 1 Sem. 2021'!C49 -> MAZZARRA' S. ANDREA | C56: =IF('Dati Generali CER 2 Sem. 2021'!E49="","",'Dati Generali CER 2 Sem. 2021'!E49) ->  | D56: =IF(C56="","",'Dati Generali CER 2 Sem. 2021'!BI49) ->  | E56: ='Dati Generali CER 2 Sem. 2021'!W49 ->  | F56: =IF('Dati Generali CER 2 Sem. 2021'!BJ49="","",'Dati Generali CER 2 Sem. 2021'!BJ49) ->  | G56: =IF('Dati Generali CER 2 Sem. 2021'!BK49="","",'Dati Generali CER 2 Sem. 2021'!BK49) ->  | H56: =IF('Dati Generali CER 2 Sem. 2021'!BL49="","",'Dati Generali CER 2 Sem. 2021'!BL49) ->  | I56: ='Dati Generali CER 2 Sem. 2021'!D49 -> 1405 | J56: =IF('Dati Generali CER 2 Sem. 2021'!BN49="","",'Dati Generali CER 2 Sem. 2021'!BN49) -> 
A57: 48 | B57: ='Dati Generali CER 1 Sem. 2021'!C50 -> MERI' | C57: =IF('Dati Generali CER 2 Sem. 2021'!E50="","",'Dati Generali CER 2 Sem. 2021'!E50) ->  | D57: =IF(C57="","",'Dati Generali CER 2 Sem. 2021'!BI50) ->  | E57: ='Dati Generali CER 2 Sem. 2021'!W50 ->  | F57: =IF('Dati Generali CER 2 Sem. 2021'!BJ50="","",'Dati Generali CER 2 Sem. 2021'!BJ50) ->  | G57: =IF('Dati Generali CER 2 Sem. 2021'!BK50="","",'Dati Generali CER 2 Sem. 2021'!BK50) ->  | H57: =IF('Dati Generali CER 2 Sem. 2021'!BL50="","",'Dati Generali CER 2 Sem. 2021'!BL50) ->  | I57: ='Dati Generali CER 2 Sem. 2021'!D50 -> 2358 | J57: =IF('Dati Generali CER 2 Sem. 2021'!BN50="","",'Dati Generali CER 2 Sem. 2021'!BN50) -> 
A58: 49 | B58: ='Dati Generali CER 1 Sem. 2021'!C51 -> MESSINA | C58: =IF('Dati Generali CER 2 Sem. 2021'!E51="","",'Dati Generali CER 2 Sem. 2021'!E51) ->  | D58: =IF(C58="","",'Dati Generali CER 2 Sem. 2021'!BI51) ->  | E58: ='Dati Generali CER 2 Sem. 2021'!W51 ->  | F58: =IF('Dati Generali CER 2 Sem. 2021'!BJ51="","",'Dati Generali CER 2 Sem. 2021'!BJ51) ->  | G58: =IF('Dati Generali CER 2 Sem. 2021'!BK51="","",'Dati Generali CER 2 Sem. 2021'!BK51) ->  | H58: =IF('Dati Generali CER 2 Sem. 2021'!BL51="","",'Dati Generali CER 2 Sem. 2021'!BL51) ->  | I58: ='Dati Generali CER 2 Sem. 2021'!D51 -> 224445 | J58: =IF('Dati Generali CER 2 Sem. 2021'!BN51="","",'Dati Generali CER 2 Sem. 2021'!BN51) -> 
A59: 50 | B59: ='Dati Generali CER 1 Sem. 2021'!C52 -> MILAZZO | C59: =IF('Dati Generali CER 2 Sem. 2021'!E52="","",'Dati Generali CER 2 Sem. 2021'!E52) ->  | D59: =IF(C59="","",'Dati Generali CER 2 Sem. 2021'!BI52) ->  | E59: ='Dati Generali CER 2 Sem. 2021'!W52 ->  | F59: =IF('Dati Generali CER 2 Sem. 2021'!BJ52="","",'Dati Generali CER 2 Sem. 2021'!BJ52) ->  | G59: =IF('Dati Generali CER 2 Sem. 2021'!BK52="","",'Dati Generali CER 2 Sem. 2021'!BK52) ->  | H59: =IF('Dati Generali CER 2 Sem. 2021'!BL52="","",'Dati Generali CER 2 Sem. 2021'!BL52) ->  | I59: ='Dati Generali CER 2 Sem. 2021'!D52 -> 29831 | J59: =IF('Dati Generali CER 2 Sem. 2021'!BN52="","",'Dati Generali CER 2 Sem. 2021'!BN52) -> 
A60: 51 | B60: ='Dati Generali CER 1 Sem. 2021'!C53 -> MILITELLO ROSMARINO | C60: =IF('Dati Generali CER 2 Sem. 2021'!E53="","",'Dati Generali CER 2 Sem. 2021'!E53) ->  | D60: =IF(C60="","",'Dati Generali CER 2 Sem. 2021'!BI53) ->  | E60: ='Dati Generali CER 2 Sem. 2021'!W53 ->  | F60: =IF('Dati Generali CER 2 Sem. 2021'!BJ53="","",'Dati Generali CER 2 Sem. 2021'!BJ53) ->  | G60: =IF('Dati Generali CER 2 Sem. 2021'!BK53="","",'Dati Generali CER 2 Sem. 2021'!BK53) ->  | H60: =IF('Dati Generali CER 2 Sem. 2021'!BL53="","",'Dati Generali CER 2 Sem. 2021'!BL53) ->  | I60: ='Dati Generali CER 2 Sem. 2021'!D53 -> 1203 | J60: =IF('Dati Generali CER 2 Sem. 2021'!BN53="","",'Dati Generali CER 2 Sem. 2021'!BN53) -> 
A61: 52 | B61: ='Dati Generali CER 1 Sem. 2021'!C54 -> MIRTO | C61: =IF('Dati Generali CER 2 Sem. 2021'!E54="","",'Dati Generali CER 2 Sem. 2021'!E54) ->  | D61: =IF(C61="","",'Dati Generali CER 2 Sem. 2021'!BI54) ->  | E61: ='Dati Generali CER 2 Sem. 2021'!W54 ->  | F61: =IF('Dati Generali CER 2 Sem. 2021'!BJ54="","",'Dati Generali CER 2 Sem. 2021'!BJ54) ->  | G61: =IF('Dati Generali CER 2 Sem. 2021'!BK54="","",'Dati Generali CER 2 Sem. 2021'!BK54) ->  | H61: =IF('Dati Generali CER 2 Sem. 2021'!BL54="","",'Dati Generali CER 2 Sem. 2021'!BL54) ->  | I61: ='Dati Generali CER 2 Sem. 2021'!D54 -> 915 | J61: =IF('Dati Generali CER 2 Sem. 2021'!BN54="","",'Dati Generali CER 2 Sem. 2021'!BN54) -> 
A62: 53 | B62: ='Dati Generali CER 1 Sem. 2021'!C55 -> MISTRETTA | C62: =IF('Dati Generali CER 2 Sem. 2021'!E55="","",'Dati Generali CER 2 Sem. 2021'!E55) ->  | D62: =IF(C62="","",'Dati Generali CER 2 Sem. 2021'!BI55) ->  | E62: ='Dati Generali CER 2 Sem. 2021'!W55 ->  | F62: =IF('Dati Generali CER 2 Sem. 2021'!BJ55="","",'Dati Generali CER 2 Sem. 2021'!BJ55) ->  | G62: =IF('Dati Generali CER 2 Sem. 2021'!BK55="","",'Dati Generali CER 2 Sem. 2021'!BK55) ->  | H62: =IF('Dati Generali CER 2 Sem. 2021'!BL55="","",'Dati Generali CER 2 Sem. 2021'!BL55) ->  | I62: ='Dati Generali CER 2 Sem. 2021'!D55 -> 4486 | J62: =IF('Dati Generali CER 2 Sem. 2021'!BN55="","",'Dati Generali CER 2 Sem. 2021'!BN55) -> 
A63: 54 | B63: ='Dati Generali CER 1 Sem. 2021'!C56 -> MOJO ALCANTARA | C63: =IF('Dati Generali CER 2 Sem. 2021'!E56="","",'Dati Generali CER 2 Sem. 2021'!E56) ->  | D63: =IF(C63="","",'Dati Generali CER 2 Sem. 2021'!BI56) ->  | E63: ='Dati Generali CER 2 Sem. 2021'!W56 ->  | F63: =IF('Dati Generali CER 2 Sem. 2021'!BJ56="","",'Dati Generali CER 2 Sem. 2021'!BJ56) ->  | G63: =IF('Dati Generali CER 2 Sem. 2021'!BK56="","",'Dati Generali CER 2 Sem. 2021'!BK56) ->  | H63: =IF('Dati Generali CER 2 Sem. 2021'!BL56="","",'Dati Generali CER 2 Sem. 2021'!BL56) ->  | I63: ='Dati Generali CER 2 Sem. 2021'!D56 -> 677 | J63: =IF('Dati Generali CER 2 Sem. 2021'!BN56="","",'Dati Generali CER 2 Sem. 2021'!BN56) -> 
A64: 55 | B64: ='Dati Generali CER 1 Sem. 2021'!C57 -> MONFORTE S. GIORGIO | C64: =IF('Dati Generali CER 2 Sem. 2021'!E57="","",'Dati Generali CER 2 Sem. 2021'!E57) ->  | D64: =IF(C64="","",'Dati Generali CER 2 Sem. 2021'!BI57) ->  | E64: ='Dati Generali CER 2 Sem. 2021'!W57 ->  | F64: =IF('Dati Generali CER 2 Sem. 2021'!BJ57="","",'Dati Generali CER 2 Sem. 2021'!BJ57) ->  | G64: =IF('Dati Generali CER 2 Sem. 2021'!BK57="","",'Dati Generali CER 2 Sem. 2021'!BK57) ->  | H64: =IF('Dati Generali CER 2 Sem. 2021'!BL57="","",'Dati Generali CER 2 Sem. 2021'!BL57) ->  | I64: ='Dati Generali CER 2 Sem. 2021'!D57 -> 2587 | J64: =IF('Dati Generali CER 2 Sem. 2021'!BN57="","",'Dati Generali CER 2 Sem. 2021'!BN57) -> 
A65: 56 | B65: ='Dati Generali CER 1 Sem. 2021'!C58 -> MONGIUFFI MELIA | C65: =IF('Dati Generali CER 2 Sem. 2021'!E58="","",'Dati Generali CER 2 Sem. 2021'!E58) ->  | D65: =IF(C65="","",'Dati Generali CER 2 Sem. 2021'!BI58) ->  | E65: ='Dati Generali CER 2 Sem. 2021'!W58 ->  | F65: =IF('Dati Generali CER 2 Sem. 2021'!BJ58="","",'Dati Generali CER 2 Sem. 2021'!BJ58) ->  | G65: =IF('Dati Generali CER 2 Sem. 2021'!BK58="","",'Dati Generali CER 2 Sem. 2021'!BK58) ->  | H65: =IF('Dati Generali CER 2 Sem. 2021'!BL58="","",'Dati Generali CER 2 Sem. 2021'!BL58) ->  | I65: ='Dati Generali CER 2 Sem. 2021'!D58 -> 538 | J65: =IF('Dati Generali CER 2 Sem. 2021'!BN58="","",'Dati Generali CER 2 Sem. 2021'!BN58) -> 
A66: 57 | B66: ='Dati Generali CER 1 Sem. 2021'!C59 -> MONTAGNAREALE | C66: =IF('Dati Generali CER 2 Sem. 2021'!E59="","",'Dati Generali CER 2 Sem. 2021'!E59) ->  | D66: =IF(C66="","",'Dati Generali CER 2 Sem. 2021'!BI59) ->  | E66: ='Dati Generali CER 2 Sem. 2021'!W59 ->  | F66: =IF('Dati Generali CER 2 Sem. 2021'!BJ59="","",'Dati Generali CER 2 Sem. 2021'!BJ59) ->  | G66: =IF('Dati Generali CER 2 Sem. 2021'!BK59="","",'Dati Generali CER 2 Sem. 2021'!BK59) ->  | H66: =IF('Dati Generali CER 2 Sem. 2021'!BL59="","",'Dati Generali CER 2 Sem. 2021'!BL59) ->  | I66: ='Dati Generali CER 2 Sem. 2021'!D59 -> 1441 | J66: =IF('Dati Generali CER 2 Sem. 2021'!BN59="","",'Dati Generali CER 2 Sem. 2021'!BN59) -> 
A67: 58 | B67: ='Dati Generali CER 1 Sem. 2021'!C60 -> MONTALBANO ELICONA | C67: =IF('Dati Generali CER 2 Sem. 2021'!E60="","",'Dati Generali CER 2 Sem. 2021'!E60) ->  | D67: =IF(C67="","",'Dati Generali CER 2 Sem. 2021'!BI60) ->  | E67: ='Dati Generali CER 2 Sem. 2021'!W60 ->  | F67: =IF('Dati Generali CER 2 Sem. 2021'!BJ60="","",'Dati Generali CER 2 Sem. 2021'!BJ60) ->  | G67: =IF('Dati Generali CER 2 Sem. 2021'!BK60="","",'Dati Generali CER 2 Sem. 2021'!BK60) ->  | H67: =IF('Dati Generali CER 2 Sem. 2021'!BL60="","",'Dati Generali CER 2 Sem. 2021'!BL60) ->  | I67: ='Dati Generali CER 2 Sem. 2021'!D60 -> 2058 | J67: =IF('Dati Generali CER 2 Sem. 2021'!BN60="","",'Dati Generali CER 2 Sem. 2021'!BN60) -> 
A68: 59 | B68: ='Dati Generali CER 1 Sem. 2021'!C61 -> MOTTA CAMASTRA | C68: =IF('Dati Generali CER 2 Sem. 2021'!E61="","",'Dati Generali CER 2 Sem. 2021'!E61) ->  | D68: =IF(C68="","",'Dati Generali CER 2 Sem. 2021'!BI61) ->  | E68: ='Dati Generali CER 2 Sem. 2021'!W61 ->  | F68: =IF('Dati Generali CER 2 Sem. 2021'!BJ61="","",'Dati Generali CER 2 Sem. 2021'!BJ61) ->  | G68: =IF('Dati Generali CER 2 Sem. 2021'!BK61="","",'Dati Generali CER 2 Sem. 2021'!BK61) ->  | H68: =IF('Dati Generali CER 2 Sem. 2021'!BL61="","",'Dati Generali CER 2 Sem. 2021'!BL61) ->  | I68: ='Dati Generali CER 2 Sem. 2021'!D61 -> 792 | J68: =IF('Dati Generali CER 2 Sem. 2021'!BN61="","",'Dati Generali CER 2 Sem. 2021'!BN61) -> 
A69: 60 | B69: ='Dati Generali CER 1 Sem. 2021'!C62 -> MOTTA D'AFFERMO | C69: =IF('Dati Generali CER 2 Sem. 2021'!E62="","",'Dati Generali CER 2 Sem. 2021'!E62) ->  | D69: =IF(C69="","",'Dati Generali CER 2 Sem. 2021'!BI62) ->  | E69: ='Dati Generali CER 2 Sem. 2021'!W62 ->  | F69: =IF('Dati Generali CER 2 Sem. 2021'!BJ62="","",'Dati Generali CER 2 Sem. 2021'!BJ62) ->  | G69: =IF('Dati Generali CER 2 Sem. 2021'!BK62="","",'Dati Generali CER 2 Sem. 2021'!BK62) ->  | H69: =IF('Dati Generali CER 2 Sem. 2021'!BL62="","",'Dati Generali CER 2 Sem. 2021'!BL62) ->  | I69: ='Dati Generali CER 2 Sem. 2021'!D62 -> 661 | J69: =IF('Dati Generali CER 2 Sem. 2021'!BN62="","",'Dati Generali CER 2 Sem. 2021'!BN62) -> 
A70: 61 | B70: ='Dati Generali CER 1 Sem. 2021'!C63 -> NASO | C70: =IF('Dati Generali CER 2 Sem. 2021'!E63="","",'Dati Generali CER 2 Sem. 2021'!E63) ->  | D70: =IF(C70="","",'Dati Generali CER 2 Sem. 2021'!BI63) ->  | E70: ='Dati Generali CER 2 Sem. 2021'!W63 ->  | F70: =IF('Dati Generali CER 2 Sem. 2021'!BJ63="","",'Dati Generali CER 2 Sem. 2021'!BJ63) ->  | G70: =IF('Dati Generali CER 2 Sem. 2021'!BK63="","",'Dati Generali CER 2 Sem. 2021'!BK63) ->  | H70: =IF('Dati Generali CER 2 Sem. 2021'!BL63="","",'Dati Generali CER 2 Sem. 2021'!BL63) ->  | I70: ='Dati Generali CER 2 Sem. 2021'!D63 -> 3530 | J70: =IF('Dati Generali CER 2 Sem. 2021'!BN63="","",'Dati Generali CER 2 Sem. 2021'!BN63) -> 
A71: 62 | B71: ='Dati Generali CER 1 Sem. 2021'!C64 -> NIZZA DI SICILIA | C71: =IF('Dati Generali CER 2 Sem. 2021'!E64="","",'Dati Generali CER 2 Sem. 2021'!E64) ->  | D71: =IF(C71="","",'Dati Generali CER 2 Sem. 2021'!BI64) ->  | E71: ='Dati Generali CER 2 Sem. 2021'!W64 ->  | F71: =IF('Dati Generali CER 2 Sem. 2021'!BJ64="","",'Dati Generali CER 2 Sem. 2021'!BJ64) ->  | G71: =IF('Dati Generali CER 2 Sem. 2021'!BK64="","",'Dati Generali CER 2 Sem. 2021'!BK64) ->  | H71: =IF('Dati Generali CER 2 Sem. 2021'!BL64="","",'Dati Generali CER 2 Sem. 2021'!BL64) ->  | I71: ='Dati Generali CER 2 Sem. 2021'!D64 -> 3538 | J71: =IF('Dati Generali CER 2 Sem. 2021'!BN64="","",'Dati Generali CER 2 Sem. 2021'!BN64) -> 
A72: 63 | B72: ='Dati Generali CER 1 Sem. 2021'!C65 -> NOVARA DI SICILIA | C72: =IF('Dati Generali CER 2 Sem. 2021'!E65="","",'Dati Generali CER 2 Sem. 2021'!E65) ->  | D72: =IF(C72="","",'Dati Generali CER 2 Sem. 2021'!BI65) ->  | E72: ='Dati Generali CER 2 Sem. 2021'!W65 ->  | F72: =IF('Dati Generali CER 2 Sem. 2021'!BJ65="","",'Dati Generali CER 2 Sem. 2021'!BJ65) ->  | G72: =IF('Dati Generali CER 2 Sem. 2021'!BK65="","",'Dati Generali CER 2 Sem. 2021'!BK65) ->  | H72: =IF('Dati Generali CER 2 Sem. 2021'!BL65="","",'Dati Generali CER 2 Sem. 2021'!BL65) ->  | I72: ='Dati Generali CER 2 Sem. 2021'!D65 -> 1186 | J72: =IF('Dati Generali CER 2 Sem. 2021'!BN65="","",'Dati Generali CER 2 Sem. 2021'!BN65) -> 
A73: 64 | B73: ='Dati Generali CER 1 Sem. 2021'!C66 -> OLIVERI | C73: =IF('Dati Generali CER 2 Sem. 2021'!E66="","",'Dati Generali CER 2 Sem. 2021'!E66) ->  | D73: =IF(C73="","",'Dati Generali CER 2 Sem. 2021'!BI66) ->  | E73: ='Dati Generali CER 2 Sem. 2021'!W66 ->  | F73: =IF('Dati Generali CER 2 Sem. 2021'!BJ66="","",'Dati Generali CER 2 Sem. 2021'!BJ66) ->  | G73: =IF('Dati Generali CER 2 Sem. 2021'!BK66="","",'Dati Generali CER 2 Sem. 2021'!BK66) ->  | H73: =IF('Dati Generali CER 2 Sem. 2021'!BL66="","",'Dati Generali CER 2 Sem. 2021'!BL66) ->  | I73: ='Dati Generali CER 2 Sem. 2021'!D66 -> 2057 | J73: =IF('Dati Generali CER 2 Sem. 2021'!BN66="","",'Dati Generali CER 2 Sem. 2021'!BN66) -> 
A74: 65 | B74: ='Dati Generali CER 1 Sem. 2021'!C67 -> PACE DEL MELA | C74: =IF('Dati Generali CER 2 Sem. 2021'!E67="","",'Dati Generali CER 2 Sem. 2021'!E67) ->  | D74: =IF(C74="","",'Dati Generali CER 2 Sem. 2021'!BI67) ->  | E74: ='Dati Generali CER 2 Sem. 2021'!W67 ->  | F74: =IF('Dati Generali CER 2 Sem. 2021'!BJ67="","",'Dati Generali CER 2 Sem. 2021'!BJ67) ->  | G74: =IF('Dati Generali CER 2 Sem. 2021'!BK67="","",'Dati Generali CER 2 Sem. 2021'!BK67) ->  | H74: =IF('Dati Generali CER 2 Sem. 2021'!BL67="","",'Dati Generali CER 2 Sem. 2021'!BL67) ->  | I74: ='Dati Generali CER 2 Sem. 2021'!D67 -> 6110 | J74: =IF('Dati Generali CER 2 Sem. 2021'!BN67="","",'Dati Generali CER 2 Sem. 2021'!BN67) -> 
A75: 66 | B75: ='Dati Generali CER 1 Sem. 2021'!C68 -> PAGLIARA | C75: =IF('Dati Generali CER 2 Sem. 2021'!E68="","",'Dati Generali CER 2 Sem. 2021'!E68) ->  | D75: =IF(C75="","",'Dati Generali CER 2 Sem. 2021'!BI68) ->  | E75: ='Dati Generali CER 2 Sem. 2021'!W68 ->  | F75: =IF('Dati Generali CER 2 Sem. 2021'!BJ68="","",'Dati Generali CER 2 Sem. 2021'!BJ68) ->  | G75: =IF('Dati Generali CER 2 Sem. 2021'!BK68="","",'Dati Generali CER 2 Sem. 2021'!BK68) ->  | H75: =IF('Dati Generali CER 2 Sem. 2021'!BL68="","",'Dati Generali CER 2 Sem. 2021'!BL68) ->  | I75: ='Dati Generali CER 2 Sem. 2021'!D68 -> 1124 | J75: =IF('Dati Generali CER 2 Sem. 2021'!BN68="","",'Dati Generali CER 2 Sem. 2021'!BN68) -> 
A76: 67 | B76: ='Dati Generali CER 1 Sem. 2021'!C69 -> PATTI | C76: =IF('Dati Generali CER 2 Sem. 2021'!E69="","",'Dati Generali CER 2 Sem. 2021'!E69) ->  | D76: =IF(C76="","",'Dati Generali CER 2 Sem. 2021'!BI69) ->  | E76: ='Dati Generali CER 2 Sem. 2021'!W69 ->  | F76: =IF('Dati Generali CER 2 Sem. 2021'!BJ69="","",'Dati Generali CER 2 Sem. 2021'!BJ69) ->  | G76: =IF('Dati Generali CER 2 Sem. 2021'!BK69="","",'Dati Generali CER 2 Sem. 2021'!BK69) ->  | H76: =IF('Dati Generali CER 2 Sem. 2021'!BL69="","",'Dati Generali CER 2 Sem. 2021'!BL69) ->  | I76: ='Dati Generali CER 2 Sem. 2021'!D69 -> 12797 | J76: =IF('Dati Generali CER 2 Sem. 2021'!BN69="","",'Dati Generali CER 2 Sem. 2021'!BN69) -> 
A77: 68 | B77: ='Dati Generali CER 1 Sem. 2021'!C70 -> PETTINEO | C77: =IF('Dati Generali CER 2 Sem. 2021'!E70="","",'Dati Generali CER 2 Sem. 2021'!E70) ->  | D77: =IF(C77="","",'Dati Generali CER 2 Sem. 2021'!BI70) ->  | E77: ='Dati Generali CER 2 Sem. 2021'!W70 ->  | F77: =IF('Dati Generali CER 2 Sem. 2021'!BJ70="","",'Dati Generali CER 2 Sem. 2021'!BJ70) ->  | G77: =IF('Dati Generali CER 2 Sem. 2021'!BK70="","",'Dati Generali CER 2 Sem. 2021'!BK70) ->  | H77: =IF('Dati Generali CER 2 Sem. 2021'!BL70="","",'Dati Generali CER 2 Sem. 2021'!BL70) ->  | I77: ='Dati Generali CER 2 Sem. 2021'!D70 -> 1245 | J77: =IF('Dati Generali CER 2 Sem. 2021'!BN70="","",'Dati Generali CER 2 Sem. 2021'!BN70) -> 
A78: 69 | B78: ='Dati Generali CER 1 Sem. 2021'!C71 -> PIRAINO | C78: =IF('Dati Generali CER 2 Sem. 2021'!E71="","",'Dati Generali CER 2 Sem. 2021'!E71) ->  | D78: =IF(C78="","",'Dati Generali CER 2 Sem. 2021'!BI71) ->  | E78: ='Dati Generali CER 2 Sem. 2021'!W71 ->  | F78: =IF('Dati Generali CER 2 Sem. 2021'!BJ71="","",'Dati Generali CER 2 Sem. 2021'!BJ71) ->  | G78: =IF('Dati Generali CER 2 Sem. 2021'!BK71="","",'Dati Generali CER 2 Sem. 2021'!BK71) ->  | H78: =IF('Dati Generali CER 2 Sem. 2021'!BL71="","",'Dati Generali CER 2 Sem. 2021'!BL71) ->  | I78: ='Dati Generali CER 2 Sem. 2021'!D71 -> 3849 | J78: =IF('Dati Generali CER 2 Sem. 2021'!BN71="","",'Dati Generali CER 2 Sem. 2021'!BN71) -> 
A79: 70 | B79: ='Dati Generali CER 1 Sem. 2021'!C72 -> RACCUJA | C79: =IF('Dati Generali CER 2 Sem. 2021'!E72="","",'Dati Generali CER 2 Sem. 2021'!E72) ->  | D79: =IF(C79="","",'Dati Generali CER 2 Sem. 2021'!BI72) ->  | E79: ='Dati Generali CER 2 Sem. 2021'!W72 ->  | F79: =IF('Dati Generali CER 2 Sem. 2021'!BJ72="","",'Dati Generali CER 2 Sem. 2021'!BJ72) ->  | G79: =IF('Dati Generali CER 2 Sem. 2021'!BK72="","",'Dati Generali CER 2 Sem. 2021'!BK72) ->  | H79: =IF('Dati Generali CER 2 Sem. 2021'!BL72="","",'Dati Generali CER 2 Sem. 2021'!BL72) ->  | I79: ='Dati Generali CER 2 Sem. 2021'!D72 -> 886 | J79: =IF('Dati Generali CER 2 Sem. 2021'!BN72="","",'Dati Generali CER 2 Sem. 2021'!BN72) -> 
A80: 71 | B80: ='Dati Generali CER 1 Sem. 2021'!C73 -> REITANO | C80: =IF('Dati Generali CER 2 Sem. 2021'!E73="","",'Dati Generali CER 2 Sem. 2021'!E73) ->  | D80: =IF(C80="","",'Dati Generali CER 2 Sem. 2021'!BI73) ->  | E80: ='Dati Generali CER 2 Sem. 2021'!W73 ->  | F80: =IF('Dati Generali CER 2 Sem. 2021'!BJ73="","",'Dati Generali CER 2 Sem. 2021'!BJ73) ->  | G80: =IF('Dati Generali CER 2 Sem. 2021'!BK73="","",'Dati Generali CER 2 Sem. 2021'!BK73) ->  | H80: =IF('Dati Generali CER 2 Sem. 2021'!BL73="","",'Dati Generali CER 2 Sem. 2021'!BL73) ->  | I80: ='Dati Generali CER 2 Sem. 2021'!D73 -> 709 | J80: =IF('Dati Generali CER 2 Sem. 2021'!BN73="","",'Dati Generali CER 2 Sem. 2021'!BN73) -> 
A81: 72 | B81: ='Dati Generali CER 1 Sem. 2021'!C74 -> ROCCAFIORITA | C81: =IF('Dati Generali CER 2 Sem. 2021'!E74="","",'Dati Generali CER 2 Sem. 2021'!E74) ->  | D81: =IF(C81="","",'Dati Generali CER 2 Sem. 2021'!BI74) ->  | E81: ='Dati Generali CER 2 Sem. 2021'!W74 ->  | F81: =IF('Dati Generali CER 2 Sem. 2021'!BJ74="","",'Dati Generali CER 2 Sem. 2021'!BJ74) ->  | G81: =IF('Dati Generali CER 2 Sem. 2021'!BK74="","",'Dati Generali CER 2 Sem. 2021'!BK74) ->  | H81: =IF('Dati Generali CER 2 Sem. 2021'!BL74="","",'Dati Generali CER 2 Sem. 2021'!BL74) ->  | I81: ='Dati Generali CER 2 Sem. 2021'!D74 -> 180 | J81: =IF('Dati Generali CER 2 Sem. 2021'!BN74="","",'Dati Generali CER 2 Sem. 2021'!BN74) -> 
A82: 73 | B82: ='Dati Generali CER 1 Sem. 2021'!C75 -> ROCCALUMERA | C82: =IF('Dati Generali CER 2 Sem. 2021'!E75="","",'Dati Generali CER 2 Sem. 2021'!E75) ->  | D82: =IF(C82="","",'Dati Generali CER 2 Sem. 2021'!BI75) ->  | E82: ='Dati Generali CER 2 Sem. 2021'!W75 ->  | F82: =IF('Dati Generali CER 2 Sem. 2021'!BJ75="","",'Dati Generali CER 2 Sem. 2021'!BJ75) ->  | G82: =IF('Dati Generali CER 2 Sem. 2021'!BK75="","",'Dati Generali CER 2 Sem. 2021'!BK75) ->  | H82: =IF('Dati Generali CER 2 Sem. 2021'!BL75="","",'Dati Generali CER 2 Sem. 2021'!BL75) ->  | I82: ='Dati Generali CER 2 Sem. 2021'!D75 -> 3904 | J82: =IF('Dati Generali CER 2 Sem. 2021'!BN75="","",'Dati Generali CER 2 Sem. 2021'!BN75) -> 
A83: 74 | B83: ='Dati Generali CER 1 Sem. 2021'!C76 -> ROCCAVALDINA | C83: =IF('Dati Generali CER 2 Sem. 2021'!E76="","",'Dati Generali CER 2 Sem. 2021'!E76) ->  | D83: =IF(C83="","",'Dati Generali CER 2 Sem. 2021'!BI76) ->  | E83: ='Dati Generali CER 2 Sem. 2021'!W76 ->  | F83: =IF('Dati Generali CER 2 Sem. 2021'!BJ76="","",'Dati Generali CER 2 Sem. 2021'!BJ76) ->  | G83: =IF('Dati Generali CER 2 Sem. 2021'!BK76="","",'Dati Generali CER 2 Sem. 2021'!BK76) ->  | H83: =IF('Dati Generali CER 2 Sem. 2021'!BL76="","",'Dati Generali CER 2 Sem. 2021'!BL76) ->  | I83: ='Dati Generali CER 2 Sem. 2021'!D76 -> 1004 | J83: =IF('Dati Generali CER 2 Sem. 2021'!BN76="","",'Dati Generali CER 2 Sem. 2021'!BN76) -> 
A84: 75 | B84: ='Dati Generali CER 1 Sem. 2021'!C77 -> ROCCELLA VALDEMONE | C84: =IF('Dati Generali CER 2 Sem. 2021'!E77="","",'Dati Generali CER 2 Sem. 2021'!E77) ->  | D84: =IF(C84="","",'Dati Generali CER 2 Sem. 2021'!BI77) ->  | E84: ='Dati Generali CER 2 Sem. 2021'!W77 ->  | F84: =IF('Dati Generali CER 2 Sem. 2021'!BJ77="","",'Dati Generali CER 2 Sem. 2021'!BJ77) ->  | G84: =IF('Dati Generali CER 2 Sem. 2021'!BK77="","",'Dati Generali CER 2 Sem. 2021'!BK77) ->  | H84: =IF('Dati Generali CER 2 Sem. 2021'!BL77="","",'Dati Generali CER 2 Sem. 2021'!BL77) ->  | I84: ='Dati Generali CER 2 Sem. 2021'!D77 -> 572 | J84: =IF('Dati Generali CER 2 Sem. 2021'!BN77="","",'Dati Generali CER 2 Sem. 2021'!BN77) -> 
A85: 76 | B85: ='Dati Generali CER 1 Sem. 2021'!C78 -> RODI' MILICI | C85: =IF('Dati Generali CER 2 Sem. 2021'!E78="","",'Dati Generali CER 2 Sem. 2021'!E78) ->  | D85: =IF(C85="","",'Dati Generali CER 2 Sem. 2021'!BI78) ->  | E85: ='Dati Generali CER 2 Sem. 2021'!W78 ->  | F85: =IF('Dati Generali CER 2 Sem. 2021'!BJ78="","",'Dati Generali CER 2 Sem. 2021'!BJ78) ->  | G85: =IF('Dati Generali CER 2 Sem. 2021'!BK78="","",'Dati Generali CER 2 Sem. 2021'!BK78) ->  | H85: =IF('Dati Generali CER 2 Sem. 2021'!BL78="","",'Dati Generali CER 2 Sem. 2021'!BL78) ->  | I85: ='Dati Generali CER 2 Sem. 2021'!D78 -> 1950 | J85: =IF('Dati Generali CER 2 Sem. 2021'!BN78="","",'Dati Generali CER 2 Sem. 2021'!BN78) -> 
A86: 77 | B86: ='Dati Generali CER 1 Sem. 2021'!C79 -> ROMETTA | C86: =IF('Dati Generali CER 2 Sem. 2021'!E79="","",'Dati Generali CER 2 Sem. 2021'!E79) ->  | D86: =IF(C86="","",'Dati Generali CER 2 Sem. 2021'!BI79) ->  | E86: ='Dati Generali CER 2 Sem. 2021'!W79 ->  | F86: =IF('Dati Generali CER 2 Sem. 2021'!BJ79="","",'Dati Generali CER 2 Sem. 2021'!BJ79) ->  | G86: =IF('Dati Generali CER 2 Sem. 2021'!BK79="","",'Dati Generali CER 2 Sem. 2021'!BK79) ->  | H86: =IF('Dati Generali CER 2 Sem. 2021'!BL79="","",'Dati Generali CER 2 Sem. 2021'!BL79) ->  | I86: ='Dati Generali CER 2 Sem. 2021'!D79 -> 6480 | J86: =IF('Dati Generali CER 2 Sem. 2021'!BN79="","",'Dati Generali CER 2 Sem. 2021'!BN79) -> 
A87: 78 | B87: ='Dati Generali CER 1 Sem. 2021'!C82 -> S. AGATA DI MILITELLO | C87: =IF('Dati Generali CER 2 Sem. 2021'!E82="","",'Dati Generali CER 2 Sem. 2021'!E82) ->  | D87: =IF(C87="","",'Dati Generali CER 2 Sem. 2021'!BI82) ->  | E87: ='Dati Generali CER 2 Sem. 2021'!W82 ->  | F87: =IF('Dati Generali CER 2 Sem. 2021'!BJ82="","",'Dati Generali CER 2 Sem. 2021'!BJ82) ->  | G87: =IF('Dati Generali CER 2 Sem. 2021'!BK82="","",'Dati Generali CER 2 Sem. 2021'!BK82) ->  | H87: =IF('Dati Generali CER 2 Sem. 2021'!BL82="","",'Dati Generali CER 2 Sem. 2021'!BL82) ->  | I87: ='Dati Generali CER 2 Sem. 2021'!D82 -> 12139 | J87: =IF('Dati Generali CER 2 Sem. 2021'!BN80="","",'Dati Generali CER 2 Sem. 2021'!BN80) -> 
A88: 79 | B88: ='Dati Generali CER 1 Sem. 2021'!C93 -> S. ALESSIO SICULO | C88: =IF('Dati Generali CER 2 Sem. 2021'!E93="","",'Dati Generali CER 2 Sem. 2021'!E93) ->  | D88: =IF(C88="","",'Dati Generali CER 2 Sem. 2021'!BI93) ->  | E88: ='Dati Generali CER 2 Sem. 2021'!W93 ->  | F88: =IF('Dati Generali CER 2 Sem. 2021'!BJ93="","",'Dati Generali CER 2 Sem. 2021'!BJ93) ->  | G88: =IF('Dati Generali CER 2 Sem. 2021'!BK93="","",'Dati Generali CER 2 Sem. 2021'!BK93) ->  | H88: =IF('Dati Generali CER 2 Sem. 2021'!BL93="","",'Dati Generali CER 2 Sem. 2021'!BL93) ->  | I88: ='Dati Generali CER 2 Sem. 2021'!D93 -> 1469 | J88: =IF('Dati Generali CER 2 Sem. 2021'!BN81="","",'Dati Generali CER 2 Sem. 2021'!BN81) -> 
A89: 80 | B89: ='Dati Generali CER 1 Sem. 2021'!C92 -> S. ANGELO DI BROLO | C89: =IF('Dati Generali CER 2 Sem. 2021'!E92="","",'Dati Generali CER 2 Sem. 2021'!E92) ->  | D89: =IF(C89="","",'Dati Generali CER 2 Sem. 2021'!BI92) ->  | E89: ='Dati Generali CER 2 Sem. 2021'!W92 ->  | F89: =IF('Dati Generali CER 2 Sem. 2021'!BJ92="","",'Dati Generali CER 2 Sem. 2021'!BJ92) ->  | G89: =IF('Dati Generali CER 2 Sem. 2021'!BK92="","",'Dati Generali CER 2 Sem. 2021'!BK92) ->  | H89: =IF('Dati Generali CER 2 Sem. 2021'!BL92="","",'Dati Generali CER 2 Sem. 2021'!BL92) ->  | I89: ='Dati Generali CER 2 Sem. 2021'!D92 -> 2847 | J89: =IF('Dati Generali CER 2 Sem. 2021'!BN82="","",'Dati Generali CER 2 Sem. 2021'!BN82) -> 
A90: 81 | B90: ='Dati Generali CER 1 Sem. 2021'!C80 -> S. DOMENICA VITTORIA | C90: =IF('Dati Generali CER 2 Sem. 2021'!E80="","",'Dati Generali CER 2 Sem. 2021'!E80) ->  | D90: =IF(C90="","",'Dati Generali CER 2 Sem. 2021'!BI80) ->  | E90: ='Dati Generali CER 2 Sem. 2021'!W80 ->  | F90: =IF('Dati Generali CER 2 Sem. 2021'!BJ80="","",'Dati Generali CER 2 Sem. 2021'!BJ80) ->  | G90: =IF('Dati Generali CER 2 Sem. 2021'!BK80="","",'Dati Generali CER 2 Sem. 2021'!BK80) ->  | H90: =IF('Dati Generali CER 2 Sem. 2021'!BL80="","",'Dati Generali CER 2 Sem. 2021'!BL80) ->  | I90: ='Dati Generali CER 2 Sem. 2021'!D80 -> 870 | J90: =IF('Dati Generali CER 2 Sem. 2021'!BN83="","",'Dati Generali CER 2 Sem. 2021'!BN83) -> 
A91: 82 | B91: ='Dati Generali CER 1 Sem. 2021'!C85 -> S. FILIPPO DEL MELA | C91: =IF('Dati Generali CER 2 Sem. 2021'!E85="","",'Dati Generali CER 2 Sem. 2021'!E85) ->  | D91: =IF(C91="","",'Dati Generali CER 2 Sem. 2021'!BI85) ->  | E91: ='Dati Generali CER 2 Sem. 2021'!W85 ->  | F91: =IF('Dati Generali CER 2 Sem. 2021'!BJ85="","",'Dati Generali CER 2 Sem. 2021'!BJ85) ->  | G91: =IF('Dati Generali CER 2 Sem. 2021'!BK85="","",'Dati Generali CER 2 Sem. 2021'!BK85) ->  | H91: =IF('Dati Generali CER 2 Sem. 2021'!BL85="","",'Dati Generali CER 2 Sem. 2021'!BL85) ->  | I91: ='Dati Generali CER 2 Sem. 2021'!D85 -> 6756 | J91: =IF('Dati Generali CER 2 Sem. 2021'!BN84="","",'Dati Generali CER 2 Sem. 2021'!BN84) -> 
A92: 83 | B92: ='Dati Generali CER 1 Sem. 2021'!C90 -> S. SALVAT. DI FITALIA | C92: =IF('Dati Generali CER 2 Sem. 2021'!E90="","",'Dati Generali CER 2 Sem. 2021'!E90) ->  | D92: =IF(C92="","",'Dati Generali CER 2 Sem. 2021'!BI90) ->  | E92: ='Dati Generali CER 2 Sem. 2021'!W90 ->  | F92: =IF('Dati Generali CER 2 Sem. 2021'!BJ90="","",'Dati Generali CER 2 Sem. 2021'!BJ90) ->  | G92: =IF('Dati Generali CER 2 Sem. 2021'!BK90="","",'Dati Generali CER 2 Sem. 2021'!BK90) ->  | H92: =IF('Dati Generali CER 2 Sem. 2021'!BL90="","",'Dati Generali CER 2 Sem. 2021'!BL90) ->  | I92: ='Dati Generali CER 2 Sem. 2021'!D90 -> 1159 | J92: =IF('Dati Generali CER 2 Sem. 2021'!BN85="","",'Dati Generali CER 2 Sem. 2021'!BN85) -> 
A93: 84 | B93: ='Dati Generali CER 1 Sem. 2021'!C81 -> S. STEF. DI CAMASTRA | C93: =IF('Dati Generali CER 2 Sem. 2021'!E81="","",'Dati Generali CER 2 Sem. 2021'!E81) ->  | D93: =IF(C93="","",'Dati Generali CER 2 Sem. 2021'!BI81) ->  | E93: ='Dati Generali CER 2 Sem. 2021'!W81 ->  | F93: =IF('Dati Generali CER 2 Sem. 2021'!BJ81="","",'Dati Generali CER 2 Sem. 2021'!BJ81) ->  | G93: =IF('Dati Generali CER 2 Sem. 2021'!BK81="","",'Dati Generali CER 2 Sem. 2021'!BK81) ->  | H93: =IF('Dati Generali CER 2 Sem. 2021'!BL81="","",'Dati Generali CER 2 Sem. 2021'!BL81) ->  | I93: ='Dati Generali CER 2 Sem. 2021'!D81 -> 4445 | J93: =IF('Dati Generali CER 2 Sem. 2021'!BN86="","",'Dati Generali CER 2 Sem. 2021'!BN86) -> 
A94: 85 | B94: ='Dati Generali CER 1 Sem. 2021'!C84 -> S. TERESA DI RIVA | C94: =IF('Dati Generali CER 2 Sem. 2021'!E84="","",'Dati Generali CER 2 Sem. 2021'!E84) ->  | D94: =IF(C94="","",'Dati Generali CER 2 Sem. 2021'!BI84) ->  | E94: ='Dati Generali CER 2 Sem. 2021'!W84 ->  | F94: =IF('Dati Generali CER 2 Sem. 2021'!BJ84="","",'Dati Generali CER 2 Sem. 2021'!BJ84) ->  | G94: =IF('Dati Generali CER 2 Sem. 2021'!BK84="","",'Dati Generali CER 2 Sem. 2021'!BK84) ->  | H94: =IF('Dati Generali CER 2 Sem. 2021'!BL84="","",'Dati Generali CER 2 Sem. 2021'!BL84) ->  | I94: ='Dati Generali CER 2 Sem. 2021'!D84 -> 9450 | J94: =IF('Dati Generali CER 2 Sem. 2021'!BN87="","",'Dati Generali CER 2 Sem. 2021'!BN87) -> 
A95: 86 | B95: ='Dati Generali CER 1 Sem. 2021'!C86 -> SAN FRATELLO | C95: =IF('Dati Generali CER 2 Sem. 2021'!E86="","",'Dati Generali CER 2 Sem. 2021'!E86) ->  | D95: =IF(C95="","",'Dati Generali CER 2 Sem. 2021'!BI86) ->  | E95: ='Dati Generali CER 2 Sem. 2021'!W86 ->  | F95: =IF('Dati Generali CER 2 Sem. 2021'!BJ86="","",'Dati Generali CER 2 Sem. 2021'!BJ86) ->  | G95: =IF('Dati Generali CER 2 Sem. 2021'!BK86="","",'Dati Generali CER 2 Sem. 2021'!BK86) ->  | H95: =IF('Dati Generali CER 2 Sem. 2021'!BL86="","",'Dati Generali CER 2 Sem. 2021'!BL86) ->  | I95: ='Dati Generali CER 2 Sem. 2021'!D86 -> 3351 | J95: =IF('Dati Generali CER 2 Sem. 2021'!BN88="","",'Dati Generali CER 2 Sem. 2021'!BN88) -> 
A96: 87 | B96: ='Dati Generali CER 1 Sem. 2021'!C87 -> SAN MARCO D'ALUNZIO | C96: =IF('Dati Generali CER 2 Sem. 2021'!E87="","",'Dati Generali CER 2 Sem. 2021'!E87) ->  | D96: =IF(C96="","",'Dati Generali CER 2 Sem. 2021'!BI87) ->  | E96: ='Dati Generali CER 2 Sem. 2021'!W87 ->  | F96: =IF('Dati Generali CER 2 Sem. 2021'!BJ87="","",'Dati Generali CER 2 Sem. 2021'!BJ87) ->  | G96: =IF('Dati Generali CER 2 Sem. 2021'!BK87="","",'Dati Generali CER 2 Sem. 2021'!BK87) ->  | H96: =IF('Dati Generali CER 2 Sem. 2021'!BL87="","",'Dati Generali CER 2 Sem. 2021'!BL87) ->  | I96: ='Dati Generali CER 2 Sem. 2021'!D87 -> 1817 | J96: =IF('Dati Generali CER 2 Sem. 2021'!BN89="","",'Dati Generali CER 2 Sem. 2021'!BN89) -> 
A97: 88 | B97: ='Dati Generali CER 1 Sem. 2021'!C88 -> SAN PIER NICETO | C97: =IF('Dati Generali CER 2 Sem. 2021'!E88="","",'Dati Generali CER 2 Sem. 2021'!E88) ->  | D97: =IF(C97="","",'Dati Generali CER 2 Sem. 2021'!BI88) ->  | E97: ='Dati Generali CER 2 Sem. 2021'!W88 ->  | F97: =IF('Dati Generali CER 2 Sem. 2021'!BJ88="","",'Dati Generali CER 2 Sem. 2021'!BJ88) ->  | G97: =IF('Dati Generali CER 2 Sem. 2021'!BK88="","",'Dati Generali CER 2 Sem. 2021'!BK88) ->  | H97: =IF('Dati Generali CER 2 Sem. 2021'!BL88="","",'Dati Generali CER 2 Sem. 2021'!BL88) ->  | I97: ='Dati Generali CER 2 Sem. 2021'!D88 -> 2632 | J97: =IF('Dati Generali CER 2 Sem. 2021'!BN90="","",'Dati Generali CER 2 Sem. 2021'!BN90) -> 
A98: 89 | B98: ='Dati Generali CER 1 Sem. 2021'!C89 -> SAN PIERO PATTI | C98: =IF('Dati Generali CER 2 Sem. 2021'!E89="","",'Dati Generali CER 2 Sem. 2021'!E89) ->  | D98: =IF(C98="","",'Dati Generali CER 2 Sem. 2021'!BI89) ->  | E98: ='Dati Generali CER 2 Sem. 2021'!W89 ->  | F98: =IF('Dati Generali CER 2 Sem. 2021'!BJ89="","",'Dati Generali CER 2 Sem. 2021'!BJ89) ->  | G98: =IF('Dati Generali CER 2 Sem. 2021'!BK89="","",'Dati Generali CER 2 Sem. 2021'!BK89) ->  | H98: =IF('Dati Generali CER 2 Sem. 2021'!BL89="","",'Dati Generali CER 2 Sem. 2021'!BL89) ->  | I98: ='Dati Generali CER 2 Sem. 2021'!D89 -> 2616 | J98: =IF('Dati Generali CER 2 Sem. 2021'!BN91="","",'Dati Generali CER 2 Sem. 2021'!BN91) -> 
A99: 90 | B99: ='Dati Generali CER 1 Sem. 2021'!C91 -> SAN TEODORO | C99: =IF('Dati Generali CER 2 Sem. 2021'!E91="","",'Dati Generali CER 2 Sem. 2021'!E91) ->  | D99: =IF(C99="","",'Dati Generali CER 2 Sem. 2021'!BI91) ->  | E99: ='Dati Generali CER 2 Sem. 2021'!W91 ->  | F99: =IF('Dati Generali CER 2 Sem. 2021'!BJ91="","",'Dati Generali CER 2 Sem. 2021'!BJ91) ->  | G99: =IF('Dati Generali CER 2 Sem. 2021'!BK91="","",'Dati Generali CER 2 Sem. 2021'!BK91) ->  | H99: =IF('Dati Generali CER 2 Sem. 2021'!BL91="","",'Dati Generali CER 2 Sem. 2021'!BL91) ->  | I99: ='Dati Generali CER 2 Sem. 2021'!D91 -> 1248 | J99: =IF('Dati Generali CER 2 Sem. 2021'!BN92="","",'Dati Generali CER 2 Sem. 2021'!BN92) -> 
A100: 91 | B100: ='Dati Generali CER 1 Sem. 2021'!C83 -> SANTA LUCIA DEL MELA | C100: =IF('Dati Generali CER 2 Sem. 2021'!E83="","",'Dati Generali CER 2 Sem. 2021'!E83) ->  | D100: =IF(C100="","",'Dati Generali CER 2 Sem. 2021'!BI83) ->  | E100: ='Dati Generali CER 2 Sem. 2021'!W83 ->  | F100: =IF('Dati Generali CER 2 Sem. 2021'!BJ83="","",'Dati Generali CER 2 Sem. 2021'!BJ83) ->  | G100: =IF('Dati Generali CER 2 Sem. 2021'!BK83="","",'Dati Generali CER 2 Sem. 2021'!BK83) ->  | H100: =IF('Dati Generali CER 2 Sem. 2021'!BL83="","",'Dati Generali CER 2 Sem. 2021'!BL83) ->  | I100: ='Dati Generali CER 2 Sem. 2021'!D83 -> 4475 | J100: =IF('Dati Generali CER 2 Sem. 2021'!BN93="","",'Dati Generali CER 2 Sem. 2021'!BN93) -> 
A101: 92 | B101: ='Dati Generali CER 1 Sem. 2021'!C94 -> SANTA MARINA SALINA | C101: =IF('Dati Generali CER 2 Sem. 2021'!E94="","",'Dati Generali CER 2 Sem. 2021'!E94) ->  | D101: =IF(C101="","",'Dati Generali CER 2 Sem. 2021'!BI94) ->  | E101: ='Dati Generali CER 2 Sem. 2021'!W94 ->  | F101: =IF('Dati Generali CER 2 Sem. 2021'!BJ94="","",'Dati Generali CER 2 Sem. 2021'!BJ94) ->  | G101: =IF('Dati Generali CER 2 Sem. 2021'!BK94="","",'Dati Generali CER 2 Sem. 2021'!BK94) ->  | H101: =IF('Dati Generali CER 2 Sem. 2021'!BL94="","",'Dati Generali CER 2 Sem. 2021'!BL94) ->  | I101: ='Dati Generali CER 2 Sem. 2021'!D94 -> 845 | J101: =IF('Dati Generali CER 2 Sem. 2021'!BN94="","",'Dati Generali CER 2 Sem. 2021'!BN94) -> 
A102: 93 | B102: ='Dati Generali CER 1 Sem. 2021'!C95 -> SAPONARA | C102: =IF('Dati Generali CER 2 Sem. 2021'!E95="","",'Dati Generali CER 2 Sem. 2021'!E95) ->  | D102: =IF(C102="","",'Dati Generali CER 2 Sem. 2021'!BI95) ->  | E102: ='Dati Generali CER 2 Sem. 2021'!W95 ->  | F102: =IF('Dati Generali CER 2 Sem. 2021'!BJ95="","",'Dati Generali CER 2 Sem. 2021'!BJ95) ->  | G102: =IF('Dati Generali CER 2 Sem. 2021'!BK95="","",'Dati Generali CER 2 Sem. 2021'!BK95) ->  | H102: =IF('Dati Generali CER 2 Sem. 2021'!BL95="","",'Dati Generali CER 2 Sem. 2021'!BL95) ->  | I102: ='Dati Generali CER 2 Sem. 2021'!D95 -> 3705 | J102: =IF('Dati Generali CER 2 Sem. 2021'!BN95="","",'Dati Generali CER 2 Sem. 2021'!BN95) -> 
A103: 94 | B103: ='Dati Generali CER 1 Sem. 2021'!C96 -> SAVOCA | C103: =IF('Dati Generali CER 2 Sem. 2021'!E96="","",'Dati Generali CER 2 Sem. 2021'!E96) ->  | D103: =IF(C103="","",'Dati Generali CER 2 Sem. 2021'!BI96) ->  | E103: ='Dati Generali CER 2 Sem. 2021'!W96 ->  | F103: =IF('Dati Generali CER 2 Sem. 2021'!BJ96="","",'Dati Generali CER 2 Sem. 2021'!BJ96) ->  | G103: =IF('Dati Generali CER 2 Sem. 2021'!BK96="","",'Dati Generali CER 2 Sem. 2021'!BK96) ->  | H103: =IF('Dati Generali CER 2 Sem. 2021'!BL96="","",'Dati Generali CER 2 Sem. 2021'!BL96) ->  | I103: ='Dati Generali CER 2 Sem. 2021'!D96 -> 1731 | J103: =IF('Dati Generali CER 2 Sem. 2021'!BN96="","",'Dati Generali CER 2 Sem. 2021'!BN96) -> 
A104: 95 | B104: ='Dati Generali CER 1 Sem. 2021'!C97 -> SCALETTA ZANCLEA | C104: =IF('Dati Generali CER 2 Sem. 2021'!E97="","",'Dati Generali CER 2 Sem. 2021'!E97) ->  | D104: =IF(C104="","",'Dati Generali CER 2 Sem. 2021'!BI97) ->  | E104: ='Dati Generali CER 2 Sem. 2021'!W97 ->  | F104: =IF('Dati Generali CER 2 Sem. 2021'!BJ97="","",'Dati Generali CER 2 Sem. 2021'!BJ97) ->  | G104: =IF('Dati Generali CER 2 Sem. 2021'!BK97="","",'Dati Generali CER 2 Sem. 2021'!BK97) ->  | H104: =IF('Dati Generali CER 2 Sem. 2021'!BL97="","",'Dati Generali CER 2 Sem. 2021'!BL97) ->  | I104: ='Dati Generali CER 2 Sem. 2021'!D97 -> 1896 | J104: =IF('Dati Generali CER 2 Sem. 2021'!BN97="","",'Dati Generali CER 2 Sem. 2021'!BN97) -> 
A105: 96 | B105: ='Dati Generali CER 1 Sem. 2021'!C98 -> SINAGRA | C105: =IF('Dati Generali CER 2 Sem. 2021'!E98="","",'Dati Generali CER 2 Sem. 2021'!E98) ->  | D105: =IF(C105="","",'Dati Generali CER 2 Sem. 2021'!BI98) ->  | E105: ='Dati Generali CER 2 Sem. 2021'!W98 ->  | F105: =IF('Dati Generali CER 2 Sem. 2021'!BJ98="","",'Dati Generali CER 2 Sem. 2021'!BJ98) ->  | G105: =IF('Dati Generali CER 2 Sem. 2021'!BK98="","",'Dati Generali CER 2 Sem. 2021'!BK98) ->  | H105: =IF('Dati Generali CER 2 Sem. 2021'!BL98="","",'Dati Generali CER 2 Sem. 2021'!BL98) ->  | I105: ='Dati Generali CER 2 Sem. 2021'!D98 -> 2541 | J105: =IF('Dati Generali CER 2 Sem. 2021'!BN98="","",'Dati Generali CER 2 Sem. 2021'!BN98) -> 
A106: 97 | B106: ='Dati Generali CER 1 Sem. 2021'!C99 -> SPADAFORA | C106: =IF('Dati Generali CER 2 Sem. 2021'!E99="","",'Dati Generali CER 2 Sem. 2021'!E99) ->  | D106: =IF(C106="","",'Dati Generali CER 2 Sem. 2021'!BI99) ->  | E106: ='Dati Generali CER 2 Sem. 2021'!W99 ->  | F106: =IF('Dati Generali CER 2 Sem. 2021'!BJ99="","",'Dati Generali CER 2 Sem. 2021'!BJ99) ->  | G106: =IF('Dati Generali CER 2 Sem. 2021'!BK99="","",'Dati Generali CER 2 Sem. 2021'!BK99) ->  | H106: =IF('Dati Generali CER 2 Sem. 2021'!BL99="","",'Dati Generali CER 2 Sem. 2021'!BL99) ->  | I106: ='Dati Generali CER 2 Sem. 2021'!D99 -> 4758 | J106: =IF('Dati Generali CER 2 Sem. 2021'!BN99="","",'Dati Generali CER 2 Sem. 2021'!BN99) -> 
A107: 98 | B107: ='Dati Generali CER 1 Sem. 2021'!C100 -> TAORMINA | C107: =IF('Dati Generali CER 2 Sem. 2021'!E100="","",'Dati Generali CER 2 Sem. 2021'!E100) ->  | D107: =IF(C107="","",'Dati Generali CER 2 Sem. 2021'!BI100) ->  | E107: ='Dati Generali CER 2 Sem. 2021'!W100 ->  | F107: =IF('Dati Generali CER 2 Sem. 2021'!BJ100="","",'Dati Generali CER 2 Sem. 2021'!BJ100) ->  | G107: =IF('Dati Generali CER 2 Sem. 2021'!BK100="","",'Dati Generali CER 2 Sem. 2021'!BK100) ->  | H107: =IF('Dati Generali CER 2 Sem. 2021'!BL100="","",'Dati Generali CER 2 Sem. 2021'!BL100) ->  | I107: ='Dati Generali CER 2 Sem. 2021'!D100 -> 10509 | J107: =IF('Dati Generali CER 2 Sem. 2021'!BN100="","",'Dati Generali CER 2 Sem. 2021'!BN100) -> 
A108: 99 | B108: ='Dati Generali CER 1 Sem. 2021'!C101 -> TERME VIGLIATORE | C108: =IF('Dati Generali CER 2 Sem. 2021'!E101="","",'Dati Generali CER 2 Sem. 2021'!E101) ->  | D108: =IF(C108="","",'Dati Generali CER 2 Sem. 2021'!BI101) ->  | E108: ='Dati Generali CER 2 Sem. 2021'!W101 ->  | F108: =IF('Dati Generali CER 2 Sem. 2021'!BJ101="","",'Dati Generali CER 2 Sem. 2021'!BJ101) ->  | G108: =IF('Dati Generali CER 2 Sem. 2021'!BK101="","",'Dati Generali CER 2 Sem. 2021'!BK101) ->  | H108: =IF('Dati Generali CER 2 Sem. 2021'!BL101="","",'Dati Generali CER 2 Sem. 2021'!BL101) ->  | I108: ='Dati Generali CER 2 Sem. 2021'!D101 -> 7203 | J108: =IF('Dati Generali CER 2 Sem. 2021'!BN101="","",'Dati Generali CER 2 Sem. 2021'!BN101) -> 
A109: 100 | B109: ='Dati Generali CER 1 Sem. 2021'!C102 -> TORREGROTTA | C109: =IF('Dati Generali CER 2 Sem. 2021'!E102="","",'Dati Generali CER 2 Sem. 2021'!E102) ->  | D109: =IF(C109="","",'Dati Generali CER 2 Sem. 2021'!BI102) ->  | E109: ='Dati Generali CER 2 Sem. 2021'!W102 ->  | F109: =IF('Dati Generali CER 2 Sem. 2021'!BJ102="","",'Dati Generali CER 2 Sem. 2021'!BJ102) ->  | G109: =IF('Dati Generali CER 2 Sem. 2021'!BK102="","",'Dati Generali CER 2 Sem. 2021'!BK102) ->  | H109: =IF('Dati Generali CER 2 Sem. 2021'!BL102="","",'Dati Generali CER 2 Sem. 2021'!BL102) ->  | I109: ='Dati Generali CER 2 Sem. 2021'!D102 -> 7196 | J109: =IF('Dati Generali CER 2 Sem. 2021'!BN102="","",'Dati Generali CER 2 Sem. 2021'!BN102) -> 
A110: 101 | B110: ='Dati Generali CER 1 Sem. 2021'!C103 -> TORRENOVA | C110: =IF('Dati Generali CER 2 Sem. 2021'!E103="","",'Dati Generali CER 2 Sem. 2021'!E103) ->  | D110: =IF(C110="","",'Dati Generali CER 2 Sem. 2021'!BI103) ->  | E110: ='Dati Generali CER 2 Sem. 2021'!W103 ->  | F110: =IF('Dati Generali CER 2 Sem. 2021'!BJ103="","",'Dati Generali CER 2 Sem. 2021'!BJ103) ->  | G110: =IF('Dati Generali CER 2 Sem. 2021'!BK103="","",'Dati Generali CER 2 Sem. 2021'!BK103) ->  | H110: =IF('Dati Generali CER 2 Sem. 2021'!BL103="","",'Dati Generali CER 2 Sem. 2021'!BL103) ->  | I110: ='Dati Generali CER 2 Sem. 2021'!D103 -> 4507 | J110: =IF('Dati Generali CER 2 Sem. 2021'!BN103="","",'Dati Generali CER 2 Sem. 2021'!BN103) -> 
A111: 102 | B111: ='Dati Generali CER 1 Sem. 2021'!C104 -> TORTORICI | C111: =IF('Dati Generali CER 2 Sem. 2021'!E104="","",'Dati Generali CER 2 Sem. 2021'!E104) ->  | D111: =IF(C111="","",'Dati Generali CER 2 Sem. 2021'!BI104) ->  | E111: ='Dati Generali CER 2 Sem. 2021'!W104 ->  | F111: =IF('Dati Generali CER 2 Sem. 2021'!BJ104="","",'Dati Generali CER 2 Sem. 2021'!BJ104) ->  | G111: =IF('Dati Generali CER 2 Sem. 2021'!BK104="","",'Dati Generali CER 2 Sem. 2021'!BK104) ->  | H111: =IF('Dati Generali CER 2 Sem. 2021'!BL104="","",'Dati Generali CER 2 Sem. 2021'!BL104) ->  | I111: ='Dati Generali CER 2 Sem. 2021'!D104 -> 5890 | J111: =IF('Dati Generali CER 2 Sem. 2021'!BN104="","",'Dati Generali CER 2 Sem. 2021'!BN104) -> 
A112: 103 | B112: ='Dati Generali CER 1 Sem. 2021'!C105 -> TRIPI | C112: =IF('Dati Generali CER 2 Sem. 2021'!E105="","",'Dati Generali CER 2 Sem. 2021'!E105) ->  | D112: =IF(C112="","",'Dati Generali CER 2 Sem. 2021'!BI105) ->  | E112: ='Dati Generali CER 2 Sem. 2021'!W105 ->  | F112: =IF('Dati Generali CER 2 Sem. 2021'!BJ105="","",'Dati Generali CER 2 Sem. 2021'!BJ105) ->  | G112: =IF('Dati Generali CER 2 Sem. 2021'!BK105="","",'Dati Generali CER 2 Sem. 2021'!BK105) ->  | H112: =IF('Dati Generali CER 2 Sem. 2021'!BL105="","",'Dati Generali CER 2 Sem. 2021'!BL105) ->  | I112: ='Dati Generali CER 2 Sem. 2021'!D105 -> 764 | J112: =IF('Dati Generali CER 2 Sem. 2021'!BN105="","",'Dati Generali CER 2 Sem. 2021'!BN105) -> 
A113: 104 | B113: ='Dati Generali CER 1 Sem. 2021'!C106 -> TUSA | C113: =IF('Dati Generali CER 2 Sem. 2021'!E106="","",'Dati Generali CER 2 Sem. 2021'!E106) ->  | D113: =IF(C113="","",'Dati Generali CER 2 Sem. 2021'!BI106) ->  | E113: ='Dati Generali CER 2 Sem. 2021'!W106 ->  | F113: =IF('Dati Generali CER 2 Sem. 2021'!BJ106="","",'Dati Generali CER 2 Sem. 2021'!BJ106) ->  | G113: =IF('Dati Generali CER 2 Sem. 2021'!BK106="","",'Dati Generali CER 2 Sem. 2021'!BK106) ->  | H113: =IF('Dati Generali CER 2 Sem. 2021'!BL106="","",'Dati Generali CER 2 Sem. 2021'!BL106) ->  | I113: ='Dati Generali CER 2 Sem. 2021'!D106 -> 2691 | J113: =IF('Dati Generali CER 2 Sem. 2021'!BN106="","",'Dati Generali CER 2 Sem. 2021'!BN106) -> 
A114: 105 | B114: ='Dati Generali CER 1 Sem. 2021'!C107 -> UCRIA | C114: =IF('Dati Generali CER 2 Sem. 2021'!E107="","",'Dati Generali CER 2 Sem. 2021'!E107) ->  | D114: =IF(C114="","",'Dati Generali CER 2 Sem. 2021'!BI107) ->  | E114: ='Dati Generali CER 2 Sem. 2021'!W107 ->  | F114: =IF('Dati Generali CER 2 Sem. 2021'!BJ107="","",'Dati Generali CER 2 Sem. 2021'!BJ107) ->  | G114: =IF('Dati Generali CER 2 Sem. 2021'!BK107="","",'Dati Generali CER 2 Sem. 2021'!BK107) ->  | H114: =IF('Dati Generali CER 2 Sem. 2021'!BL107="","",'Dati Generali CER 2 Sem. 2021'!BL107) ->  | I114: ='Dati Generali CER 2 Sem. 2021'!D107 -> 931 | J114: =IF('Dati Generali CER 2 Sem. 2021'!BN107="","",'Dati Generali CER 2 Sem. 2021'!BN107) -> 
A115: 106 | B115: ='Dati Generali CER 1 Sem. 2021'!C108 -> VALDINA | C115: =IF('Dati Generali CER 2 Sem. 2021'!E108="","",'Dati Generali CER 2 Sem. 2021'!E108) ->  | D115: =IF(C115="","",'Dati Generali CER 2 Sem. 2021'!BI108) ->  | E115: ='Dati Generali CER 2 Sem. 2021'!W108 ->  | F115: =IF('Dati Generali CER 2 Sem. 2021'!BJ108="","",'Dati Generali CER 2 Sem. 2021'!BJ108) ->  | G115: =IF('Dati Generali CER 2 Sem. 2021'!BK108="","",'Dati Generali CER 2 Sem. 2021'!BK108) ->  | H115: =IF('Dati Generali CER 2 Sem. 2021'!BL108="","",'Dati Generali CER 2 Sem. 2021'!BL108) ->  | I115: ='Dati Generali CER 2 Sem. 2021'!D108 -> 1297 | J115: =IF('Dati Generali CER 2 Sem. 2021'!BN108="","",'Dati Generali CER 2 Sem. 2021'!BN108) -> 
A116: 107 | B116: ='Dati Generali CER 1 Sem. 2021'!C109 -> VENETICO | C116: =IF('Dati Generali CER 2 Sem. 2021'!E109="","",'Dati Generali CER 2 Sem. 2021'!E109) ->  | D116: =IF(C116="","",'Dati Generali CER 2 Sem. 2021'!BI109) ->  | E116: ='Dati Generali CER 2 Sem. 2021'!W109 ->  | F116: =IF('Dati Generali CER 2 Sem. 2021'!BJ109="","",'Dati Generali CER 2 Sem. 2021'!BJ109) ->  | G116: =IF('Dati Generali CER 2 Sem. 2021'!BK109="","",'Dati Generali CER 2 Sem. 2021'!BK109) ->  | H116: =IF('Dati Generali CER 2 Sem. 2021'!BL109="","",'Dati Generali CER 2 Sem. 2021'!BL109) ->  | I116: ='Dati Generali CER 2 Sem. 2021'!D109 -> 3950 | J116: =IF('Dati Generali CER 2 Sem. 2021'!BN109="","",'Dati Generali CER 2 Sem. 2021'!BN109) -> 
A117: 108 | B117: ='Dati Generali CER 1 Sem. 2021'!C110 -> VILLAFRANCA TIRRENA | C117: =IF('Dati Generali CER 2 Sem. 2021'!E110="","",'Dati Generali CER 2 Sem. 2021'!E110) ->  | D117: =IF(C117="","",'Dati Generali CER 2 Sem. 2021'!BI110) ->  | E117: ='Dati Generali CER 2 Sem. 2021'!W110 ->  | F117: =IF('Dati Generali CER 2 Sem. 2021'!BJ110="","",'Dati Generali CER 2 Sem. 2021'!BJ110) ->  | G117: =IF('Dati Generali CER 2 Sem. 2021'!BK110="","",'Dati Generali CER 2 Sem. 2021'!BK110) ->  | H117: =IF('Dati Generali CER 2 Sem. 2021'!BL110="","",'Dati Generali CER 2 Sem. 2021'!BL110) ->  | I117: ='Dati Generali CER 2 Sem. 2021'!D110 -> 8234 | J117: =IF('Dati Generali CER 2 Sem. 2021'!BN110="","",'Dati Generali CER 2 Sem. 2021'!BN110) -> 
B118: Percentuale media dei 108 Comuni: | F118: ='Dati Generali CER 2 Sem. 2021'!W111 -> 

Sheet Grafico 2 Semestre 2021

Sheet Dati Generali anno 2021
A1: Produzione di Rifiuti Urbani e Raccolta Differenziata ANNO 2021.
A2: =COUNT(E3:E110) -> 108 | B2: ID COMUNE | C2: COMUNE | D2: ABITANTI AL 30/06/2021 | E2: R.S.U. + R.S.A. (Ton/anno) 200301 | F2: R.S.U. COVID (A+A1) 200301* | G2: Altri oli per motori, ingranaggi e lubrificazione (Ton/anno) 130208* | H2: Legno da demolizione (Ton/anno) 170201 | I2: Miscele bituminose (diverse da quelle 170301*) (Ton/anno) 170302 | J2: Alluminio (Ton/anno) 170402 | K2: Ferro e acciaio (Ton/anno) 170405 | L2: Materiali da costruzione contenenti amianto (Ton/anno) 170605* | M2: percolato di discarica,(diverso dalla voce 190702) (Ton/anno) 190703 | N2: Residui di vagliatura (Ton/anno) 190801 | O2: FANGHI DI DEPURAZIONE prodotti dal trattamento delle acque reflue urbane (Ton/anno) 190805 | P2: Altri rifiuti (compresi materiali misti) prodotti dal trattamento meccanico dei rifiuti,(diversi dalla voce 191211) (Ton/anno) 191212 | Q2: Rifiuti della pulizia delle fognature (Ton/anno) 200306 | R2: Residui della pulizia stradale (Ton/anno) 200303 Smaltimento | S2: Ingombranti (Ton/anno) - 200307 Smaltimento | T2: Rifiuti urbani non specificati altrimenti 200399 | U2: RACCOL. DIFFEREN. (Kg/anno) | V2: R.S.U. + R.S.A. + RACC. DIFF. (Kg/anno) | W2: % RACC. DIFF. | X2: Compostaggio Domestico | Y2: Toner per stampa esauriti,(diversi dalla voce 080317) (Ton/anno) 080318 | Z2: Imballaggi Carta e Cartone (Raccolta Selettiva) (Ton/anno) 150101 | AA2: Imballaggi in Plastica (Ton/anno) 150102 | AB2: Imballaggi in Legno (Ton/anno) 150103 | AC2: Imballaaggi in metallo (Ton/anno) 150104 | AD2: Imball. in materiali misti (Ton/anno) 150106 | AE2: Imballaggi in Vetro (Ton/anno) 150107 | AF2: Imballaggi contenenti residui di sostanze pericolose o contaminati da tali sostanze (Ton/anno) 150110* | AG2: Imballaggi metallici contenenti matrici solide porose pericolose (ad esempio amianto) 150111* | AH2: Pneumatici usati (Ton/anno) 160103 | AI2: Filtri dell'olio (Ton/anno) 160107* | AJ2: Apparecchiature fuori uso, contenenti clorofluorocarburi, HCFC, HFC (Ton/anno) 160211* | AK2: Componenti rimossi da apparecchiature fuori uso,(diversi dalla voce 160215) (Ton/anno) 160216 | AL2: Miscugli o frazioni separate di cemento, mattoni, mattonelle e ceramiche(diverse dalla voce 170106) (Ton/anno) 170107 | AM2: Rifiuti misti dell'attività di costruzione e demolizione, (diversi dalle voci 170901, 170902 e 170903) (Ton/anno) 170904 | AN2: Carta e Cartone (Raccolta Congiunta) (Ton/anno) 200101 | AO2: Vetro (Ton/anno) 200102 | AP2: Rifiuti biodegradabili di cucine e mense (Ton/anno) 200108 | AQ2: Abbigliamento (Ton/anno) 200110 | AR2: Prodotti tessili (Ton/anno) 200111 | AS2: Tubi fluorescenti ed altri rifiuti contenenti Mercurio (Ton/anno) 200121* | AT2: Apparec. Fuori uso conten. CFC e mat. peric. (Ton/anno) 200123* | AU2: Oli e Grassi commestibili (Ton/anno) 200125 | AV2: Oli e grassi (diversi dalla voce 200125) (Ton/anno) 200126* | AW2: Medicinali citotossici e citostatici 200131* | AX2: Medicinali (diversi dlla voce 200131*) (Ton/anno) 200132 | AY2: Batterie ed Accumulatori (diversi dalle voci 160601, 160602 e 160603) (Ton/anno) 200133* | AZ2: Batterie ed accumulatori (diversi dlla voce 200133*) (Ton/anno) 200134 | BA2: Apparecc. elettr. ed elettroniche fuori uso contenenti Mat. Peric. (Ton/anno) 200135* | BB2: Apparecc. eletr. ed elettroniche fuori uso(diverse da 200121, 200123 e 200135 (Ton/anno) 200136 | BC2: Legno (Ton/anno) 200138 | BD2: Plastica (Ton/anno) 200139 | BE2: Metallo (Ton/anno) 200140 | BF2: Rifiuti biodegradabili (Ton/anno) 200201 | BG2: Residui della pulizia stradale (Ton/anno) - 200303 Recupero | BH2: Ingombranti (Ton/anno) - 200307 Recupero | BI2: TOTALE RD | BJ2: CER R.D. utilizzati x Comune | BK2: R.S.U. + R.S.A.+ R.D. - (R.T. Kg. pro capite/g) | BL2: R.S.U. + R.S.A. 200301 - (R.I. Kg. pro capite/g) | BM2: R.D. - (Kg. pro capite/g)
A3: ='Dati Generali CER 1 Sem. 2021'!A3 -> 1 | B3: ='Dati Generali CER 1 Sem. 2021'!B3 -> M211 | C3: ='Dati Generali CER 1 Sem. 2021'!C3 -> ACQUEDOLCI | D3: ='Dati Generali CER 2 Sem. 2021'!D3 -> 5584 | E3: =IF(SUM('Dati Generali CER 1 Sem. 2021'!E3,'Dati Generali CER 2 Sem. 2021'!E3)=0,"",SUM('Dati Generali CER 1 Sem. 2021'!E3,'Dati Generali CER 2 Sem. 2021'!E3)/1000) -> 252.25 | F3: =IF(SUM('Dati Generali CER 1 Sem. 2021'!F3,'Dati Generali CER 2 Sem. 2021'!F3)=0,"",SUM('Dati Generali CER 1 Sem. 2021'!F3,'Dati Generali CER 2 Sem. 2021'!F3)/1000) ->  | G3: =IF(SUM('Dati Generali CER 1 Sem. 2021'!G3,'Dati Generali CER 2 Sem. 2021'!G3)=0,"",SUM('Dati Generali CER 1 Sem. 2021'!G3,'Dati Generali CER 2 Sem. 2021'!G3)/1000) ->  | H3: =IF(SUM('Dati Generali CER 1 Sem. 2021'!H3,'Dati Generali CER 2 Sem. 2021'!H3)=0,"",SUM('Dati Generali CER 1 Sem. 2021'!H3,'Dati Generali CER 2 Sem. 2021'!H3)/1000) ->  | I3: =IF(SUM('Dati Generali CER 1 Sem. 2021'!I3,'Dati Generali CER 2 Sem. 2021'!I3)=0,"",SUM('Dati Generali CER 1 Sem. 2021'!I3,'Dati Generali CER 2 Sem. 2021'!I3)/1000) ->  | J3: =IF(SUM('Dati Generali CER 1 Sem. 2021'!J3,'Dati Generali CER 2 Sem. 2021'!J3)=0,"",SUM('Dati Generali CER 1 Sem. 2021'!J3,'Dati Generali CER 2 Sem. 2021'!J3)/1000) ->  | K3: =IF(SUM('Dati Generali CER 1 Sem. 2021'!K3,'Dati Generali CER 2 Sem. 2021'!K3)=0,"",SUM('Dati Generali CER 1 Sem. 2021'!K3,'Dati Generali CER 2 Sem. 2021'!K3)/1000) ->  | L3: =IF(SUM('Dati Generali CER 1 Sem. 2021'!L3,'Dati Generali CER 2 Sem. 2021'!L3)=0,"",SUM('Dati Generali CER 1 Sem. 2021'!L3,'Dati Generali CER 2 Sem. 2021'!L3)/1000) ->  | M3: =IF(SUM('Dati Generali CER 1 Sem. 2021'!M3,'Dati Generali CER 2 Sem. 2021'!M3)=0,"",SUM('Dati Generali CER 1 Sem. 2021'!M3,'Dati Generali CER 2 Sem. 2021'!M3)/1000) ->  | N3: =IF(SUM('Dati Generali CER 1 Sem. 2021'!N3,'Dati Generali CER 2 Sem. 2021'!N3)=0,"",SUM('Dati Generali CER 1 Sem. 2021'!N3,'Dati Generali CER 2 Sem. 2021'!N3)/1000) ->  | O3: =IF(SUM('Dati Generali CER 1 Sem. 2021'!O3,'Dati Generali CER 2 Sem. 2021'!O3)=0,"",SUM('Dati Generali CER 1 Sem. 2021'!O3,'Dati Generali CER 2 Sem. 2021'!O3)/1000) ->  | P3: =IF(SUM('Dati Generali CER 1 Sem. 2021'!P3,'Dati Generali CER 2 Sem. 2021'!P3)=0,"",SUM('Dati Generali CER 1 Sem. 2021'!P3,'Dati Generali CER 2 Sem. 2021'!P3)/1000) ->  | Q3: =IF(SUM('Dati Generali CER 1 Sem. 2021'!Q3,'Dati Generali CER 2 Sem. 2021'!Q3)=0,"",SUM('Dati Generali CER 1 Sem. 2021'!Q3,'Dati Generali CER 2 Sem. 2021'!Q3)/1000) ->  | R3: =IF(SUM('Dati Generali CER 1 Sem. 2021'!R3,'Dati Generali CER 2 Sem. 2021'!R3)=0,"",SUM('Dati Generali CER 1 Sem. 2021'!R3,'Dati Generali CER 2 Sem. 2021'!R3)/1000) ->  | S3: =IF(SUM('Dati Generali CER 1 Sem. 2021'!S3,'Dati Generali CER 2 Sem. 2021'!S3)=0,"",SUM('Dati Generali CER 1 Sem. 2021'!S3,'Dati Generali CER 2 Sem. 2021'!S3)/1000) ->  | T3: =IF(SUM('Dati Generali CER 1 Sem. 2021'!T3,'Dati Generali CER 2 Sem. 2021'!T3)=0,"",SUM('Dati Generali CER 1 Sem. 2021'!T3,'Dati Generali CER 2 Sem. 2021'!T3)/1000) ->  | U3: =IF(E3="","",SUM('Dati Generali CER 1 Sem. 2021'!BI3,'Dati Generali CER 2 Sem. 2021'!BI3)/1000) -> 623.91 | V3: =IF(SUM('Dati Generali CER 1 Sem. 2021'!V3,'Dati Generali CER 2 Sem. 2021'!V3)=0,"",SUM('Dati Generali CER 1 Sem. 2021'!V3,'Dati Generali CER 2 Sem. 2021'!V3)/1000) -> 876.16 | W3: =IF(E3="","",U3/V3) -> 0.7120959642 | X3: =IF(SUM('Dati Generali CER 1 Sem. 2021'!X3,'Dati Generali CER 2 Sem. 2021'!X3)=0,"",SUM('Dati Generali CER 1 Sem. 2021'!X3,'Dati Generali CER 2 Sem. 2021'!X3)/1000) ->  | Y3: =IF(SUM('Dati Generali CER 1 Sem. 2021'!Y3,'Dati Generali CER 2 Sem. 2021'!Y3)=0,"",SUM('Dati Generali CER 1 Sem. 2021'!Y3,'Dati Generali CER 2 Sem. 2021'!Y3)/1000) ->  | Z3: =IF(SUM('Dati Generali CER 1 Sem. 2021'!Z3,'Dati Generali CER 2 Sem. 2021'!Z3)=0,"",SUM('Dati Generali CER 1 Sem. 2021'!Z3,'Dati Generali CER 2 Sem. 2021'!Z3)/1000) -> 24.89 | AA3: =IF(SUM('Dati Generali CER 1 Sem. 2021'!AA3,'Dati Generali CER 2 Sem. 2021'!AA3)=0,"",SUM('Dati Generali CER 1 Sem. 2021'!AA3,'Dati Generali CER 2 Sem. 2021'!AA3)/1000) -> 97.54 | AB3: =IF(SUM('Dati Generali CER 1 Sem. 2021'!AB3,'Dati Generali CER 2 Sem. 2021'!AB3)=0,"",SUM('Dati Generali CER 1 Sem. 2021'!AB3,'Dati Generali CER 2 Sem. 2021'!AB3)/1000) -> 0.17 | AC3: =IF(SUM('Dati Generali CER 1 Sem. 2021'!AC3,'Dati Generali CER 2 Sem. 2021'!AC3)=0,"",SUM('Dati Generali CER 1 Sem. 2021'!AC3,'Dati Generali CER 2 Sem. 2021'!AC3)/1000) ->  | AD3: =IF(SUM('Dati Generali CER 1 Sem. 2021'!AD3,'Dati Generali CER 2 Sem. 2021'!AD3)=0,"",SUM('Dati Generali CER 1 Sem. 2021'!AD3,'Dati Generali CER 2 Sem. 2021'!AD3)/1000) ->  | AE3: =IF(SUM('Dati Generali CER 1 Sem. 2021'!AE3,'Dati Generali CER 2 Sem. 2021'!AE3)=0,"",SUM('Dati Generali CER 1 Sem. 2021'!AE3,'Dati Generali CER 2 Sem. 2021'!AE3)/1000) -> 105.03 | AF3: =IF(SUM('Dati Generali CER 1 Sem. 2021'!AF3,'Dati Generali CER 2 Sem. 2021'!AF3)=0,"",SUM('Dati Generali CER 1 Sem. 2021'!AF3,'Dati Generali CER 2 Sem. 2021'!AF3)/1000) ->  | AG3: =IF(SUM('Dati Generali CER 1 Sem. 2021'!AG3,'Dati Generali CER 2 Sem. 2021'!AG3)=0,"",SUM('Dati Generali CER 1 Sem. 2021'!AG3,'Dati Generali CER 2 Sem. 2021'!AG3)/1000) ->  | AH3: =IF(SUM('Dati Generali CER 1 Sem. 2021'!AH3,'Dati Generali CER 2 Sem. 2021'!AH3)=0,"",SUM('Dati Generali CER 1 Sem. 2021'!AH3,'Dati Generali CER 2 Sem. 2021'!AH3)/1000) ->  | AI3: =IF(SUM('Dati Generali CER 1 Sem. 2021'!AI3,'Dati Generali CER 2 Sem. 2021'!AI3)=0,"",SUM('Dati Generali CER 1 Sem. 2021'!AI3,'Dati Generali CER 2 Sem. 2021'!AI3)/1000) ->  | AJ3: =IF(SUM('Dati Generali CER 1 Sem. 2021'!AJ3,'Dati Generali CER 2 Sem. 2021'!AJ3)=0,"",SUM('Dati Generali CER 1 Sem. 2021'!AJ3,'Dati Generali CER 2 Sem. 2021'!AJ3)/1000) ->  | AK3: =IF(SUM('Dati Generali CER 1 Sem. 2021'!AK3,'Dati Generali CER 2 Sem. 2021'!AK3)=0,"",SUM('Dati Generali CER 1 Sem. 2021'!AK3,'Dati Generali CER 2 Sem. 2021'!AK3)/1000) ->  | AL3: =IF(SUM('Dati Generali CER 1 Sem. 2021'!AL3,'Dati Generali CER 2 Sem. 2021'!AL3)=0,"",SUM('Dati Generali CER 1 Sem. 2021'!AL3,'Dati Generali CER 2 Sem. 2021'!AL3)/1000) ->  | AM3: =IF(SUM('Dati Generali CER 1 Sem. 2021'!AM3,'Dati Generali CER 2 Sem. 2021'!AM3)=0,"",SUM('Dati Generali CER 1 Sem. 2021'!AM3,'Dati Generali CER 2 Sem. 2021'!AM3)/1000) ->  | AN3: =IF(SUM('Dati Generali CER 1 Sem. 2021'!AN3,'Dati Generali CER 2 Sem. 2021'!AN3)=0,"",SUM('Dati Generali CER 1 Sem. 2021'!AN3,'Dati Generali CER 2 Sem. 2021'!AN3)/1000) -> 92.74 | AO3: =IF(SUM('Dati Generali CER 1 Sem. 2021'!AO3,'Dati Generali CER 2 Sem. 2021'!AO3)=0,"",SUM('Dati Generali CER 1 Sem. 2021'!AO3,'Dati Generali CER 2 Sem. 2021'!AO3)/1000) ->  | AP3: =IF(SUM('Dati Generali CER 1 Sem. 2021'!AP3,'Dati Generali CER 2 Sem. 2021'!AP3)=0,"",SUM('Dati Generali CER 1 Sem. 2021'!AP3,'Dati Generali CER 2 Sem. 2021'!AP3)/1000) -> 280.24 | AQ3: =IF(SUM('Dati Generali CER 1 Sem. 2021'!AQ3,'Dati Generali CER 2 Sem. 2021'!AQ3)=0,"",SUM('Dati Generali CER 1 Sem. 2021'!AQ3,'Dati Generali CER 2 Sem. 2021'!AQ3)/1000) ->  | AR3: =IF(SUM('Dati Generali CER 1 Sem. 2021'!AR3,'Dati Generali CER 2 Sem. 2021'!AR3)=0,"",SUM('Dati Generali CER 1 Sem. 2021'!AR3,'Dati Generali CER 2 Sem. 2021'!AR3)/1000) ->  | AS3: =IF(SUM('Dati Generali CER 1 Sem. 2021'!AS3,'Dati Generali CER 2 Sem. 2021'!AS3)=0,"",SUM('Dati Generali CER 1 Sem. 2021'!AS3,'Dati Generali CER 2 Sem. 2021'!AS3)/1000) ->  | AT3: =IF(SUM('Dati Generali CER 1 Sem. 2021'!AT3,'Dati Generali CER 2 Sem. 2021'!AT3)=0,"",SUM('Dati Generali CER 1 Sem. 2021'!AT3,'Dati Generali CER 2 Sem. 2021'!AT3)/1000) -> 2.5 | AU3: =IF(SUM('Dati Generali CER 1 Sem. 2021'!AU3,'Dati Generali CER 2 Sem. 2021'!AU3)=0,"",SUM('Dati Generali CER 1 Sem. 2021'!AU3,'Dati Generali CER 2 Sem. 2021'!AU3)/1000) -> 0.93 | AV3: =IF(SUM('Dati Generali CER 1 Sem. 2021'!AV3,'Dati Generali CER 2 Sem. 2021'!AV3)=0,"",SUM('Dati Generali CER 1 Sem. 2021'!AV3,'Dati Generali CER 2 Sem. 2021'!AV3)/1000) ->  | AW3: =IF(SUM('Dati Generali CER 1 Sem. 2021'!AW3,'Dati Generali CER 2 Sem. 2021'!AW3)=0,"",SUM('Dati Generali CER 1 Sem. 2021'!AW3,'Dati Generali CER 2 Sem. 2021'!AW3)/1000) ->  | AX3: =IF(SUM('Dati Generali CER 1 Sem. 2021'!AX3,'Dati Generali CER 2 Sem. 2021'!AX3)=0,"",SUM('Dati Generali CER 1 Sem. 2021'!AX3,'Dati Generali CER 2 Sem. 2021'!AX3)/1000) ->  | AY3: =IF(SUM('Dati Generali CER 1 Sem. 2021'!AY3,'Dati Generali CER 2 Sem. 2021'!AY3)=0,"",SUM('Dati Generali CER 1 Sem. 2021'!AY3,'Dati Generali CER 2 Sem. 2021'!AY3)/1000) ->  | AZ3: =IF(SUM('Dati Generali CER 1 Sem. 2021'!AZ3,'Dati Generali CER 2 Sem. 2021'!AZ3)=0,"",SUM('Dati Generali CER 1 Sem. 2021'!AZ3,'Dati Generali CER 2 Sem. 2021'!AZ3)/1000) ->  | BA3: =IF(SUM('Dati Generali CER 1 Sem. 2021'!BA3,'Dati Generali CER 2 Sem. 2021'!BA3)=0,"",SUM('Dati Generali CER 1 Sem. 2021'!BA3,'Dati Generali CER 2 Sem. 2021'!BA3)/1000) -> 1.2 | BB3: =IF(SUM('Dati Generali CER 1 Sem. 2021'!BB3,'Dati Generali CER 2 Sem. 2021'!BB3)=0,"",SUM('Dati Generali CER 1 Sem. 2021'!BB3,'Dati Generali CER 2 Sem. 2021'!BB3)/1000) -> 0.9 | BC3: =IF(SUM('Dati Generali CER 1 Sem. 2021'!BC3,'Dati Generali CER 2 Sem. 2021'!BC3)=0,"",SUM('Dati Generali CER 1 Sem. 2021'!BC3,'Dati Generali CER 2 Sem. 2021'!BC3)/1000) ->  | BD3: =IF(SUM('Dati Generali CER 1 Sem. 2021'!BD3,'Dati Generali CER 2 Sem. 2021'!BD3)=0,"",SUM('Dati Generali CER 1 Sem. 2021'!BD3,'Dati Generali CER 2 Sem. 2021'!BD3)/1000) ->  | BE3: =IF(SUM('Dati Generali CER 1 Sem. 2021'!BE3,'Dati Generali CER 2 Sem. 2021'!BE3)=0,"",SUM('Dati Generali CER 1 Sem. 2021'!BE3,'Dati Generali CER 2 Sem. 2021'!BE3)/1000) ->  | BF3: =IF(SUM('Dati Generali CER 1 Sem. 2021'!BF3,'Dati Generali CER 2 Sem. 2021'!BF3)=0,"",SUM('Dati Generali CER 1 Sem. 2021'!BF3,'Dati Generali CER 2 Sem. 2021'!BF3)/1000) ->  | BG3: =IF(SUM('Dati Generali CER 1 Sem. 2021'!BG3,'Dati Generali CER 2 Sem. 2021'!BG3)=0,"",SUM('Dati Generali CER 1 Sem. 2021'!BG3,'Dati Generali CER 2 Sem. 2021'!BG3)/1000) ->  | BH3: =IF(SUM('Dati Generali CER 1 Sem. 2021'!BH3,'Dati Generali CER 2 Sem. 2021'!BH3)=0,"",SUM('Dati Generali CER 1 Sem. 2021'!BH3,'Dati Generali CER 2 Sem. 2021'!BH3)/1000) -> 17.77 | BI3: =IF(SUM('Dati Generali CER 1 Sem. 2021'!BI3,'Dati Generali CER 2 Sem. 2021'!BI3)=0,"",SUM('Dati Generali CER 1 Sem. 2021'!BI3,'Dati Generali CER 2 Sem. 2021'!BI3)/1000) -> 623.91 | BJ3: =IF(COUNT(X3:BH3,E3,R3,S3,T3)=0,"",COUNT(X3:BH3,E3,R3,S3,T3)) -> 12 | BK3: =IF(E3="","",V3/D3/0.365) -> 0.4298779291 | BL3: =IF(E3="","",E3/D3/0.365) -> 0.1237635907 | BM3: =IF(SUM(X3:BH3)=0,"",BI3/D3/0.365) -> 0.3061143384 | BN3: =SUM(E3,R3,S3,T3,X3:BH3) -> 876.16
A4: ='Dati Generali CER 1 Sem. 2021'!A4 -> 2 | B4: ='Dati Generali CER 1 Sem. 2021'!B4 -> A177 | C4: ='Dati Generali CER 1 Sem. 2021'!C4 -> ALCARA LI FUSI | D4: ='Dati Generali CER 2 Sem. 2021'!D4 -> 1774 | E4: =IF(SUM('Dati Generali CER 1 Sem. 2021'!E4,'Dati Generali CER 2 Sem. 2021'!E4)=0,"",SUM('Dati Generali CER 1 Sem. 2021'!E4,'Dati Generali CER 2 Sem. 2021'!E4)/1000) -> 35.481 | F4: =IF(SUM('Dati Generali CER 1 Sem. 2021'!F4,'Dati Generali CER 2 Sem. 2021'!F4)=0,"",SUM('Dati Generali CER 1 Sem. 2021'!F4,'Dati Generali CER 2 Sem. 2021'!F4)/1000) ->  | G4: =IF(SUM('Dati Generali CER 1 Sem. 2021'!G4,'Dati Generali CER 2 Sem. 2021'!G4)=0,"",SUM('Dati Generali CER 1 Sem. 2021'!G4,'Dati Generali CER 2 Sem. 2021'!G4)/1000) ->  | H4: =IF(SUM('Dati Generali CER 1 Sem. 2021'!H4,'Dati Generali CER 2 Sem. 2021'!H4)=0,"",SUM('Dati Generali CER 1 Sem. 2021'!H4,'Dati Generali CER 2 Sem. 2021'!H4)/1000) ->  | I4: =IF(SUM('Dati Generali CER 1 Sem. 2021'!I4,'Dati Generali CER 2 Sem. 2021'!I4)=0,"",SUM('Dati Generali CER 1 Sem. 2021'!I4,'Dati Generali CER 2 Sem. 2021'!I4)/1000) ->  | J4: =IF(SUM('Dati Generali CER 1 Sem. 2021'!J4,'Dati Generali CER 2 Sem. 2021'!J4)=0,"",SUM('Dati Generali CER 1 Sem. 2021'!J4,'Dati Generali CER 2 Sem. 2021'!J4)/1000) ->  | K4: =IF(SUM('Dati Generali CER 1 Sem. 2021'!K4,'Dati Generali CER 2 Sem. 2021'!K4)=0,"",SUM('Dati Generali CER 1 Sem. 2021'!K4,'Dati Generali CER 2 Sem. 2021'!K4)/1000) ->  | L4: =IF(SUM('Dati Generali CER 1 Sem. 2021'!L4,'Dati Generali CER 2 Sem. 2021'!L4)=0,"",SUM('Dati Generali CER 1 Sem. 2021'!L4,'Dati Generali CER 2 Sem. 2021'!L4)/1000) ->  | M4: =IF(SUM('Dati Generali CER 1 Sem. 2021'!M4,'Dati Generali CER 2 Sem. 2021'!M4)=0,"",SUM('Dati Generali CER 1 Sem. 2021'!M4,'Dati Generali CER 2 Sem. 2021'!M4)/1000) ->  | N4: =IF(SUM('Dati Generali CER 1 Sem. 2021'!N4,'Dati Generali CER 2 Sem. 2021'!N4)=0,"",SUM('Dati Generali CER 1 Sem. 2021'!N4,'Dati Generali CER 2 Sem. 2021'!N4)/1000) ->  | O4: =IF(SUM('Dati Generali CER 1 Sem. 2021'!O4,'Dati Generali CER 2 Sem. 2021'!O4)=0,"",SUM('Dati Generali CER 1 Sem. 2021'!O4,'Dati Generali CER 2 Sem. 2021'!O4)/1000) ->  | P4: =IF(SUM('Dati Generali CER 1 Sem. 2021'!P4,'Dati Generali CER 2 Sem. 2021'!P4)=0,"",SUM('Dati Generali CER 1 Sem. 2021'!P4,'Dati Generali CER 2 Sem. 2021'!P4)/1000) ->  | Q4: =IF(SUM('Dati Generali CER 1 Sem. 2021'!Q4,'Dati Generali CER 2 Sem. 2021'!Q4)=0,"",SUM('Dati Generali CER 1 Sem. 2021'!Q4,'Dati Generali CER 2 Sem. 2021'!Q4)/1000) ->  | R4: =IF(SUM('Dati Generali CER 1 Sem. 2021'!R4,'Dati Generali CER 2 Sem. 2021'!R4)=0,"",SUM('Dati Generali CER 1 Sem. 2021'!R4,'Dati Generali CER 2 Sem. 2021'!R4)/1000) ->  | S4: =IF(SUM('Dati Generali CER 1 Sem. 2021'!S4,'Dati Generali CER 2 Sem. 2021'!S4)=0,"",SUM('Dati Generali CER 1 Sem. 2021'!S4,'Dati Generali CER 2 Sem. 2021'!S4)/1000) ->  | T4: =IF(SUM('Dati Generali CER 1 Sem. 2021'!T4,'Dati Generali CER 2 Sem. 2021'!T4)=0,"",SUM('Dati Generali CER 1 Sem. 2021'!T4,'Dati Generali CER 2 Sem. 2021'!T4)/1000) ->  | U4: =IF(E4="","",SUM('Dati Generali CER 1 Sem. 2021'!BI4,'Dati Generali CER 2 Sem. 2021'!BI4)/1000) -> 158.662 | V4: =IF(SUM('Dati Generali CER 1 Sem. 2021'!V4,'Dati Generali CER 2 Sem. 2021'!V4)=0,"",SUM('Dati Generali CER 1 Sem. 2021'!V4,'Dati Generali CER 2 Sem. 2021'!V4)/1000) -> 194.143 | W4: 0.8172429601 | X4: =IF(SUM('Dati Generali CER 1 Sem. 2021'!X4,'Dati Generali CER 2 Sem. 2021'!X4)=0,"",SUM('Dati Generali CER 1 Sem. 2021'!X4,'Dati Generali CER 2 Sem. 2021'!X4)/1000) ->  | Y4: =IF(SUM('Dati Generali CER 1 Sem. 2021'!Y4,'Dati Generali CER 2 Sem. 2021'!Y4)=0,"",SUM('Dati Generali CER 1 Sem. 2021'!Y4,'Dati Generali CER 2 Sem. 2021'!Y4)/1000) -> 0.02 | Z4: =IF(SUM('Dati Generali CER 1 Sem. 2021'!Z4,'Dati Generali CER 2 Sem. 2021'!Z4)=0,"",SUM('Dati Generali CER 1 Sem. 2021'!Z4,'Dati Generali CER 2 Sem. 2021'!Z4)/1000) -> 5.16 | AA4: =IF(SUM('Dati Generali CER 1 Sem. 2021'!AA4,'Dati Generali CER 2 Sem. 2021'!AA4)=0,"",SUM('Dati Generali CER 1 Sem. 2021'!AA4,'Dati Generali CER 2 Sem. 2021'!AA4)/1000) -> 20.92 | AB4: =IF(SUM('Dati Generali CER 1 Sem. 2021'!AB4,'Dati Generali CER 2 Sem. 2021'!AB4)=0,"",SUM('Dati Generali CER 1 Sem. 2021'!AB4,'Dati Generali CER 2 Sem. 2021'!AB4)/1000) ->  | AC4: =IF(SUM('Dati Generali CER 1 Sem. 2021'!AC4,'Dati Generali CER 2 Sem. 2021'!AC4)=0,"",SUM('Dati Generali CER 1 Sem. 2021'!AC4,'Dati Generali CER 2 Sem. 2021'!AC4)/1000) ->  | AD4: =IF(SUM('Dati Generali CER 1 Sem. 2021'!AD4,'Dati Generali CER 2 Sem. 2021'!AD4)=0,"",SUM('Dati Generali CER 1 Sem. 2021'!AD4,'Dati Generali CER 2 Sem. 2021'!AD4)/1000) ->  | AE4: =IF(SUM('Dati Generali CER 1 Sem. 2021'!AE4,'Dati Generali CER 2 Sem. 2021'!AE4)=0,"",SUM('Dati Generali CER 1 Sem. 2021'!AE4,'Dati Generali CER 2 Sem. 2021'!AE4)/1000) -> 32.47 | AF4: =IF(SUM('Dati Generali CER 1 Sem. 2021'!AF4,'Dati Generali CER 2 Sem. 2021'!AF4)=0,"",SUM('Dati Generali CER 1 Sem. 2021'!AF4,'Dati Generali CER 2 Sem. 2021'!AF4)/1000) ->  | AG4: =IF(SUM('Dati Generali CER 1 Sem. 2021'!AG4,'Dati Generali CER 2 Sem. 2021'!AG4)=0,"",SUM('Dati Generali CER 1 Sem. 2021'!AG4,'Dati Generali CER 2 Sem. 2021'!AG4)/1000) ->  | AH4: =IF(SUM('Dati Generali CER 1 Sem. 2021'!AH4,'Dati Generali CER 2 Sem. 2021'!AH4)=0,"",SUM('Dati Generali CER 1 Sem. 2021'!AH4,'Dati Generali CER 2 Sem. 2021'!AH4)/1000) ->  | AI4: =IF(SUM('Dati Generali CER 1 Sem. 2021'!AI4,'Dati Generali CER 2 Sem. 2021'!AI4)=0,"",SUM('Dati Generali CER 1 Sem. 2021'!AI4,'Dati Generali CER 2 Sem. 2021'!AI4)/1000) ->  | AJ4: =IF(SUM('Dati Generali CER 1 Sem. 2021'!AJ4,'Dati Generali CER 2 Sem. 2021'!AJ4)=0,"",SUM('Dati Generali CER 1 Sem. 2021'!AJ4,'Dati Generali CER 2 Sem. 2021'!AJ4)/1000) ->  | AK4: =IF(SUM('Dati Generali CER 1 Sem. 2021'!AK4,'Dati Generali CER 2 Sem. 2021'!AK4)=0,"",SUM('Dati Generali CER 1 Sem. 2021'!AK4,'Dati Generali CER 2 Sem. 2021'!AK4)/1000) ->  | AL4: =IF(SUM('Dati Generali CER 1 Sem. 2021'!AL4,'Dati Generali CER 2 Sem. 2021'!AL4)=0,"",SUM('Dati Generali CER 1 Sem. 2021'!AL4,'Dati Generali CER 2 Sem. 2021'!AL4)/1000) ->  | AM4: =IF(SUM('Dati Generali CER 1 Sem. 2021'!AM4,'Dati Generali CER 2 Sem. 2021'!AM4)=0,"",SUM('Dati Generali CER 1 Sem. 2021'!AM4,'Dati Generali CER 2 Sem. 2021'!AM4)/1000) ->  | AN4: =IF(SUM('Dati Generali CER 1 Sem. 2021'!AN4,'Dati Generali CER 2 Sem. 2021'!AN4)=0,"",SUM('Dati Generali CER 1 Sem. 2021'!AN4,'Dati Generali CER 2 Sem. 2021'!AN4)/1000) -> 18.01 | AO4: =IF(SUM('Dati Generali CER 1 Sem. 2021'!AO4,'Dati Generali CER 2 Sem. 2021'!AO4)=0,"",SUM('Dati Generali CER 1 Sem. 2021'!AO4,'Dati Generali CER 2 Sem. 2021'!AO4)/1000) ->  | AP4: =IF(SUM('Dati Generali CER 1 Sem. 2021'!AP4,'Dati Generali CER 2 Sem. 2021'!AP4)=0,"",SUM('Dati Generali CER 1 Sem. 2021'!AP4,'Dati Generali CER 2 Sem. 2021'!AP4)/1000) -> 70.6 | AQ4: =IF(SUM('Dati Generali CER 1 Sem. 2021'!AQ4,'Dati Generali CER 2 Sem. 2021'!AQ4)=0,"",SUM('Dati Generali CER 1 Sem. 2021'!AQ4,'Dati Generali CER 2 Sem. 2021'!AQ4)/1000) -> 2.912 | AR4: =IF(SUM('Dati Generali CER 1 Sem. 2021'!AR4,'Dati Generali CER 2 Sem. 2021'!AR4)=0,"",SUM('Dati Generali CER 1 Sem. 2021'!AR4,'Dati Generali CER 2 Sem. 2021'!AR4)/1000) ->  | AS4: =IF(SUM('Dati Generali CER 1 Sem. 2021'!AS4,'Dati Generali CER 2 Sem. 2021'!AS4)=0,"",SUM('Dati Generali CER 1 Sem. 2021'!AS4,'Dati Generali CER 2 Sem. 2021'!AS4)/1000) ->  | AT4: =IF(SUM('Dati Generali CER 1 Sem. 2021'!AT4,'Dati Generali CER 2 Sem. 2021'!AT4)=0,"",SUM('Dati Generali CER 1 Sem. 2021'!AT4,'Dati Generali CER 2 Sem. 2021'!AT4)/1000) -> 1.44 | AU4: =IF(SUM('Dati Generali CER 1 Sem. 2021'!AU4,'Dati Generali CER 2 Sem. 2021'!AU4)=0,"",SUM('Dati Generali CER 1 Sem. 2021'!AU4,'Dati Generali CER 2 Sem. 2021'!AU4)/1000) ->  | AV4: =IF(SUM('Dati Generali CER 1 Sem. 2021'!AV4,'Dati Generali CER 2 Sem. 2021'!AV4)=0,"",SUM('Dati Generali CER 1 Sem. 2021'!AV4,'Dati Generali CER 2 Sem. 2021'!AV4)/1000) ->  | AW4: =IF(SUM('Dati Generali CER 1 Sem. 2021'!AW4,'Dati Generali CER 2 Sem. 2021'!AW4)=0,"",SUM('Dati Generali CER 1 Sem. 2021'!AW4,'Dati Generali CER 2 Sem. 2021'!AW4)/1000) ->  | AX4: =IF(SUM('Dati Generali CER 1 Sem. 2021'!AX4,'Dati Generali CER 2 Sem. 2021'!AX4)=0,"",SUM('Dati Generali CER 1 Sem. 2021'!AX4,'Dati Generali CER 2 Sem. 2021'!AX4)/1000) ->  | AY4: =IF(SUM('Dati Generali CER 1 Sem. 2021'!AY4,'Dati Generali CER 2 Sem. 2021'!AY4)=0,"",SUM('Dati Generali CER 1 Sem. 2021'!AY4,'Dati Generali CER 2 Sem. 2021'!AY4)/1000) ->  | AZ4: =IF(SUM('Dati Generali CER 1 Sem. 2021'!AZ4,'Dati Generali CER 2 Sem. 2021'!AZ4)=0,"",SUM('Dati Generali CER 1 Sem. 2021'!AZ4,'Dati Generali CER 2 Sem. 2021'!AZ4)/1000) ->  | BA4: =IF(SUM('Dati Generali CER 1 Sem. 2021'!BA4,'Dati Generali CER 2 Sem. 2021'!BA4)=0,"",SUM('Dati Generali CER 1 Sem. 2021'!BA4,'Dati Generali CER 2 Sem. 2021'!BA4)/1000) -> 1.72 | BB4: =IF(SUM('Dati Generali CER 1 Sem. 2021'!BB4,'Dati Generali CER 2 Sem. 2021'!BB4)=0,"",SUM('Dati Generali CER 1 Sem. 2021'!BB4,'Dati Generali CER 2 Sem. 2021'!BB4)/1000) -> 0.89 | BC4: =IF(SUM('Dati Generali CER 1 Sem. 2021'!BC4,'Dati Generali CER 2 Sem. 2021'!BC4)=0,"",SUM('Dati Generali CER 1 Sem. 2021'!BC4,'Dati Generali CER 2 Sem. 2021'!BC4)/1000) ->  | BD4: =IF(SUM('Dati Generali CER 1 Sem. 2021'!BD4,'Dati Generali CER 2 Sem. 2021'!BD4)=0,"",SUM('Dati Generali CER 1 Sem. 2021'!BD4,'Dati Generali CER 2 Sem. 2021'!BD4)/1000) ->  | BE4: =IF(SUM('Dati Generali CER 1 Sem. 2021'!BE4,'Dati Generali CER 2 Sem. 2021'!BE4)=0,"",SUM('Dati Generali CER 1 Sem. 2021'!BE4,'Dati Generali CER 2 Sem. 2021'!BE4)/1000) ->  | BF4: =IF(SUM('Dati Generali CER 1 Sem. 2021'!BF4,'Dati Generali CER 2 Sem. 2021'!BF4)=0,"",SUM('Dati Generali CER 1 Sem. 2021'!BF4,'Dati Generali CER 2 Sem. 2021'!BF4)/1000) ->  | BG4: =IF(SUM('Dati Generali CER 1 Sem. 2021'!BG4,'Dati Generali CER 2 Sem. 2021'!BG4)=0,"",SUM('Dati Generali CER 1 Sem. 2021'!BG4,'Dati Generali CER 2 Sem. 2021'!BG4)/1000) ->  | BH4: =IF(SUM('Dati Generali CER 1 Sem. 2021'!BH4,'Dati Generali CER 2 Sem. 2021'!BH4)=0,"",SUM('Dati Generali CER 1 Sem. 2021'!BH4,'Dati Generali CER 2 Sem. 2021'!BH4)/1000) -> 4.52 | BI4: =IF(SUM('Dati Generali CER 1 Sem. 2021'!BI4,'Dati Generali CER 2 Sem. 2021'!BI4)=0,"",SUM('Dati Generali CER 1 Sem. 2021'!BI4,'Dati Generali CER 2 Sem. 2021'!BI4)/1000) -> 158.662 | BJ4: =IF(COUNT(X4:BH4,E4,R4,S4,T4)=0,"",COUNT(X4:BH4,E4,R4,S4,T4)) -> 12 | BK4: 0.2998301185 | BL4: =IF(E4="","",E4/D4/0.365) -> 0.05479606493 | BM4: =IF(SUM(X4:BH4)=0,"",BI4/D4/0.365) -> 0.2450340535 | BN4: =SUM(E4,R4,S4,T4,X4:BH4) -> 194.143
A5: ='Dati Generali CER 1 Sem. 2021'!A5 -> 3 | B5: ='Dati Generali CER 1 Sem. 2021'!B5 -> A194 | C5: ='Dati Generali CER 1 Sem. 2021'!C5 -> ALI' | D5: ='Dati Generali CER 2 Sem. 2021'!D5 -> 676 | E5: =IF(SUM('Dati Generali CER 1 Sem. 2021'!E5,'Dati Generali CER 2 Sem. 2021'!E5)=0,"",SUM('Dati Generali CER 1 Sem. 2021'!E5,'Dati Generali CER 2 Sem. 2021'!E5)/1000) -> 17.74 | F5: =IF(SUM('Dati Generali CER 1 Sem. 2021'!F5,'Dati Generali CER 2 Sem. 2021'!F5)=0,"",SUM('Dati Generali CER 1 Sem. 2021'!F5,'Dati Generali CER 2 Sem. 2021'!F5)/1000) ->  | G5: =IF(SUM('Dati Generali CER 1 Sem. 2021'!G5,'Dati Generali CER 2 Sem. 2021'!G5)=0,"",SUM('Dati Generali CER 1 Sem. 2021'!G5,'Dati Generali CER 2 Sem. 2021'!G5)/1000) ->  | H5: =IF(SUM('Dati Generali CER 1 Sem. 2021'!H5,'Dati Generali CER 2 Sem. 2021'!H5)=0,"",SUM('Dati Generali CER 1 Sem. 2021'!H5,'Dati Generali CER 2 Sem. 2021'!H5)/1000) ->  | I5: =IF(SUM('Dati Generali CER 1 Sem. 2021'!I5,'Dati Generali CER 2 Sem. 2021'!I5)=0,"",SUM('Dati Generali CER 1 Sem. 2021'!I5,'Dati Generali CER 2 Sem. 2021'!I5)/1000) ->  | J5: =IF(SUM('Dati Generali CER 1 Sem. 2021'!J5,'Dati Generali CER 2 Sem. 2021'!J5)=0,"",SUM('Dati Generali CER 1 Sem. 2021'!J5,'Dati Generali CER 2 Sem. 2021'!J5)/1000) ->  | K5: =IF(SUM('Dati Generali CER 1 Sem. 2021'!K5,'Dati Generali CER 2 Sem. 2021'!K5)=0,"",SUM('Dati Generali CER 1 Sem. 2021'!K5,'Dati Generali CER 2 Sem. 2021'!K5)/1000) ->  | L5: =IF(SUM('Dati Generali CER 1 Sem. 2021'!L5,'Dati Generali CER 2 Sem. 2021'!L5)=0,"",SUM('Dati Generali CER 1 Sem. 2021'!L5,'Dati Generali CER 2 Sem. 2021'!L5)/1000) ->  | M5: =IF(SUM('Dati Generali CER 1 Sem. 2021'!M5,'Dati Generali CER 2 Sem. 2021'!M5)=0,"",SUM('Dati Generali CER 1 Sem. 2021'!M5,'Dati Generali CER 2 Sem. 2021'!M5)/1000) ->  | N5: =IF(SUM('Dati Generali CER 1 Sem. 2021'!N5,'Dati Generali CER 2 Sem. 2021'!N5)=0,"",SUM('Dati Generali CER 1 Sem. 2021'!N5,'Dati Generali CER 2 Sem. 2021'!N5)/1000) ->  | O5: =IF(SUM('Dati Generali CER 1 Sem. 2021'!O5,'Dati Generali CER 2 Sem. 2021'!O5)=0,"",SUM('Dati Generali CER 1 Sem. 2021'!O5,'Dati Generali CER 2 Sem. 2021'!O5)/1000) ->  | P5: =IF(SUM('Dati Generali CER 1 Sem. 2021'!P5,'Dati Generali CER 2 Sem. 2021'!P5)=0,"",SUM('Dati Generali CER 1 Sem. 2021'!P5,'Dati Generali CER 2 Sem. 2021'!P5)/1000) ->  | Q5: =IF(SUM('Dati Generali CER 1 Sem. 2021'!Q5,'Dati Generali CER 2 Sem. 2021'!Q5)=0,"",SUM('Dati Generali CER 1 Sem. 2021'!Q5,'Dati Generali CER 2 Sem. 2021'!Q5)/1000) ->  | R5: =IF(SUM('Dati Generali CER 1 Sem. 2021'!R5,'Dati Generali CER 2 Sem. 2021'!R5)=0,"",SUM('Dati Generali CER 1 Sem. 2021'!R5,'Dati Generali CER 2 Sem. 2021'!R5)/1000) ->  | S5: =IF(SUM('Dati Generali CER 1 Sem. 2021'!S5,'Dati Generali CER 2 Sem. 2021'!S5)=0,"",SUM('Dati Generali CER 1 Sem. 2021'!S5,'Dati Generali CER 2 Sem. 2021'!S5)/1000) ->  | T5: =IF(SUM('Dati Generali CER 1 Sem. 2021'!T5,'Dati Generali CER 2 Sem. 2021'!T5)=0,"",SUM('Dati Generali CER 1 Sem. 2021'!T5,'Dati Generali CER 2 Sem. 2021'!T5)/1000) ->  | U5: =IF(E5="","",SUM('Dati Generali CER 1 Sem. 2021'!BI5,'Dati Generali CER 2 Sem. 2021'!BI5)/1000) -> 56.57 | V5: =IF(SUM('Dati Generali CER 1 Sem. 2021'!V5,'Dati Generali CER 2 Sem. 2021'!V5)=0,"",SUM('Dati Generali CER 1 Sem. 2021'!V5,'Dati Generali CER 2 Sem. 2021'!V5)/1000) -> 74.31 | W5: 0.7612703539 | X5: =IF(SUM('Dati Generali CER 1 Sem. 2021'!X5,'Dati Generali CER 2 Sem. 2021'!X5)=0,"",SUM('Dati Generali CER 1 Sem. 2021'!X5,'Dati Generali CER 2 Sem. 2021'!X5)/1000) ->  | Y5: =IF(SUM('Dati Generali CER 1 Sem. 2021'!Y5,'Dati Generali CER 2 Sem. 2021'!Y5)=0,"",SUM('Dati Generali CER 1 Sem. 2021'!Y5,'Dati Generali CER 2 Sem. 2021'!Y5)/1000) ->  | Z5: =IF(SUM('Dati Generali CER 1 Sem. 2021'!Z5,'Dati Generali CER 2 Sem. 2021'!Z5)=0,"",SUM('Dati Generali CER 1 Sem. 2021'!Z5,'Dati Generali CER 2 Sem. 2021'!Z5)/1000) ->  | AA5: =IF(SUM('Dati Generali CER 1 Sem. 2021'!AA5,'Dati Generali CER 2 Sem. 2021'!AA5)=0,"",SUM('Dati Generali CER 1 Sem. 2021'!AA5,'Dati Generali CER 2 Sem. 2021'!AA5)/1000) ->  | AB5: =IF(SUM('Dati Generali CER 1 Sem. 2021'!AB5,'Dati Generali CER 2 Sem. 2021'!AB5)=0,"",SUM('Dati Generali CER 1 Sem. 2021'!AB5,'Dati Generali CER 2 Sem. 2021'!AB5)/1000) ->  | AC5: =IF(SUM('Dati Generali CER 1 Sem. 2021'!AC5,'Dati Generali CER 2 Sem. 2021'!AC5)=0,"",SUM('Dati Generali CER 1 Sem. 2021'!AC5,'Dati Generali CER 2 Sem. 2021'!AC5)/1000) ->  | AD5: =IF(SUM('Dati Generali CER 1 Sem. 2021'!AD5,'Dati Generali CER 2 Sem. 2021'!AD5)=0,"",SUM('Dati Generali CER 1 Sem. 2021'!AD5,'Dati Generali CER 2 Sem. 2021'!AD5)/1000) -> 7.76 | AE5: =IF(SUM('Dati Generali CER 1 Sem. 2021'!AE5,'Dati Generali CER 2 Sem. 2021'!AE5)=0,"",SUM('Dati Generali CER 1 Sem. 2021'!AE5,'Dati Generali CER 2 Sem. 2021'!AE5)/1000) -> 7.28 | AF5: =IF(SUM('Dati Generali CER 1 Sem. 2021'!AF5,'Dati Generali CER 2 Sem. 2021'!AF5)=0,"",SUM('Dati Generali CER 1 Sem. 2021'!AF5,'Dati Generali CER 2 Sem. 2021'!AF5)/1000) ->  | AG5: =IF(SUM('Dati Generali CER 1 Sem. 2021'!AG5,'Dati Generali CER 2 Sem. 2021'!AG5)=0,"",SUM('Dati Generali CER 1 Sem. 2021'!AG5,'Dati Generali CER 2 Sem. 2021'!AG5)/1000) ->  | AH5: =IF(SUM('Dati Generali CER 1 Sem. 2021'!AH5,'Dati Generali CER 2 Sem. 2021'!AH5)=0,"",SUM('Dati Generali CER 1 Sem. 2021'!AH5,'Dati Generali CER 2 Sem. 2021'!AH5)/1000) ->  | AI5: =IF(SUM('Dati Generali CER 1 Sem. 2021'!AI5,'Dati Generali CER 2 Sem. 2021'!AI5)=0,"",SUM('Dati Generali CER 1 Sem. 2021'!AI5,'Dati Generali CER 2 Sem. 2021'!AI5)/1000) ->  | AJ5: =IF(SUM('Dati Generali CER 1 Sem. 2021'!AJ5,'Dati Generali CER 2 Sem. 2021'!AJ5)=0,"",SUM('Dati Generali CER 1 Sem. 2021'!AJ5,'Dati Generali CER 2 Sem. 2021'!AJ5)/1000) ->  | AK5: =IF(SUM('Dati Generali CER 1 Sem. 2021'!AK5,'Dati Generali CER 2 Sem. 2021'!AK5)=0,"",SUM('Dati Generali CER 1 Sem. 2021'!AK5,'Dati Generali CER 2 Sem. 2021'!AK5)/1000) ->  | AL5: =IF(SUM('Dati Generali CER 1 Sem. 2021'!AL5,'Dati Generali CER 2 Sem. 2021'!AL5)=0,"",SUM('Dati Generali CER 1 Sem. 2021'!AL5,'Dati Generali CER 2 Sem. 2021'!AL5)/1000) ->  | AM5: =IF(SUM('Dati Generali CER 1 Sem. 2021'!AM5,'Dati Generali CER 2 Sem. 2021'!AM5)=0,"",SUM('Dati Generali CER 1 Sem. 2021'!AM5,'Dati Generali CER 2 Sem. 2021'!AM5)/1000) ->  | AN5: =IF(SUM('Dati Generali CER 1 Sem. 2021'!AN5,'Dati Generali CER 2 Sem. 2021'!AN5)=0,"",SUM('Dati Generali CER 1 Sem. 2021'!AN5,'Dati Generali CER 2 Sem. 2021'!AN5)/1000) -> 7.37 | AO5: =IF(SUM('Dati Generali CER 1 Sem. 2021'!AO5,'Dati Generali CER 2 Sem. 2021'!AO5)=0,"",SUM('Dati Generali CER 1 Sem. 2021'!AO5,'Dati Generali CER 2 Sem. 2021'!AO5)/1000) -> 29.44 | AP5: =IF(SUM('Dati Generali CER 1 Sem. 2021'!AP5,'Dati Generali CER 2 Sem. 2021'!AP5)=0,"",SUM('Dati Generali CER 1 Sem. 2021'!AP5,'Dati Generali CER 2 Sem. 2021'!AP5)/1000) ->  | AQ5: =IF(SUM('Dati Generali CER 1 Sem. 2021'!AQ5,'Dati Generali CER 2 Sem. 2021'!AQ5)=0,"",SUM('Dati Generali CER 1 Sem. 2021'!AQ5,'Dati Generali CER 2 Sem. 2021'!AQ5)/1000) ->  | AR5: =IF(SUM('Dati Generali CER 1 Sem. 2021'!AR5,'Dati Generali CER 2 Sem. 2021'!AR5)=0,"",SUM('Dati Generali CER 1 Sem. 2021'!AR5,'Dati Generali CER 2 Sem. 2021'!AR5)/1000) ->  | AS5: =IF(SUM('Dati Generali CER 1 Sem. 2021'!AS5,'Dati Generali CER 2 Sem. 2021'!AS5)=0,"",SUM('Dati Generali CER 1 Sem. 2021'!AS5,'Dati Generali CER 2 Sem. 2021'!AS5)/1000) ->  | AT5: =IF(SUM('Dati Generali CER 1 Sem. 2021'!AT5,'Dati Generali CER 2 Sem. 2021'!AT5)=0,"",SUM('Dati Generali CER 1 Sem. 2021'!AT5,'Dati Generali CER 2 Sem. 2021'!AT5)/1000) ->  | AU5: =IF(SUM('Dati Generali CER 1 Sem. 2021'!AU5,'Dati Generali CER 2 Sem. 2021'!AU5)=0,"",SUM('Dati Generali CER 1 Sem. 2021'!AU5,'Dati Generali CER 2 Sem. 2021'!AU5)/1000) ->  | AV5: =IF(SUM('Dati Generali CER 1 Sem. 2021'!AV5,'Dati Generali CER 2 Sem. 2021'!AV5)=0,"",SUM('Dati Generali CER 1 Sem. 2021'!AV5,'Dati Generali CER 2 Sem. 2021'!AV5)/1000) ->  | AW5: =IF(SUM('Dati Generali CER 1 Sem. 2021'!AW5,'Dati Generali CER 2 Sem. 2021'!AW5)=0,"",SUM('Dati Generali CER 1 Sem. 2021'!AW5,'Dati Generali CER 2 Sem. 2021'!AW5)/1000) ->  | AX5: =IF(SUM('Dati Generali CER 1 Sem. 2021'!AX5,'Dati Generali CER 2 Sem. 2021'!AX5)=0,"",SUM('Dati Generali CER 1 Sem. 2021'!AX5,'Dati Generali CER 2 Sem. 2021'!AX5)/1000) -> 0.02 | AY5: =IF(SUM('Dati Generali CER 1 Sem. 2021'!AY5,'Dati Generali CER 2 Sem. 2021'!AY5)=0,"",SUM('Dati Generali CER 1 Sem. 2021'!AY5,'Dati Generali CER 2 Sem. 2021'!AY5)/1000) ->  | AZ5: =IF(SUM('Dati Generali CER 1 Sem. 2021'!AZ5,'Dati Generali CER 2 Sem. 2021'!AZ5)=0,"",SUM('Dati Generali CER 1 Sem. 2021'!AZ5,'Dati Generali CER 2 Sem. 2021'!AZ5)/1000) ->  | BA5: =IF(SUM('Dati Generali CER 1 Sem. 2021'!BA5,'Dati Generali CER 2 Sem. 2021'!BA5)=0,"",SUM('Dati Generali CER 1 Sem. 2021'!BA5,'Dati Generali CER 2 Sem. 2021'!BA5)/1000) ->  | BB5: =IF(SUM('Dati Generali CER 1 Sem. 2021'!BB5,'Dati Generali CER 2 Sem. 2021'!BB5)=0,"",SUM('Dati Generali CER 1 Sem. 2021'!BB5,'Dati Generali CER 2 Sem. 2021'!BB5)/1000) ->  | BC5: =IF(SUM('Dati Generali CER 1 Sem. 2021'!BC5,'Dati Generali CER 2 Sem. 2021'!BC5)=0,"",SUM('Dati Generali CER 1 Sem. 2021'!BC5,'Dati Generali CER 2 Sem. 2021'!BC5)/1000) ->  | BD5: =IF(SUM('Dati Generali CER 1 Sem. 2021'!BD5,'Dati Generali CER 2 Sem. 2021'!BD5)=0,"",SUM('Dati Generali CER 1 Sem. 2021'!BD5,'Dati Generali CER 2 Sem. 2021'!BD5)/1000) ->  | BE5: =IF(SUM('Dati Generali CER 1 Sem. 2021'!BE5,'Dati Generali CER 2 Sem. 2021'!BE5)=0,"",SUM('Dati Generali CER 1 Sem. 2021'!BE5,'Dati Generali CER 2 Sem. 2021'!BE5)/1000) ->  | BF5: =IF(SUM('Dati Generali CER 1 Sem. 2021'!BF5,'Dati Generali CER 2 Sem. 2021'!BF5)=0,"",SUM('Dati Generali CER 1 Sem. 2021'!BF5,'Dati Generali CER 2 Sem. 2021'!BF5)/1000) ->  | BG5: =IF(SUM('Dati Generali CER 1 Sem. 2021'!BG5,'Dati Generali CER 2 Sem. 2021'!BG5)=0,"",SUM('Dati Generali CER 1 Sem. 2021'!BG5,'Dati Generali CER 2 Sem. 2021'!BG5)/1000) ->  | BH5: =IF(SUM('Dati Generali CER 1 Sem. 2021'!BH5,'Dati Generali CER 2 Sem. 2021'!BH5)=0,"",SUM('Dati Generali CER 1 Sem. 2021'!BH5,'Dati Generali CER 2 Sem. 2021'!BH5)/1000) -> 4.7 | BI5: =IF(SUM('Dati Generali CER 1 Sem. 2021'!BI5,'Dati Generali CER 2 Sem. 2021'!BI5)=0,"",SUM('Dati Generali CER 1 Sem. 2021'!BI5,'Dati Generali CER 2 Sem. 2021'!BI5)/1000) -> 56.57 | BJ5: =IF(COUNT(X5:BH5,E5,R5,S5,T5)=0,"",COUNT(X5:BH5,E5,R5,S5,T5)) -> 7 | BK5: 0.3011672206 | BL5: =IF(E5="","",E5/D5/0.365) -> 0.07189754397 | BM5: =IF(SUM(X5:BH5)=0,"",BI5/D5/0.365) -> 0.2292696766 | BN5: =SUM(E5,R5,S5,T5,X5:BH5) -> 74.31
A6: ='Dati Generali CER 1 Sem. 2021'!A6 -> 4 | B6: ='Dati Generali CER 1 Sem. 2021'!B6 -> A201 | C6: ='Dati Generali CER 1 Sem. 2021'!C6 -> ALI' TERME | D6: ='Dati Generali CER 2 Sem. 2021'!D6 -> 2385 | E6: =IF(SUM('Dati Generali CER 1 Sem. 2021'!E6,'Dati Generali CER 2 Sem. 2021'!E6)=0,"",SUM('Dati Generali CER 1 Sem. 2021'!E6,'Dati Generali CER 2 Sem. 2021'!E6)/1000) -> 144.87 | F6: =IF(SUM('Dati Generali CER 1 Sem. 2021'!F6,'Dati Generali CER 2 Sem. 2021'!F6)=0,"",SUM('Dati Generali CER 1 Sem. 2021'!F6,'Dati Generali CER 2 Sem. 2021'!F6)/1000) ->  | G6: =IF(SUM('Dati Generali CER 1 Sem. 2021'!G6,'Dati Generali CER 2 Sem. 2021'!G6)=0,"",SUM('Dati Generali CER 1 Sem. 2021'!G6,'Dati Generali CER 2 Sem. 2021'!G6)/1000) ->  | H6: =IF(SUM('Dati Generali CER 1 Sem. 2021'!H6,'Dati Generali CER 2 Sem. 2021'!H6)=0,"",SUM('Dati Generali CER 1 Sem. 2021'!H6,'Dati Generali CER 2 Sem. 2021'!H6)/1000) ->  | I6: =IF(SUM('Dati Generali CER 1 Sem. 2021'!I6,'Dati Generali CER 2 Sem. 2021'!I6)=0,"",SUM('Dati Generali CER 1 Sem. 2021'!I6,'Dati Generali CER 2 Sem. 2021'!I6)/1000) ->  | J6: =IF(SUM('Dati Generali CER 1 Sem. 2021'!J6,'Dati Generali CER 2 Sem. 2021'!J6)=0,"",SUM('Dati Generali CER 1 Sem. 2021'!J6,'Dati Generali CER 2 Sem. 2021'!J6)/1000) ->  | K6: =IF(SUM('Dati Generali CER 1 Sem. 2021'!K6,'Dati Generali CER 2 Sem. 2021'!K6)=0,"",SUM('Dati Generali CER 1 Sem. 2021'!K6,'Dati Generali CER 2 Sem. 2021'!K6)/1000) ->  | L6: =IF(SUM('Dati Generali CER 1 Sem. 2021'!L6,'Dati Generali CER 2 Sem. 2021'!L6)=0,"",SUM('Dati Generali CER 1 Sem. 2021'!L6,'Dati Generali CER 2 Sem. 2021'!L6)/1000) ->  | M6: =IF(SUM('Dati Generali CER 1 Sem. 2021'!M6,'Dati Generali CER 2 Sem. 2021'!M6)=0,"",SUM('Dati Generali CER 1 Sem. 2021'!M6,'Dati Generali CER 2 Sem. 2021'!M6)/1000) ->  | N6: =IF(SUM('Dati Generali CER 1 Sem. 2021'!N6,'Dati Generali CER 2 Sem. 2021'!N6)=0,"",SUM('Dati Generali CER 1 Sem. 2021'!N6,'Dati Generali CER 2 Sem. 2021'!N6)/1000) ->  | O6: =IF(SUM('Dati Generali CER 1 Sem. 2021'!O6,'Dati Generali CER 2 Sem. 2021'!O6)=0,"",SUM('Dati Generali CER 1 Sem. 2021'!O6,'Dati Generali CER 2 Sem. 2021'!O6)/1000) ->  | P6: =IF(SUM('Dati Generali CER 1 Sem. 2021'!P6,'Dati Generali CER 2 Sem. 2021'!P6)=0,"",SUM('Dati Generali CER 1 Sem. 2021'!P6,'Dati Generali CER 2 Sem. 2021'!P6)/1000) ->  | Q6: =IF(SUM('Dati Generali CER 1 Sem. 2021'!Q6,'Dati Generali CER 2 Sem. 2021'!Q6)=0,"",SUM('Dati Generali CER 1 Sem. 2021'!Q6,'Dati Generali CER 2 Sem. 2021'!Q6)/1000) ->  | R6: =IF(SUM('Dati Generali CER 1 Sem. 2021'!R6,'Dati Generali CER 2 Sem. 2021'!R6)=0,"",SUM('Dati Generali CER 1 Sem. 2021'!R6,'Dati Generali CER 2 Sem. 2021'!R6)/1000) ->  | S6: =IF(SUM('Dati Generali CER 1 Sem. 2021'!S6,'Dati Generali CER 2 Sem. 2021'!S6)=0,"",SUM('Dati Generali CER 1 Sem. 2021'!S6,'Dati Generali CER 2 Sem. 2021'!S6)/1000) -> 2.48 | T6: =IF(SUM('Dati Generali CER 1 Sem. 2021'!T6,'Dati Generali CER 2 Sem. 2021'!T6)=0,"",SUM('Dati Generali CER 1 Sem. 2021'!T6,'Dati Generali CER 2 Sem. 2021'!T6)/1000) ->  | U6: =IF(E6="","",SUM('Dati Generali CER 1 Sem. 2021'!BI6,'Dati Generali CER 2 Sem. 2021'!BI6)/1000) -> 296.43 | V6: =IF(SUM('Dati Generali CER 1 Sem. 2021'!V6,'Dati Generali CER 2 Sem. 2021'!V6)=0,"",SUM('Dati Generali CER 1 Sem. 2021'!V6,'Dati Generali CER 2 Sem. 2021'!V6)/1000) -> 443.78 | W6: 0.6679661093 | X6: =IF(SUM('Dati Generali CER 1 Sem. 2021'!X6,'Dati Generali CER 2 Sem. 2021'!X6)=0,"",SUM('Dati Generali CER 1 Sem. 2021'!X6,'Dati Generali CER 2 Sem. 2021'!X6)/1000) ->  | Y6: =IF(SUM('Dati Generali CER 1 Sem. 2021'!Y6,'Dati Generali CER 2 Sem. 2021'!Y6)=0,"",SUM('Dati Generali CER 1 Sem. 2021'!Y6,'Dati Generali CER 2 Sem. 2021'!Y6)/1000) -> 0.02 | Z6: =IF(SUM('Dati Generali CER 1 Sem. 2021'!Z6,'Dati Generali CER 2 Sem. 2021'!Z6)=0,"",SUM('Dati Generali CER 1 Sem. 2021'!Z6,'Dati Generali CER 2 Sem. 2021'!Z6)/1000) -> 10.25 | AA6: =IF(SUM('Dati Generali CER 1 Sem. 2021'!AA6,'Dati Generali CER 2 Sem. 2021'!AA6)=0,"",SUM('Dati Generali CER 1 Sem. 2021'!AA6,'Dati Generali CER 2 Sem. 2021'!AA6)/1000) ->  | AB6: =IF(SUM('Dati Generali CER 1 Sem. 2021'!AB6,'Dati Generali CER 2 Sem. 2021'!AB6)=0,"",SUM('Dati Generali CER 1 Sem. 2021'!AB6,'Dati Generali CER 2 Sem. 2021'!AB6)/1000) ->  | AC6: =IF(SUM('Dati Generali CER 1 Sem. 2021'!AC6,'Dati Generali CER 2 Sem. 2021'!AC6)=0,"",SUM('Dati Generali CER 1 Sem. 2021'!AC6,'Dati Generali CER 2 Sem. 2021'!AC6)/1000) ->  | AD6: =IF(SUM('Dati Generali CER 1 Sem. 2021'!AD6,'Dati Generali CER 2 Sem. 2021'!AD6)=0,"",SUM('Dati Generali CER 1 Sem. 2021'!AD6,'Dati Generali CER 2 Sem. 2021'!AD6)/1000) -> 41.83 | AE6: =IF(SUM('Dati Generali CER 1 Sem. 2021'!AE6,'Dati Generali CER 2 Sem. 2021'!AE6)=0,"",SUM('Dati Generali CER 1 Sem. 2021'!AE6,'Dati Generali CER 2 Sem. 2021'!AE6)/1000) -> 35.77 | AF6: =IF(SUM('Dati Generali CER 1 Sem. 2021'!AF6,'Dati Generali CER 2 Sem. 2021'!AF6)=0,"",SUM('Dati Generali CER 1 Sem. 2021'!AF6,'Dati Generali CER 2 Sem. 2021'!AF6)/1000) ->  | AG6: =IF(SUM('Dati Generali CER 1 Sem. 2021'!AG6,'Dati Generali CER 2 Sem. 2021'!AG6)=0,"",SUM('Dati Generali CER 1 Sem. 2021'!AG6,'Dati Generali CER 2 Sem. 2021'!AG6)/1000) ->  | AH6: =IF(SUM('Dati Generali CER 1 Sem. 2021'!AH6,'Dati Generali CER 2 Sem. 2021'!AH6)=0,"",SUM('Dati Generali CER 1 Sem. 2021'!AH6,'Dati Generali CER 2 Sem. 2021'!AH6)/1000) ->  | AI6: =IF(SUM('Dati Generali CER 1 Sem. 2021'!AI6,'Dati Generali CER 2 Sem. 2021'!AI6)=0,"",SUM('Dati Generali CER 1 Sem. 2021'!AI6,'Dati Generali CER 2 Sem. 2021'!AI6)/1000) ->  | AJ6: =IF(SUM('Dati Generali CER 1 Sem. 2021'!AJ6,'Dati Generali CER 2 Sem. 2021'!AJ6)=0,"",SUM('Dati Generali CER 1 Sem. 2021'!AJ6,'Dati Generali CER 2 Sem. 2021'!AJ6)/1000) ->  | AK6: =IF(SUM('Dati Generali CER 1 Sem. 2021'!AK6,'Dati Generali CER 2 Sem. 2021'!AK6)=0,"",SUM('Dati Generali CER 1 Sem. 2021'!AK6,'Dati Generali CER 2 Sem. 2021'!AK6)/1000) ->  | AL6: =IF(SUM('Dati Generali CER 1 Sem. 2021'!AL6,'Dati Generali CER 2 Sem. 2021'!AL6)=0,"",SUM('Dati Generali CER 1 Sem. 2021'!AL6,'Dati Generali CER 2 Sem. 2021'!AL6)/1000) ->  | AM6: =IF(SUM('Dati Generali CER 1 Sem. 2021'!AM6,'Dati Generali CER 2 Sem. 2021'!AM6)=0,"",SUM('Dati Generali CER 1 Sem. 2021'!AM6,'Dati Generali CER 2 Sem. 2021'!AM6)/1000) ->  | AN6: =IF(SUM('Dati Generali CER 1 Sem. 2021'!AN6,'Dati Generali CER 2 Sem. 2021'!AN6)=0,"",SUM('Dati Generali CER 1 Sem. 2021'!AN6,'Dati Generali CER 2 Sem. 2021'!AN6)/1000) -> 41.35 | AO6: =IF(SUM('Dati Generali CER 1 Sem. 2021'!AO6,'Dati Generali CER 2 Sem. 2021'!AO6)=0,"",SUM('Dati Generali CER 1 Sem. 2021'!AO6,'Dati Generali CER 2 Sem. 2021'!AO6)/1000) ->  | AP6: =IF(SUM('Dati Generali CER 1 Sem. 2021'!AP6,'Dati Generali CER 2 Sem. 2021'!AP6)=0,"",SUM('Dati Generali CER 1 Sem. 2021'!AP6,'Dati Generali CER 2 Sem. 2021'!AP6)/1000) -> 147.38 | AQ6: =IF(SUM('Dati Generali CER 1 Sem. 2021'!AQ6,'Dati Generali CER 2 Sem. 2021'!AQ6)=0,"",SUM('Dati Generali CER 1 Sem. 2021'!AQ6,'Dati Generali CER 2 Sem. 2021'!AQ6)/1000) ->  | AR6: =IF(SUM('Dati Generali CER 1 Sem. 2021'!AR6,'Dati Generali CER 2 Sem. 2021'!AR6)=0,"",SUM('Dati Generali CER 1 Sem. 2021'!AR6,'Dati Generali CER 2 Sem. 2021'!AR6)/1000) ->  | AS6: =IF(SUM('Dati Generali CER 1 Sem. 2021'!AS6,'Dati Generali CER 2 Sem. 2021'!AS6)=0,"",SUM('Dati Generali CER 1 Sem. 2021'!AS6,'Dati Generali CER 2 Sem. 2021'!AS6)/1000) ->  | AT6: =IF(SUM('Dati Generali CER 1 Sem. 2021'!AT6,'Dati Generali CER 2 Sem. 2021'!AT6)=0,"",SUM('Dati Generali CER 1 Sem. 2021'!AT6,'Dati Generali CER 2 Sem. 2021'!AT6)/1000) ->  | AU6: =IF(SUM('Dati Generali CER 1 Sem. 2021'!AU6,'Dati Generali CER 2 Sem. 2021'!AU6)=0,"",SUM('Dati Generali CER 1 Sem. 2021'!AU6,'Dati Generali CER 2 Sem. 2021'!AU6)/1000) ->  | AV6: =IF(SUM('Dati Generali CER 1 Sem. 2021'!AV6,'Dati Generali CER 2 Sem. 2021'!AV6)=0,"",SUM('Dati Generali CER 1 Sem. 2021'!AV6,'Dati Generali CER 2 Sem. 2021'!AV6)/1000) ->  | AW6: =IF(SUM('Dati Generali CER 1 Sem. 2021'!AW6,'Dati Generali CER 2 Sem. 2021'!AW6)=0,"",SUM('Dati Generali CER 1 Sem. 2021'!AW6,'Dati Generali CER 2 Sem. 2021'!AW6)/1000) ->  | AX6: =IF(SUM('Dati Generali CER 1 Sem. 2021'!AX6,'Dati Generali CER 2 Sem. 2021'!AX6)=0,"",SUM('Dati Generali CER 1 Sem. 2021'!AX6,'Dati Generali CER 2 Sem. 2021'!AX6)/1000) -> 0.1 | AY6: =IF(SUM('Dati Generali CER 1 Sem. 2021'!AY6,'Dati Generali CER 2 Sem. 2021'!AY6)=0,"",SUM('Dati Generali CER 1 Sem. 2021'!AY6,'Dati Generali CER 2 Sem. 2021'!AY6)/1000) ->  | AZ6: =IF(SUM('Dati Generali CER 1 Sem. 2021'!AZ6,'Dati Generali CER 2 Sem. 2021'!AZ6)=0,"",SUM('Dati Generali CER 1 Sem. 2021'!AZ6,'Dati Generali CER 2 Sem. 2021'!AZ6)/1000) ->  | BA6: =IF(SUM('Dati Generali CER 1 Sem. 2021'!BA6,'Dati Generali CER 2 Sem. 2021'!BA6)=0,"",SUM('Dati Generali CER 1 Sem. 2021'!BA6,'Dati Generali CER 2 Sem. 2021'!BA6)/1000) ->  | BB6: =IF(SUM('Dati Generali CER 1 Sem. 2021'!BB6,'Dati Generali CER 2 Sem. 2021'!BB6)=0,"",SUM('Dati Generali CER 1 Sem. 2021'!BB6,'Dati Generali CER 2 Sem. 2021'!BB6)/1000) ->  | BC6: =IF(SUM('Dati Generali CER 1 Sem. 2021'!BC6,'Dati Generali CER 2 Sem. 2021'!BC6)=0,"",SUM('Dati Generali CER 1 Sem. 2021'!BC6,'Dati Generali CER 2 Sem. 2021'!BC6)/1000) ->  | BD6: =IF(SUM('Dati Generali CER 1 Sem. 2021'!BD6,'Dati Generali CER 2 Sem. 2021'!BD6)=0,"",SUM('Dati Generali CER 1 Sem. 2021'!BD6,'Dati Generali CER 2 Sem. 2021'!BD6)/1000) ->  | BE6: =IF(SUM('Dati Generali CER 1 Sem. 2021'!BE6,'Dati Generali CER 2 Sem. 2021'!BE6)=0,"",SUM('Dati Generali CER 1 Sem. 2021'!BE6,'Dati Generali CER 2 Sem. 2021'!BE6)/1000) ->  | BF6: =IF(SUM('Dati Generali CER 1 Sem. 2021'!BF6,'Dati Generali CER 2 Sem. 2021'!BF6)=0,"",SUM('Dati Generali CER 1 Sem. 2021'!BF6,'Dati Generali CER 2 Sem. 2021'!BF6)/1000) -> 7.27 | BG6: =IF(SUM('Dati Generali CER 1 Sem. 2021'!BG6,'Dati Generali CER 2 Sem. 2021'!BG6)=0,"",SUM('Dati Generali CER 1 Sem. 2021'!BG6,'Dati Generali CER 2 Sem. 2021'!BG6)/1000) ->  | BH6: =IF(SUM('Dati Generali CER 1 Sem. 2021'!BH6,'Dati Generali CER 2 Sem. 2021'!BH6)=0,"",SUM('Dati Generali CER 1 Sem. 2021'!BH6,'Dati Generali CER 2 Sem. 2021'!BH6)/1000) -> 12.46 | BI6: =IF(SUM('Dati Generali CER 1 Sem. 2021'!BI6,'Dati Generali CER 2 Sem. 2021'!BI6)=0,"",SUM('Dati Generali CER 1 Sem. 2021'!BI6,'Dati Generali CER 2 Sem. 2021'!BI6)/1000) -> 296.43 | BJ6: 11 | BK6: 0.5097843256 | BL6: 0.1664168174 | BM6: =IF(SUM(X6:BH6)=0,"",BI6/D6/0.365) -> 0.3405186525 | BN6: 443.78
A7: ='Dati Generali CER 1 Sem. 2021'!A7 -> 5 | B7: ='Dati Generali CER 1 Sem. 2021'!B7 -> A313 | C7: ='Dati Generali CER 1 Sem. 2021'!C7 -> ANTILLO | D7: ='Dati Generali CER 2 Sem. 2021'!D7 -> 845 | E7: =IF(SUM('Dati Generali CER 1 Sem. 2021'!E7,'Dati Generali CER 2 Sem. 2021'!E7)=0,"",SUM('Dati Generali CER 1 Sem. 2021'!E7,'Dati Generali CER 2 Sem. 2021'!E7)/1000) -> 25.71 | F7: =IF(SUM('Dati Generali CER 1 Sem. 2021'!F7,'Dati Generali CER 2 Sem. 2021'!F7)=0,"",SUM('Dati Generali CER 1 Sem. 2021'!F7,'Dati Generali CER 2 Sem. 2021'!F7)/1000) ->  | G7: =IF(SUM('Dati Generali CER 1 Sem. 2021'!G7,'Dati Generali CER 2 Sem. 2021'!G7)=0,"",SUM('Dati Generali CER 1 Sem. 2021'!G7,'Dati Generali CER 2 Sem. 2021'!G7)/1000) ->  | H7: =IF(SUM('Dati Generali CER 1 Sem. 2021'!H7,'Dati Generali CER 2 Sem. 2021'!H7)=0,"",SUM('Dati Generali CER 1 Sem. 2021'!H7,'Dati Generali CER 2 Sem. 2021'!H7)/1000) ->  | I7: =IF(SUM('Dati Generali CER 1 Sem. 2021'!I7,'Dati Generali CER 2 Sem. 2021'!I7)=0,"",SUM('Dati Generali CER 1 Sem. 2021'!I7,'Dati Generali CER 2 Sem. 2021'!I7)/1000) ->  | J7: =IF(SUM('Dati Generali CER 1 Sem. 2021'!J7,'Dati Generali CER 2 Sem. 2021'!J7)=0,"",SUM('Dati Generali CER 1 Sem. 2021'!J7,'Dati Generali CER 2 Sem. 2021'!J7)/1000) ->  | K7: =IF(SUM('Dati Generali CER 1 Sem. 2021'!K7,'Dati Generali CER 2 Sem. 2021'!K7)=0,"",SUM('Dati Generali CER 1 Sem. 2021'!K7,'Dati Generali CER 2 Sem. 2021'!K7)/1000) ->  | L7: =IF(SUM('Dati Generali CER 1 Sem. 2021'!L7,'Dati Generali CER 2 Sem. 2021'!L7)=0,"",SUM('Dati Generali CER 1 Sem. 2021'!L7,'Dati Generali CER 2 Sem. 2021'!L7)/1000) ->  | M7: =IF(SUM('Dati Generali CER 1 Sem. 2021'!M7,'Dati Generali CER 2 Sem. 2021'!M7)=0,"",SUM('Dati Generali CER 1 Sem. 2021'!M7,'Dati Generali CER 2 Sem. 2021'!M7)/1000) ->  | N7: =IF(SUM('Dati Generali CER 1 Sem. 2021'!N7,'Dati Generali CER 2 Sem. 2021'!N7)=0,"",SUM('Dati Generali CER 1 Sem. 2021'!N7,'Dati Generali CER 2 Sem. 2021'!N7)/1000) ->  | O7: =IF(SUM('Dati Generali CER 1 Sem. 2021'!O7,'Dati Generali CER 2 Sem. 2021'!O7)=0,"",SUM('Dati Generali CER 1 Sem. 2021'!O7,'Dati Generali CER 2 Sem. 2021'!O7)/1000) ->  | P7: =IF(SUM('Dati Generali CER 1 Sem. 2021'!P7,'Dati Generali CER 2 Sem. 2021'!P7)=0,"",SUM('Dati Generali CER 1 Sem. 2021'!P7,'Dati Generali CER 2 Sem. 2021'!P7)/1000) ->  | Q7: =IF(SUM('Dati Generali CER 1 Sem. 2021'!Q7,'Dati Generali CER 2 Sem. 2021'!Q7)=0,"",SUM('Dati Generali CER 1 Sem. 2021'!Q7,'Dati Generali CER 2 Sem. 2021'!Q7)/1000) ->  | R7: =IF(SUM('Dati Generali CER 1 Sem. 2021'!R7,'Dati Generali CER 2 Sem. 2021'!R7)=0,"",SUM('Dati Generali CER 1 Sem. 2021'!R7,'Dati Generali CER 2 Sem. 2021'!R7)/1000) ->  | S7: =IF(SUM('Dati Generali CER 1 Sem. 2021'!S7,'Dati Generali CER 2 Sem. 2021'!S7)=0,"",SUM('Dati Generali CER 1 Sem. 2021'!S7,'Dati Generali CER 2 Sem. 2021'!S7)/1000) ->  | T7: =IF(SUM('Dati Generali CER 1 Sem. 2021'!T7,'Dati Generali CER 2 Sem. 2021'!T7)=0,"",SUM('Dati Generali CER 1 Sem. 2021'!T7,'Dati Generali CER 2 Sem. 2021'!T7)/1000) ->  | U7: =IF(E7="","",SUM('Dati Generali CER 1 Sem. 2021'!BI7,'Dati Generali CER 2 Sem. 2021'!BI7)/1000) -> 63.027 | V7: =IF(SUM('Dati Generali CER 1 Sem. 2021'!V7,'Dati Generali CER 2 Sem. 2021'!V7)=0,"",SUM('Dati Generali CER 1 Sem. 2021'!V7,'Dati Generali CER 2 Sem. 2021'!V7)/1000) -> 88.737 | W7: 0.7102674195 | X7: =IF(SUM('Dati Generali CER 1 Sem. 2021'!X7,'Dati Generali CER 2 Sem. 2021'!X7)=0,"",SUM('Dati Generali CER 1 Sem. 2021'!X7,'Dati Generali CER 2 Sem. 2021'!X7)/1000) -> 3.17 | Y7: =IF(SUM('Dati Generali CER 1 Sem. 2021'!Y7,'Dati Generali CER 2 Sem. 2021'!Y7)=0,"",SUM('Dati Generali CER 1 Sem. 2021'!Y7,'Dati Generali CER 2 Sem. 2021'!Y7)/1000) ->  | Z7: =IF(SUM('Dati Generali CER 1 Sem. 2021'!Z7,'Dati Generali CER 2 Sem. 2021'!Z7)=0,"",SUM('Dati Generali CER 1 Sem. 2021'!Z7,'Dati Generali CER 2 Sem. 2021'!Z7)/1000) ->  | AA7: =IF(SUM('Dati Generali CER 1 Sem. 2021'!AA7,'Dati Generali CER 2 Sem. 2021'!AA7)=0,"",SUM('Dati Generali CER 1 Sem. 2021'!AA7,'Dati Generali CER 2 Sem. 2021'!AA7)/1000) ->  | AB7: =IF(SUM('Dati Generali CER 1 Sem. 2021'!AB7,'Dati Generali CER 2 Sem. 2021'!AB7)=0,"",SUM('Dati Generali CER 1 Sem. 2021'!AB7,'Dati Generali CER 2 Sem. 2021'!AB7)/1000) ->  | AC7: =IF(SUM('Dati Generali CER 1 Sem. 2021'!AC7,'Dati Generali CER 2 Sem. 2021'!AC7)=0,"",SUM('Dati Generali CER 1 Sem. 2021'!AC7,'Dati Generali CER 2 Sem. 2021'!AC7)/1000) ->  | AD7: =IF(SUM('Dati Generali CER 1 Sem. 2021'!AD7,'Dati Generali CER 2 Sem. 2021'!AD7)=0,"",SUM('Dati Generali CER 1 Sem. 2021'!AD7,'Dati Generali CER 2 Sem. 2021'!AD7)/1000) -> 9.21 | AE7: =IF(SUM('Dati Generali CER 1 Sem. 2021'!AE7,'Dati Generali CER 2 Sem. 2021'!AE7)=0,"",SUM('Dati Generali CER 1 Sem. 2021'!AE7,'Dati Generali CER 2 Sem. 2021'!AE7)/1000) -> 5.49 | AF7: =IF(SUM('Dati Generali CER 1 Sem. 2021'!AF7,'Dati Generali CER 2 Sem. 2021'!AF7)=0,"",SUM('Dati Generali CER 1 Sem. 2021'!AF7,'Dati Generali CER 2 Sem. 2021'!AF7)/1000) ->  | AG7: =IF(SUM('Dati Generali CER 1 Sem. 2021'!AG7,'Dati Generali CER 2 Sem. 2021'!AG7)=0,"",SUM('Dati Generali CER 1 Sem. 2021'!AG7,'Dati Generali CER 2 Sem. 2021'!AG7)/1000) ->  | AH7: =IF(SUM('Dati Generali CER 1 Sem. 2021'!AH7,'Dati Generali CER 2 Sem. 2021'!AH7)=0,"",SUM('Dati Generali CER 1 Sem. 2021'!AH7,'Dati Generali CER 2 Sem. 2021'!AH7)/1000) ->  | AI7: =IF(SUM('Dati Generali CER 1 Sem. 2021'!AI7,'Dati Generali CER 2 Sem. 2021'!AI7)=0,"",SUM('Dati Generali CER 1 Sem. 2021'!AI7,'Dati Generali CER 2 Sem. 2021'!AI7)/1000) ->  | AJ7: =IF(SUM('Dati Generali CER 1 Sem. 2021'!AJ7,'Dati Generali CER 2 Sem. 2021'!AJ7)=0,"",SUM('Dati Generali CER 1 Sem. 2021'!AJ7,'Dati Generali CER 2 Sem. 2021'!AJ7)/1000) ->  | AK7: =IF(SUM('Dati Generali CER 1 Sem. 2021'!AK7,'Dati Generali CER 2 Sem. 2021'!AK7)=0,"",SUM('Dati Generali CER 1 Sem. 2021'!AK7,'Dati Generali CER 2 Sem. 2021'!AK7)/1000) ->  | AL7: =IF(SUM('Dati Generali CER 1 Sem. 2021'!AL7,'Dati Generali CER 2 Sem. 2021'!AL7)=0,"",SUM('Dati Generali CER 1 Sem. 2021'!AL7,'Dati Generali CER 2 Sem. 2021'!AL7)/1000) ->  | AM7: =IF(SUM('Dati Generali CER 1 Sem. 2021'!AM7,'Dati Generali CER 2 Sem. 2021'!AM7)=0,"",SUM('Dati Generali CER 1 Sem. 2021'!AM7,'Dati Generali CER 2 Sem. 2021'!AM7)/1000) ->  | AN7: =IF(SUM('Dati Generali CER 1 Sem. 2021'!AN7,'Dati Generali CER 2 Sem. 2021'!AN7)=0,"",SUM('Dati Generali CER 1 Sem. 2021'!AN7,'Dati Generali CER 2 Sem. 2021'!AN7)/1000) -> 8.97 | AO7: =IF(SUM('Dati Generali CER 1 Sem. 2021'!AO7,'Dati Generali CER 2 Sem. 2021'!AO7)=0,"",SUM('Dati Generali CER 1 Sem. 2021'!AO7,'Dati Generali CER 2 Sem. 2021'!AO7)/1000) ->  | AP7: =IF(SUM('Dati Generali CER 1 Sem. 2021'!AP7,'Dati Generali CER 2 Sem. 2021'!AP7)=0,"",SUM('Dati Generali CER 1 Sem. 2021'!AP7,'Dati Generali CER 2 Sem. 2021'!AP7)/1000) -> 27.98 | AQ7: =IF(SUM('Dati Generali CER 1 Sem. 2021'!AQ7,'Dati Generali CER 2 Sem. 2021'!AQ7)=0,"",SUM('Dati Generali CER 1 Sem. 2021'!AQ7,'Dati Generali CER 2 Sem. 2021'!AQ7)/1000) ->  | AR7: =IF(SUM('Dati Generali CER 1 Sem. 2021'!AR7,'Dati Generali CER 2 Sem. 2021'!AR7)=0,"",SUM('Dati Generali CER 1 Sem. 2021'!AR7,'Dati Generali CER 2 Sem. 2021'!AR7)/1000) -> 3.967 | AS7: =IF(SUM('Dati Generali CER 1 Sem. 2021'!AS7,'Dati Generali CER 2 Sem. 2021'!AS7)=0,"",SUM('Dati Generali CER 1 Sem. 2021'!AS7,'Dati Generali CER 2 Sem. 2021'!AS7)/1000) ->  | AT7: =IF(SUM('Dati Generali CER 1 Sem. 2021'!AT7,'Dati Generali CER 2 Sem. 2021'!AT7)=0,"",SUM('Dati Generali CER 1 Sem. 2021'!AT7,'Dati Generali CER 2 Sem. 2021'!AT7)/1000) ->  | AU7: =IF(SUM('Dati Generali CER 1 Sem. 2021'!AU7,'Dati Generali CER 2 Sem. 2021'!AU7)=0,"",SUM('Dati Generali CER 1 Sem. 2021'!AU7,'Dati Generali CER 2 Sem. 2021'!AU7)/1000) ->  | AV7: =IF(SUM('Dati Generali CER 1 Sem. 2021'!AV7,'Dati Generali CER 2 Sem. 2021'!AV7)=0,"",SUM('Dati Generali CER 1 Sem. 2021'!AV7,'Dati Generali CER 2 Sem. 2021'!AV7)/1000) ->  | AW7: =IF(SUM('Dati Generali CER 1 Sem. 2021'!AW7,'Dati Generali CER 2 Sem. 2021'!AW7)=0,"",SUM('Dati Generali CER 1 Sem. 2021'!AW7,'Dati Generali CER 2 Sem. 2021'!AW7)/1000) ->  | AX7: =IF(SUM('Dati Generali CER 1 Sem. 2021'!AX7,'Dati Generali CER 2 Sem. 2021'!AX7)=0,"",SUM('Dati Generali CER 1 Sem. 2021'!AX7,'Dati Generali CER 2 Sem. 2021'!AX7)/1000) ->  | AY7: =IF(SUM('Dati Generali CER 1 Sem. 2021'!AY7,'Dati Generali CER 2 Sem. 2021'!AY7)=0,"",SUM('Dati Generali CER 1 Sem. 2021'!AY7,'Dati Generali CER 2 Sem. 2021'!AY7)/1000) ->  | AZ7: =IF(SUM('Dati Generali CER 1 Sem. 2021'!AZ7,'Dati Generali CER 2 Sem. 2021'!AZ7)=0,"",SUM('Dati Generali CER 1 Sem. 2021'!AZ7,'Dati Generali CER 2 Sem. 2021'!AZ7)/1000) ->  | BA7: =IF(SUM('Dati Generali CER 1 Sem. 2021'!BA7,'Dati Generali CER 2 Sem. 2021'!BA7)=0,"",SUM('Dati Generali CER 1 Sem. 2021'!BA7,'Dati Generali CER 2 Sem. 2021'!BA7)/1000) ->  | BB7: =IF(SUM('Dati Generali CER 1 Sem. 2021'!BB7,'Dati Generali CER 2 Sem. 2021'!BB7)=0,"",SUM('Dati Generali CER 1 Sem. 2021'!BB7,'Dati Generali CER 2 Sem. 2021'!BB7)/1000) -> 0.45 | BC7: =IF(SUM('Dati Generali CER 1 Sem. 2021'!BC7,'Dati Generali CER 2 Sem. 2021'!BC7)=0,"",SUM('Dati Generali CER 1 Sem. 2021'!BC7,'Dati Generali CER 2 Sem. 2021'!BC7)/1000) ->  | BD7: =IF(SUM('Dati Generali CER 1 Sem. 2021'!BD7,'Dati Generali CER 2 Sem. 2021'!BD7)=0,"",SUM('Dati Generali CER 1 Sem. 2021'!BD7,'Dati Generali CER 2 Sem. 2021'!BD7)/1000) ->  | BE7: =IF(SUM('Dati Generali CER 1 Sem. 2021'!BE7,'Dati Generali CER 2 Sem. 2021'!BE7)=0,"",SUM('Dati Generali CER 1 Sem. 2021'!BE7,'Dati Generali CER 2 Sem. 2021'!BE7)/1000) ->  | BF7: =IF(SUM('Dati Generali CER 1 Sem. 2021'!BF7,'Dati Generali CER 2 Sem. 2021'!BF7)=0,"",SUM('Dati Generali CER 1 Sem. 2021'!BF7,'Dati Generali CER 2 Sem. 2021'!BF7)/1000) ->  | BG7: =IF(SUM('Dati Generali CER 1 Sem. 2021'!BG7,'Dati Generali CER 2 Sem. 2021'!BG7)=0,"",SUM('Dati Generali CER 1 Sem. 2021'!BG7,'Dati Generali CER 2 Sem. 2021'!BG7)/1000) ->  | BH7: =IF(SUM('Dati Generali CER 1 Sem. 2021'!BH7,'Dati Generali CER 2 Sem. 2021'!BH7)=0,"",SUM('Dati Generali CER 1 Sem. 2021'!BH7,'Dati Generali CER 2 Sem. 2021'!BH7)/1000) -> 3.79 | BI7: =IF(SUM('Dati Generali CER 1 Sem. 2021'!BI7,'Dati Generali CER 2 Sem. 2021'!BI7)=0,"",SUM('Dati Generali CER 1 Sem. 2021'!BI7,'Dati Generali CER 2 Sem. 2021'!BI7)/1000) -> 63.027 | BJ7: 9 | BK7: 0.2877101402 | BL7: 0.08335900138 | BM7: =IF(SUM(X7:BH7)=0,"",BI7/D7/0.365) -> 0.2043511389 | BN7: 88.737
A8: ='Dati Generali CER 1 Sem. 2021'!A8 -> 6 | B8: ='Dati Generali CER 1 Sem. 2021'!B8 -> A638 | C8: ='Dati Generali CER 1 Sem. 2021'!C8 -> BARCELLONA P.G. | D8: ='Dati Generali CER 2 Sem. 2021'!D8 -> 40119 | E8: =IF(SUM('Dati Generali CER 1 Sem. 2021'!E8,'Dati Generali CER 2 Sem. 2021'!E8)=0,"",SUM('Dati Generali CER 1 Sem. 2021'!E8,'Dati Generali CER 2 Sem. 2021'!E8)/1000) -> 5776.7 | F8: =IF(SUM('Dati Generali CER 1 Sem. 2021'!F8,'Dati Generali CER 2 Sem. 2021'!F8)=0,"",SUM('Dati Generali CER 1 Sem. 2021'!F8,'Dati Generali CER 2 Sem. 2021'!F8)/1000) ->  | G8: =IF(SUM('Dati Generali CER 1 Sem. 2021'!G8,'Dati Generali CER 2 Sem. 2021'!G8)=0,"",SUM('Dati Generali CER 1 Sem. 2021'!G8,'Dati Generali CER 2 Sem. 2021'!G8)/1000) ->  | H8: =IF(SUM('Dati Generali CER 1 Sem. 2021'!H8,'Dati Generali CER 2 Sem. 2021'!H8)=0,"",SUM('Dati Generali CER 1 Sem. 2021'!H8,'Dati Generali CER 2 Sem. 2021'!H8)/1000) ->  | I8: =IF(SUM('Dati Generali CER 1 Sem. 2021'!I8,'Dati Generali CER 2 Sem. 2021'!I8)=0,"",SUM('Dati Generali CER 1 Sem. 2021'!I8,'Dati Generali CER 2 Sem. 2021'!I8)/1000) ->  | J8: =IF(SUM('Dati Generali CER 1 Sem. 2021'!J8,'Dati Generali CER 2 Sem. 2021'!J8)=0,"",SUM('Dati Generali CER 1 Sem. 2021'!J8,'Dati Generali CER 2 Sem. 2021'!J8)/1000) ->  | K8: =IF(SUM('Dati Generali CER 1 Sem. 2021'!K8,'Dati Generali CER 2 Sem. 2021'!K8)=0,"",SUM('Dati Generali CER 1 Sem. 2021'!K8,'Dati Generali CER 2 Sem. 2021'!K8)/1000) ->  | L8: =IF(SUM('Dati Generali CER 1 Sem. 2021'!L8,'Dati Generali CER 2 Sem. 2021'!L8)=0,"",SUM('Dati Generali CER 1 Sem. 2021'!L8,'Dati Generali CER 2 Sem. 2021'!L8)/1000) ->  | M8: =IF(SUM('Dati Generali CER 1 Sem. 2021'!M8,'Dati Generali CER 2 Sem. 2021'!M8)=0,"",SUM('Dati Generali CER 1 Sem. 2021'!M8,'Dati Generali CER 2 Sem. 2021'!M8)/1000) ->  | N8: =IF(SUM('Dati Generali CER 1 Sem. 2021'!N8,'Dati Generali CER 2 Sem. 2021'!N8)=0,"",SUM('Dati Generali CER 1 Sem. 2021'!N8,'Dati Generali CER 2 Sem. 2021'!N8)/1000) ->  | O8: =IF(SUM('Dati Generali CER 1 Sem. 2021'!O8,'Dati Generali CER 2 Sem. 2021'!O8)=0,"",SUM('Dati Generali CER 1 Sem. 2021'!O8,'Dati Generali CER 2 Sem. 2021'!O8)/1000) ->  | P8: =IF(SUM('Dati Generali CER 1 Sem. 2021'!P8,'Dati Generali CER 2 Sem. 2021'!P8)=0,"",SUM('Dati Generali CER 1 Sem. 2021'!P8,'Dati Generali CER 2 Sem. 2021'!P8)/1000) ->  | Q8: =IF(SUM('Dati Generali CER 1 Sem. 2021'!Q8,'Dati Generali CER 2 Sem. 2021'!Q8)=0,"",SUM('Dati Generali CER 1 Sem. 2021'!Q8,'Dati Generali CER 2 Sem. 2021'!Q8)/1000) ->  | R8: =IF(SUM('Dati Generali CER 1 Sem. 2021'!R8,'Dati Generali CER 2 Sem. 2021'!R8)=0,"",SUM('Dati Generali CER 1 Sem. 2021'!R8,'Dati Generali CER 2 Sem. 2021'!R8)/1000) ->  | S8: =IF(SUM('Dati Generali CER 1 Sem. 2021'!S8,'Dati Generali CER 2 Sem. 2021'!S8)=0,"",SUM('Dati Generali CER 1 Sem. 2021'!S8,'Dati Generali CER 2 Sem. 2021'!S8)/1000) ->  | T8: =IF(SUM('Dati Generali CER 1 Sem. 2021'!T8,'Dati Generali CER 2 Sem. 2021'!T8)=0,"",SUM('Dati Generali CER 1 Sem. 2021'!T8,'Dati Generali CER 2 Sem. 2021'!T8)/1000) ->  | U8: =IF(E8="","",SUM('Dati Generali CER 1 Sem. 2021'!BI8,'Dati Generali CER 2 Sem. 2021'!BI8)/1000) -> 3127.691 | V8: =IF(SUM('Dati Generali CER 1 Sem. 2021'!V8,'Dati Generali CER 2 Sem. 2021'!V8)=0,"",SUM('Dati Generali CER 1 Sem. 2021'!V8,'Dati Generali CER 2 Sem. 2021'!V8)/1000) -> 8904.391 | W8: 0.3512526573 | X8: =IF(SUM('Dati Generali CER 1 Sem. 2021'!X8,'Dati Generali CER 2 Sem. 2021'!X8)=0,"",SUM('Dati Generali CER 1 Sem. 2021'!X8,'Dati Generali CER 2 Sem. 2021'!X8)/1000) -> 137.031 | Y8: =IF(SUM('Dati Generali CER 1 Sem. 2021'!Y8,'Dati Generali CER 2 Sem. 2021'!Y8)=0,"",SUM('Dati Generali CER 1 Sem. 2021'!Y8,'Dati Generali CER 2 Sem. 2021'!Y8)/1000) ->  | Z8: =IF(SUM('Dati Generali CER 1 Sem. 2021'!Z8,'Dati Generali CER 2 Sem. 2021'!Z8)=0,"",SUM('Dati Generali CER 1 Sem. 2021'!Z8,'Dati Generali CER 2 Sem. 2021'!Z8)/1000) -> 351.77 | AA8: =IF(SUM('Dati Generali CER 1 Sem. 2021'!AA8,'Dati Generali CER 2 Sem. 2021'!AA8)=0,"",SUM('Dati Generali CER 1 Sem. 2021'!AA8,'Dati Generali CER 2 Sem. 2021'!AA8)/1000) -> 324.68 | AB8: =IF(SUM('Dati Generali CER 1 Sem. 2021'!AB8,'Dati Generali CER 2 Sem. 2021'!AB8)=0,"",SUM('Dati Generali CER 1 Sem. 2021'!AB8,'Dati Generali CER 2 Sem. 2021'!AB8)/1000) ->  | AC8: =IF(SUM('Dati Generali CER 1 Sem. 2021'!AC8,'Dati Generali CER 2 Sem. 2021'!AC8)=0,"",SUM('Dati Generali CER 1 Sem. 2021'!AC8,'Dati Generali CER 2 Sem. 2021'!AC8)/1000) -> 9.8 | AD8: =IF(SUM('Dati Generali CER 1 Sem. 2021'!AD8,'Dati Generali CER 2 Sem. 2021'!AD8)=0,"",SUM('Dati Generali CER 1 Sem. 2021'!AD8,'Dati Generali CER 2 Sem. 2021'!AD8)/1000) ->  | AE8: =IF(SUM('Dati Generali CER 1 Sem. 2021'!AE8,'Dati Generali CER 2 Sem. 2021'!AE8)=0,"",SUM('Dati Generali CER 1 Sem. 2021'!AE8,'Dati Generali CER 2 Sem. 2021'!AE8)/1000) -> 297.24 | AF8: =IF(SUM('Dati Generali CER 1 Sem. 2021'!AF8,'Dati Generali CER 2 Sem. 2021'!AF8)=0,"",SUM('Dati Generali CER 1 Sem. 2021'!AF8,'Dati Generali CER 2 Sem. 2021'!AF8)/1000) ->  | AG8: =IF(SUM('Dati Generali CER 1 Sem. 2021'!AG8,'Dati Generali CER 2 Sem. 2021'!AG8)=0,"",SUM('Dati Generali CER 1 Sem. 2021'!AG8,'Dati Generali CER 2 Sem. 2021'!AG8)/1000) -> 0.66 | AH8: =IF(SUM('Dati Generali CER 1 Sem. 2021'!AH8,'Dati Generali CER 2 Sem. 2021'!AH8)=0,"",SUM('Dati Generali CER 1 Sem. 2021'!AH8,'Dati Generali CER 2 Sem. 2021'!AH8)/1000) -> 8.98 | AI8: =IF(SUM('Dati Generali CER 1 Sem. 2021'!AI8,'Dati Generali CER 2 Sem. 2021'!AI8)=0,"",SUM('Dati Generali CER 1 Sem. 2021'!AI8,'Dati Generali CER 2 Sem. 2021'!AI8)/1000) ->  | AJ8: =IF(SUM('Dati Generali CER 1 Sem. 2021'!AJ8,'Dati Generali CER 2 Sem. 2021'!AJ8)=0,"",SUM('Dati Generali CER 1 Sem. 2021'!AJ8,'Dati Generali CER 2 Sem. 2021'!AJ8)/1000) ->  | AK8: =IF(SUM('Dati Generali CER 1 Sem. 2021'!AK8,'Dati Generali CER 2 Sem. 2021'!AK8)=0,"",SUM('Dati Generali CER 1 Sem. 2021'!AK8,'Dati Generali CER 2 Sem. 2021'!AK8)/1000) -> 0.94 | AL8: =IF(SUM('Dati Generali CER 1 Sem. 2021'!AL8,'Dati Generali CER 2 Sem. 2021'!AL8)=0,"",SUM('Dati Generali CER 1 Sem. 2021'!AL8,'Dati Generali CER 2 Sem. 2021'!AL8)/1000) ->  | AM8: =IF(SUM('Dati Generali CER 1 Sem. 2021'!AM8,'Dati Generali CER 2 Sem. 2021'!AM8)=0,"",SUM('Dati Generali CER 1 Sem. 2021'!AM8,'Dati Generali CER 2 Sem. 2021'!AM8)/1000) ->  | AN8: =IF(SUM('Dati Generali CER 1 Sem. 2021'!AN8,'Dati Generali CER 2 Sem. 2021'!AN8)=0,"",SUM('Dati Generali CER 1 Sem. 2021'!AN8,'Dati Generali CER 2 Sem. 2021'!AN8)/1000) -> 398.06 | AO8: =IF(SUM('Dati Generali CER 1 Sem. 2021'!AO8,'Dati Generali CER 2 Sem. 2021'!AO8)=0,"",SUM('Dati Generali CER 1 Sem. 2021'!AO8,'Dati Generali CER 2 Sem. 2021'!AO8)/1000) ->  | AP8: =IF(SUM('Dati Generali CER 1 Sem. 2021'!AP8,'Dati Generali CER 2 Sem. 2021'!AP8)=0,"",SUM('Dati Generali CER 1 Sem. 2021'!AP8,'Dati Generali CER 2 Sem. 2021'!AP8)/1000) -> 780.53 | AQ8: =IF(SUM('Dati Generali CER 1 Sem. 2021'!AQ8,'Dati Generali CER 2 Sem. 2021'!AQ8)=0,"",SUM('Dati Generali CER 1 Sem. 2021'!AQ8,'Dati Generali CER 2 Sem. 2021'!AQ8)/1000) -> 10.81 | AR8: =IF(SUM('Dati Generali CER 1 Sem. 2021'!AR8,'Dati Generali CER 2 Sem. 2021'!AR8)=0,"",SUM('Dati Generali CER 1 Sem. 2021'!AR8,'Dati Generali CER 2 Sem. 2021'!AR8)/1000) ->  | AS8: =IF(SUM('Dati Generali CER 1 Sem. 2021'!AS8,'Dati Generali CER 2 Sem. 2021'!AS8)=0,"",SUM('Dati Generali CER 1 Sem. 2021'!AS8,'Dati Generali CER 2 Sem. 2021'!AS8)/1000) -> 0.54 | AT8: =IF(SUM('Dati Generali CER 1 Sem. 2021'!AT8,'Dati Generali CER 2 Sem. 2021'!AT8)=0,"",SUM('Dati Generali CER 1 Sem. 2021'!AT8,'Dati Generali CER 2 Sem. 2021'!AT8)/1000) -> 22.96 | AU8: =IF(SUM('Dati Generali CER 1 Sem. 2021'!AU8,'Dati Generali CER 2 Sem. 2021'!AU8)=0,"",SUM('Dati Generali CER 1 Sem. 2021'!AU8,'Dati Generali CER 2 Sem. 2021'!AU8)/1000) -> 1.46 | AV8: =IF(SUM('Dati Generali CER 1 Sem. 2021'!AV8,'Dati Generali CER 2 Sem. 2021'!AV8)=0,"",SUM('Dati Generali CER 1 Sem. 2021'!AV8,'Dati Generali CER 2 Sem. 2021'!AV8)/1000) ->  | AW8: =IF(SUM('Dati Generali CER 1 Sem. 2021'!AW8,'Dati Generali CER 2 Sem. 2021'!AW8)=0,"",SUM('Dati Generali CER 1 Sem. 2021'!AW8,'Dati Generali CER 2 Sem. 2021'!AW8)/1000) ->  | AX8: =IF(SUM('Dati Generali CER 1 Sem. 2021'!AX8,'Dati Generali CER 2 Sem. 2021'!AX8)=0,"",SUM('Dati Generali CER 1 Sem. 2021'!AX8,'Dati Generali CER 2 Sem. 2021'!AX8)/1000) -> 1.54 | AY8: =IF(SUM('Dati Generali CER 1 Sem. 2021'!AY8,'Dati Generali CER 2 Sem. 2021'!AY8)=0,"",SUM('Dati Generali CER 1 Sem. 2021'!AY8,'Dati Generali CER 2 Sem. 2021'!AY8)/1000) -> 4.78 | AZ8: =IF(SUM('Dati Generali CER 1 Sem. 2021'!AZ8,'Dati Generali CER 2 Sem. 2021'!AZ8)=0,"",SUM('Dati Generali CER 1 Sem. 2021'!AZ8,'Dati Generali CER 2 Sem. 2021'!AZ8)/1000) -> 0.92 | BA8: =IF(SUM('Dati Generali CER 1 Sem. 2021'!BA8,'Dati Generali CER 2 Sem. 2021'!BA8)=0,"",SUM('Dati Generali CER 1 Sem. 2021'!BA8,'Dati Generali CER 2 Sem. 2021'!BA8)/1000) -> 40.9 | BB8: =IF(SUM('Dati Generali CER 1 Sem. 2021'!BB8,'Dati Generali CER 2 Sem. 2021'!BB8)=0,"",SUM('Dati Generali CER 1 Sem. 2021'!BB8,'Dati Generali CER 2 Sem. 2021'!BB8)/1000) -> 33.46 | BC8: =IF(SUM('Dati Generali CER 1 Sem. 2021'!BC8,'Dati Generali CER 2 Sem. 2021'!BC8)=0,"",SUM('Dati Generali CER 1 Sem. 2021'!BC8,'Dati Generali CER 2 Sem. 2021'!BC8)/1000) -> 94.18 | BD8: =IF(SUM('Dati Generali CER 1 Sem. 2021'!BD8,'Dati Generali CER 2 Sem. 2021'!BD8)=0,"",SUM('Dati Generali CER 1 Sem. 2021'!BD8,'Dati Generali CER 2 Sem. 2021'!BD8)/1000) -> 6.81 | BE8: =IF(SUM('Dati Generali CER 1 Sem. 2021'!BE8,'Dati Generali CER 2 Sem. 2021'!BE8)=0,"",SUM('Dati Generali CER 1 Sem. 2021'!BE8,'Dati Generali CER 2 Sem. 2021'!BE8)/1000) -> 45.58 | BF8: =IF(SUM('Dati Generali CER 1 Sem. 2021'!BF8,'Dati Generali CER 2 Sem. 2021'!BF8)=0,"",SUM('Dati Generali CER 1 Sem. 2021'!BF8,'Dati Generali CER 2 Sem. 2021'!BF8)/1000) -> 209.14 | BG8: =IF(SUM('Dati Generali CER 1 Sem. 2021'!BG8,'Dati Generali CER 2 Sem. 2021'!BG8)=0,"",SUM('Dati Generali CER 1 Sem. 2021'!BG8,'Dati Generali CER 2 Sem. 2021'!BG8)/1000) -> 263.86 | BH8: =IF(SUM('Dati Generali CER 1 Sem. 2021'!BH8,'Dati Generali CER 2 Sem. 2021'!BH8)=0,"",SUM('Dati Generali CER 1 Sem. 2021'!BH8,'Dati Generali CER 2 Sem. 2021'!BH8)/1000) -> 81.06 | BI8: =IF(SUM('Dati Generali CER 1 Sem. 2021'!BI8,'Dati Generali CER 2 Sem. 2021'!BI8)=0,"",SUM('Dati Generali CER 1 Sem. 2021'!BI8,'Dati Generali CER 2 Sem. 2021'!BI8)/1000) -> 3127.691 | BJ8: 26 | BK8: 0.6080807543 | BL8: 0.3944907735 | BM8: 0.2135899808 | BN8: 8904.391
A9: ='Dati Generali CER 1 Sem. 2021'!A9 -> 7 | B9: ='Dati Generali CER 1 Sem. 2021'!B9 -> A698 | C9: ='Dati Generali CER 1 Sem. 2021'!C9 -> BASICO' | D9: ='Dati Generali CER 2 Sem. 2021'!D9 -> 535 | E9: =IF(SUM('Dati Generali CER 1 Sem. 2021'!E9,'Dati Generali CER 2 Sem. 2021'!E9)=0,"",SUM('Dati Generali CER 1 Sem. 2021'!E9,'Dati Generali CER 2 Sem. 2021'!E9)/1000) -> 62.6 | F9: =IF(SUM('Dati Generali CER 1 Sem. 2021'!F9,'Dati Generali CER 2 Sem. 2021'!F9)=0,"",SUM('Dati Generali CER 1 Sem. 2021'!F9,'Dati Generali CER 2 Sem. 2021'!F9)/1000) ->  | G9: =IF(SUM('Dati Generali CER 1 Sem. 2021'!G9,'Dati Generali CER 2 Sem. 2021'!G9)=0,"",SUM('Dati Generali CER 1 Sem. 2021'!G9,'Dati Generali CER 2 Sem. 2021'!G9)/1000) ->  | H9: =IF(SUM('Dati Generali CER 1 Sem. 2021'!H9,'Dati Generali CER 2 Sem. 2021'!H9)=0,"",SUM('Dati Generali CER 1 Sem. 2021'!H9,'Dati Generali CER 2 Sem. 2021'!H9)/1000) ->  | I9: =IF(SUM('Dati Generali CER 1 Sem. 2021'!I9,'Dati Generali CER 2 Sem. 2021'!I9)=0,"",SUM('Dati Generali CER 1 Sem. 2021'!I9,'Dati Generali CER 2 Sem. 2021'!I9)/1000) ->  | J9: =IF(SUM('Dati Generali CER 1 Sem. 2021'!J9,'Dati Generali CER 2 Sem. 2021'!J9)=0,"",SUM('Dati Generali CER 1 Sem. 2021'!J9,'Dati Generali CER 2 Sem. 2021'!J9)/1000) ->  | K9: =IF(SUM('Dati Generali CER 1 Sem. 2021'!K9,'Dati Generali CER 2 Sem. 2021'!K9)=0,"",SUM('Dati Generali CER 1 Sem. 2021'!K9,'Dati Generali CER 2 Sem. 2021'!K9)/1000) ->  | L9: =IF(SUM('Dati Generali CER 1 Sem. 2021'!L9,'Dati Generali CER 2 Sem. 2021'!L9)=0,"",SUM('Dati Generali CER 1 Sem. 2021'!L9,'Dati Generali CER 2 Sem. 2021'!L9)/1000) ->  | M9: =IF(SUM('Dati Generali CER 1 Sem. 2021'!M9,'Dati Generali CER 2 Sem. 2021'!M9)=0,"",SUM('Dati Generali CER 1 Sem. 2021'!M9,'Dati Generali CER 2 Sem. 2021'!M9)/1000) ->  | N9: =IF(SUM('Dati Generali CER 1 Sem. 2021'!N9,'Dati Generali CER 2 Sem. 2021'!N9)=0,"",SUM('Dati Generali CER 1 Sem. 2021'!N9,'Dati Generali CER 2 Sem. 2021'!N9)/1000) ->  | O9: =IF(SUM('Dati Generali CER 1 Sem. 2021'!O9,'Dati Generali CER 2 Sem. 2021'!O9)=0,"",SUM('Dati Generali CER 1 Sem. 2021'!O9,'Dati Generali CER 2 Sem. 2021'!O9)/1000) ->  | P9: =IF(SUM('Dati Generali CER 1 Sem. 2021'!P9,'Dati Generali CER 2 Sem. 2021'!P9)=0,"",SUM('Dati Generali CER 1 Sem. 2021'!P9,'Dati Generali CER 2 Sem. 2021'!P9)/1000) ->  | Q9: =IF(SUM('Dati Generali CER 1 Sem. 2021'!Q9,'Dati Generali CER 2 Sem. 2021'!Q9)=0,"",SUM('Dati Generali CER 1 Sem. 2021'!Q9,'Dati Generali CER 2 Sem. 2021'!Q9)/1000) ->  | R9: =IF(SUM('Dati Generali CER 1 Sem. 2021'!R9,'Dati Generali CER 2 Sem. 2021'!R9)=0,"",SUM('Dati Generali CER 1 Sem. 2021'!R9,'Dati Generali CER 2 Sem. 2021'!R9)/1000) ->  | S9: =IF(SUM('Dati Generali CER 1 Sem. 2021'!S9,'Dati Generali CER 2 Sem. 2021'!S9)=0,"",SUM('Dati Generali CER 1 Sem. 2021'!S9,'Dati Generali CER 2 Sem. 2021'!S9)/1000) ->  | T9: =IF(SUM('Dati Generali CER 1 Sem. 2021'!T9,'Dati Generali CER 2 Sem. 2021'!T9)=0,"",SUM('Dati Generali CER 1 Sem. 2021'!T9,'Dati Generali CER 2 Sem. 2021'!T9)/1000) ->  | U9: =IF(E9="","",SUM('Dati Generali CER 1 Sem. 2021'!BI9,'Dati Generali CER 2 Sem. 2021'!BI9)/1000) -> 45.05 | V9: =IF(SUM('Dati Generali CER 1 Sem. 2021'!V9,'Dati Generali CER 2 Sem. 2021'!V9)=0,"",SUM('Dati Generali CER 1 Sem. 2021'!V9,'Dati Generali CER 2 Sem. 2021'!V9)/1000) -> 107.65 | W9: 0.4184858337 | X9: =IF(SUM('Dati Generali CER 1 Sem. 2021'!X9,'Dati Generali CER 2 Sem. 2021'!X9)=0,"",SUM('Dati Generali CER 1 Sem. 2021'!X9,'Dati Generali CER 2 Sem. 2021'!X9)/1000) -> 12.09 | Y9: =IF(SUM('Dati Generali CER 1 Sem. 2021'!Y9,'Dati Generali CER 2 Sem. 2021'!Y9)=0,"",SUM('Dati Generali CER 1 Sem. 2021'!Y9,'Dati Generali CER 2 Sem. 2021'!Y9)/1000) ->  | Z9: =IF(SUM('Dati Generali CER 1 Sem. 2021'!Z9,'Dati Generali CER 2 Sem. 2021'!Z9)=0,"",SUM('Dati Generali CER 1 Sem. 2021'!Z9,'Dati Generali CER 2 Sem. 2021'!Z9)/1000) -> 10.28 | AA9: =IF(SUM('Dati Generali CER 1 Sem. 2021'!AA9,'Dati Generali CER 2 Sem. 2021'!AA9)=0,"",SUM('Dati Generali CER 1 Sem. 2021'!AA9,'Dati Generali CER 2 Sem. 2021'!AA9)/1000) -> 11.12 | AB9: =IF(SUM('Dati Generali CER 1 Sem. 2021'!AB9,'Dati Generali CER 2 Sem. 2021'!AB9)=0,"",SUM('Dati Generali CER 1 Sem. 2021'!AB9,'Dati Generali CER 2 Sem. 2021'!AB9)/1000) ->  | AC9: =IF(SUM('Dati Generali CER 1 Sem. 2021'!AC9,'Dati Generali CER 2 Sem. 2021'!AC9)=0,"",SUM('Dati Generali CER 1 Sem. 2021'!AC9,'Dati Generali CER 2 Sem. 2021'!AC9)/1000) ->  | AD9: =IF(SUM('Dati Generali CER 1 Sem. 2021'!AD9,'Dati Generali CER 2 Sem. 2021'!AD9)=0,"",SUM('Dati Generali CER 1 Sem. 2021'!AD9,'Dati Generali CER 2 Sem. 2021'!AD9)/1000) ->  | AE9: =IF(SUM('Dati Generali CER 1 Sem. 2021'!AE9,'Dati Generali CER 2 Sem. 2021'!AE9)=0,"",SUM('Dati Generali CER 1 Sem. 2021'!AE9,'Dati Generali CER 2 Sem. 2021'!AE9)/1000) -> 10.44 | AF9: =IF(SUM('Dati Generali CER 1 Sem. 2021'!AF9,'Dati Generali CER 2 Sem. 2021'!AF9)=0,"",SUM('Dati Generali CER 1 Sem. 2021'!AF9,'Dati Generali CER 2 Sem. 2021'!AF9)/1000) ->  | AG9: =IF(SUM('Dati Generali CER 1 Sem. 2021'!AG9,'Dati Generali CER 2 Sem. 2021'!AG9)=0,"",SUM('Dati Generali CER 1 Sem. 2021'!AG9,'Dati Generali CER 2 Sem. 2021'!AG9)/1000) ->  | AH9: =IF(SUM('Dati Generali CER 1 Sem. 2021'!AH9,'Dati Generali CER 2 Sem. 2021'!AH9)=0,"",SUM('Dati Generali CER 1 Sem. 2021'!AH9,'Dati Generali CER 2 Sem. 2021'!AH9)/1000) ->  | AI9: =IF(SUM('Dati Generali CER 1 Sem. 2021'!AI9,'Dati Generali CER 2 Sem. 2021'!AI9)=0,"",SUM('Dati Generali CER 1 Sem. 2021'!AI9,'Dati Generali CER 2 Sem. 2021'!AI9)/1000) ->  | AJ9: =IF(SUM('Dati Generali CER 1 Sem. 2021'!AJ9,'Dati Generali CER 2 Sem. 2021'!AJ9)=0,"",SUM('Dati Generali CER 1 Sem. 2021'!AJ9,'Dati Generali CER 2 Sem. 2021'!AJ9)/1000) ->  | AK9: =IF(SUM('Dati Generali CER 1 Sem. 2021'!AK9,'Dati Generali CER 2 Sem. 2021'!AK9)=0,"",SUM('Dati Generali CER 1 Sem. 2021'!AK9,'Dati Generali CER 2 Sem. 2021'!AK9)/1000) ->  | AL9: =IF(SUM('Dati Generali CER 1 Sem. 2021'!AL9,'Dati Generali CER 2 Sem. 2021'!AL9)=0,"",SUM('Dati Generali CER 1 Sem. 2021'!AL9,'Dati Generali CER 2 Sem. 2021'!AL9)/1000) ->  | AM9: =IF(SUM('Dati Generali CER 1 Sem. 2021'!AM9,'Dati Generali CER 2 Sem. 2021'!AM9)=0,"",SUM('Dati Generali CER 1 Sem. 2021'!AM9,'Dati Generali CER 2 Sem. 2021'!AM9)/1000) ->  | AN9: =IF(SUM('Dati Generali CER 1 Sem. 2021'!AN9,'Dati Generali CER 2 Sem. 2021'!AN9)=0,"",SUM('Dati Generali CER 1 Sem. 2021'!AN9,'Dati Generali CER 2 Sem. 2021'!AN9)/1000) -> 1.12 | AO9: =IF(SUM('Dati Generali CER 1 Sem. 2021'!AO9,'Dati Generali CER 2 Sem. 2021'!AO9)=0,"",SUM('Dati Generali CER 1 Sem. 2021'!AO9,'Dati Generali CER 2 Sem. 2021'!AO9)/1000) ->  | AP9: =IF(SUM('Dati Generali CER 1 Sem. 2021'!AP9,'Dati Generali CER 2 Sem. 2021'!AP9)=0,"",SUM('Dati Generali CER 1 Sem. 2021'!AP9,'Dati Generali CER 2 Sem. 2021'!AP9)/1000) ->  | AQ9: =IF(SUM('Dati Generali CER 1 Sem. 2021'!AQ9,'Dati Generali CER 2 Sem. 2021'!AQ9)=0,"",SUM('Dati Generali CER 1 Sem. 2021'!AQ9,'Dati Generali CER 2 Sem. 2021'!AQ9)/1000) ->  | AR9: =IF(SUM('Dati Generali CER 1 Sem. 2021'!AR9,'Dati Generali CER 2 Sem. 2021'!AR9)=0,"",SUM('Dati Generali CER 1 Sem. 2021'!AR9,'Dati Generali CER 2 Sem. 2021'!AR9)/1000) ->  | AS9: =IF(SUM('Dati Generali CER 1 Sem. 2021'!AS9,'Dati Generali CER 2 Sem. 2021'!AS9)=0,"",SUM('Dati Generali CER 1 Sem. 2021'!AS9,'Dati Generali CER 2 Sem. 2021'!AS9)/1000) ->  | AT9: =IF(SUM('Dati Generali CER 1 Sem. 2021'!AT9,'Dati Generali CER 2 Sem. 2021'!AT9)=0,"",SUM('Dati Generali CER 1 Sem. 2021'!AT9,'Dati Generali CER 2 Sem. 2021'!AT9)/1000) ->  | AU9: =IF(SUM('Dati Generali CER 1 Sem. 2021'!AU9,'Dati Generali CER 2 Sem. 2021'!AU9)=0,"",SUM('Dati Generali CER 1 Sem. 2021'!AU9,'Dati Generali CER 2 Sem. 2021'!AU9)/1000) ->  | AV9: =IF(SUM('Dati Generali CER 1 Sem. 2021'!AV9,'Dati Generali CER 2 Sem. 2021'!AV9)=0,"",SUM('Dati Generali CER 1 Sem. 2021'!AV9,'Dati Generali CER 2 Sem. 2021'!AV9)/1000) ->  | AW9: =IF(SUM('Dati Generali CER 1 Sem. 2021'!AW9,'Dati Generali CER 2 Sem. 2021'!AW9)=0,"",SUM('Dati Generali CER 1 Sem. 2021'!AW9,'Dati Generali CER 2 Sem. 2021'!AW9)/1000) ->  | AX9: =IF(SUM('Dati Generali CER 1 Sem. 2021'!AX9,'Dati Generali CER 2 Sem. 2021'!AX9)=0,"",SUM('Dati Generali CER 1 Sem. 2021'!AX9,'Dati Generali CER 2 Sem. 2021'!AX9)/1000) ->  | AY9: =IF(SUM('Dati Generali CER 1 Sem. 2021'!AY9,'Dati Generali CER 2 Sem. 2021'!AY9)=0,"",SUM('Dati Generali CER 1 Sem. 2021'!AY9,'Dati Generali CER 2 Sem. 2021'!AY9)/1000) ->  | AZ9: =IF(SUM('Dati Generali CER 1 Sem. 2021'!AZ9,'Dati Generali CER 2 Sem. 2021'!AZ9)=0,"",SUM('Dati Generali CER 1 Sem. 2021'!AZ9,'Dati Generali CER 2 Sem. 2021'!AZ9)/1000) ->  | BA9: =IF(SUM('Dati Generali CER 1 Sem. 2021'!BA9,'Dati Generali CER 2 Sem. 2021'!BA9)=0,"",SUM('Dati Generali CER 1 Sem. 2021'!BA9,'Dati Generali CER 2 Sem. 2021'!BA9)/1000) ->  | BB9: =IF(SUM('Dati Generali CER 1 Sem. 2021'!BB9,'Dati Generali CER 2 Sem. 2021'!BB9)=0,"",SUM('Dati Generali CER 1 Sem. 2021'!BB9,'Dati Generali CER 2 Sem. 2021'!BB9)/1000) ->  | BC9: =IF(SUM('Dati Generali CER 1 Sem. 2021'!BC9,'Dati Generali CER 2 Sem. 2021'!BC9)=0,"",SUM('Dati Generali CER 1 Sem. 2021'!BC9,'Dati Generali CER 2 Sem. 2021'!BC9)/1000) ->  | BD9: =IF(SUM('Dati Generali CER 1 Sem. 2021'!BD9,'Dati Generali CER 2 Sem. 2021'!BD9)=0,"",SUM('Dati Generali CER 1 Sem. 2021'!BD9,'Dati Generali CER 2 Sem. 2021'!BD9)/1000) ->  | BE9: =IF(SUM('Dati Generali CER 1 Sem. 2021'!BE9,'Dati Generali CER 2 Sem. 2021'!BE9)=0,"",SUM('Dati Generali CER 1 Sem. 2021'!BE9,'Dati Generali CER 2 Sem. 2021'!BE9)/1000) ->  | BF9: =IF(SUM('Dati Generali CER 1 Sem. 2021'!BF9,'Dati Generali CER 2 Sem. 2021'!BF9)=0,"",SUM('Dati Generali CER 1 Sem. 2021'!BF9,'Dati Generali CER 2 Sem. 2021'!BF9)/1000) ->  | BG9: =IF(SUM('Dati Generali CER 1 Sem. 2021'!BG9,'Dati Generali CER 2 Sem. 2021'!BG9)=0,"",SUM('Dati Generali CER 1 Sem. 2021'!BG9,'Dati Generali CER 2 Sem. 2021'!BG9)/1000) ->  | BI9: =IF(SUM('Dati Generali CER 1 Sem. 2021'!BI9,'Dati Generali CER 2 Sem. 2021'!BI9)=0,"",SUM('Dati Generali CER 1 Sem. 2021'!BI9,'Dati Generali CER 2 Sem. 2021'!BI9)/1000) -> 45.05 | BJ9: 6 | BK9: 0.5512738446 | BL9: 0.3205735501 | BM9: 0.2307002945 | BN9: 107.65
